Workbook

Sheet 20.1 (Collateral Simulation)
GO6: =COLUMN() -> 197
N9: 0 | O9: 0.002747252747 | P9: 0.02747252747 | Q9: 0.05494505495 | R9: 0.08241758242 | S9: 0.1098901099 | T9: 0.1373626374 | U9: 0.1648351648 | V9: 0.1923076923 | W9: 0.2197802198 | X9: 0.2472527473 | Y9: 0.2747252747 | Z9: 0.3021978022 | AA9: 0.3296703297 | AB9: 0.3571428571 | AC9: 0.3846153846 | AD9: 0.4120879121 | AE9: 0.4395604396 | AF9: 0.467032967 | AG9: 0.4945054945 | AH9: 0.521978022 | AI9: 0.5494505495 | AJ9: 0.5769230769 | AK9: 0.6043956044 | AL9: 0.6318681319 | AM9: 0.6593406593 | AN9: 0.6868131868 | AO9: 0.7142857143 | AP9: 0.7417582418 | AQ9: 0.7692307692 | AR9: 0.7967032967 | AS9: 0.8241758242 | AT9: 0.8516483516 | AU9: 0.8791208791 | AV9: 0.9065934066 | AW9: 0.9340659341 | AX9: 0.9615384615 | AY9: 0.989010989 | AZ9: 1.016483516 | BA9: 1.043956044 | BB9: 1.071428571 | BC9: 1.098901099 | BD9: 1.126373626 | BE9: 1.153846154 | BF9: 1.181318681 | BG9: 1.208791209 | BH9: 1.236263736 | BI9: 1.263736264 | BJ9: 1.291208791 | BK9: 1.318681319 | BL9: 1.346153846 | BM9: 1.373626374 | BN9: 1.401098901 | BO9: 1.428571429 | BP9: 1.456043956 | BQ9: 1.483516484 | BR9: 1.510989011 | BS9: 1.538461538 | BT9: 1.565934066 | BU9: 1.593406593 | BV9: 1.620879121 | BW9: 1.648351648 | BX9: 1.675824176 | BY9: 1.703296703 | BZ9: 1.730769231 | CA9: 1.758241758 | CB9: 1.785714286 | CC9: 1.813186813 | CD9: 1.840659341 | CE9: 1.868131868 | CF9: 1.895604396 | CG9: 1.923076923 | CH9: 1.950549451 | CI9: 1.978021978 | CJ9: 2.005494505 | CK9: 2.032967033 | CL9: 2.06043956 | CM9: 2.087912088 | CN9: 2.115384615 | CO9: 2.142857143 | CP9: 2.17032967 | CQ9: 2.197802198 | CR9: 2.225274725 | CS9: 2.252747253 | CT9: 2.28021978 | CU9: 2.307692308 | CV9: 2.335164835 | CW9: 2.362637363 | CX9: 2.39010989 | CY9: 2.417582418 | CZ9: 2.445054945 | DA9: 2.472527473 | DB9: 2.5 | DC9: 2.527472527 | DD9: 2.554945055 | DE9: 2.582417582 | DF9: 2.60989011 | DG9: 2.637362637 | DH9: 2.664835165 | DI9: 2.692307692 | DJ9: 2.71978022 | DK9: 2.747252747 | DL9: 2.774725275 | DM9: 2.802197802 | DN9: 2.82967033 | DO9: 2.857142857 | DP9: 2.884615385 | DQ9: 2.912087912 | DR9: 2.93956044 | DS9: 2.967032967 | DT9: 2.994505495 | DU9: 3.021978022 | DV9: 3.049450549 | DW9: 3.076923077 | DX9: 3.104395604 | DY9: 3.131868132 | DZ9: 3.159340659 | EA9: 3.186813187 | EB9: 3.214285714 | EC9: 3.241758242 | ED9: 3.269230769 | EE9: 3.296703297 | EF9: 3.324175824 | EG9: 3.351648352 | EH9: 3.379120879 | EI9: 3.406593407 | EJ9: 3.434065934 | EK9: 3.461538462 | EL9: 3.489010989 | EM9: 3.516483516 | EN9: 3.543956044 | EO9: 3.571428571 | EP9: 3.598901099 | EQ9: 3.626373626 | ER9: 3.653846154 | ES9: 3.681318681 | ET9: 3.708791209 | EU9: 3.736263736 | EV9: 3.763736264 | EW9: 3.791208791 | EX9: 3.818681319 | EY9: 3.846153846 | EZ9: 3.873626374 | FA9: 3.901098901 | FB9: 3.928571429 | FC9: 3.956043956 | FD9: 3.983516484 | FE9: 4.010989011 | FF9: 4.038461538 | FG9: 4.065934066 | FH9: 4.093406593 | FI9: 4.120879121 | FJ9: 4.148351648 | FK9: 4.175824176 | FL9: 4.203296703 | FM9: 4.230769231 | FN9: 4.258241758 | FO9: 4.285714286 | FP9: 4.313186813 | FQ9: 4.340659341 | FR9: 4.368131868 | FS9: 4.395604396 | FT9: 4.423076923 | FU9: 4.450549451 | FV9: 4.478021978 | FW9: 4.505494505 | FX9: 4.532967033 | FY9: 4.56043956 | FZ9: 4.587912088 | GA9: 4.615384615 | GB9: 4.642857143 | GC9: 4.67032967 | GD9: 4.697802198 | GE9: 4.725274725 | GF9: 4.752747253 | GG9: 4.78021978 | GH9: 4.807692308 | GI9: 4.835164835 | GJ9: 4.862637363 | GK9: 4.89010989 | GL9: 4.917582418 | GM9: 4.945054945 | GN9: 4.972527473 | GO9: 5
B10: Parameters | I10: Blue = Inputs | M10: Simulation 1 | N10: 0 | O10: -0.0030455 | P10: -0.2861618 | Q10: 1.4201398 | R10: 3.3129989 | S10: 4.5282241 | T10: 5.3000668 | U10: 5.5396154 | V10: 5.1265755 | W10: 4.2202615 | X10: 3.2925595 | Y10: 4.0034132 | Z10: 3.7359491 | AA10: 4.959236 | AB10: 4.0484086 | AC10: 4.9506096 | AD10: 5.7888525 | AE10: 5.2576605 | AF10: 4.1341903 | AG10: 3.979318 | AH10: 3.9590633 | AI10: 5.2387449 | AJ10: 5.3846099 | AK10: 4.761304 | AL10: 2.9284097 | AM10: 3.5229651 | AN10: 5.1529936 | AO10: 7.4189339 | AP10: 7.5110158 | AQ10: 8.1789667 | AR10: 8.7950542 | AS10: 6.0200687 | AT10: 5.2845743 | AU10: 4.965778 | AV10: 5.3106615 | AW10: 5.4752219 | AX10: 5.7294995 | AY10: 5.3516172 | AZ10: 5.8568573 | BA10: 4.1805238 | BB10: 4.2254749 | BC10: 6.4907262 | BD10: 7.2756209 | BE10: 9.3653964 | BF10: 9.10172 | BG10: 7.200858 | BH10: 6.6272584 | BI10: 6.3600399 | BJ10: 5.4867135 | BK10: 3.812714 | BL10: 1.9237814 | BM10: 0.8697118 | BN10: 2.369949 | BO10: 1.021067 | BP10: 1.543888 | BQ10: 1.8721482 | BR10: 1.4985543 | BS10: 1.5783003 | BT10: 1.8820526 | BU10: 1.6365404 | BV10: 1.3129816 | BW10: 0.9437612 | BX10: -1.4248266 | BY10: -1.0466821 | BZ10: -0.7422222 | CA10: 0.5323952 | CB10: 0.982418 | CC10: 0.7319244 | CD10: 1.943195 | CE10: 0.3816981 | CF10: -0.746708 | CG10: 0.5119062 | CH10: 0.6444751 | CI10: 1.0917886 | CJ10: 1.1695433 | CK10: 2.8775379 | CL10: 2.3046358 | CM10: 2.2798383 | CN10: 1.9586379 | CO10: 3.6726339 | CP10: 3.3728094 | CQ10: 3.9650952 | CR10: 3.5149552 | CS10: 3.2878621 | CT10: 1.4722879 | CU10: 0.162853 | CV10: 0.1888759 | CW10: -0.5838238 | CX10: 0.1299671 | CY10: -0.3094161 | CZ10: -1.0674469 | DA10: -1.6933038 | DB10: -2.1762019 | DC10: -1.6327317 | DD10: -1.7737022 | DE10: -1.2036287 | DF10: -1.2507094 | DG10: -1.3455485 | DH10: -0.569584 | DI10: -1.4395975 | DJ10: -0.2948712 | DK10: 0.248974 | DL10: 0.3602325 | DM10: 1.1344829 | DN10: 2.1762094 | DO10: 2.7223164 | DP10: 5.076395 | DQ10: 3.9276848 | DR10: 2.8845623 | DS10: 3.8690818 | DT10: 3.3596525 | DU10: 4.3485299 | DV10: 6.1687158 | DW10: 6.4907515 | DX10: 5.6013205 | DY10: 4.5531926 | DZ10: 3.0374966 | EA10: 5.2784924 | EB10: 5.1835142 | EC10: 4.730325 | ED10: 5.3597884 | EE10: 6.2257956 | EF10: 8.0975888 | EG10: 8.476631 | EH10: 8.9153629 | EI10: 10.8037509 | EJ10: 12.0936366 | EK10: 11.9100946 | EL10: 13.3695073 | EM10: 11.6261006 | EN10: 10.2661796 | EO10: 10.3660708 | EP10: 9.8924648 | EQ10: 9.7221559 | ER10: 10.8614193 | ES10: 9.3517372 | ET10: 7.9706069 | EU10: 6.6334191 | EV10: 6.3167673 | EW10: 6.2255924 | EX10: 5.7182539 | EY10: 5.0256358 | EZ10: 4.5990118 | FA10: 4.0785938 | FB10: 3.759031 | FC10: 4.2569713 | FD10: 4.3697408 | FE10: 3.6874376 | FF10: 4.2516593 | FG10: 4.6775794 | FH10: 6.0904567 | FI10: 4.0802055 | FJ10: 2.9858941 | FK10: 1.8411273 | FL10: 2.179244 | FM10: 2.6404304 | FN10: 2.3212659 | FO10: 2.5600182 | FP10: 2.9946652 | FQ10: 3.2405283 | FR10: 3.2640271 | FS10: 3.1228041 | FT10: 2.9024764 | FU10: 2.3910379 | FV10: 1.5771415 | FW10: 1.1917257 | FX10: 1.0399096 | FY10: 0.8868811 | FZ10: 0.8697535 | GA10: 0.5479946 | GB10: 0.5001354 | GC10: 0.7050027 | GD10: 0.4615349 | GE10: 0.2389813 | GF10: 0.1354647 | GG10: 0.0769901 | GH10: -0.1440179 | GI10: -0.364682 | GJ10: -0.3952935 | GK10: -0.2424626 | GL10: -0.4143823 | GM10: -0.4233316 | GN10: -0.5775334 | GO10: -0.6939825
C11: Party A | D11: Party B | I11: Grey = Fixed | M11: Simulation 2 | N11: 0 | O11: 0.3878222 | P11: 1.3890313 | Q11: -1.0922415 | R11: -1.5003681 | S11: -1.6288811 | T11: -0.9877783 | U11: -1.6703283 | V11: -1.592542 | W11: 0.0830775 | X11: 0.3635745 | Y11: 0.2232382 | Z11: -0.2045382 | AA11: -1.7781677 | AB11: -1.2217521 | AC11: -2.4245374 | AD11: -1.8759758 | AE11: -0.765455 | AF11: -1.0575382 | AG11: -2.0497675 | AH11: -3.3939049 | AI11: -2.8908832 | AJ11: -2.2966543 | AK11: -2.40088 | AL11: -1.6140246 | AM11: -2.2998796 | AN11: -2.9589336 | AO11: -3.3954823 | AP11: -3.3690564 | AQ11: -2.6540677 | AR11: -4.1107952 | AS11: -4.0536281 | AT11: -4.1125552 | AU11: -3.9927418 | AV11: -4.5257396 | AW11: -4.070337 | AX11: -3.8513126 | AY11: -4.0083683 | AZ11: -3.8009236 | BA11: -4.8175781 | BB11: -4.5927606 | BC11: -4.5088225 | BD11: -4.6050541 | BE11: -5.3399311 | BF11: -4.8566854 | BG11: -5.3809588 | BH11: -4.8624186 | BI11: -4.1892884 | BJ11: -4.2677666 | BK11: -4.9935821 | BL11: -4.9221032 | BM11: -5.6503908 | BN11: -6.5646262 | BO11: -7.3842128 | BP11: -7.4235762 | BQ11: -7.5996481 | BR11: -7.5079861 | BS11: -7.4353621 | BT11: -8.294228 | BU11: -8.2926064 | BV11: -7.8279442 | BW11: -7.0806506 | BX11: -6.7153755 | BY11: -6.8267131 | BZ11: -6.8811198 | CA11: -7.1235939 | CB11: -7.05837 | CC11: -6.5305426 | CD11: -5.9693243 | CE11: -5.3948335 | CF11: -5.5852444 | CG11: -5.8933361 | CH11: -5.3544303 | CI11: -5.9501051 | CJ11: -6.2374579 | CK11: -5.7933649 | CL11: -6.2516187 | CM11: -6.6736923 | CN11: -6.5714666 | CO11: -6.3090543 | CP11: -6.4539645 | CQ11: -6.2285151 | CR11: -5.8890646 | CS11: -5.7605709 | CT11: -5.3945943 | CU11: -5.2701647 | CV11: -5.5856277 | CW11: -5.4758946 | CX11: -5.0882487 | CY11: -5.5060423 | CZ11: -5.9359492 | DA11: -6.0033103 | DB11: -5.7963461 | DC11: -5.4889433 | DD11: -6.2480493 | DE11: -6.1036747 | DF11: -5.902014 | DG11: -6.008485 | DH11: -6.279126 | DI11: -6.4573773 | DJ11: -6.6836879 | DK11: -6.478108 | DL11: -6.1733653 | DM11: -6.0084604 | DN11: -5.6913212 | DO11: -5.4236311 | DP11: -5.4186613 | DQ11: -5.8026321 | DR11: -5.4437927 | DS11: -5.5754115 | DT11: -5.3821956 | DU11: -5.033347 | DV11: -5.2534958 | DW11: -5.5069527 | DX11: -5.9344402 | DY11: -5.8715199 | DZ11: -5.8297235 | EA11: -5.4325843 | EB11: -5.3493397 | EC11: -5.0605686 | ED11: -4.6950035 | EE11: -4.6088982 | EF11: -4.4343363 | EG11: -4.3844867 | EH11: -4.2838411 | EI11: -4.2580457 | EJ11: -4.1251777 | EK11: -4.0820202 | EL11: -4.0528493 | EM11: -3.5309857 | EN11: -3.9773641 | EO11: -3.7761256 | EP11: -3.8851419 | EQ11: -3.6812428 | ER11: -3.4675858 | ES11: -3.4591772 | ET11: -3.0296114 | EU11: -2.782543 | EV11: -2.875907 | EW11: -2.6547924 | EX11: -2.4193896 | EY11: -2.0988137 | EZ11: -1.9720037 | FA11: -1.8443738 | FB11: -1.4665392 | FC11: -1.2984602 | FD11: -1.1310132 | FE11: -1.0432748 | FF11: -1.116621 | FG11: -1.26582 | FH11: -1.4301952 | FI11: -1.2174337 | FJ11: -1.2531215 | FK11: -1.0161155 | FL11: -0.9321735 | FM11: -0.9249487 | FN11: -0.8536157 | FO11: -0.7433366 | FP11: -0.7606218 | FQ11: -0.9751228 | FR11: -1.0307002 | FS11: -1.182784 | FT11: -1.2096426 | FU11: -1.1577242 | FV11: -1.1738622 | FW11: -1.1039876 | FX11: -0.8033604 | FY11: -0.9867822 | FZ11: -1.2157484 | GA11: -1.1650522 | GB11: -0.8629549 | GC11: -0.6731947 | GD11: -0.7678042 | GE11: -0.5274783 | GF11: -0.9129564 | GG11: -0.8982987 | GH11: -0.8286855 | GI11: -0.8472886 | GJ11: -0.5181386 | GK11: -0.5053064 | GL11: -0.5154444 | GM11: -0.4555813 | GN11: -0.39582 | GO11: -0.3620095
B12: Initial margin | C12: 0 | D12: 0 | E12: TRUE | I12: White = Calculations | M12: Simulation 3 | N12: 0 | O12: -0.0546394 | P12: 1.1981244 | Q12: 0.6835455 | R12: 2.525763 | S12: 1.01157 | T12: 0.2518411 | U12: 2.0577404 | V12: 1.8543712 | W12: 1.3791212 | X12: 3.331419 | Y12: 1.3969368 | Z12: 1.6115684 | AA12: 1.6708195 | AB12: 0.2084565 | AC12: 3.9600188 | AD12: 4.2547329 | AE12: 3.4850815 | AF12: 6.2401144 | AG12: 7.6804907 | AH12: 8.0918371 | AI12: 6.0158078 | AJ12: 6.3198375 | AK12: 4.7926175 | AL12: 3.553301 | AM12: 4.9268031 | AN12: 2.5307802 | AO12: 2.8713922 | AP12: 3.4681246 | AQ12: 2.7091088 | AR12: 2.5067016 | AS12: 2.6393064 | AT12: 3.9575492 | AU12: 4.1641445 | AV12: 5.6471692 | AW12: 1.4225464 | AX12: 3.3106916 | AY12: 3.9168132 | AZ12: 4.706633 | BA12: 4.2866394 | BB12: 6.0821948 | BC12: 5.0508648 | BD12: 6.1723427 | BE12: 3.4510872 | BF12: 4.7052753 | BG12: 3.5742991 | BH12: 4.5389104 | BI12: 4.0128454 | BJ12: 4.0949589 | BK12: 6.8523173 | BL12: 6.1342736 | BM12: 5.0943736 | BN12: 2.724684 | BO12: 3.5635344 | BP12: 5.0351032 | BQ12: 5.2141997 | BR12: 4.3923281 | BS12: 4.730019 | BT12: 4.2420249 | BU12: 5.1777982 | BV12: 6.0855247 | BW12: 6.4216729 | BX12: 5.878343 | BY12: 5.6783658 | BZ12: 5.6977906 | CA12: 7.0713625 | CB12: 9.4482501 | CC12: 11.6152013 | CD12: 7.3358373 | CE12: 10.0014414 | CF12: 9.7069922 | CG12: 6.797721 | CH12: 5.1922975 | CI12: 6.1615762 | CJ12: 7.1492639 | CK12: 5.9361837 | CL12: 5.7904194 | CM12: 4.5268292 | CN12: 2.5318248 | CO12: 3.3716786 | CP12: 4.1498382 | CQ12: 3.3319439 | CR12: 4.8220613 | CS12: 7.4087992 | CT12: 6.6501254 | CU12: 5.9702811 | CV12: 5.9928955 | CW12: 5.0485088 | CX12: 6.3465149 | CY12: 7.2389175 | CZ12: 7.6595304 | DA12: 8.1720903 | DB12: 6.6376516 | DC12: 5.262715 | DD12: 5.9214896 | DE12: 8.1874578 | DF12: 6.3207883 | DG12: 6.6688497 | DH12: 8.8149114 | DI12: 10.6277637 | DJ12: 11.9930015 | DK12: 9.871011 | DL12: 8.962884 | DM12: 7.7505158 | DN12: 8.7212472 | DO12: 8.0992818 | DP12: 7.9488975 | DQ12: 10.4047052 | DR12: 8.3374694 | DS12: 7.2864413 | DT12: 8.7643927 | DU12: 7.5409164 | DV12: 6.300582 | DW12: 7.0173194 | DX12: 7.4934646 | DY12: 6.4247909 | DZ12: 5.1078947 | EA12: 5.4972693 | EB12: 4.5523905 | EC12: 3.2187946 | ED12: 2.6376031 | EE12: 3.7741392 | EF12: 2.6473601 | EG12: 2.3536772 | EH12: 2.2008215 | EI12: 1.663773 | EJ12: 1.7899882 | EK12: 1.5032344 | EL12: 1.9001834 | EM12: 1.9771344 | EN12: 2.61838 | EO12: 1.9587172 | EP12: 1.9510132 | EQ12: 2.0909551 | ER12: 1.6991276 | ES12: 1.6867065 | ET12: 1.3372393 | EU12: 1.6619569 | EV12: 1.1005538 | EW12: 1.096984 | EX12: 0.7518645 | EY12: 0.9123769 | EZ12: 1.3438636 | FA12: 1.963054 | FB12: 2.0389375 | FC12: 1.4732811 | FD12: 0.9241464 | FE12: 0.8925556 | FF12: 0.6225621 | FG12: 0.8969621 | FH12: 0.6652622 | FI12: 0.3026465 | FJ12: 0.3175943 | FK12: -0.0295794 | FL12: -0.3019324 | FM12: -0.3615457 | FN12: -0.4145926 | FO12: -0.4764636 | FP12: -0.2123457 | FQ12: -0.0896358 | FR12: -0.0912413 | FS12: -0.0895078 | FT12: 0.0997273 | FU12: 0.0243843 | FV12: 0.0133598 | FW12: 0.1408426 | FX12: 0.0066592 | FY12: 0.0757452 | FZ12: 0.0704052 | GA12: 0.0881612 | GB12: 0.0986395 | GC12: -0.1513875 | GD12: -0.0040722 | GE12: -0.0517863 | GF12: -0.117061 | GG12: -0.2453613 | GH12: -0.2233942 | GI12: -0.1752517 | GJ12: 0.0016643 | GK12: 0.0482 | GL12: -0.144457 | GM12: -0.2322666 | GN12: -0.2663782 | GO12: -0.2164762
B13: Threshold | C13: 0 | D13: 0 | I13: Green = Results | M13: Simulation 4 | N13: 0 | O13: 0.1495796 | P13: 1.3473408 | Q13: 2.1650083 | R13: 3.0332582 | S13: 0.7486702 | T13: 0.9177865 | U13: 2.144269 | V13: -0.0673723 | W13: 2.0629252 | X13: 1.5335427 | Y13: 0.7216972 | Z13: -0.0202276 | AA13: -0.9812173 | AB13: -1.0792223 | AC13: -0.6924055 | AD13: 0.7607035 | AE13: 1.5839709 | AF13: -0.7586761 | AG13: 0.0322514 | AH13: 0.3065626 | AI13: -0.3857001 | AJ13: 1.5784083 | AK13: 3.2586608 | AL13: 0.5416024 | AM13: 1.1340927 | AN13: 0.9968299 | AO13: 0.8705504 | AP13: 1.1114829 | AQ13: 1.6464546 | AR13: 4.234289 | AS13: 3.6533875 | AT13: 3.7510129 | AU13: 3.5131212 | AV13: 4.6095158 | AW13: 5.0474692 | AX13: 3.2635715 | AY13: 3.0466432 | AZ13: 4.2244455 | BA13: 3.3855316 | BB13: 1.7769176 | BC13: 2.9226953 | BD13: 1.6638783 | BE13: 2.6696706 | BF13: 0.3269433 | BG13: -0.6338729 | BH13: -0.0056712 | BI13: 0.7738613 | BJ13: -0.1917817 | BK13: 0.3155747 | BL13: 0.3419033 | BM13: 0.5430536 | BN13: 0.1902669 | BO13: 0.0858913 | BP13: -1.0404547 | BQ13: -0.5873111 | BR13: -0.3247329 | BS13: -0.8698594 | BT13: -1.2736666 | BU13: -1.1217592 | BV13: -2.2595481 | BW13: -2.783494 | BX13: -2.73952 | BY13: -2.5016168 | BZ13: -2.1160292 | CA13: -1.2077152 | CB13: -0.7067486 | CC13: -1.1137803 | CD13: -1.7515106 | CE13: -1.3341489 | CF13: -2.0467656 | CG13: -1.9069107 | CH13: -1.1610534 | CI13: -1.4680492 | CJ13: -1.4840472 | CK13: -1.9625439 | CL13: -2.7762724 | CM13: -3.6426402 | CN13: -4.2392488 | CO13: -4.2607876 | CP13: -3.9338087 | CQ13: -4.7401881 | CR13: -4.137468 | CS13: -4.0644263 | CT13: -2.9272896 | CU13: -3.2058529 | CV13: -3.9312457 | CW13: -4.1668917 | CX13: -5.2555245 | CY13: -5.4238359 | CZ13: -4.9328912 | DA13: -4.9183397 | DB13: -5.0478327 | DC13: -4.429194 | DD13: -3.5384799 | DE13: -3.5897846 | DF13: -3.5357834 | DG13: -4.1263549 | DH13: -3.9501107 | DI13: -4.2086357 | DJ13: -3.3327342 | DK13: -3.4668004 | DL13: -3.4627636 | DM13: -3.4938732 | DN13: -3.7043865 | DO13: -2.7567591 | DP13: -3.1915646 | DQ13: -2.6949149 | DR13: -3.5052458 | DS13: -3.3331157 | DT13: -3.2715625 | DU13: -2.7946804 | DV13: -2.7893388 | DW13: -2.6330438 | DX13: -2.4559749 | DY13: -2.0869607 | DZ13: -2.0637066 | EA13: -2.1994406 | EB13: -2.7378632 | EC13: -2.7933559 | ED13: -3.1125337 | EE13: -2.8802991 | EF13: -3.0821156 | EG13: -3.168429 | EH13: -3.1924716 | EI13: -3.3530439 | EJ13: -3.7597324 | EK13: -3.7606351 | EL13: -3.8585744 | EM13: -3.6543885 | EN13: -3.8879453 | EO13: -4.1229559 | EP13: -3.9837063 | EQ13: -3.9072797 | ER13: -3.8423314 | ES13: -3.9808989 | ET13: -3.8906359 | EU13: -3.8064447 | EV13: -3.6683315 | EW13: -3.5974563 | EX13: -3.9404938 | EY13: -3.7392963 | EZ13: -3.6940972 | FA13: -3.6400998 | FB13: -3.6064389 | FC13: -3.671978 | FD13: -3.7273776 | FE13: -3.5863222 | FF13: -3.3767596 | FG13: -3.6114595 | FH13: -3.7537137 | FI13: -3.6952982 | FJ13: -3.613661 | FK13: -3.6916093 | FL13: -3.6860182 | FM13: -3.6055373 | FN13: -3.4841923 | FO13: -3.6110863 | FP13: -3.556833 | FQ13: -3.4875167 | FR13: -3.5131186 | FS13: -3.3591001 | FT13: -3.1216048 | FU13: -3.1513405 | FV13: -3.1831735 | FW13: -2.9619839 | FX13: -2.697896 | FY13: -2.6300851 | FZ13: -2.6914037 | GA13: -2.7212543 | GB13: -2.6297782 | GC13: -2.5298231 | GD13: -2.4305904 | GE13: -2.5351671 | GF13: -2.5704642 | GG13: -2.463391 | GH13: -2.2881168 | GI13: -2.2144114 | GJ13: -2.2910634 | GK13: -2.2241425 | GL13: -2.0961126 | GM13: -2.0665124 | GN13: -2.0638595 | GO13: -2.1804488
B14: Minimum transfer amount | C14: 0 | D14: 0 | M14: Simulation 5 | N14: 0 | O14: 0.7174077 | P14: 1.347043 | Q14: 1.6431207 | R14: 2.3899569 | S14: 1.0180335 | T14: 3.0020215 | U14: 2.5701231 | V14: 3.2452937 | W14: 4.5049631 | X14: 3.9033192 | Y14: 4.7956409 | Z14: 5.0715089 | AA14: 3.8164072 | AB14: 4.0412343 | AC14: 1.430849 | AD14: 3.106265 | AE14: 4.0673475 | AF14: 3.8657628 | AG14: 1.8028138 | AH14: 3.3148251 | AI14: 0.2713016 | AJ14: 3.277685 | AK14: 4.3851783 | AL14: 9.7627443 | AM14: 10.3365872 | AN14: 9.9659504 | AO14: 8.8012602 | AP14: 10.176017 | AQ14: 12.3740932 | AR14: 11.0410694 | AS14: 11.6924209 | AT14: 11.6362115 | AU14: 8.3508811 | AV14: 11.2135787 | AW14: 10.0378697 | AX14: 10.7615888 | AY14: 10.0122316 | AZ14: 10.1517357 | BA14: 7.8844323 | BB14: 8.2607355 | BC14: 8.2333654 | BD14: 7.1237668 | BE14: 5.9860039 | BF14: 8.3460533 | BG14: 8.143981 | BH14: 8.4753858 | BI14: 9.0185511 | BJ14: 9.9079979 | BK14: 8.7047228 | BL14: 6.8362729 | BM14: 5.5465935 | BN14: 3.3339427 | BO14: 2.2069139 | BP14: 3.1155936 | BQ14: 3.3607377 | BR14: 4.8291655 | BS14: 7.2073507 | BT14: 6.0691596 | BU14: 7.7642622 | BV14: 7.3319182 | BW14: 10.3199175 | BX14: 8.3806616 | BY14: 8.1809475 | BZ14: 7.2156697 | CA14: 6.4774615 | CB14: 5.5972636 | CC14: 7.167849 | CD14: 9.5705399 | CE14: 8.5636009 | CF14: 8.0158392 | CG14: 8.5963235 | CH14: 6.3457842 | CI14: 5.8862838 | CJ14: 4.2805974 | CK14: 6.5890133 | CL14: 6.5107914 | CM14: 6.144268 | CN14: 7.783804 | CO14: 7.7642365 | CP14: 8.0598514 | CQ14: 6.3403992 | CR14: 6.8761399 | CS14: 6.8721852 | CT14: 7.4831541 | CU14: 8.9431325 | CV14: 9.6621698 | CW14: 9.1019639 | CX14: 8.4990351 | CY14: 6.7006335 | CZ14: 5.9398259 | DA14: 6.5508996 | DB14: 4.3618896 | DC14: 2.54587 | DD14: 1.1699724 | DE14: 2.0995975 | DF14: -0.8137259 | DG14: -1.1730341 | DH14: -1.888708 | DI14: -0.9265763 | DJ14: -0.9811409 | DK14: -2.393168 | DL14: -3.3462837 | DM14: -2.9460487 | DN14: -3.3176742 | DO14: -3.6085442 | DP14: -3.5974523 | DQ14: -3.1463861 | DR14: -2.7873481 | DS14: -2.1329441 | DT14: -2.0707817 | DU14: -2.4560921 | DV14: -3.3086984 | DW14: -2.9571533 | DX14: -4.0850889 | DY14: -3.6773803 | DZ14: -3.612093 | EA14: -3.7687557 | EB14: -3.8132097 | EC14: -3.5782777 | ED14: -3.1525068 | EE14: -3.0374796 | EF14: -3.5172257 | EG14: -3.2344175 | EH14: -3.4085968 | EI14: -3.2865606 | EJ14: -3.5684899 | EK14: -3.6125489 | EL14: -3.4853365 | EM14: -2.8337867 | EN14: -2.9034054 | EO14: -2.5719124 | EP14: -2.2709351 | EQ14: -2.037466 | ER14: -1.7341238 | ES14: -1.8981221 | ET14: -1.3394984 | EU14: -1.1627966 | EV14: -0.8056969 | EW14: -1.4103452 | EX14: -1.1105693 | EY14: -0.9419235 | EZ14: -0.9795314 | FA14: -1.208812 | FB14: -0.6500003 | FC14: -1.016356 | FD14: -1.4536259 | FE14: -1.4243927 | FF14: -1.393348 | FG14: -1.4577179 | FH14: -1.0854483 | FI14: -1.1114116 | FJ14: -1.084059 | FK14: -0.8979992 | FL14: -1.2092659 | FM14: -1.5645923 | FN14: -1.4405942 | FO14: -1.7365224 | FP14: -1.6160917 | FQ14: -1.7247945 | FR14: -1.566473 | FS14: -1.2990711 | FT14: -1.8511958 | FU14: -2.1419905 | FV14: -2.5250766 | FW14: -2.3415308 | FX14: -1.9522058 | FY14: -1.8110889 | FZ14: -1.9021837 | GA14: -1.9563719 | GB14: -2.0008861 | GC14: -2.0527861 | GD14: -1.9477227 | GE14: -2.0826285 | GF14: -2.1970832 | GG14: -2.0472338 | GH14: -2.2963968 | GI14: -2.2340251 | GJ14: -2.3518141 | GK14: -2.2945126 | GL14: -2.3812309 | GM14: -2.3151668 | GN14: -2.3181765 | GO14: -2.3738328
B15: Rounding | C15: 0 | D15: 0 | M15: Simulation 6 | N15: 0 | O15: -0.0656743 | P15: 0.2652375 | Q15: -1.0286485 | R15: -0.5116934 | S15: -1.7675056 | T15: -2.4507441 | U15: -1.7900517 | V15: -2.1688552 | W15: -2.334524 | X15: -3.254598 | Y15: -3.2587706 | Z15: -3.6246435 | AA15: -4.4825906 | AB15: -4.3434491 | AC15: -5.6059185 | AD15: -4.9797331 | AE15: -4.6252808 | AF15: -5.4900966 | AG15: -6.5928879 | AH15: -5.5842999 | AI15: -6.5443306 | AJ15: -6.0821024 | AK15: -5.7495686 | AL15: -7.2250548 | AM15: -7.0364184 | AN15: -6.7826266 | AO15: -6.966981 | AP15: -5.9732024 | AQ15: -5.2338553 | AR15: -5.1777879 | AS15: -4.3430166 | AT15: -4.48476 | AU15: -5.1902882 | AV15: -5.7185845 | AW15: -5.8041832 | AX15: -4.7773165 | AY15: -4.6423995 | AZ15: -3.4884776 | BA15: -3.9780234 | BB15: -4.3680555 | BC15: -4.8095779 | BD15: -5.5078281 | BE15: -5.9331794 | BF15: -6.2351133 | BG15: -6.2494666 | BH15: -6.4829625 | BI15: -6.1845673 | BJ15: -7.4977722 | BK15: -7.3066171 | BL15: -7.4309261 | BM15: -6.7292055 | BN15: -7.4497509 | BO15: -7.7461319 | BP15: -8.3117743 | BQ15: -7.0669782 | BR15: -7.385776 | BS15: -7.125648 | BT15: -6.3026346 | BU15: -6.1100837 | BV15: -5.7624826 | BW15: -6.2539937 | BX15: -6.910207 | BY15: -8.4347492 | BZ15: -7.5850227 | CA15: -7.6509511 | CB15: -8.0559802 | CC15: -7.3408888 | CD15: -7.6978274 | CE15: -7.2273019 | CF15: -6.3929281 | CG15: -6.3952591 | CH15: -6.943634 | CI15: -6.3100317 | CJ15: -6.8987279 | CK15: -6.0764498 | CL15: -5.6248329 | CM15: -6.3094453 | CN15: -6.332369 | CO15: -6.8958231 | CP15: -5.5712528 | CQ15: -5.7743895 | CR15: -6.6511284 | CS15: -6.1623411 | CT15: -6.033721 | CU15: -6.4757126 | CV15: -6.6556899 | CW15: -6.9400926 | CX15: -6.969116 | CY15: -6.9449775 | CZ15: -6.817425 | DA15: -7.1657769 | DB15: -7.0750326 | DC15: -6.8342856 | DD15: -6.4316141 | DE15: -6.8266323 | DF15: -6.5952635 | DG15: -5.7693141 | DH15: -5.3091645 | DI15: -4.7913501 | DJ15: -4.3645158 | DK15: -4.7019297 | DL15: -5.0859606 | DM15: -4.9165506 | DN15: -4.9334756 | DO15: -4.4881075 | DP15: -4.2412288 | DQ15: -3.8767099 | DR15: -4.5050656 | DS15: -4.3703461 | DT15: -3.0967176 | DU15: -2.8123461 | DV15: -3.0811324 | DW15: -2.3326524 | DX15: -2.4365977 | DY15: -1.7293965 | DZ15: -1.4930374 | EA15: -1.4991151 | EB15: -0.3063494 | EC15: -1.0775297 | ED15: -0.5608825 | EE15: 0.1700846 | EF15: 0.095048 | EG15: 1.0028636 | EH15: 0.6801966 | EI15: 0.2328726 | EJ15: -0.561408 | EK15: -0.2715184 | EL15: -0.2845584 | EM15: -0.8141182 | EN15: -0.9166516 | EO15: -1.0153336 | EP15: -0.9058803 | EQ15: -0.7019396 | ER15: -0.4641447 | ES15: -0.382891 | ET15: 0.4985802 | EU15: 1.0293807 | EV15: 1.1200664 | EW15: 1.51961 | EX15: 1.6029188 | EY15: 1.8897634 | EZ15: 1.3763531 | FA15: 1.1799609 | FB15: 1.088587 | FC15: 1.4065003 | FD15: 2.0109607 | FE15: 1.8768852 | FF15: 1.7386559 | FG15: 0.9519664 | FH15: 0.6796684 | FI15: 0.1990776 | FJ15: 0.0546618 | FK15: -0.0659095 | FL15: 0.0910848 | FM15: -0.351263 | FN15: -0.2618674 | FO15: -0.0927854 | FP15: 0.2462711 | FQ15: 0.1608749 | FR15: -0.414474 | FS15: -0.2307597 | FT15: -0.5449933 | FU15: -0.518811 | FV15: -0.8233686 | FW15: -0.826382 | FX15: -0.5130076 | FY15: -0.5426697 | FZ15: -0.5484452 | GA15: -0.6255879 | GB15: -0.5871652 | GC15: -0.6978432 | GD15: -0.9089357 | GE15: -0.8623599 | GF15: -0.7429864 | GG15: -0.6646319 | GH15: -0.7236891 | GI15: -0.8128528 | GJ15: -0.7502551 | GK15: -0.8656909 | GL15: -1.0490295 | GM15: -1.2017365 | GN15: -1.4381192 | GO15: -1.646237
B16: Margin period of risk | C16: 20 | F16: View Path # | G16: 3 | M16: Simulation 7 | N16: 0 | O16: 0.1121332 | P16: 0.1092154 | Q16: 0.0713233 | R16: 0.3416569 | S16: 0.2170014 | T16: -1.2286749 | U16: -2.1815384 | V16: -2.088332 | W16: -2.3050694 | X16: -2.0079639 | Y16: -1.5557177 | Z16: -0.743262 | AA16: -1.7678688 | AB16: -2.902208 | AC16: -2.5078146 | AD16: -3.5241024 | AE16: -3.179616 | AF16: -2.4529327 | AG16: -2.8629055 | AH16: -0.8444472 | AI16: -1.0176515 | AJ16: -0.6578894 | AK16: -0.2565978 | AL16: -3.1545118 | AM16: -2.4948218 | AN16: -3.3692417 | AO16: -1.9796745 | AP16: -2.3144914 | AQ16: -2.0350794 | AR16: -1.530214 | AS16: 0.0275445 | AT16: -0.4771745 | AU16: -0.1396584 | AV16: -1.2626548 | AW16: -2.0263462 | AX16: -3.1768898 | AY16: -2.3418371 | AZ16: -1.1852506 | BA16: -2.1505421 | BB16: -3.0498111 | BC16: -3.6430216 | BD16: -4.8792935 | BE16: -4.5615298 | BF16: -5.5783359 | BG16: -6.9678989 | BH16: -6.7272429 | BI16: -8.6471743 | BJ16: -8.4147322 | BK16: -9.0278664 | BL16: -9.4348333 | BM16: -9.0962458 | BN16: -9.4466273 | BO16: -10.6662356 | BP16: -11.0455457 | BQ16: -10.8742239 | BR16: -9.2050465 | BS16: -8.954244 | BT16: -9.3885392 | BU16: -9.4036173 | BV16: -9.8425316 | BW16: -8.9585486 | BX16: -7.952787 | BY16: -8.5365102 | BZ16: -8.7076975 | CA16: -7.9938243 | CB16: -8.5968649 | CC16: -8.1763445 | CD16: -8.8385024 | CE16: -8.2017283 | CF16: -8.3472081 | CG16: -8.4692613 | CH16: -8.8841084 | CI16: -8.3004938 | CJ16: -7.5436773 | CK16: -7.2676315 | CL16: -7.444238 | CM16: -7.0965949 | CN16: -7.2186236 | CO16: -7.1604179 | CP16: -6.7787019 | CQ16: -7.0910777 | CR16: -8.0320461 | CS16: -6.8993787 | CT16: -6.4662106 | CU16: -6.2593287 | CV16: -7.074312 | CW16: -7.6589567 | CX16: -8.1316317 | CY16: -8.011835 | CZ16: -7.729395 | DA16: -8.5917098 | DB16: -9.0853279 | DC16: -7.5039336 | DD16: -7.5853313 | DE16: -7.8478076 | DF16: -8.0108922 | DG16: -8.098895 | DH16: -7.9167698 | DI16: -7.7131736 | DJ16: -7.9634675 | DK16: -7.9989522 | DL16: -8.679636 | DM16: -8.4066609 | DN16: -8.2065568 | DO16: -8.2047069 | DP16: -7.0347056 | DQ16: -6.6551041 | DR16: -6.5183156 | DS16: -7.2813319 | DT16: -6.8851691 | DU16: -5.9065818 | DV16: -5.9289717 | DW16: -5.7851213 | DX16: -5.4223277 | DY16: -5.553924 | DZ16: -5.9999353 | EA16: -6.2063869 | EB16: -6.6969046 | EC16: -6.4902493 | ED16: -6.3596849 | EE16: -6.2664204 | EF16: -6.614099 | EG16: -6.723685 | EH16: -6.6205307 | EI16: -6.9770158 | EJ16: -6.8020178 | EK16: -6.3899358 | EL16: -6.2904771 | EM16: -4.7655643 | EN16: -4.5789247 | EO16: -4.5330983 | EP16: -5.1229623 | EQ16: -5.4766052 | ER16: -5.6700709 | ES16: -5.4968858 | ET16: -5.4424614 | EU16: -5.4036782 | EV16: -5.6505969 | EW16: -5.8230918 | EX16: -5.8129458 | EY16: -5.662321 | EZ16: -5.7670832 | FA16: -6.0569683 | FB16: -6.1609827 | FC16: -6.1914796 | FD16: -6.2120865 | FE16: -5.8674655 | FF16: -4.9619951 | FG16: -5.0422525 | FH16: -4.7899944 | FI16: -4.7308423 | FJ16: -4.4284874 | FK16: -4.57552 | FL16: -4.375544 | FM16: -4.4691821 | FN16: -4.5259179 | FO16: -4.4187427 | FP16: -4.6061818 | FQ16: -4.7328618 | FR16: -4.6136628 | FS16: -4.6902318 | FT16: -4.8010566 | FU16: -4.9706519 | FV16: -4.8458701 | FW16: -4.4099091 | FX16: -3.6872279 | FY16: -3.7901975 | FZ16: -3.8809176 | GA16: -3.9166706 | GB16: -3.8641062 | GC16: -4.03467 | GD16: -4.059033 | GE16: -4.0765443 | GF16: -4.1528955 | GG16: -3.9639163 | GH16: -3.9671781 | GI16: -3.9451707 | GJ16: -4.0102344 | GK16: -4.0381969 | GL16: -4.1530032 | GM16: -4.2307231 | GN16: -4.1989684 | GO16: -4.0898328
C17: FALSE | M17: Simulation 8 | N17: 0 | O17: -0.2396872 | P17: 0.0903636 | Q17: 1.1223856 | R17: 0.9609799 | S17: 0.5856351 | T17: -0.8007714 | U17: -2.1933953 | V17: -2.6110195 | W17: -1.5178906 | X17: -1.4647497 | Y17: 0.759993 | Z17: -0.833892 | AA17: -1.2134555 | AB17: -1.0941903 | AC17: -0.0607732 | AD17: -0.1233337 | AE17: -0.3538038 | AF17: -0.406683 | AG17: -0.713804 | AH17: 0.7658721 | AI17: 2.0727166 | AJ17: 0.4607728 | AK17: 2.2703391 | AL17: 2.6557881 | AM17: 3.4580902 | AN17: 4.4312688 | AO17: 6.3987155 | AP17: 7.2988064 | AQ17: 7.2325024 | AR17: 6.3947995 | AS17: 5.6462911 | AT17: 6.2185047 | AU17: 4.6688671 | AV17: 3.6035904 | AW17: 3.194656 | AX17: 1.5807002 | AY17: 3.5093466 | AZ17: 3.8240274 | BA17: 4.2855674 | BB17: 2.6858654 | BC17: 2.3301955 | BD17: 3.5007948 | BE17: 3.1034571 | BF17: 5.4058395 | BG17: 7.5155124 | BH17: 8.7374803 | BI17: 7.6547327 | BJ17: 9.6779946 | BK17: 10.5338749 | BL17: 11.9339216 | BM17: 11.8671609 | BN17: 11.9144204 | BO17: 11.0198955 | BP17: 12.462131 | BQ17: 10.6120978 | BR17: 12.2759511 | BS17: 12.9622602 | BT17: 12.5117735 | BU17: 11.6881928 | BV17: 10.583485 | BW17: 10.3805361 | BX17: 8.9294217 | BY17: 7.8872974 | BZ17: 4.2877282 | CA17: 3.5133147 | CB17: 3.7384738 | CC17: 1.9879291 | CD17: 2.9790775 | CE17: 1.9920019 | CF17: 0.7959105 | CG17: 0.8670959 | CH17: -0.2486488 | CI17: -0.4032094 | CJ17: 1.0163446 | CK17: 1.959161 | CL17: 2.8927321 | CM17: 2.4297656 | CN17: 2.2787665 | CO17: 2.0033296 | CP17: 3.0218029 | CQ17: 4.5682942 | CR17: 3.3490352 | CS17: 4.7494836 | CT17: 4.6056303 | CU17: 3.9924525 | CV17: 2.5829602 | CW17: 2.6622564 | CX17: 1.4092255 | CY17: 1.758516 | CZ17: 1.6959401 | DA17: 0.3376215 | DB17: 0.3502263 | DC17: -0.4957011 | DD17: -1.5650614 | DE17: -2.0628555 | DF17: -2.0751029 | DG17: -3.0896053 | DH17: -3.7874356 | DI17: -2.9189358 | DJ17: -2.2658447 | DK17: -2.9426235 | DL17: -2.794702 | DM17: -4.0613175 | DN17: -3.3729792 | DO17: -2.9624992 | DP17: -3.858796 | DQ17: -3.5891232 | DR17: -4.1092395 | DS17: -4.0049891 | DT17: -4.0626345 | DU17: -3.5380631 | DV17: -4.1036764 | DW17: -3.6813515 | DX17: -3.474398 | DY17: -3.2232713 | DZ17: -3.7949635 | EA17: -4.005131 | EB17: -4.3006069 | EC17: -4.765708 | ED17: -4.1635318 | EE17: -3.4362936 | EF17: -3.5818508 | EG17: -3.7443496 | EH17: -3.7131501 | EI17: -4.1011404 | EJ17: -4.0284299 | EK17: -4.0860035 | EL17: -3.9045719 | EM17: -3.0830271 | EN17: -3.2986306 | EO17: -3.3379472 | EP17: -3.2635886 | EQ17: -3.3857988 | ER17: -3.6730316 | ES17: -3.7053762 | ET17: -3.4595852 | EU17: -3.3903755 | EV17: -3.35082 | EW17: -3.298354 | EX17: -3.3364698 | EY17: -3.3081657 | EZ17: -2.9436633 | FA17: -2.9059859 | FB17: -2.5777376 | FC17: -2.235765 | FD17: -2.1237213 | FE17: -1.6981839 | FF17: -1.3428338 | FG17: -1.2760589 | FH17: -1.3889885 | FI17: -1.2368264 | FJ17: -1.1552799 | FK17: -1.2867597 | FL17: -1.1378014 | FM17: -0.9560716 | FN17: -1.0908974 | FO17: -0.8539108 | FP17: -0.7543093 | FQ17: -0.9028216 | FR17: -0.6856535 | FS17: -0.7795268 | FT17: -1.0435848 | FU17: -1.0051408 | FV17: -0.8469244 | FW17: -0.534144 | FX17: -0.3047129 | FY17: -0.2679404 | FZ17: -0.2448635 | GA17: -0.102502 | GB17: 0.1341644 | GC17: 0.1429796 | GD17: 0.118158 | GE17: 0.2144434 | GF17: 0.2258621 | GG17: 0.1227423 | GH17: 0.4652377 | GI17: 0.6046767 | GJ17: 0.7389289 | GK17: 0.7889246 | GL17: 0.8363498 | GM17: 0.7920451 | GN17: 0.6801732 | GO17: 0.7345884
M18: Simulation 9 | N18: 0 | O18: 0.504243 | P18: -0.7998511 | Q18: 1.307627 | R18: 1.7758868 | S18: 1.0083851 | T18: 1.0819259 | U18: 1.5824019 | V18: 2.5583164 | W18: 3.8809754 | X18: 5.860916 | Y18: 5.0418833 | Z18: 7.5203067 | AA18: 7.7702485 | AB18: 8.9661637 | AC18: 8.558047 | AD18: 6.1489932 | AE18: 6.7992843 | AF18: 6.1531721 | AG18: 7.2577128 | AH18: 8.0682944 | AI18: 10.359843 | AJ18: 12.2250409 | AK18: 13.5684695 | AL18: 9.5444776 | AM18: 7.8454512 | AN18: 6.9585886 | AO18: 4.2574973 | AP18: 3.5168435 | AQ18: 3.635542 | AR18: 5.42912 | AS18: 7.3436456 | AT18: 6.2958968 | AU18: 3.8665073 | AV18: 2.7266179 | AW18: 0.2503713 | AX18: 2.0883715 | AY18: 1.050454 | AZ18: 4.1018728 | BA18: 4.5813157 | BB18: 5.0236808 | BC18: 9.4980399 | BD18: 9.9694403 | BE18: 8.3199396 | BF18: 9.8186009 | BG18: 8.7850419 | BH18: 8.4032617 | BI18: 9.1575565 | BJ18: 8.7647046 | BK18: 7.8637435 | BL18: 6.4722859 | BM18: 5.1609504 | BN18: 7.1074833 | BO18: 8.8251965 | BP18: 10.9640308 | BQ18: 7.878548 | BR18: 5.9235724 | BS18: 5.9224791 | BT18: 4.2315948 | BU18: 1.9863162 | BV18: 1.420988 | BW18: 3.9300498 | BX18: 5.2332444 | BY18: 5.8331387 | BZ18: 8.1388851 | CA18: 9.2633207 | CB18: 9.2708312 | CC18: 10.599185 | CD18: 8.2284666 | CE18: 7.5130836 | CF18: 5.6017694 | CG18: 4.8427113 | CH18: 7.5353885 | CI18: 7.930611 | CJ18: 8.458144 | CK18: 7.1769189 | CL18: 8.5407105 | CM18: 8.2166672 | CN18: 8.4023005 | CO18: 7.1172565 | CP18: 7.3837635 | CQ18: 7.939424 | CR18: 9.8224709 | CS18: 9.8355764 | CT18: 7.2826143 | CU18: 5.9997145 | CV18: 7.3058887 | CW18: 6.5280371 | CX18: 4.76371 | CY18: 4.07467 | CZ18: 3.7454528 | DA18: 3.6168916 | DB18: 3.3969831 | DC18: 3.236113 | DD18: 3.7765697 | DE18: 2.7918242 | DF18: 2.1499272 | DG18: 1.8158935 | DH18: 1.7727158 | DI18: 1.6695254 | DJ18: 3.0311958 | DK18: 2.6292219 | DL18: 3.0261581 | DM18: 3.3366398 | DN18: 3.0475192 | DO18: 0.8610587 | DP18: 0.0243454 | DQ18: 0.5154616 | DR18: 0.8774954 | DS18: 1.7456987 | DT18: 1.6094693 | DU18: 2.0472302 | DV18: 2.6124835 | DW18: 3.5753823 | DX18: 4.2619488 | DY18: 4.8182414 | DZ18: 5.7221268 | EA18: 5.2854119 | EB18: 4.7866077 | EC18: 5.4577705 | ED18: 5.286041 | EE18: 5.2165944 | EF18: 5.8035607 | EG18: 6.4341892 | EH18: 5.6827825 | EI18: 5.7957263 | EJ18: 6.5522802 | EK18: 5.7529086 | EL18: 4.7428801 | EM18: 5.606366 | EN18: 5.2663766 | EO18: 4.7289097 | EP18: 4.2800918 | EQ18: 3.9033566 | ER18: 3.7001632 | ES18: 4.9881053 | ET18: 4.7452519 | EU18: 3.8351421 | EV18: 4.1229876 | EW18: 3.8229917 | EX18: 3.1775492 | EY18: 3.5749399 | EZ18: 3.3120529 | FA18: 2.8555159 | FB18: 3.3685267 | FC18: 3.2770744 | FD18: 3.7982178 | FE18: 3.238753 | FF18: 3.6747285 | FG18: 3.8464075 | FH18: 3.9022757 | FI18: 3.9194216 | FJ18: 4.4894525 | FK18: 3.8230096 | FL18: 3.9878042 | FM18: 3.3720692 | FN18: 3.3889731 | FO18: 3.1512784 | FP18: 2.6184796 | FQ18: 2.3387921 | FR18: 2.5214353 | FS18: 2.1910181 | FT18: 1.7963637 | FU18: 1.6051998 | FV18: 1.3965718 | FW18: 1.3579511 | FX18: 1.7530805 | FY18: 1.844857 | FZ18: 1.8785182 | GA18: 1.885616 | GB18: 1.9138409 | GC18: 1.8045393 | GD18: 1.6125518 | GE18: 1.7518716 | GF18: 2.0558028 | GG18: 2.2207935 | GH18: 2.4269152 | GI18: 2.4087363 | GJ18: 2.471125 | GK18: 2.2082515 | GL18: 2.3851651 | GM18: 2.4757982 | GN18: 2.4989726 | GO18: 2.5268499
C19: Uncollateralised | F19: Collateralised | I19: Single path | M19: Simulation 10 | N19: 0 | O19: -0.5663879 | P19: -0.7247531 | Q19: -1.8382396 | R19: -3.6124364 | S19: -4.8866524 | T19: -4.8505885 | U19: -4.3967614 | V19: -4.38662 | W19: -4.7336866 | X19: -3.8497328 | Y19: -2.8500188 | Z19: -2.6810663 | AA19: -2.333142 | AB19: -2.6631915 | AC19: -2.0063186 | AD19: -2.9675815 | AE19: -4.0463606 | AF19: -4.7237622 | AG19: -5.8455067 | AH19: -3.4211338 | AI19: -4.3481104 | AJ19: -4.9165608 | AK19: -3.7062653 | AL19: -3.6474559 | AM19: -4.2517332 | AN19: -4.8218852 | AO19: -4.6254501 | AP19: -6.2605067 | AQ19: -5.1716697 | AR19: -4.7860203 | AS19: -5.537941 | AT19: -5.7127255 | AU19: -6.0561817 | AV19: -5.9192488 | AW19: -4.5583613 | AX19: -4.8054868 | AY19: -4.3748324 | AZ19: -1.6386714 | BA19: 0.1648266 | BB19: 0.0157688 | BC19: -0.0043224 | BD19: -0.3578258 | BE19: 0.7006974 | BF19: 0.7278235 | BG19: 2.8365218 | BH19: 2.6719231 | BI19: 2.3037061 | BJ19: 2.6595515 | BK19: 1.8428222 | BL19: 0.9318975 | BM19: 1.8372177 | BN19: 2.6266785 | BO19: 2.5237435 | BP19: 2.6383543 | BQ19: 2.3697309 | BR19: 4.1742201 | BS19: 4.8898552 | BT19: 6.5906772 | BU19: 4.489669 | BV19: 3.1835948 | BW19: 2.7659093 | BX19: 4.9231654 | BY19: 4.4195354 | BZ19: 4.760572 | CA19: 4.4877973 | CB19: 2.9956729 | CC19: 3.6342876 | CD19: 5.6284813 | CE19: 5.6210103 | CF19: 7.0502741 | CG19: 6.3469326 | CH19: 8.2286435 | CI19: 7.9749453 | CJ19: 7.2948824 | CK19: 9.4201088 | CL19: 9.3901901 | CM19: 11.4002819 | CN19: 12.5762772 | CO19: 13.5464522 | CP19: 10.5321752 | CQ19: 10.6418541 | CR19: 10.9574884 | CS19: 8.8234935 | CT19: 7.7733796 | CU19: 6.5920319 | CV19: 7.0580108 | CW19: 6.9335646 | CX19: 8.0022325 | CY19: 7.666371 | CZ19: 8.8894925 | DA19: 7.5815329 | DB19: 7.0286049 | DC19: 6.3341619 | DD19: 4.9918523 | DE19: 5.786012 | DF19: 5.40586 | DG19: 5.3611142 | DH19: 5.3823445 | DI19: 5.528013 | DJ19: 4.4388546 | DK19: 3.4700079 | DL19: 2.9715334 | DM19: 2.3594319 | DN19: 0.5864344 | DO19: -1.5207231 | DP19: -1.4067896 | DQ19: -2.111158 | DR19: -2.1661095 | DS19: -2.5455399 | DT19: -3.1339253 | DU19: -2.3216072 | DV19: -2.1824795 | DW19: -2.6423699 | DX19: -3.3897243 | DY19: -2.3532063 | DZ19: -1.8959305 | EA19: -1.7725203 | EB19: -1.3764181 | EC19: -0.8017167 | ED19: -1.7949512 | EE19: -1.561141 | EF19: -2.1053076 | EG19: -1.7734853 | EH19: -1.9176432 | EI19: -2.604356 | EJ19: -2.7217928 | EK19: -3.1619603 | EL19: -3.5329962 | EM19: -2.9382144 | EN19: -2.7485207 | EO19: -2.9988551 | EP19: -2.8175372 | EQ19: -2.5919393 | ER19: -2.6196214 | ES19: -2.4666195 | ET19: -2.0335093 | EU19: -2.0403547 | EV19: -1.5933866 | EW19: -1.1704121 | EX19: -0.7839516 | EY19: -0.9116134 | EZ19: -1.3930799 | FA19: -1.7001377 | FB19: -1.9017855 | FC19: -1.7474698 | FD19: -1.998095 | FE19: -1.8254866 | FF19: -1.867612 | FG19: -1.9299068 | FH19: -2.0116763 | FI19: -2.4311847 | FJ19: -2.4958677 | FK19: -2.3432762 | FL19: -2.6583601 | FM19: -2.8598276 | FN19: -3.0090911 | FO19: -2.9218961 | FP19: -2.8563486 | FQ19: -2.7565911 | FR19: -2.7951314 | FS19: -2.9456806 | FT19: -2.9443361 | FU19: -2.8323263 | FV19: -2.9579539 | FW19: -2.8327032 | FX19: -2.3131266 | FY19: -2.3219318 | FZ19: -2.1165019 | GA19: -2.0032119 | GB19: -2.0307965 | GC19: -2.037322 | GD19: -1.8608069 | GE19: -1.6831895 | GF19: -1.6941119 | GG19: -1.4901199 | GH19: -1.6323494 | GI19: -1.7217547 | GJ19: -1.7008646 | GK19: -1.7093087 | GL19: -1.842657 | GM19: -1.6573679 | GN19: -1.7525613 | GO19: -2.1572928
C20: EPE | D20: ENE | E20: 95% PFE | F20: EPE | G20: ENE | H20: 95% PFE | I20: Exposure | J20: Collateral | K20: Total | M20: Simulation 11 | N20: 0 | O20: -0.2153433 | P20: 0.8062231 | Q20: 1.3443273 | R20: 1.1190832 | S20: 1.8121198 | T20: 1.311964 | U20: 2.4409495 | V20: 0.308141 | W20: -0.6950513 | X20: -1.6990475 | Y20: -0.6476964 | Z20: -1.8949641 | AA20: -2.6680217 | AB20: -1.7053774 | AC20: -3.1513638 | AD20: -4.5095284 | AE20: -5.7262745 | AF20: -6.0611818 | AG20: -5.7980842 | AH20: -5.5104274 | AI20: -5.2158858 | AJ20: -4.743857 | AK20: -6.1521806 | AL20: -6.2923783 | AM20: -6.1832157 | AN20: -5.1940592 | AO20: -5.585331 | AP20: -5.9013236 | AQ20: -5.6043395 | AR20: -6.7176696 | AS20: -6.4498955 | AT20: -5.7461595 | AU20: -5.2433382 | AV20: -5.8189112 | AW20: -5.4954019 | AX20: -5.2926892 | AY20: -6.1303549 | AZ20: -5.2787337 | BA20: -6.3372762 | BB20: -6.3312318 | BC20: -5.8483527 | BD20: -7.8982911 | BE20: -7.5405259 | BF20: -7.217966 | BG20: -7.96313 | BH20: -8.4183836 | BI20: -9.9984069 | BJ20: -9.911921 | BK20: -9.9804425 | BL20: -9.7403198 | BM20: -9.1445506 | BN20: -8.7833513 | BO20: -8.5297607 | BP20: -9.2465901 | BQ20: -9.6271152 | BR20: -9.0085244 | BS20: -8.6903788 | BT20: -8.8877417 | BU20: -8.9119235 | BV20: -9.6257437 | BW20: -9.5304033 | BX20: -9.9185954 | BY20: -9.7792324 | BZ20: -9.7906071 | CA20: -9.4379058 | CB20: -9.7064347 | CC20: -9.2365495 | CD20: -9.1824916 | CE20: -9.3027657 | CF20: -8.9054122 | CG20: -8.9720238 | CH20: -8.7768011 | CI20: -8.1401233 | CJ20: -8.1644276 | CK20: -7.2663224 | CL20: -7.1888383 | CM20: -6.7493178 | CN20: -6.3240433 | CO20: -5.7688884 | CP20: -5.4808036 | CQ20: -5.4877735 | CR20: -6.1259261 | CS20: -5.4292162 | CT20: -5.3002417 | CU20: -5.4119158 | CV20: -6.0027337 | CW20: -5.7241418 | CX20: -5.758068 | CY20: -5.5219482 | CZ20: -5.3380428 | DA20: -5.6771003 | DB20: -5.2636469 | DC20: -4.5204733 | DD20: -5.5116586 | DE20: -5.4626861 | DF20: -5.40528 | DG20: -5.4877761 | DH20: -6.638168 | DI20: -6.4468979 | DJ20: -6.1786708 | DK20: -5.8974598 | DL20: -6.1065624 | DM20: -5.930779 | DN20: -4.8685976 | DO20: -4.6090381 | DP20: -4.8934328 | DQ20: -4.2404002 | DR20: -3.3966756 | DS20: -3.2390517 | DT20: -2.8245004 | DU20: -1.7598646 | DV20: -0.8493254 | DW20: -0.1044063 | DX20: -0.1617556 | DY20: 0.1389158 | DZ20: -0.5447681 | EA20: -1.2803258 | EB20: -1.0261714 | EC20: -1.0462857 | ED20: -0.985488 | EE20: -1.2560766 | EF20: -1.4370945 | EG20: -1.6174453 | EH20: -1.629484 | EI20: -1.1806398 | EJ20: -0.8842384 | EK20: -1.0283207 | EL20: -1.5280262 | EM20: -0.6774931 | EN20: -1.004794 | EO20: -0.9596985 | EP20: -1.7158726 | EQ20: -1.9753414 | ER20: -2.1051389 | ES20: -2.0523392 | ET20: -1.6691529 | EU20: -1.6531741 | EV20: -1.9335374 | EW20: -2.1028957 | EX20: -1.919447 | EY20: -2.406622 | EZ20: -2.6088176 | FA20: -2.7045547 | FB20: -2.8891488 | FC20: -2.5110657 | FD20: -2.5328709 | FE20: -2.3238229 | FF20: -1.8731741 | FG20: -1.66858 | FH20: -1.6448153 | FI20: -1.4560359 | FJ20: -1.6276254 | FK20: -1.5268442 | FL20: -1.657712 | FM20: -1.3013719 | FN20: -1.7088888 | FO20: -1.6231334 | FP20: -1.3125479 | FQ20: -1.4003462 | FR20: -1.2402978 | FS20: -1.3839943 | FT20: -1.7600873 | FU20: -1.8082857 | FV20: -1.7736333 | FW20: -1.4822808 | FX20: -1.1367662 | FY20: -1.1030761 | FZ20: -0.9380682 | GA20: -0.8740618 | GB20: -0.8729762 | GC20: -0.7907735 | GD20: -0.8940694 | GE20: -0.9698005 | GF20: -1.0729824 | GG20: -1.0328588 | GH20: -0.9215959 | GI20: -1.1027653 | GJ20: -0.9448421 | GK20: -0.797345 | GL20: -0.7823657 | GM20: -0.6930393 | GN20: -0.6599646 | GO20: -0.7155535
A21: 0 | B21: =TRANSPOSE(N9:GO9) -> 0 | C21: =SUMIF(OFFSET(Exposure, 0, A21,1000,1),">0")/1000 -> 0 | D21: =SUMIF(OFFSET(Exposure, 0, A21,1000,1),"<0")/1000 -> 0 | E21: =SMALL(OFFSET(Exposure, 0, A21,1000,1),95%*1000) -> 0 | F21: =SUMIF(OFFSET(MarginedExposure,0,A21,1000,1),">0")/1000 -> 0 | G21: =SUMIF(OFFSET(MarginedExposure,0,A21,1000,1),"<0")/1000 -> 0 | H21: =SMALL(OFFSET(MarginedExposure, 0, A21,1000,1),95%*1000) -> 0 | I21: =OFFSET(Exposure, PathNum-1,A21,1,1) -> 0 | J21: =I21-K21 -> 0 | K21: =OFFSET(MarginedExposure,PathNum-1,A21,1,1) -> 0 | M21: Simulation 12 | N21: 0 | O21: -0.5512154 | P21: 0.8971 | Q21: 1.2142043 | R21: 1.8779034 | S21: 3.5700295 | T21: 3.2928118 | U21: 2.8005883 | V21: 1.1038604 | W21: 2.483096 | X21: 0.5160753 | Y21: -2.7968484 | Z21: -3.1635452 | AA21: -4.594276 | AB21: -4.6247308 | AC21: -6.3497697 | AD21: -5.1287412 | AE21: -4.9430879 | AF21: -5.3356884 | AG21: -7.1036594 | AH21: -6.669447 | AI21: -4.9148589 | AJ21: -6.4336608 | AK21: -5.9180643 | AL21: -5.4370031 | AM21: -5.2405655 | AN21: -5.3291395 | AO21: -4.6625512 | AP21: -4.6607835 | AQ21: -5.5311933 | AR21: -5.1112292 | AS21: -5.8372922 | AT21: -4.7000691 | AU21: -4.8785668 | AV21: -5.2557731 | AW21: -4.8714051 | AX21: -4.3515782 | AY21: -5.4094501 | AZ21: -6.2798029 | BA21: -5.4868676 | BB21: -5.168356 | BC21: -5.5409394 | BD21: -5.371299 | BE21: -5.2014649 | BF21: -7.6839475 | BG21: -7.7812797 | BH21: -7.1650668 | BI21: -6.3904048 | BJ21: -6.3113149 | BK21: -6.3023466 | BL21: -6.6465034 | BM21: -5.9051112 | BN21: -5.191977 | BO21: -6.3635087 | BP21: -6.846912 | BQ21: -6.4139211 | BR21: -5.9516637 | BS21: -4.6518459 | BT21: -4.8258558 | BU21: -5.0319121 | BV21: -3.5793841 | BW21: -1.8351336 | BX21: -0.1638144 | BY21: 2.3640392 | BZ21: 1.8641551 | CA21: 4.2976187 | CB21: 6.1601105 | CC21: 5.0481173 | CD21: 3.3868661 | CE21: 3.1198269 | CF21: 5.6731446 | CG21: 3.5455969 | CH21: 3.4174475 | CI21: 4.204288 | CJ21: 2.4379844 | CK21: 0.8598218 | CL21: -0.149816 | CM21: -0.5365164 | CN21: 0.3253321 | CO21: 0.1250473 | CP21: -1.2891586 | CQ21: -2.8643011 | CR21: -4.25839 | CS21: -4.6275302 | CT21: -4.7167866 | CU21: -4.4911739 | CV21: -5.2464181 | CW21: -4.7948872 | CX21: -3.262635 | CY21: -4.2898328 | CZ21: -4.547405 | DA21: -4.981512 | DB21: -5.2617955 | DC21: -4.9958906 | DD21: -5.3324048 | DE21: -4.906145 | DF21: -5.1494659 | DG21: -5.0417582 | DH21: -5.3547945 | DI21: -5.2908591 | DJ21: -5.163216 | DK21: -4.3925724 | DL21: -4.4836404 | DM21: -4.1540445 | DN21: -4.2920389 | DO21: -4.7517269 | DP21: -4.6651914 | DQ21: -4.8218279 | DR21: -4.5541607 | DS21: -4.3169684 | DT21: -3.6126167 | DU21: -3.0562725 | DV21: -2.5038099 | DW21: -2.1732261 | DX21: -2.4406523 | DY21: -2.8518159 | DZ21: -2.7737972 | EA21: -2.560474 | EB21: -2.2844293 | EC21: -1.7728029 | ED21: -2.0041182 | EE21: -2.2844787 | EF21: -2.3123638 | EG21: -2.3915431 | EH21: -2.3223543 | EI21: -2.5653361 | EJ21: -2.5235167 | EK21: -2.4674254 | EL21: -2.6243683 | EM21: -2.1363348 | EN21: -2.0421852 | EO21: -1.5433068 | EP21: -1.264198 | EQ21: -1.0182704 | ER21: -0.9787534 | ES21: -1.0687679 | ET21: -0.9808305 | EU21: -1.001049 | EV21: -1.2392153 | EW21: -1.2484905 | EX21: -1.0040806 | EY21: -0.6105417 | EZ21: -0.3036188 | FA21: -0.0271275 | FB21: -0.1985492 | FC21: -0.0197558 | FD21: -0.1147705 | FE21: -0.0288961 | FF21: 0.4311245 | FG21: 0.8727151 | FH21: 0.9314265 | FI21: 0.8719146 | FJ21: 0.6619161 | FK21: 0.8190311 | FL21: 0.7326314 | FM21: 0.8750991 | FN21: 0.7016486 | FO21: 0.6024708 | FP21: 0.7911367 | FQ21: 0.7130161 | FR21: 0.5979788 | FS21: 0.5084181 | FT21: 0.4439772 | FU21: 0.2577322 | FV21: 0.1654603 | FW21: 0.3769835 | FX21: 0.8524845 | FY21: 0.7679184 | FZ21: 0.7195299 | GA21: 0.8034579 | GB21: 0.9093824 | GC21: 0.9828151 | GD21: 1.1205005 | GE21: 1.2242631 | GF21: 1.4461488 | GG21: 1.5146042 | GH21: 1.633488 | GI21: 1.5006167 | GJ21: 1.353544 | GK21: 1.7190718 | GL21: 1.6683796 | GM21: 1.7394794 | GN21: 2.0754353 | GO21: 1.9177614
A22: =A21+1 -> 1 | B22: 0.002747252747 | C22: 0.1568724551 | D22: -0.1539200162 | E22: =SMALL(OFFSET(Exposure, 0, A22,1000,1),95%*1000) -> 0.6425086 | F22: 0.1568724551 | G22: -0.1539200162 | H22: 0.6425086 | I22: -0.0546394 | J22: 0 | K22: -0.0546394 | M22: Simulation 13 | N22: 0 | O22: 0.0139256 | P22: -0.0202415 | Q22: -1.594118 | R22: -2.7588422 | S22: -3.2965425 | T22: -1.4483894 | U22: -1.7085393 | V22: -2.2631838 | W22: -2.1673016 | X22: -3.226353 | Y22: -3.655068 | Z22: -2.7881146 | AA22: -2.8229811 | AB22: -1.8991311 | AC22: -0.9231899 | AD22: -1.9283572 | AE22: -1.9776651 | AF22: -3.2903972 | AG22: -1.6269995 | AH22: -1.907867 | AI22: -2.0686859 | AJ22: -2.1579971 | AK22: -3.141103 | AL22: -1.3721359 | AM22: 0.4911089 | AN22: -1.5514582 | AO22: -2.0667408 | AP22: -3.3555611 | AQ22: -4.4632104 | AR22: -5.4588955 | AS22: -5.542077 | AT22: -5.0687404 | AU22: -5.6925845 | AV22: -6.259741 | AW22: -6.9054435 | AX22: -7.1276646 | AY22: -6.7596123 | AZ22: -5.1410189 | BA22: -5.2833215 | BB22: -3.4322175 | BC22: -2.8806488 | BD22: -2.3957339 | BE22: -2.2546598 | BF22: -0.6615932 | BG22: 1.492042 | BH22: 0.635557 | BI22: -0.5896472 | BJ22: -2.2554422 | BK22: -2.5590051 | BL22: -1.0587307 | BM22: -0.7494621 | BN22: -0.9689999 | BO22: -0.6321733 | BP22: -0.7048799 | BQ22: 0.1878386 | BR22: -0.3300143 | BS22: 0.1652633 | BT22: 0.3110199 | BU22: -1.1653254 | BV22: -1.7825132 | BW22: -1.8622866 | BX22: -2.5689539 | BY22: -3.4680063 | BZ22: -3.2716105 | CA22: -2.4992751 | CB22: -2.5622956 | CC22: -2.969016 | CD22: -3.0963283 | CE22: -2.8085544 | CF22: -2.6479325 | CG22: -0.4958869 | CH22: -3.040986 | CI22: -3.2198758 | CJ22: -4.0097746 | CK22: -4.0130365 | CL22: -3.6727866 | CM22: -3.773754 | CN22: -3.4863426 | CO22: -3.2873445 | CP22: -4.1804282 | CQ22: -2.7594146 | CR22: -3.2893969 | CS22: -3.4049475 | CT22: -3.1365097 | CU22: -1.4786644 | CV22: -1.7310112 | CW22: -1.8129195 | CX22: -1.6311963 | CY22: -1.2290903 | CZ22: -2.7651532 | DA22: -2.7821586 | DB22: -2.0975726 | DC22: -1.3014446 | DD22: -1.8093328 | DE22: -1.1790617 | DF22: 0.0908185 | DG22: 0.4522819 | DH22: -1.0314001 | DI22: -0.9441955 | DJ22: -0.9993796 | DK22: -0.9039808 | DL22: -0.6300761 | DM22: -0.7212341 | DN22: -1.9906121 | DO22: -2.4134802 | DP22: -3.3190674 | DQ22: -3.7262557 | DR22: -3.6849106 | DS22: -3.7824705 | DT22: -3.3911928 | DU22: -2.3370111 | DV22: -1.8721794 | DW22: -0.4233828 | DX22: -0.7000667 | DY22: -1.0220222 | DZ22: -0.665233 | EA22: -0.3005352 | EB22: -0.2539574 | EC22: 0.8449324 | ED22: 1.1006366 | EE22: 0.3925499 | EF22: -0.1693655 | EG22: -0.4914082 | EH22: -0.8021744 | EI22: -1.4890885 | EJ22: -1.8818513 | EK22: -1.2002347 | EL22: -1.2231574 | EM22: -0.3743491 | EN22: -0.4422952 | EO22: -0.7286928 | EP22: -0.7937886 | EQ22: -0.7756038 | ER22: -0.6220181 | ES22: -0.472796 | ET22: -0.1961809 | EU22: 0.2123362 | EV22: 0.1297313 | EW22: 0.1330124 | EX22: -0.1730491 | EY22: -0.1238177 | EZ22: -0.4590429 | FA22: -0.5949943 | FB22: -0.527678 | FC22: -0.7737692 | FD22: -0.9064435 | FE22: -0.6474888 | FF22: -0.1597736 | FG22: -0.2517632 | FH22: -0.183973 | FI22: -0.1111612 | FJ22: 0.0346868 | FK22: -0.0648314 | FL22: 0.0227777 | FM22: -0.0733423 | FN22: -0.0517612 | FO22: 0.3642661 | FP22: 0.5256281 | FQ22: 0.2956511 | FR22: 0.2779384 | FS22: 0.0894291 | FT22: -0.1347636 | FU22: -0.337989 | FV22: -0.5052656 | FW22: -0.312482 | FX22: 0.1413944 | FY22: 0.2322919 | FZ22: 0.2006847 | GA22: 0.0355509 | GB22: -0.0001912 | GC22: 0.0368957 | GD22: 0.0203947 | GE22: 0.0191777 | GF22: 0.1855624 | GG22: 0.3780231 | GH22: 0.4839335 | GI22: 0.4512445 | GJ22: 0.4991568 | GK22: 0.6023019 | GL22: 0.5413964 | GM22: 0.4757632 | GN22: 0.6137409 | GO22: 0.4797625
A23: =A22+1 -> 2 | B23: 0.02747252747 | C23: 0.4470012033 | D23: -0.5113133798 | E23: 1.9789082 | F23: 0.4470012033 | G23: -0.5113133798 | H23: 1.9789082 | I23: 1.1981244 | J23: 0 | K23: 1.1981244 | M23: Simulation 14 | N23: 0 | O23: 0.0967644 | P23: -0.6107132 | Q23: -0.3452693 | R23: 1.5047194 | S23: 1.1759911 | T23: 1.3622642 | U23: 1.5780008 | V23: 1.1133219 | W23: 1.1987923 | X23: 3.2591512 | Y23: 1.4897622 | Z23: 1.7317951 | AA23: 1.2645043 | AB23: 2.8802999 | AC23: 5.2232044 | AD23: 7.2101335 | AE23: 5.8270952 | AF23: 3.7196108 | AG23: 2.2800615 | AH23: 4.316382 | AI23: 3.6453765 | AJ23: 3.585937 | AK23: 3.5928371 | AL23: 2.0146011 | AM23: 4.9345125 | AN23: 5.80369 | AO23: 5.355696 | AP23: 6.2038902 | AQ23: 8.5829772 | AR23: 6.524507 | AS23: 8.6292968 | AT23: 8.8014388 | AU23: 7.6766691 | AV23: 7.7629146 | AW23: 9.5637544 | AX23: 11.3352514 | AY23: 10.0368454 | AZ23: 10.8729098 | BA23: 11.4052047 | BB23: 11.4953979 | BC23: 10.8221048 | BD23: 10.2163669 | BE23: 7.2183358 | BF23: 6.1133867 | BG23: 6.268693 | BH23: 6.9152064 | BI23: 6.9623517 | BJ23: 4.1994707 | BK23: 6.3169364 | BL23: 6.4993838 | BM23: 3.9358664 | BN23: 2.6952235 | BO23: 2.81504 | BP23: 3.086464 | BQ23: 0.1580855 | BR23: 1.4434045 | BS23: -0.340505 | BT23: 1.2592412 | BU23: 1.1501588 | BV23: 0.3656455 | BW23: 3.1997921 | BX23: 3.1919164 | BY23: 2.0805833 | BZ23: 1.3726754 | CA23: -0.5279456 | CB23: -0.1488264 | CC23: 0.6292346 | CD23: 1.1043059 | CE23: 1.0327179 | CF23: 0.8230256 | CG23: 0.5388158 | CH23: -0.137932 | CI23: 0.2901851 | CJ23: -0.1881418 | CK23: -0.7409885 | CL23: -0.5564599 | CM23: 0.113632 | CN23: 0.2522272 | CO23: 1.2228364 | CP23: -0.6888356 | CQ23: -1.4008572 | CR23: -0.8997274 | CS23: -0.1001599 | CT23: -1.6076116 | CU23: -2.8466841 | CV23: -3.0064947 | CW23: -2.8940395 | CX23: -2.4418808 | CY23: -2.2698789 | CZ23: -3.434001 | DA23: -2.4944194 | DB23: -3.5536323 | DC23: -3.4614979 | DD23: -3.5998842 | DE23: -4.1574864 | DF23: -4.0524254 | DG23: -4.3886749 | DH23: -4.6291014 | DI23: -4.3602303 | DJ23: -4.4195075 | DK23: -3.6713733 | DL23: -1.937116 | DM23: -1.0541168 | DN23: -0.6171775 | DO23: -0.609273 | DP23: -0.9188816 | DQ23: -0.4557794 | DR23: -0.4296603 | DS23: -0.776411 | DT23: -1.2971814 | DU23: -0.7483232 | DV23: -0.7413557 | DW23: -1.8855228 | DX23: -2.7766439 | DY23: -2.612192 | DZ23: -2.2181971 | EA23: -2.5610317 | EB23: -2.048997 | EC23: -1.5932487 | ED23: -0.7224409 | EE23: 0.5108298 | EF23: 0.4975124 | EG23: -0.1500137 | EH23: -0.3818339 | EI23: 0.2890948 | EJ23: 0.3729519 | EK23: 0.7813468 | EL23: 0.596675 | EM23: 2.4704637 | EN23: 1.9807916 | EO23: 1.0129378 | EP23: 1.3613191 | EQ23: 0.7135157 | ER23: 0.1852601 | ES23: -0.1471945 | ET23: 0.0490219 | EU23: -0.4081562 | EV23: -0.2759331 | EW23: 0.2767274 | EX23: 0.826052 | EY23: -0.0041611 | EZ23: -0.2084113 | FA23: -1.1711537 | FB23: -1.4468416 | FC23: -2.1991036 | FD23: -2.1048097 | FE23: -1.5891769 | FF23: -1.0606938 | FG23: -0.9374882 | FH23: -1.305196 | FI23: -1.3607442 | FJ23: -1.2512485 | FK23: -1.0991487 | FL23: -1.0096817 | FM23: -1.4628908 | FN23: -1.7495364 | FO23: -1.5107321 | FP23: -1.7828754 | FQ23: -1.6813104 | FR23: -1.6303179 | FS23: -1.6509328 | FT23: -1.7665496 | FU23: -1.7648159 | FV23: -2.0341831 | FW23: -1.8296463 | FX23: -1.3619498 | FY23: -1.1532323 | FZ23: -0.9535176 | GA23: -0.8817282 | GB23: -0.8360795 | GC23: -0.9079608 | GD23: -0.8506287 | GE23: -0.9784388 | GF23: -1.2139507 | GG23: -1.1627126 | GH23: -1.3987907 | GI23: -1.4502111 | GJ23: -1.2609055 | GK23: -1.3356995 | GL23: -1.460688 | GM23: -1.4702361 | GN23: -1.3654036 | GO23: -1.460151
A24: 3 | B24: 0.05494505495 | C24: 0.6308559604 | D24: -0.7616084698 | E24: 2.9441321 | F24: 0.61206157 | G24: -0.7457665183 | H24: 2.8103858 | I24: 0.6835455 | J24: -0.0546394 | K24: 0.7381849 | M24: Simulation 15 | N24: 0 | O24: 0.0441294 | P24: -0.2216205 | Q24: -0.1632075 | R24: -0.4269236 | S24: -0.5243939 | T24: 0.4364933 | U24: 1.4863302 | V24: 0.0078461 | W24: -1.1025334 | X24: -2.3227466 | Y24: -3.3726005 | Z24: -4.2591775 | AA24: -4.7329409 | AB24: -4.4633253 | AC24: -3.3955632 | AD24: -3.4183288 | AE24: -3.7142245 | AF24: -4.4305518 | AG24: -3.8208106 | AH24: -3.6420017 | AI24: -5.4966127 | AJ24: -6.4283804 | AK24: -5.2339407 | AL24: -5.3389262 | AM24: -5.2591854 | AN24: -5.4580791 | AO24: -5.6600529 | AP24: -5.9434715 | AQ24: -5.6540421 | AR24: -5.2911342 | AS24: -6.0391085 | AT24: -6.375245 | AU24: -7.759294 | AV24: -7.4431569 | AW24: -6.7995732 | AX24: -6.9828922 | AY24: -7.1993689 | AZ24: -5.9228723 | BA24: -5.5256029 | BB24: -5.8418567 | BC24: -5.3810111 | BD24: -6.3600012 | BE24: -8.1488987 | BF24: -7.9678862 | BG24: -7.7426724 | BH24: -8.0451792 | BI24: -8.3008339 | BJ24: -8.3458117 | BK24: -8.949311 | BL24: -9.1225128 | BM24: -9.201594 | BN24: -8.7842481 | BO24: -8.5939737 | BP24: -9.1250514 | BQ24: -9.7265986 | BR24: -9.7794421 | BS24: -10.1283962 | BT24: -9.4685889 | BU24: -9.373884 | BV24: -9.6095885 | BW24: -9.9828333 | BX24: -10.233795 | BY24: -10.2154199 | BZ24: -9.8459192 | CA24: -9.4028485 | CB24: -9.9828389 | CC24: -9.7647019 | CD24: -9.5900699 | CE24: -9.8130124 | CF24: -10.1315816 | CG24: -10.2744487 | CH24: -9.814791 | CI24: -9.3647847 | CJ24: -9.1575949 | CK24: -9.0346874 | CL24: -9.3353504 | CM24: -9.3621773 | CN24: -9.1803886 | CO24: -9.1831875 | CP24: -8.9915125 | CQ24: -9.0629443 | CR24: -8.9420568 | CS24: -8.6748095 | CT24: -8.697862 | CU24: -9.1232495 | CV24: -8.8903904 | CW24: -9.1780157 | CX24: -9.1630571 | CY24: -9.3426069 | CZ24: -9.3878519 | DA24: -9.4633708 | DB24: -9.5749771 | DC24: -9.2034903 | DD24: -9.4319821 | DE24: -9.9141794 | DF24: -9.6973283 | DG24: -9.5463573 | DH24: -9.5596825 | DI24: -9.6653775 | DJ24: -9.7353659 | DK24: -9.649243 | DL24: -9.782921 | DM24: -9.779545 | DN24: -9.7229993 | DO24: -9.4609678 | DP24: -9.3885289 | DQ24: -9.5091961 | DR24: -9.3343926 | DS24: -9.1476586 | DT24: -9.1234367 | DU24: -8.2653793 | DV24: -8.6141888 | DW24: -8.6841813 | DX24: -8.6237973 | DY24: -8.4738088 | DZ24: -8.2823274 | EA24: -8.0400219 | EB24: -8.0341273 | EC24: -7.9530187 | ED24: -7.7682034 | EE24: -7.6161018 | EF24: -7.651796 | EG24: -7.4686215 | EH24: -7.4201035 | EI24: -7.3049508 | EJ24: -7.2205545 | EK24: -7.3045606 | EL24: -7.0332565 | EM24: -6.2024665 | EN24: -6.4509863 | EO24: -6.6113495 | EP24: -6.6145396 | EQ24: -6.3430956 | ER24: -6.2510683 | ES24: -6.0434216 | ET24: -5.8962843 | EU24: -5.6828796 | EV24: -5.4559749 | EW24: -5.1053708 | EX24: -5.2137925 | EY24: -5.1424303 | EZ24: -4.9386944 | FA24: -4.8828136 | FB24: -4.8008724 | FC24: -4.6742955 | FD24: -4.6288281 | FE24: -4.304887 | FF24: -3.7116015 | FG24: -3.7571651 | FH24: -3.9129154 | FI24: -3.8764955 | FJ24: -3.6774739 | FK24: -3.6459722 | FL24: -3.3963544 | FM24: -3.3944707 | FN24: -3.446487 | FO24: -3.3393298 | FP24: -3.4209085 | FQ24: -3.3919136 | FR24: -3.2167318 | FS24: -3.0541731 | FT24: -3.269427 | FU24: -3.0568068 | FV24: -3.0619062 | FW24: -2.9268897 | FX24: -2.483447 | FY24: -2.4778993 | FZ24: -2.6546288 | GA24: -2.6264768 | GB24: -2.6352574 | GC24: -2.4155789 | GD24: -2.4225362 | GE24: -2.3316233 | GF24: -2.2136939 | GG24: -2.0056864 | GH24: -1.9393489 | GI24: -1.8804227 | GJ24: -1.8210754 | GK24: -1.7410816 | GL24: -1.6664163 | GM24: -1.7882302 | GN24: -1.7380888 | GO24: -1.7861197
A25: 4 | B25: 0.08241758242 | C25: 0.7273090761 | D25: -0.9865292219 | E25: 3.2460337 | F25: 0.7085369239 | G25: -0.9707095086 | H25: 3.2181024 | I25: 2.525763 | J25: -0.0546394 | K25: 2.5804024 | M25: Simulation 16 | N25: 0 | O25: 0.6294816 | P25: 0.9782751 | Q25: 0.7686508 | R25: 2.4978958 | S25: 4.0835564 | T25: 4.9146082 | U25: 4.973682 | V25: 6.1911226 | W25: 4.1203365 | X25: 1.2625147 | Y25: -0.075044 | Z25: 0.0369449 | AA25: 2.6630569 | AB25: 2.7016417 | AC25: 2.2358123 | AD25: 5.2401008 | AE25: 5.1862701 | AF25: 4.339614 | AG25: 4.752154 | AH25: 3.2718532 | AI25: 1.6158023 | AJ25: 2.1805565 | AK25: 3.7469848 | AL25: 5.2500435 | AM25: 4.789654 | AN25: 4.9329538 | AO25: 5.6448595 | AP25: 5.065353 | AQ25: 3.6505241 | AR25: 2.8162412 | AS25: 2.2203036 | AT25: 2.3455017 | AU25: 1.191966 | AV25: 1.7909195 | AW25: 1.2339766 | AX25: 1.5976121 | AY25: 3.0167552 | AZ25: 4.3200378 | BA25: 3.3762458 | BB25: 3.3551936 | BC25: 5.1663 | BD25: 6.3027498 | BE25: 7.989206 | BF25: 7.9319493 | BG25: 7.5703014 | BH25: 6.3950363 | BI25: 4.8263877 | BJ25: 8.5910841 | BK25: 10.635544 | BL25: 10.5887108 | BM25: 9.5573889 | BN25: 12.0732288 | BO25: 16.3231896 | BP25: 15.8807925 | BQ25: 19.3872348 | BR25: 19.5221884 | BS25: 23.4082141 | BT25: 27.8420191 | BU25: 30.0053943 | BV25: 29.8363191 | BW25: 28.492126 | BX25: 34.2801799 | BY25: 35.6730251 | BZ25: 37.4127253 | CA25: 36.4845969 | CB25: 31.5277801 | CC25: 36.2937496 | CD25: 32.7684552 | CE25: 29.3853794 | CF25: 28.1395847 | CG25: 30.8332515 | CH25: 33.4601797 | CI25: 37.7784636 | CJ25: 40.1394294 | CK25: 39.728234 | CL25: 37.8673052 | CM25: 41.4166341 | CN25: 41.2261308 | CO25: 42.9197709 | CP25: 44.0925956 | CQ25: 47.1211729 | CR25: 42.4929 | CS25: 44.6249468 | CT25: 45.5387965 | CU25: 43.9722017 | CV25: 41.7098979 | CW25: 39.2407278 | CX25: 39.7442448 | CY25: 42.9048818 | CZ25: 44.2499892 | DA25: 45.7039252 | DB25: 45.3259104 | DC25: 51.4896116 | DD25: 53.0100801 | DE25: 50.7922875 | DF25: 46.8991072 | DG25: 49.0581594 | DH25: 45.1241253 | DI25: 38.8580275 | DJ25: 36.5692635 | DK25: 36.0696101 | DL25: 33.7325877 | DM25: 33.0771571 | DN25: 32.4031035 | DO25: 34.1792202 | DP25: 31.6075475 | DQ25: 37.1374937 | DR25: 33.405302 | DS25: 29.8943441 | DT25: 31.0904724 | DU25: 28.8037682 | DV25: 29.6620697 | DW25: 31.4666819 | DX25: 29.8615579 | DY25: 26.7146689 | DZ25: 23.638784 | EA25: 24.1281264 | EB25: 23.4280401 | EC25: 22.1823727 | ED25: 22.4404092 | EE25: 24.4852803 | EF25: 26.6876399 | EG25: 24.2755239 | EH25: 26.335839 | EI25: 25.6407349 | EJ25: 28.1196644 | EK25: 25.3560035 | EL25: 26.5263807 | EM25: 26.5705292 | EN25: 24.9515129 | EO25: 25.5488559 | EP25: 26.947205 | EQ25: 28.900358 | ER25: 26.1186884 | ES25: 26.9161686 | ET25: 28.7978374 | EU25: 26.2596445 | EV25: 25.1706592 | EW25: 24.8235825 | EX25: 22.8821537 | EY25: 21.264747 | EZ25: 22.8190733 | FA25: 22.654249 | FB25: 24.920015 | FC25: 24.7510815 | FD25: 24.4542091 | FE25: 26.3493394 | FF25: 27.513354 | FG25: 24.8134383 | FH25: 24.2796167 | FI25: 24.5471854 | FJ25: 24.4254453 | FK25: 25.15576 | FL25: 19.7848496 | FM25: 18.6820458 | FN25: 18.8252421 | FO25: 18.9919937 | FP25: 17.412757 | FQ25: 17.662165 | FR25: 16.8483205 | FS25: 16.4122674 | FT25: 16.4588411 | FU25: 16.1262864 | FV25: 14.8594338 | FW25: 13.5692596 | FX25: 11.6288268 | FY25: 10.7517966 | FZ25: 10.3636213 | GA25: 9.3719099 | GB25: 8.8877109 | GC25: 8.7167552 | GD25: 8.0716393 | GE25: 7.6004703 | GF25: 6.5619268 | GG25: 5.602742 | GH25: 4.5769471 | GI25: 4.0268879 | GJ25: 3.4452136 | GK25: 2.5995554 | GL25: 2.3663336 | GM25: 1.4256758 | GN25: 0.6827987 | GO25: -0.0378198
A26: 5 | B26: 0.1098901099 | C26: 0.8413134905 | D26: -1.149006669 | E26: 3.7822866 | F26: 0.6021352482 | G26: -0.7790759177 | H26: 2.8066789 | I26: 1.01157 | J26: =I26-K26 -> 0.6835455 | K26: 0.3280245 | M26: Simulation 17 | N26: 0 | O26: -0.1106958 | P26: -1.1256421 | Q26: -0.9090485 | R26: 1.8545011 | S26: 3.3326493 | T26: 1.211513 | U26: 0.0111472 | V26: -1.1647367 | W26: -2.5479975 | X26: -3.6538703 | Y26: -0.9626502 | Z26: -0.125544 | AA26: 0.0979003 | AB26: -0.5060927 | AC26: 0.0843073 | AD26: 1.4675074 | AE26: 2.362173 | AF26: 3.4843343 | AG26: 1.0930568 | AH26: 4.0590223 | AI26: 4.0158913 | AJ26: 1.8770269 | AK26: 0.8068944 | AL26: 1.5022496 | AM26: 1.9889525 | AN26: 0.3934004 | AO26: 0.5204156 | AP26: -0.3390006 | AQ26: 0.2616241 | AR26: 0.3120266 | AS26: 0.4942986 | AT26: -1.8616662 | AU26: -0.8686853 | AV26: -2.1561988 | AW26: -2.7661562 | AX26: -3.4746721 | AY26: -4.9811692 | AZ26: -4.2290489 | BA26: -3.3362171 | BB26: -3.9490099 | BC26: -2.1742105 | BD26: -2.2747595 | BE26: -3.5033054 | BF26: -3.5876049 | BG26: -1.8645923 | BH26: -2.5337772 | BI26: -2.4887135 | BJ26: -3.5456429 | BK26: -2.902059 | BL26: -3.0392635 | BM26: -3.5843353 | BN26: -3.6575286 | BO26: -2.913319 | BP26: -2.5449971 | BQ26: -2.263309 | BR26: -0.3995519 | BS26: -0.4275076 | BT26: -0.3276602 | BU26: -0.5859728 | BV26: 0.6272894 | BW26: 0.7701554 | BX26: 2.0129415 | BY26: 1.9640371 | BZ26: 2.7930505 | CA26: 1.9230636 | CB26: 0.3255597 | CC26: 2.0250315 | CD26: 0.453823 | CE26: 2.3865034 | CF26: 2.6105823 | CG26: 4.1436305 | CH26: 2.5336552 | CI26: 4.0995352 | CJ26: 3.7360233 | CK26: 3.526869 | CL26: 3.3051001 | CM26: 4.8667846 | CN26: 3.619317 | CO26: 5.1082988 | CP26: 6.1307913 | CQ26: 7.3983391 | CR26: 7.6767646 | CS26: 4.0053827 | CT26: 2.5013266 | CU26: 2.2063593 | CV26: 4.3324776 | CW26: 4.9214429 | CX26: 7.5992753 | CY26: 5.5937517 | CZ26: 4.7395763 | DA26: 4.3811686 | DB26: 3.1426412 | DC26: 5.0398986 | DD26: 6.4598461 | DE26: 6.3381035 | DF26: 6.8075104 | DG26: 7.9194644 | DH26: 8.3811044 | DI26: 8.802016 | DJ26: 8.5421845 | DK26: 10.3973636 | DL26: 11.3245871 | DM26: 9.0019567 | DN26: 8.7262584 | DO26: 9.6717987 | DP26: 10.9316545 | DQ26: 12.336584 | DR26: 11.788477 | DS26: 12.4428283 | DT26: 10.319015 | DU26: 10.3386064 | DV26: 12.440492 | DW26: 12.4219686 | DX26: 11.965185 | DY26: 8.251273 | DZ26: 8.4284337 | EA26: 10.8404617 | EB26: 10.3961173 | EC26: 11.0966839 | ED26: 10.215699 | EE26: 7.9087943 | EF26: 8.5928861 | EG26: 6.6323024 | EH26: 6.8981225 | EI26: 7.8988439 | EJ26: 7.6314935 | EK26: 7.0531107 | EL26: 5.5721696 | EM26: 5.6247302 | EN26: 6.481468 | EO26: 5.7954556 | EP26: 5.8996708 | EQ26: 5.1160635 | ER26: 3.6210429 | ES26: 3.7396659 | ET26: 3.5617082 | EU26: 3.9012979 | EV26: 4.4466259 | EW26: 4.9311809 | EX26: 2.9553548 | EY26: 2.5725028 | EZ26: 1.9166871 | FA26: 1.633362 | FB26: 1.9648545 | FC26: 2.3540399 | FD26: 2.2687319 | FE26: 2.0382658 | FF26: 2.2308269 | FG26: 1.5323779 | FH26: 1.2741781 | FI26: 1.2599541 | FJ26: 1.071964 | FK26: 1.4442843 | FL26: 2.4131629 | FM26: 1.7568737 | FN26: 2.2493861 | FO26: 2.2080042 | FP26: 1.7656065 | FQ26: 1.5880909 | FR26: 1.8937868 | FS26: 1.5601675 | FT26: 1.1795519 | FU26: 0.9897475 | FV26: 0.5767051 | FW26: 0.6220522 | FX26: 0.133846 | FY26: 0.0848251 | FZ26: -0.0500239 | GA26: 0.0558671 | GB26: 0.1341616 | GC26: -0.061074 | GD26: -0.1412395 | GE26: -0.2767625 | GF26: -0.3549335 | GG26: -0.4977393 | GH26: -0.2485464 | GI26: -0.2769391 | GJ26: -0.0911926 | GK26: -0.2642185 | GL26: -0.4493171 | GM26: -0.3690976 | GN26: -0.3947974 | GO26: -0.4528077
A27: 6 | B27: 0.1373626374 | C27: 0.9047569669 | D27: -1.292567025 | E27: 4.2400278 | F27: 0.7000441457 | G27: -0.9571016943 | H27: 3.3949016 | I27: 0.2518411 | J27: =I27-K27 -> 0.6835455 | K27: -0.4317044 | M27: Simulation 18 | N27: 0 | O27: -0.124258 | P27: -4.4341368 | Q27: -3.5771801 | R27: -3.710193 | S27: -2.4009086 | T27: -1.600136 | U27: -0.1378879 | V27: -0.6864396 | W27: -0.4011017 | X27: -1.0517048 | Y27: -0.7618122 | Z27: -2.6335965 | AA27: -2.6827904 | AB27: -2.1268222 | AC27: -3.5414385 | AD27: -2.696413 | AE27: -2.6288747 | AF27: -2.9718597 | AG27: -1.491613 | AH27: 0.1475882 | AI27: 0.3380844 | AJ27: 1.6019339 | AK27: 1.6821166 | AL27: 0.4417561 | AM27: -1.4289129 | AN27: -0.3344238 | AO27: 0.3856861 | AP27: 2.1331218 | AQ27: 2.0429116 | AR27: 4.6758219 | AS27: 4.2979158 | AT27: 3.807373 | AU27: 1.6136167 | AV27: 2.8742026 | AW27: 1.4661748 | AX27: 2.7376822 | AY27: 2.3452933 | AZ27: 2.1630803 | BA27: 2.2140113 | BB27: 1.8247134 | BC27: 0.0537898 | BD27: 0.7873516 | BE27: 1.7675292 | BF27: 0.54689 | BG27: 0.4915969 | BH27: -0.9049213 | BI27: -2.2899371 | BJ27: -2.2763104 | BK27: -2.471697 | BL27: -1.0978698 | BM27: -1.4918393 | BN27: -1.4217417 | BO27: -1.1538589 | BP27: -2.8358235 | BQ27: -2.0310637 | BR27: -3.2771709 | BS27: -3.2668226 | BT27: -2.3011892 | BU27: -1.6178394 | BV27: -0.3135487 | BW27: -0.8930412 | BX27: 0.3530201 | BY27: -1.8868368 | BZ27: -1.6675116 | CA27: -1.9448734 | CB27: -2.607006 | CC27: -3.2506413 | CD27: -2.4913247 | CE27: -3.1216116 | CF27: -3.6346334 | CG27: -2.3308794 | CH27: -1.9521967 | CI27: -1.6726736 | CJ27: -0.6237637 | CK27: 0.3772793 | CL27: 0.0194204 | CM27: 0.9189828 | CN27: -1.2607123 | CO27: -1.271008 | CP27: -0.2641989 | CQ27: 1.6678134 | CR27: 2.6589677 | CS27: 0.7847942 | CT27: -0.4242749 | CU27: -0.5810529 | CV27: -0.0459399 | CW27: 0.8462158 | CX27: 0.2555401 | CY27: 0.7889043 | CZ27: -0.5379824 | DA27: -0.7938548 | DB27: -0.9957371 | DC27: -1.3103616 | DD27: -1.6034772 | DE27: -1.5111222 | DF27: -1.4814535 | DG27: -1.5885978 | DH27: -0.9174322 | DI27: -0.2088874 | DJ27: 0.2181344 | DK27: 0.0021078 | DL27: -1.9503023 | DM27: -1.6931748 | DN27: -1.6558067 | DO27: -2.1994498 | DP27: -3.3833388 | DQ27: -2.8366261 | DR27: -3.0410416 | DS27: -3.8977304 | DT27: -4.2160372 | DU27: -3.9153103 | DV27: -3.6814412 | DW27: -3.3419831 | DX27: -3.1478448 | DY27: -3.1219119 | DZ27: -3.2858696 | EA27: -3.1369479 | EB27: -3.2836152 | EC27: -3.3814375 | ED27: -3.3997272 | EE27: -3.7695254 | EF27: -3.8826656 | EG27: -3.8679532 | EH27: -3.6798217 | EI27: -3.682511 | EJ27: -3.2968396 | EK27: -3.3142828 | EL27: -3.3574767 | EM27: -2.7521651 | EN27: -2.3276425 | EO27: -2.458005 | EP27: -2.5928872 | EQ27: -2.8069955 | ER27: -2.5722951 | ES27: -2.6992724 | ET27: -2.730011 | EU27: -2.7360134 | EV27: -2.3587776 | EW27: -2.6833209 | EX27: -2.7524137 | EY27: -2.425292 | EZ27: -2.1866667 | FA27: -2.3173443 | FB27: -2.1635074 | FC27: -1.9917359 | FD27: -2.0703627 | FE27: -1.4969003 | FF27: -1.1754596 | FG27: -0.803028 | FH27: -0.6180107 | FI27: -0.4926101 | FJ27: -0.0875637 | FK27: 0.1721062 | FL27: 0.310965 | FM27: 0.2153567 | FN27: 0.1377004 | FO27: 0.0935349 | FP27: 0.1472634 | FQ27: 0.1676695 | FR27: 0.0317959 | FS27: 0.0374003 | FT27: 0.2267976 | FU27: 0.3843432 | FV27: 0.1683975 | FW27: 0.5931044 | FX27: 1.1865829 | FY27: 1.093208 | FZ27: 1.0753571 | GA27: 1.0139014 | GB27: 1.0098617 | GC27: 1.1056055 | GD27: 1.145561 | GE27: 1.4926024 | GF27: 1.5334541 | GG27: 1.4730805 | GH27: 1.508566 | GI27: 1.3355845 | GJ27: 1.5322557 | GK27: 1.3776091 | GL27: 1.278977 | GM27: 0.9089326 | GN27: 0.7677311 | GO27: 0.9123109
A28: 7 | B28: 0.1648351648 | C28: 0.9446871756 | D28: -1.42009886 | E28: 4.5917459 | F28: 0.6021690082 | G28: -0.7698875134 | H28: 2.6181974 | I28: 2.0577404 | J28: 1.01157 | K28: 1.0461704 | M28: Simulation 19 | N28: 0 | O28: 0.3112296 | P28: -1.0038077 | Q28: -2.4629381 | R28: -3.6117547 | S28: -2.8828965 | T28: -3.3158006 | U28: -2.9987708 | V28: -2.8597485 | W28: -3.4771418 | X28: -4.279401 | Y28: -5.1805775 | Z28: -5.3100516 | AA28: -4.7715067 | AB28: -4.9551012 | AC28: -3.829636 | AD28: -3.2520806 | AE28: -1.4929134 | AF28: -2.7355871 | AG28: -3.7133712 | AH28: -2.6157624 | AI28: -2.2616342 | AJ28: -3.3292375 | AK28: -2.9575344 | AL28: -2.2233178 | AM28: -3.1542828 | AN28: -2.9622913 | AO28: -3.4960795 | AP28: -2.9774895 | AQ28: -1.1465546 | AR28: -1.2680447 | AS28: -2.4768986 | AT28: -1.001758 | AU28: -0.4832017 | AV28: -1.7410938 | AW28: -2.9652622 | AX28: -2.4446057 | AY28: -3.8226368 | AZ28: -3.8701462 | BA28: -5.2059902 | BB28: -4.9272661 | BC28: -2.9397042 | BD28: -2.9151608 | BE28: -2.9722592 | BF28: -4.6636081 | BG28: -5.2887657 | BH28: -6.2681818 | BI28: -5.474783 | BJ28: -5.1246592 | BK28: -5.8537228 | BL28: -5.2040652 | BM28: -5.2433509 | BN28: -5.598084 | BO28: -6.4706684 | BP28: -8.0121963 | BQ28: -7.7894211 | BR28: -7.1542415 | BS28: -7.0822987 | BT28: -7.1725539 | BU28: -8.3625478 | BV28: -8.8726163 | BW28: -8.7486825 | BX28: -7.6629793 | BY28: -6.1312907 | BZ28: -5.8087479 | CA28: -4.5995433 | CB28: -4.8014977 | CC28: -3.1968018 | CD28: -2.5213054 | CE28: -2.6991985 | CF28: -2.4624159 | CG28: -1.3041486 | CH28: -0.8869557 | CI28: 1.2516539 | CJ28: -0.1238421 | CK28: 0.0947659 | CL28: -0.4332374 | CM28: -0.5569813 | CN28: -2.4630476 | CO28: -2.3387168 | CP28: -1.2525142 | CQ28: -1.0704292 | CR28: -1.0705747 | CS28: -2.7989705 | CT28: -1.9178114 | CU28: -1.5447759 | CV28: -1.8601043 | CW28: -2.1610538 | CX28: -3.6731951 | CY28: -3.6406445 | CZ28: -3.3767062 | DA28: -2.6627346 | DB28: -3.125627 | DC28: -2.2879882 | DD28: -2.4363994 | DE28: -3.8850647 | DF28: -4.2158604 | DG28: -3.9970922 | DH28: -3.849803 | DI28: -4.0717059 | DJ28: -4.5080792 | DK28: -4.6283127 | DL28: -4.1085486 | DM28: -4.0360328 | DN28: -4.00358 | DO28: -4.1623756 | DP28: -3.2388606 | DQ28: -3.5761379 | DR28: -3.4820762 | DS28: -4.1722489 | DT28: -5.283965 | DU28: -3.6631206 | DV28: -3.8771401 | DW28: -3.5719663 | DX28: -3.1911068 | DY28: -3.8203319 | DZ28: -4.0445284 | EA28: -4.0119509 | EB28: -3.6735794 | EC28: -3.7980591 | ED28: -4.1469281 | EE28: -4.0665174 | EF28: -4.0575856 | EG28: -3.8758926 | EH28: -3.5879783 | EI28: -3.4109748 | EJ28: -3.4103315 | EK28: -3.0578485 | EL28: -2.5068218 | EM28: -1.4642629 | EN28: -0.472407 | EO28: -0.2144997 | EP28: -0.3281316 | EQ28: -0.7701421 | ER28: -0.8054778 | ES28: -0.5628096 | ET28: -0.5994902 | EU28: -0.4744468 | EV28: -0.1982213 | EW28: 0.4998881 | EX28: 1.1806959 | EY28: 1.0530235 | EZ28: 0.6789049 | FA28: 1.5516352 | FB28: 0.9626305 | FC28: 0.3814101 | FD28: -0.1233302 | FE28: 0.4506977 | FF28: 0.9995957 | FG28: 0.9401919 | FH28: 0.3174671 | FI28: 0.298012 | FJ28: 0.3307665 | FK28: 0.05533 | FL28: 0.1571325 | FM28: -0.3139387 | FN28: -0.7396334 | FO28: -0.7885477 | FP28: -0.6787476 | FQ28: -0.8704019 | FR28: -0.9992796 | FS28: -1.1491991 | FT28: -1.3731558 | FU28: -1.2137972 | FV28: -1.5083934 | FW28: -1.4865054 | FX28: -1.0811565 | FY28: -0.9964528 | FZ28: -1.0140487 | GA28: -1.1841331 | GB28: -1.267962 | GC28: -1.1694398 | GD28: -1.4000251 | GE28: -1.4243419 | GF28: -1.4454511 | GG28: -1.3249859 | GH28: -1.2187034 | GI28: -1.2695188 | GJ28: -1.0670258 | GK28: -1.1228629 | GL28: -1.2327216 | GM28: -1.3164923 | GN28: -1.3259288 | GO28: -1.6233333
A29: 8 | B29: 0.1923076923 | C29: 0.9792141324 | D29: -1.570514869 | E29: 4.9744132 | F29: 0.7037758334 | G29: -0.9873833908 | H29: 3.1363058 | I29: 1.8543712 | J29: 1.01157 | K29: 0.8428012 | M29: Simulation 20 | N29: 0 | O29: 0.3194601 | P29: -0.6231457 | Q29: -0.0998636 | R29: -1.3361679 | S29: -1.61353 | T29: 3.5658181 | U29: 3.7586659 | V29: 2.9611766 | W29: 3.4484045 | X29: 3.574679 | Y29: 3.3491885 | Z29: 4.0591289 | AA29: 3.7318727 | AB29: 2.3627115 | AC29: 1.2082812 | AD29: 1.4415933 | AE29: -0.7475337 | AF29: 1.1648134 | AG29: -1.2772365 | AH29: 0.0216335 | AI29: -2.2699112 | AJ29: -1.6990959 | AK29: -1.6776941 | AL29: -2.3774712 | AM29: -1.4932971 | AN29: -3.178829 | AO29: -2.9100573 | AP29: -2.0702556 | AQ29: -0.5381036 | AR29: 0.4895067 | AS29: 1.2197878 | AT29: -0.7081607 | AU29: 0.9587113 | AV29: 1.2601795 | AW29: 0.8451302 | AX29: -0.6340698 | AY29: -2.4666651 | AZ29: -1.6895991 | BA29: -1.6719196 | BB29: -0.8328747 | BC29: -2.7865554 | BD29: -2.8545877 | BE29: -2.2974568 | BF29: -3.5616579 | BG29: -3.9789315 | BH29: -3.8621628 | BI29: -2.33614 | BJ29: -3.1665198 | BK29: -2.7724326 | BL29: -4.0640741 | BM29: -5.0259289 | BN29: -4.2204311 | BO29: -4.5011971 | BP29: -4.2075664 | BQ29: -4.5841504 | BR29: -3.1915106 | BS29: -3.4469141 | BT29: -4.6218387 | BU29: -3.9033622 | BV29: -4.3830193 | BW29: -4.0190367 | BX29: -4.6465098 | BY29: -2.7714527 | BZ29: -3.2762913 | CA29: -2.6193679 | CB29: -2.131145 | CC29: -2.8353783 | CD29: -2.4938321 | CE29: -0.8841556 | CF29: -2.1944311 | CG29: -1.9388518 | CH29: -1.0939478 | CI29: -0.8340676 | CJ29: 0.6172657 | CK29: 1.0370933 | CL29: 0.9790146 | CM29: 2.9408269 | CN29: 1.1871908 | CO29: -0.1081352 | CP29: -0.2857365 | CQ29: -1.7434438 | CR29: -1.7463506 | CS29: -2.5139849 | CT29: -2.9620056 | CU29: -2.9895969 | CV29: -3.6708251 | CW29: -3.5394445 | CX29: -3.5723289 | CY29: -4.2660783 | CZ29: -4.7353535 | DA29: -5.3771464 | DB29: -5.1332883 | DC29: -4.0235354 | DD29: -4.3373619 | DE29: -4.0176472 | DF29: -3.7178003 | DG29: -4.4113121 | DH29: -4.6625369 | DI29: -4.5740924 | DJ29: -4.4073538 | DK29: -5.2477683 | DL29: -5.3668437 | DM29: -6.304651 | DN29: -6.0037004 | DO29: -6.4440188 | DP29: -6.5808638 | DQ29: -6.3521611 | DR29: -5.8360106 | DS29: -6.1382687 | DT29: -6.4862084 | DU29: -5.3478432 | DV29: -5.3655564 | DW29: -5.2969486 | DX29: -5.2851549 | DY29: -5.1160193 | DZ29: -5.4086159 | EA29: -5.4442107 | EB29: -5.9493414 | EC29: -5.9959569 | ED29: -5.217203 | EE29: -4.9860043 | EF29: -5.3064625 | EG29: -5.3782678 | EH29: -4.9539305 | EI29: -5.093509 | EJ29: -5.2003712 | EK29: -5.4458581 | EL29: -5.500052 | EM29: -4.2586287 | EN29: -4.3105734 | EO29: -3.4841914 | EP29: -2.995558 | EQ29: -3.1551751 | ER29: -3.5171646 | ES29: -2.9191282 | ET29: -2.5334498 | EU29: -2.758703 | EV29: -2.8296843 | EW29: -2.7836039 | EX29: -2.6908368 | EY29: -2.5374422 | EZ29: -2.8540478 | FA29: -2.9545133 | FB29: -2.8824994 | FC29: -3.3743491 | FD29: -3.619799 | FE29: -2.8981639 | FF29: -2.2408102 | FG29: -2.072314 | FH29: -1.9411874 | FI29: -2.0549862 | FJ29: -1.9921214 | FK29: -1.9359486 | FL29: -2.1954733 | FM29: -2.3854825 | FN29: -2.6549495 | FO29: -2.8840887 | FP29: -2.8044192 | FQ29: -2.6292507 | FR29: -2.6364471 | FS29: -2.6981321 | FT29: -2.818677 | FU29: -2.888435 | FV29: -2.9559766 | FW29: -2.784295 | FX29: -2.2874659 | FY29: -2.269203 | FZ29: -2.3340102 | GA29: -2.4101956 | GB29: -2.4782655 | GC29: -2.4371942 | GD29: -2.5215478 | GE29: -2.5583445 | GF29: -2.5862751 | GG29: -2.6583834 | GH29: -2.7568018 | GI29: -2.7994777 | GJ29: -2.7376631 | GK29: -2.7740216 | GL29: -2.8394127 | GM29: -2.9133922 | GN29: -2.9402394 | GO29: -3.0066882
A30: 9 | B30: 0.2197802198 | C30: 0.9782454627 | D30: -1.682177967 | E30: 5.0188808 | F30: 0.5408227183 | G30: -0.7693435383 | H30: 2.6033896 | I30: 1.3791212 | J30: 2.0577404 | K30: -0.6786192 | M30: Simulation 21 | N30: 0 | O30: -0.1017618 | P30: -1.2196972 | Q30: -2.0710003 | R30: -1.3283233 | S30: -3.4264621 | T30: -3.6326151 | U30: -3.3278891 | V30: -2.4224184 | W30: -3.4683878 | X30: -1.756333 | Y30: -1.9672096 | Z30: -3.3160356 | AA30: -3.5999373 | AB30: -4.2310207 | AC30: -3.9192279 | AD30: -4.9422382 | AE30: -5.7839675 | AF30: -5.0155376 | AG30: -5.0629731 | AH30: -5.1425907 | AI30: -6.2051054 | AJ30: -6.2133163 | AK30: -6.2260468 | AL30: -5.9495458 | AM30: -4.6742625 | AN30: -5.5103476 | AO30: -6.3773665 | AP30: -6.4297322 | AQ30: -5.2422716 | AR30: -4.9426203 | AS30: -4.8667426 | AT30: -4.9218848 | AU30: -7.7760339 | AV30: -8.7903857 | AW30: -8.8797144 | AX30: -8.6164822 | AY30: -9.2567037 | AZ30: -8.1940735 | BA30: -8.5464982 | BB30: -7.9241985 | BC30: -7.8738976 | BD30: -7.1074469 | BE30: -6.9021373 | BF30: -6.248694 | BG30: -5.9334005 | BH30: -5.8181621 | BI30: -6.2100272 | BJ30: -6.7622113 | BK30: -7.8884438 | BL30: -7.5567763 | BM30: -7.1939526 | BN30: -7.4904688 | BO30: -8.2745194 | BP30: -7.873645 | BQ30: -7.3265251 | BR30: -5.0515703 | BS30: -5.4777658 | BT30: -6.046056 | BU30: -5.3239307 | BV30: -4.4182267 | BW30: -3.4520585 | BX30: -3.415656 | BY30: -3.7508301 | BZ30: -3.49217 | CA30: -5.2883526 | CB30: -6.1143285 | CC30: -6.4940636 | CD30: -7.3222635 | CE30: -7.7304787 | CF30: -7.2994786 | CG30: -7.5008053 | CH30: -8.3679892 | CI30: -7.8230541 | CJ30: -6.6880223 | CK30: -7.1477926 | CL30: -6.6376829 | CM30: -7.3731554 | CN30: -7.3585826 | CO30: -7.3978855 | CP30: -7.7742415 | CQ30: -7.0904601 | CR30: -7.0500425 | CS30: -7.2595995 | CT30: -7.7056749 | CU30: -7.5734967 | CV30: -7.718727 | CW30: -7.5534296 | CX30: -7.5073728 | CY30: -7.3045687 | CZ30: -7.4966707 | DA30: -7.3667425 | DB30: -7.3586377 | DC30: -6.6200463 | DD30: -6.8240722 | DE30: -6.9817695 | DF30: -6.8046214 | DG30: -7.1822406 | DH30: -7.0530502 | DI30: -7.3097091 | DJ30: -7.4425568 | DK30: -7.5847178 | DL30: -7.7160961 | DM30: -7.7082912 | DN30: -7.6661619 | DO30: -7.7609533 | DP30: -7.6708093 | DQ30: -7.5997593 | DR30: -7.7443223 | DS30: -7.5863227 | DT30: -7.4540791 | DU30: -6.6905941 | DV30: -6.17245 | DW30: -5.814735 | DX30: -5.8073203 | DY30: -5.6796032 | DZ30: -5.8547112 | EA30: -5.8474425 | EB30: -5.7089989 | EC30: -5.8951436 | ED30: -5.5205098 | EE30: -5.2765173 | EF30: -5.1492059 | EG30: -4.9763451 | EH30: -4.7967927 | EI30: -4.9496559 | EJ30: -4.6679003 | EK30: -4.458626 | EL30: -4.3165053 | EM30: -3.5916453 | EN30: -3.3980724 | EO30: -3.558589 | EP30: -3.1928807 | EQ30: -2.9754113 | ER30: -3.175676 | ES30: -3.0354647 | ET30: -2.6625685 | EU30: -2.3214067 | EV30: -2.2525547 | EW30: -2.1055882 | EX30: -2.1996324 | EY30: -2.200086 | EZ30: -2.5513806 | FA30: -2.4236768 | FB30: -2.5477581 | FC30: -2.5190926 | FD30: -2.2048566 | FE30: -1.4797504 | FF30: -0.716416 | FG30: -0.6505406 | FH30: -0.6907484 | FI30: -0.5630733 | FJ30: -0.5762208 | FK30: -0.6162676 | FL30: -0.7348597 | FM30: -0.7248527 | FN30: -0.7315346 | FO30: -0.5502739 | FP30: -0.4776463 | FQ30: -0.6106252 | FR30: -0.5460194 | FS30: -0.8283645 | FT30: -0.6017022 | FU30: -0.6661011 | FV30: -0.5857823 | FW30: -0.0046875 | FX30: 0.4331764 | FY30: 0.4021739 | FZ30: 0.2789029 | GA30: 0.2979744 | GB30: 0.19212 | GC30: 0.4432464 | GD30: 0.591423 | GE30: 0.7059121 | GF30: 0.9373361 | GG30: 1.4237135 | GH30: 1.7084524 | GI30: 1.4309444 | GJ30: 1.3929522 | GK30: 1.6697682 | GL30: 1.4884097 | GM30: 1.5046523 | GN30: 1.692669 | GO30: 1.5697902
A31: 10 | B31: 0.2472527473 | C31: 0.9805089588 | D31: -1.816323846 | E31: 5.26857 | F31: 0.6486554066 | G31: -1.009058609 | H31: 3.1206838 | I31: 3.331419 | J31: 2.0577404 | K31: 1.2736786 | M31: Simulation 22 | N31: 0 | O31: -0.1747355 | P31: -2.0619203 | Q31: -1.2407878 | R31: -1.8496163 | S31: -2.1668331 | T31: -1.9395838 | U31: -2.5654771 | V31: -2.9926972 | W31: -3.6756832 | X31: -4.6036164 | Y31: -6.069418 | Z31: -7.0105254 | AA31: -7.4144711 | AB31: -8.073492 | AC31: -6.647535 | AD31: -5.6498845 | AE31: -7.0591967 | AF31: -6.6744144 | AG31: -6.9703665 | AH31: -5.5492383 | AI31: -5.8361407 | AJ31: -6.2175653 | AK31: -6.2305255 | AL31: -7.2146405 | AM31: -7.8721128 | AN31: -8.1874001 | AO31: -7.1354828 | AP31: -6.8037482 | AQ31: -6.2755992 | AR31: -3.7564452 | AS31: -2.2114397 | AT31: -2.1054092 | AU31: -1.5299581 | AV31: -1.5123039 | AW31: -1.3214572 | AX31: -0.8087193 | AY31: -2.1082611 | AZ31: -1.8856418 | BA31: -0.7837707 | BB31: 0.2067624 | BC31: -1.4777584 | BD31: -2.3035481 | BE31: -1.9654615 | BF31: -1.8404477 | BG31: -1.6655716 | BH31: 0.5270611 | BI31: 1.0977918 | BJ31: 3.3808659 | BK31: 3.046609 | BL31: 2.9671054 | BM31: 2.7265995 | BN31: 1.9967528 | BO31: 0.4534025 | BP31: 2.4285547 | BQ31: 2.4631241 | BR31: 4.7349113 | BS31: 6.655157 | BT31: 8.6023677 | BU31: 9.7374141 | BV31: 10.5311799 | BW31: 7.8780524 | BX31: 9.5753045 | BY31: 10.5413191 | BZ31: 8.5141407 | CA31: 10.2781156 | CB31: 10.1743678 | CC31: 8.3922897 | CD31: 8.923572 | CE31: 7.1391117 | CF31: 6.8602579 | CG31: 5.3853075 | CH31: 6.9025975 | CI31: 4.7962435 | CJ31: 5.1969909 | CK31: 5.9966804 | CL31: 4.9085202 | CM31: 5.1313262 | CN31: 3.2435459 | CO31: 3.3484259 | CP31: 1.3189334 | CQ31: 1.1909799 | CR31: 0.0591575 | CS31: -1.791721 | CT31: -2.000997 | CU31: -1.0512212 | CV31: -0.2605719 | CW31: -0.1934986 | CX31: 0.8265848 | CY31: 0.8781111 | CZ31: 0.8848085 | DA31: 1.4145052 | DB31: 2.3988971 | DC31: 2.8014992 | DD31: 3.3421013 | DE31: 3.358245 | DF31: 1.422922 | DG31: -0.5783501 | DH31: -0.2764297 | DI31: 0.8251008 | DJ31: 1.7842353 | DK31: 0.8510071 | DL31: 1.7214588 | DM31: -0.2007297 | DN31: 0.0215357 | DO31: 2.0611202 | DP31: 1.87159 | DQ31: 0.516621 | DR31: -0.8323627 | DS31: -1.3903066 | DT31: -1.4385582 | DU31: 0.1684632 | DV31: 0.2447358 | DW31: 0.3961533 | DX31: 1.1601492 | DY31: 2.8692034 | DZ31: 2.3676971 | EA31: 2.1724468 | EB31: 2.1152392 | EC31: 2.1272145 | ED31: 3.111669 | EE31: 3.6862232 | EF31: 4.6780788 | EG31: 4.3715694 | EH31: 5.5615821 | EI31: 4.5174145 | EJ31: 3.9350129 | EK31: 2.7406797 | EL31: 1.8367339 | EM31: 3.4561994 | EN31: 2.8811867 | EO31: 3.3960171 | EP31: 2.9899846 | EQ31: 3.0525374 | ER31: 3.6377384 | ES31: 3.4770475 | ET31: 2.6657736 | EU31: 3.1248017 | EV31: 3.5938148 | EW31: 3.3937663 | EX31: 2.8380316 | EY31: 2.9072806 | EZ31: 1.8431185 | FA31: 0.9202937 | FB31: 1.5227159 | FC31: 0.1099176 | FD31: -0.5815217 | FE31: -0.0928646 | FF31: -0.624987 | FG31: -1.5671554 | FH31: -1.5860869 | FI31: -1.6252802 | FJ31: -1.577153 | FK31: -1.7409649 | FL31: -1.9867119 | FM31: -1.8418036 | FN31: -1.9923183 | FO31: -1.555201 | FP31: -1.5036509 | FQ31: -1.3074194 | FR31: -1.6106415 | FS31: -1.8766183 | FT31: -2.3190476 | FU31: -2.6883715 | FV31: -2.7749742 | FW31: -2.4165863 | FX31: -2.0263104 | FY31: -2.092412 | FZ31: -2.2725127 | GA31: -2.3168375 | GB31: -2.4504244 | GC31: -2.6093236 | GD31: -2.5935173 | GE31: -2.4863433 | GF31: -2.4980181 | GG31: -2.377356 | GH31: -2.4117887 | GI31: -2.3794704 | GJ31: -2.2191442 | GK31: -2.3188727 | GL31: -2.167378 | GM31: -2.1937099 | GN31: -2.3173207 | GO31: -2.5126845
A32: 11 | B32: 0.2747252747 | C32: 1.084466909 | D32: -1.891524356 | E32: 5.770763 | F32: 0.6243608445 | G32: -0.7274857873 | H32: 2.7501131 | I32: 1.3969368 | J32: 1.3791212 | K32: 0.0178156 | M32: Simulation 23 | N32: 0 | O32: 0.4337868 | P32: -0.2930437 | Q32: -1.5970365 | R32: -3.1468616 | S32: -3.5860755 | T32: -3.9953808 | U32: -5.7434726 | V32: -5.7539396 | W32: -5.3052966 | X32: -5.0855529 | Y32: -5.3899305 | Z32: -5.1886518 | AA32: -5.2483585 | AB32: -5.4559232 | AC32: -4.9714075 | AD32: -5.0330519 | AE32: -6.0679386 | AF32: -6.0773261 | AG32: -7.1866892 | AH32: -5.4496328 | AI32: -5.6202013 | AJ32: -5.1334939 | AK32: -3.3295915 | AL32: -2.3050351 | AM32: -1.978464 | AN32: -2.2699515 | AO32: -1.9968073 | AP32: -0.307067 | AQ32: 0.2895558 | AR32: -0.588919 | AS32: -1.0794319 | AT32: -1.5011282 | AU32: -0.7176508 | AV32: -1.2663294 | AW32: -3.6969952 | AX32: -4.0061181 | AY32: -4.2413503 | AZ32: -4.4184664 | BA32: -4.6040181 | BB32: -4.6369398 | BC32: -5.5187972 | BD32: -4.9908807 | BE32: -4.917387 | BF32: -4.8975221 | BG32: -5.5025017 | BH32: -5.4381971 | BI32: -5.9712699 | BJ32: -6.0657033 | BK32: -6.0686161 | BL32: -5.8241253 | BM32: -5.851639 | BN32: -4.8011649 | BO32: -4.3501657 | BP32: -4.9580359 | BQ32: -4.5376253 | BR32: -2.840456 | BS32: -5.3414203 | BT32: -4.887972 | BU32: -4.8534717 | BV32: -4.0605795 | BW32: -4.0399566 | BX32: -4.1409795 | BY32: -3.0570262 | BZ32: -2.4387909 | CA32: -2.5147481 | CB32: -2.6586257 | CC32: -3.4216584 | CD32: -1.6453259 | CE32: -2.2888897 | CF32: -2.9630251 | CG32: -2.9730649 | CH32: -2.8782303 | CI32: -4.3010176 | CJ32: -3.6706611 | CK32: -4.6377855 | CL32: -4.9407803 | CM32: -4.9362117 | CN32: -5.3321837 | CO32: -6.643737 | CP32: -7.264508 | CQ32: -7.2303139 | CR32: -6.949663 | CS32: -7.0258628 | CT32: -6.4478724 | CU32: -6.1915875 | CV32: -6.2160594 | CW32: -6.258426 | CX32: -6.1497614 | CY32: -6.2596149 | CZ32: -6.5820948 | DA32: -6.7775884 | DB32: -6.7608274 | DC32: -6.2250802 | DD32: -6.0187088 | DE32: -5.9941973 | DF32: -5.435155 | DG32: -5.9107946 | DH32: -5.7667676 | DI32: -5.5802365 | DJ32: -5.9448236 | DK32: -5.869942 | DL32: -5.3205556 | DM32: -5.220993 | DN32: -5.2288287 | DO32: -5.3598349 | DP32: -5.5691799 | DQ32: -4.6017767 | DR32: -4.8101645 | DS32: -5.0594605 | DT32: -5.3146511 | DU32: -4.2578278 | DV32: -3.6462926 | DW32: -3.0401493 | DX32: -2.5844173 | DY32: -1.9429589 | DZ32: -1.9965376 | EA32: -2.4656938 | EB32: -2.2287978 | EC32: -1.7615154 | ED32: -1.6515712 | EE32: -1.7274135 | EF32: -1.71782 | EG32: -1.8138815 | EH32: -2.009791 | EI32: -1.4600593 | EJ32: -1.512283 | EK32: -1.1540851 | EL32: -1.1520158 | EM32: -0.4813697 | EN32: -0.2923511 | EO32: 0.151556 | EP32: -0.3587031 | EQ32: -0.5192893 | ER32: -0.7505727 | ES32: -0.3872597 | ET32: -0.3417309 | EU32: 0.3505469 | EV32: 0.2296418 | EW32: 0.0181847 | EX32: 0.0681605 | EY32: 0.2934506 | EZ32: 0.6432512 | FA32: 0.5336723 | FB32: 0.6439509 | FC32: 0.370101 | FD32: 0.1974309 | FE32: 0.5206837 | FF32: 0.6815564 | FG32: 0.6948272 | FH32: 0.4565492 | FI32: 0.5844756 | FJ32: 0.5527931 | FK32: 0.3052071 | FL32: 0.0756376 | FM32: -0.1508392 | FN32: -0.3940489 | FO32: -0.3603436 | FP32: -0.2770029 | FQ32: -0.3885708 | FR32: -0.3642511 | FS32: -0.4300983 | FT32: -0.5816835 | FU32: -0.7968537 | FV32: -0.964035 | FW32: -0.6044411 | FX32: 0.1692193 | FY32: 0.1207037 | FZ32: 0.3568037 | GA32: 0.4396289 | GB32: 0.2859674 | GC32: -0.0353894 | GD32: 0.1398381 | GE32: 0.1116199 | GF32: 0.1678892 | GG32: 0.0710576 | GH32: 0.1945689 | GI32: 0.2230865 | GJ32: 0.1244144 | GK32: -0.0432047 | GL32: -0.1867621 | GM32: -0.06957 | GN32: -0.2691327 | GO32: -0.0400873
A33: 12 | B33: 0.3021978022 | C33: 1.091820446 | D33: -2.024038464 | E33: 6.0263299 | F33: 0.6887813857 | G33: -0.9170668988 | H33: 3.190887 | I33: 1.6115684 | J33: 1.3791212 | K33: 0.2324472 | M33: Simulation 24 | N33: 0 | O33: -0.4609014 | P33: -0.3093016 | Q33: 3.0493723 | R33: 3.2886689 | S33: 2.5589376 | T33: 2.2727063 | U33: 1.5620396 | V33: 1.352354 | W33: -0.8810592 | X33: -2.2778314 | Y33: -2.5282558 | Z33: -2.1593012 | AA33: -2.2253956 | AB33: -5.7427449 | AC33: -6.7627052 | AD33: -6.2202702 | AE33: -6.5614673 | AF33: -6.3318284 | AG33: -7.5049837 | AH33: -7.5713944 | AI33: -5.817505 | AJ33: -7.5348454 | AK33: -6.5225869 | AL33: -7.2134091 | AM33: -6.560273 | AN33: -7.7716215 | AO33: -6.9521683 | AP33: -7.3059053 | AQ33: -5.9123025 | AR33: -6.772361 | AS33: -6.6595619 | AT33: -5.9938956 | AU33: -4.9034626 | AV33: -4.8875702 | AW33: -2.4759491 | AX33: -0.5189338 | AY33: -1.2968318 | AZ33: 0.3608526 | BA33: 1.1875215 | BB33: 1.2363476 | BC33: 2.2899055 | BD33: 3.2080992 | BE33: 1.1159249 | BF33: 0.4679157 | BG33: 0.5344027 | BH33: 1.0584436 | BI33: -1.8196166 | BJ33: -0.6463423 | BK33: 0.5337006 | BL33: 1.7840555 | BM33: 0.0334345 | BN33: 1.530758 | BO33: -1.2836657 | BP33: -1.8923185 | BQ33: -3.6274172 | BR33: -2.5214307 | BS33: -2.6252122 | BT33: -1.8990202 | BU33: -0.9896407 | BV33: -1.9345746 | BW33: -2.219454 | BX33: -2.4528377 | BY33: -1.6562089 | BZ33: -0.0025666 | CA33: 0.7325834 | CB33: 1.5171143 | CC33: 2.0761608 | CD33: 2.328738 | CE33: 2.5940514 | CF33: 2.7331632 | CG33: 2.79941 | CH33: 3.6016232 | CI33: 3.2189085 | CJ33: 4.90822 | CK33: 4.2211215 | CL33: 4.5194846 | CM33: 6.1648358 | CN33: 5.0067504 | CO33: 5.4195247 | CP33: 6.0137869 | CQ33: 6.8608383 | CR33: 5.4750652 | CS33: 5.6987605 | CT33: 2.341929 | CU33: 1.947713 | CV33: 3.0029221 | CW33: 1.7772359 | CX33: 0.2317121 | CY33: 0.2792521 | CZ33: 1.7219879 | DA33: 2.0953409 | DB33: 2.8235001 | DC33: 5.3204024 | DD33: 4.7999733 | DE33: 4.877829 | DF33: 5.1681341 | DG33: 4.4262891 | DH33: 5.7886405 | DI33: 6.6655273 | DJ33: 7.1046024 | DK33: 7.1162996 | DL33: 4.6965276 | DM33: 3.8932307 | DN33: 4.4576728 | DO33: 4.6053434 | DP33: 3.405675 | DQ33: 7.1195641 | DR33: 5.5509401 | DS33: 5.1802563 | DT33: 4.1415816 | DU33: 4.1733932 | DV33: 3.0136184 | DW33: 2.8614705 | DX33: 2.5165877 | DY33: 2.7391315 | DZ33: 2.2487024 | EA33: 3.0790721 | EB33: 2.715745 | EC33: 1.9179329 | ED33: 2.7870215 | EE33: 1.9274111 | EF33: 3.5663292 | EG33: 4.0538682 | EH33: 3.8491006 | EI33: 1.4236919 | EJ33: 1.093886 | EK33: 1.4661329 | EL33: 1.4516999 | EM33: 1.233054 | EN33: 0.9204746 | EO33: 1.3253654 | EP33: 1.2464779 | EQ33: 0.8360089 | ER33: 0.4950202 | ES33: 1.0322938 | ET33: 1.2773467 | EU33: 0.9229111 | EV33: 0.5894321 | EW33: 1.68143 | EX33: 1.3829777 | EY33: 2.1158195 | EZ33: 2.3909761 | FA33: 2.4123323 | FB33: 1.5388223 | FC33: 2.2955591 | FD33: 2.7466511 | FE33: 2.949034 | FF33: 3.5324965 | FG33: 3.5777517 | FH33: 3.2223181 | FI33: 3.3661602 | FJ33: 3.0993291 | FK33: 2.8500481 | FL33: 2.5397348 | FM33: 2.9340052 | FN33: 3.1409849 | FO33: 2.5377409 | FP33: 2.1646707 | FQ33: 2.2304438 | FR33: 2.595005 | FS33: 1.9317959 | FT33: 1.8065039 | FU33: 1.6220867 | FV33: 1.3984427 | FW33: 1.3958679 | FX33: 1.3081652 | FY33: 1.1605132 | FZ33: 1.1916779 | GA33: 1.3132474 | GB33: 1.3411669 | GC33: 1.0011012 | GD33: 0.5455321 | GE33: 0.3720288 | GF33: 0.317082 | GG33: 0.0318009 | GH33: -0.1956221 | GI33: -0.1371312 | GJ33: -0.0145706 | GK33: -0.0853459 | GL33: -0.4113303 | GM33: -0.6133152 | GN33: -0.9182133 | GO33: -0.8749076
A34: 13 | B34: 0.3296703297 | C34: 1.090906177 | D34: -2.136455894 | E34: 6.0120668 | F34: 0.5276383662 | G34: -0.766130636 | H34: 2.6425938 | I34: 1.6708195 | J34: 1.3969368 | K34: 0.2738827 | M34: Simulation 25 | N34: 0 | O34: 0.1081972 | P34: -1.0942906 | Q34: 0.7055562 | R34: 2.8827472 | S34: 1.5283229 | T34: 2.286844 | U34: 2.10643 | V34: -0.1207337 | W34: -1.4452577 | X34: -1.1381995 | Y34: -0.5793253 | Z34: -1.1128518 | AA34: -3.3327435 | AB34: -2.9202671 | AC34: -2.50514 | AD34: -2.6825835 | AE34: -2.745786 | AF34: -3.5412273 | AG34: -3.7641063 | AH34: -5.0255407 | AI34: -4.2923997 | AJ34: -5.5024029 | AK34: -3.3983966 | AL34: -4.5675994 | AM34: -3.8896489 | AN34: -5.9775971 | AO34: -5.9543555 | AP34: -5.121023 | AQ34: -4.9325063 | AR34: -4.7572432 | AS34: -5.6581699 | AT34: -5.5188626 | AU34: -7.4013291 | AV34: -7.4535424 | AW34: -7.4414283 | AX34: -7.6419972 | AY34: -8.3391917 | AZ34: -8.2762196 | BA34: -7.621536 | BB34: -7.0107326 | BC34: -7.3472592 | BD34: -8.0620522 | BE34: -7.9938009 | BF34: -8.0609791 | BG34: -7.3306548 | BH34: -6.8306933 | BI34: -7.2708746 | BJ34: -6.913773 | BK34: -5.2767991 | BL34: -5.2416044 | BM34: -5.8968079 | BN34: -6.6717327 | BO34: -7.0269117 | BP34: -7.8388374 | BQ34: -8.2087907 | BR34: -7.6455646 | BS34: -8.2467851 | BT34: -8.1559772 | BU34: -7.6984141 | BV34: -7.7747069 | BW34: -7.383737 | BX34: -7.3418329 | BY34: -6.9475861 | BZ34: -6.0684753 | CA34: -6.6499697 | CB34: -5.9508083 | CC34: -7.7829671 | CD34: -7.5672646 | CE34: -6.9461888 | CF34: -5.6106791 | CG34: -6.0717262 | CH34: -5.9469488 | CI34: -6.2903448 | CJ34: -5.6703331 | CK34: -5.650296 | CL34: -6.6142565 | CM34: -7.4354924 | CN34: -7.4910256 | CO34: -7.5539196 | CP34: -7.0645021 | CQ34: -7.0682024 | CR34: -7.1258235 | CS34: -6.67113 | CT34: -6.4616411 | CU34: -6.1957349 | CV34: -6.1814091 | CW34: -5.4430525 | CX34: -5.6159234 | CY34: -6.1266645 | CZ34: -6.7642737 | DA34: -6.7559778 | DB34: -6.8800814 | DC34: -6.0263341 | DD34: -5.6858923 | DE34: -5.627897 | DF34: -5.8159664 | DG34: -6.2358329 | DH34: -6.1607822 | DI34: -5.4847072 | DJ34: -5.6657473 | DK34: -6.1160139 | DL34: -6.082262 | DM34: -5.973201 | DN34: -6.5795402 | DO34: -6.2267267 | DP34: -6.0563595 | DQ34: -5.9772214 | DR34: -5.6026252 | DS34: -5.2876195 | DT34: -5.1742468 | DU34: -4.7034387 | DV34: -4.8204578 | DW34: -4.3781367 | DX34: -4.3094211 | DY34: -4.5549728 | DZ34: -4.4115426 | EA34: -4.440464 | EB34: -4.2539417 | EC34: -4.3088211 | ED34: -4.4753097 | EE34: -4.3563367 | EF34: -4.406174 | EG34: -4.3312916 | EH34: -4.3533659 | EI34: -4.0660375 | EJ34: -4.3255954 | EK34: -4.1610959 | EL34: -3.650001 | EM34: -3.3932886 | EN34: -3.2493606 | EO34: -2.978201 | EP34: -2.5457339 | EQ34: -2.7312485 | ER34: -2.6918532 | ES34: -2.2250742 | ET34: -2.5911481 | EU34: -2.1378319 | EV34: -1.9384673 | EW34: -1.7860782 | EX34: -1.697841 | EY34: -1.146391 | EZ34: -0.7895544 | FA34: -0.5996203 | FB34: -0.20908 | FC34: -0.3808414 | FD34: -0.4530097 | FE34: -0.3844875 | FF34: 0.6352729 | FG34: 1.0358051 | FH34: 0.8974033 | FI34: 0.6592302 | FJ34: 0.4256265 | FK34: 0.7963897 | FL34: 0.5299763 | FM34: 0.6165325 | FN34: 0.3300803 | FO34: 0.5233306 | FP34: 0.3285866 | FQ34: 0.3638061 | FR34: 0.4635041 | FS34: 0.2591188 | FT34: 0.3402151 | FU34: 0.2502874 | FV34: -0.2799932 | FW34: -0.506907 | FX34: -0.2026802 | FY34: -0.1291707 | FZ34: -0.0311505 | GA34: -0.0798257 | GB34: -0.1464563 | GC34: -0.2946695 | GD34: -0.3706728 | GE34: -0.4288609 | GF34: -0.5113007 | GG34: -0.3754383 | GH34: -0.5452965 | GI34: -0.4921242 | GJ34: -0.5281008 | GK34: -0.6938979 | GL34: -0.7978835 | GM34: -0.7919618 | GN34: -0.9285629 | GO34: -0.8758068
A35: 14 | B35: 0.3571428571 | C35: 1.107829685 | D35: -2.273742657 | E35: 6.3803482 | F35: 0.6234631239 | G35: -0.9823186495 | H35: 3.0615184 | I35: 0.2084565 | J35: 1.3969368 | K35: -1.1884803 | M35: Simulation 26 | N35: 0 | O35: 0.2292287 | P35: -0.6348665 | Q35: -0.5295724 | R35: 0.1695703 | S35: -0.2017594 | T35: 0.9339087 | U35: -2.3269615 | V35: -2.8768245 | W35: -5.5278772 | X35: -5.9829733 | Y35: -5.466131 | Z35: -4.3821697 | AA35: -5.0453582 | AB35: -3.9191087 | AC35: -3.8908378 | AD35: -3.505651 | AE35: -5.1830526 | AF35: -5.0312689 | AG35: -5.1667791 | AH35: -5.0184111 | AI35: -5.2375599 | AJ35: -3.1176767 | AK35: -3.0652529 | AL35: -4.9407158 | AM35: -5.3467641 | AN35: -4.8119271 | AO35: -6.5052387 | AP35: -5.8209634 | AQ35: -5.0733791 | AR35: -5.0274074 | AS35: -6.143636 | AT35: -3.6253813 | AU35: -4.844909 | AV35: -3.0012577 | AW35: -2.0504322 | AX35: -2.891365 | AY35: -4.6471465 | AZ35: -5.0751632 | BA35: -5.142392 | BB35: -6.7459455 | BC35: -7.8197403 | BD35: -7.3108717 | BE35: -7.1276936 | BF35: -6.5485023 | BG35: -7.1133207 | BH35: -7.3408232 | BI35: -6.9310419 | BJ35: -7.7054344 | BK35: -7.3143334 | BL35: -7.4193184 | BM35: -7.6517735 | BN35: -6.6396781 | BO35: -7.5360282 | BP35: -7.7993708 | BQ35: -7.8366004 | BR35: -7.2320146 | BS35: -7.8548017 | BT35: -7.5789457 | BU35: -8.4745138 | BV35: -9.0288409 | BW35: -8.3886428 | BX35: -8.542849 | BY35: -9.1506074 | BZ35: -9.5884641 | CA35: -9.4718125 | CB35: -10.1047395 | CC35: -9.8911294 | CD35: -10.005904 | CE35: -9.8028281 | CF35: -10.1991708 | CG35: -10.371283 | CH35: -10.5643466 | CI35: -10.431543 | CJ35: -9.9756455 | CK35: -9.5042199 | CL35: -9.5618586 | CM35: -9.474047 | CN35: -9.3658715 | CO35: -9.5550006 | CP35: -9.4572394 | CQ35: -9.0350067 | CR35: -8.8537056 | CS35: -8.814807 | CT35: -8.9446414 | CU35: -9.2090251 | CV35: -9.2841726 | CW35: -9.200998 | CX35: -8.8979676 | CY35: -8.5147126 | CZ35: -8.447957 | DA35: -8.7764909 | DB35: -9.0370125 | DC35: -8.0205015 | DD35: -7.949431 | DE35: -8.0529086 | DF35: -7.7175872 | DG35: -7.2404711 | DH35: -7.0646558 | DI35: -7.0275783 | DJ35: -6.8919357 | DK35: -7.0449372 | DL35: -7.0963013 | DM35: -7.2656972 | DN35: -7.5030758 | DO35: -7.5045583 | DP35: -7.2234771 | DQ35: -7.545556 | DR35: -7.7228482 | DS35: -7.2641217 | DT35: -7.5418367 | DU35: -6.3786399 | DV35: -6.4906399 | DW35: -6.3207308 | DX35: -5.9793652 | DY35: -5.4667626 | DZ35: -4.913136 | EA35: -5.2745405 | EB35: -5.0962207 | EC35: -4.8695788 | ED35: -5.1575304 | EE35: -5.1770884 | EF35: -4.9641935 | EG35: -4.364448 | EH35: -4.543708 | EI35: -4.4372054 | EJ35: -4.4494191 | EK35: -4.5935347 | EL35: -4.32394 | EM35: -3.8729813 | EN35: -4.1306079 | EO35: -3.93471 | EP35: -4.1270773 | EQ35: -3.7525391 | ER35: -3.7554053 | ES35: -3.7315347 | ET35: -3.8377049 | EU35: -3.8119875 | EV35: -3.6288084 | EW35: -3.5190711 | EX35: -3.500349 | EY35: -3.4883422 | EZ35: -3.2696263 | FA35: -3.1179927 | FB35: -3.2096907 | FC35: -2.992622 | FD35: -2.8285599 | FE35: -2.6996601 | FF35: -2.4324477 | FG35: -2.292565 | FH35: -2.1666466 | FI35: -2.110094 | FJ35: -1.9791176 | FK35: -1.777384 | FL35: -1.8796563 | FM35: -1.8532735 | FN35: -2.0439557 | FO35: -2.1385192 | FP35: -2.3177823 | FQ35: -2.183659 | FR35: -2.23022 | FS35: -2.4362619 | FT35: -2.3864583 | FU35: -2.4652258 | FV35: -2.4674567 | FW35: -2.631878 | FX35: -2.2600119 | FY35: -2.1875295 | FZ35: -2.0563711 | GA35: -2.062871 | GB35: -2.0039974 | GC35: -1.7800706 | GD35: -1.8603185 | GE35: -1.8808269 | GF35: -1.8923169 | GG35: -1.7519695 | GH35: -1.577481 | GI35: -1.5223675 | GJ35: -1.5103223 | GK35: -1.5776611 | GL35: -1.5973306 | GM35: -1.4773169 | GN35: -1.3911302 | GO35: -1.4723292
A36: 15 | B36: 0.3846153846 | C36: 1.134297554 | D36: -2.417854787 | E36: 6.6119726 | F36: 0.5063183571 | G36: -0.7443258737 | H36: 2.2891993 | I36: 3.9600188 | J36: 1.6708195 | K36: 2.2891993 | M36: Simulation 27 | N36: 0 | O36: 0.2113201 | P36: -0.2692403 | Q36: -0.9306015 | R36: -1.6774769 | S36: -3.1960812 | T36: -3.3260029 | U36: -3.0332049 | V36: -3.433177 | W36: -2.3519033 | X36: -2.9264841 | Y36: -0.6450328 | Z36: -1.6864516 | AA36: -3.2961472 | AB36: -4.9317395 | AC36: -6.2580822 | AD36: -6.8970462 | AE36: -6.8750858 | AF36: -8.1754378 | AG36: -6.5372327 | AH36: -5.3365584 | AI36: -5.2513607 | AJ36: -5.814817 | AK36: -4.5891039 | AL36: -3.3464035 | AM36: -3.2575542 | AN36: -4.718413 | AO36: -3.6018876 | AP36: -2.4583483 | AQ36: -2.1011861 | AR36: -1.5054699 | AS36: -0.6054277 | AT36: -1.5638227 | AU36: -0.6956885 | AV36: 0.3318357 | AW36: 0.3477095 | AX36: 0.9574457 | AY36: 0.6974341 | AZ36: 1.5681943 | BA36: 0.9444456 | BB36: 2.3465095 | BC36: 1.7915262 | BD36: 1.1773445 | BE36: -0.2558318 | BF36: -0.8186294 | BG36: -1.6385922 | BH36: -3.3761104 | BI36: -1.1028087 | BJ36: -0.5906138 | BK36: -1.91605 | BL36: -1.4100577 | BM36: 0.1687053 | BN36: -0.2528021 | BO36: -1.1290753 | BP36: -0.7294523 | BQ36: -0.7872176 | BR36: -1.5364059 | BS36: 0.6830931 | BT36: 1.1898863 | BU36: 2.2980213 | BV36: 1.6137414 | BW36: 0.6471956 | BX36: 2.9703014 | BY36: 4.4943713 | BZ36: 3.2868345 | CA36: 3.5535797 | CB36: 2.6599032 | CC36: 1.8764119 | CD36: 2.0502345 | CE36: 3.4492332 | CF36: 4.795211 | CG36: 5.9745081 | CH36: 3.4783309 | CI36: 4.9236224 | CJ36: 7.3582702 | CK36: 5.9208946 | CL36: 8.9410185 | CM36: 9.2600514 | CN36: 9.0607017 | CO36: 5.9911913 | CP36: 8.2995742 | CQ36: 7.0259728 | CR36: 7.0555974 | CS36: 7.2591458 | CT36: 4.8141971 | CU36: 5.0165678 | CV36: 2.7113492 | CW36: 2.9762376 | CX36: 4.1453555 | CY36: 1.1770106 | CZ36: 2.223679 | DA36: 2.4843214 | DB36: 2.5259193 | DC36: 3.7184776 | DD36: 3.1346637 | DE36: 3.6489943 | DF36: 4.5213007 | DG36: 4.4507146 | DH36: 4.7099904 | DI36: 4.7977707 | DJ36: 4.2212696 | DK36: 3.0390759 | DL36: 3.5271334 | DM36: 3.24798 | DN36: 4.4928648 | DO36: 3.009628 | DP36: 5.5820803 | DQ36: 5.6664343 | DR36: 4.4143727 | DS36: 4.8823767 | DT36: 5.0239144 | DU36: 3.8438064 | DV36: 2.275453 | DW36: 2.2600942 | DX36: 2.1610903 | DY36: 2.4822283 | DZ36: 1.7503008 | EA36: 1.6881638 | EB36: 0.6680679 | EC36: 1.9914304 | ED36: 1.8605028 | EE36: 1.9960008 | EF36: 2.5633621 | EG36: 1.3519987 | EH36: 1.2847772 | EI36: 1.25998 | EJ36: 0.8258769 | EK36: 1.319177 | EL36: 2.8746291 | EM36: 4.5177393 | EN36: 3.2940248 | EO36: 2.081754 | EP36: 1.340722 | EQ36: 0.5813019 | ER36: 0.7858312 | ES36: 1.0426776 | ET36: 0.6458691 | EU36: 0.5731562 | EV36: -0.1052131 | EW36: 0.1264399 | EX36: 1.065188 | EY36: 0.8089987 | EZ36: 0.855922 | FA36: 0.5716965 | FB36: 0.7495741 | FC36: 0.2690223 | FD36: 0.1601335 | FE36: 0.3021216 | FF36: 0.5916037 | FG36: 0.3043367 | FH36: 0.0148677 | FI36: -0.4233753 | FJ36: -0.7017525 | FK36: -0.596969 | FL36: -0.8490442 | FM36: -0.9385836 | FN36: -1.1896181 | FO36: -0.9432031 | FP36: -0.7885692 | FQ36: -0.9939892 | FR36: -0.8733194 | FS36: -0.7455525 | FT36: -0.6069647 | FU36: -0.2895138 | FV36: -0.6177254 | FW36: -0.4641332 | FX36: -0.1913791 | FY36: -0.2704749 | FZ36: -0.1807742 | GA36: 0.0800397 | GB36: 0.0224688 | GC36: 0.0039546 | GD36: 0.0471805 | GE36: 0.0979842 | GF36: -0.1525743 | GG36: -0.1999671 | GH36: -0.1936369 | GI36: -0.3633019 | GJ36: -0.3704303 | GK36: -0.5640436 | GL36: -0.5274464 | GM36: -0.4734972 | GN36: -0.5405496 | GO36: -0.7666407
A37: 16 | B37: 0.4120879121 | C37: 1.196140875 | D37: -2.546615708 | E37: 6.8388747 | F37: 0.6684775828 | G37: -0.9734026997 | H37: 3.2455256 | I37: 4.2547329 | J37: 1.6708195 | K37: 2.5839134 | M37: Simulation 28 | N37: 0 | O37: -0.4475973 | P37: -0.1881489 | Q37: -0.2841582 | R37: -1.6655437 | S37: -2.3191473 | T37: -0.7284206 | U37: 0.4183635 | V37: 0.4709038 | W37: -1.569055 | X37: 0.3172356 | Y37: -0.454564 | Z37: -3.9066254 | AA37: -4.446132 | AB37: -4.9405381 | AC37: -5.1893488 | AD37: -6.2914337 | AE37: -7.3045583 | AF37: -7.8152472 | AG37: -7.3086589 | AH37: -7.2750243 | AI37: -6.5910006 | AJ37: -6.4235806 | AK37: -7.7062029 | AL37: -8.3675891 | AM37: -8.3072088 | AN37: -8.4512674 | AO37: -8.1357903 | AP37: -8.7531258 | AQ37: -8.2527569 | AR37: -7.0130981 | AS37: -7.0421301 | AT37: -7.1626657 | AU37: -7.2810614 | AV37: -7.9697819 | AW37: -7.1563202 | AX37: -6.3284132 | AY37: -5.8964956 | AZ37: -4.954857 | BA37: -4.9393747 | BB37: -3.5468779 | BC37: -2.9620305 | BD37: -3.9845826 | BE37: -6.1751842 | BF37: -5.8895693 | BG37: -4.7582701 | BH37: -5.920069 | BI37: -6.1912789 | BJ37: -6.4772847 | BK37: -7.5435666 | BL37: -7.0052694 | BM37: -7.239129 | BN37: -7.8696561 | BO37: -7.8969602 | BP37: -8.6484548 | BQ37: -8.399756 | BR37: -7.9939395 | BS37: -8.1234089 | BT37: -7.8681513 | BU37: -7.9373944 | BV37: -8.0215567 | BW37: -8.2384036 | BX37: -8.2535876 | BY37: -8.6899937 | BZ37: -8.7996726 | CA37: -8.7675633 | CB37: -9.0188403 | CC37: -8.9145551 | CD37: -8.694508 | CE37: -8.9972075 | CF37: -8.8892947 | CG37: -8.8081528 | CH37: -8.7183983 | CI37: -8.764336 | CJ37: -9.1358224 | CK37: -8.8455706 | CL37: -8.9341226 | CM37: -8.9239473 | CN37: -8.9802348 | CO37: -9.037045 | CP37: -9.2070372 | CQ37: -9.0592241 | CR37: -9.0847296 | CS37: -9.2670734 | CT37: -9.0084123 | CU37: -8.670359 | CV37: -8.4322173 | CW37: -8.567378 | CX37: -8.3097207 | CY37: -8.5896127 | CZ37: -8.8119419 | DA37: -8.871673 | DB37: -8.9733925 | DC37: -9.059078 | DD37: -9.2653814 | DE37: -9.0005456 | DF37: -8.7061094 | DG37: -8.416554 | DH37: -8.4425961 | DI37: -8.2080926 | DJ37: -8.1460976 | DK37: -7.9148284 | DL37: -7.6243654 | DM37: -7.4160673 | DN37: -7.3719148 | DO37: -7.2092347 | DP37: -7.1445753 | DQ37: -7.0231435 | DR37: -6.9729061 | DS37: -6.8631588 | DT37: -6.717324 | DU37: -6.3529784 | DV37: -6.3960402 | DW37: -6.4991656 | DX37: -6.0897298 | DY37: -5.757893 | DZ37: -5.627119 | EA37: -5.5350212 | EB37: -5.1928411 | EC37: -5.1866354 | ED37: -5.1365666 | EE37: -4.9717961 | EF37: -4.7275696 | EG37: -4.4866097 | EH37: -4.5727615 | EI37: -4.5716355 | EJ37: -4.4496172 | EK37: -4.4376211 | EL37: -4.1279068 | EM37: -3.7215394 | EN37: -3.8948004 | EO37: -3.6530647 | EP37: -3.5827188 | EQ37: -3.5072251 | ER37: -3.33568 | ES37: -3.0169359 | ET37: -2.6708546 | EU37: -2.6285657 | EV37: -2.6657061 | EW37: -2.6226968 | EX37: -2.4301384 | EY37: -2.3562057 | EZ37: -2.2631813 | FA37: -2.3106466 | FB37: -2.327487 | FC37: -1.8763689 | FD37: -1.8403683 | FE37: -1.6841308 | FF37: -1.5030158 | FG37: -1.6546439 | FH37: -1.7173821 | FI37: -1.605922 | FJ37: -1.5247443 | FK37: -1.587609 | FL37: -1.3179639 | FM37: -1.0786568 | FN37: -1.1283757 | FO37: -1.2740885 | FP37: -1.2273715 | FQ37: -1.4218711 | FR37: -1.3578346 | FS37: -1.393841 | FT37: -1.3779477 | FU37: -1.397026 | FV37: -1.1826345 | FW37: -0.9608815 | FX37: -0.5603851 | FY37: -0.4689922 | FZ37: -0.6347508 | GA37: -0.4434871 | GB37: -0.3324949 | GC37: -0.3056937 | GD37: -0.1449895 | GE37: 0.0211261 | GF37: 0.0627951 | GG37: 0.1611182 | GH37: 0.4337014 | GI37: 0.6900997 | GJ37: 0.6792478 | GK37: 0.7289244 | GL37: 0.6584967 | GM37: 0.8845316 | GN37: 0.8052399 | GO37: 0.9328692
A38: 17 | B38: 0.4395604396 | C38: 1.220716599 | D38: -2.650511005 | E38: 6.8556959 | F38: 0.5586334415 | G38: -0.7048706142 | H38: 2.5488688 | I38: 3.4850815 | J38: 3.9600188 | K38: -0.4749373 | M38: Simulation 29 | N38: 0 | O38: -0.2329682 | P38: -1.1401961 | Q38: -1.2725232 | R38: -0.662621 | S38: 0.0553741 | T38: -1.594655 | U38: -1.8663489 | V38: -1.8266991 | W38: 0.7371264 | X38: -1.7143023 | Y38: 0.9277229 | Z38: 0.2189676 | AA38: -0.9568331 | AB38: -3.4465642 | AC38: -3.9461229 | AD38: -4.4183507 | AE38: -3.8006302 | AF38: -3.7891984 | AG38: -5.2751137 | AH38: -4.5583558 | AI38: -4.099965 | AJ38: -4.0198559 | AK38: -3.869563 | AL38: -4.2112104 | AM38: -4.6284028 | AN38: -6.2223655 | AO38: -6.4302486 | AP38: -6.045282 | AQ38: -6.1286303 | AR38: -6.7217451 | AS38: -6.9302066 | AT38: -7.4955599 | AU38: -7.7012898 | AV38: -8.3069936 | AW38: -8.4864382 | AX38: -9.2334252 | AY38: -9.6559299 | AZ38: -8.8466834 | BA38: -8.5040905 | BB38: -8.3662364 | BC38: -7.4524972 | BD38: -7.8070321 | BE38: -7.7550383 | BF38: -7.3837876 | BG38: -7.2992609 | BH38: -7.222421 | BI38: -6.9447937 | BJ38: -6.9780819 | BK38: -7.1555985 | BL38: -7.6392364 | BM38: -7.7573916 | BN38: -7.401085 | BO38: -7.152533 | BP38: -7.5250735 | BQ38: -7.512756 | BR38: -6.5837372 | BS38: -7.0503179 | BT38: -6.697058 | BU38: -7.0769226 | BV38: -7.722671 | BW38: -7.4509315 | BX38: -7.4644437 | BY38: -7.4395958 | BZ38: -7.7017072 | CA38: -7.601916 | CB38: -7.9029083 | CC38: -8.1362477 | CD38: -8.2229204 | CE38: -8.1007556 | CF38: -8.0709043 | CG38: -7.9007535 | CH38: -7.8750675 | CI38: -7.6645883 | CJ38: -7.7149022 | CK38: -7.7590798 | CL38: -7.3902727 | CM38: -7.9598465 | CN38: -7.7026731 | CO38: -7.8050949 | CP38: -7.6264047 | CQ38: -7.6332291 | CR38: -7.4051594 | CS38: -7.1262753 | CT38: -7.6078714 | CU38: -7.6447545 | CV38: -7.2173473 | CW38: -6.8508367 | CX38: -6.469434 | CY38: -6.6674821 | CZ38: -6.7467234 | DA38: -6.628235 | DB38: -6.7857497 | DC38: -6.1207051 | DD38: -6.3483023 | DE38: -6.451353 | DF38: -6.3143046 | DG38: -6.2813411 | DH38: -5.9968694 | DI38: -5.7329532 | DJ38: -5.4747328 | DK38: -5.2450599 | DL38: -5.2809683 | DM38: -5.4250576 | DN38: -5.6708159 | DO38: -5.6511582 | DP38: -5.3906232 | DQ38: -5.2743122 | DR38: -5.0012313 | DS38: -4.8667075 | DT38: -5.1083597 | DU38: -4.3321951 | DV38: -4.2937567 | DW38: -4.0271441 | DX38: -4.0154781 | DY38: -3.967966 | DZ38: -4.0240299 | EA38: -3.9095562 | EB38: -3.4223642 | EC38: -3.5172421 | ED38: -3.1664851 | EE38: -3.1857497 | EF38: -2.9940356 | EG38: -2.8054993 | EH38: -2.5382874 | EI38: -2.236493 | EJ38: -2.3442035 | EK38: -2.4449196 | EL38: -2.3242053 | EM38: -1.6483037 | EN38: -1.6616328 | EO38: -1.6387479 | EP38: -1.803303 | EQ38: -2.0072768 | ER38: -1.8817819 | ES38: -1.3151224 | ET38: -0.9792403 | EU38: -1.0574916 | EV38: -0.6592924 | EW38: -0.7873195 | EX38: -0.3161477 | EY38: -0.2473481 | EZ38: 0.0169068 | FA38: 0.222069 | FB38: 0.5010373 | FC38: 0.501323 | FD38: 0.6567983 | FE38: 0.9669594 | FF38: 1.7196555 | FG38: 1.3003859 | FH38: 1.0991924 | FI38: 0.9026265 | FJ38: 1.102724 | FK38: 1.0212609 | FL38: 1.1073066 | FM38: 0.9101967 | FN38: 1.1483815 | FO38: 0.9567219 | FP38: 0.6781198 | FQ38: 0.5557832 | FR38: 0.5365482 | FS38: 0.507701 | FT38: 0.3275927 | FU38: 0.1246274 | FV38: -0.0892028 | FW38: 0.2988243 | FX38: 0.7879028 | FY38: 0.4146523 | FZ38: 0.7764142 | GA38: 0.6180034 | GB38: 0.3379079 | GC38: 0.594276 | GD38: 0.6325977 | GE38: 0.7583261 | GF38: 0.788425 | GG38: 0.9791067 | GH38: 0.7914902 | GI38: 0.5859091 | GJ38: 1.0281994 | GK38: 1.0837599 | GL38: 0.9622514 | GM38: 1.0962794 | GN38: 1.1062932 | GO38: 1.0253963
A39: 18 | B39: 0.467032967 | C39: 1.203356907 | D39: -2.751722493 | E39: 6.6334618 | F39: 0.6533386184 | G39: -0.9181469712 | H39: 3.2435782 | I39: 6.2401144 | J39: 3.9600188 | K39: 2.2800956 | M39: Simulation 30 | N39: 0 | O39: -0.0786295 | P39: 0.4920057 | Q39: 0.187525 | R39: 0.144734 | S39: 1.7402353 | T39: 0.6992488 | U39: 0.7129377 | V39: 1.650849 | W39: 0.8955121 | X39: 0.6454132 | Y39: 2.3392934 | Z39: 2.874707 | AA39: 2.291366 | AB39: 2.4114169 | AC39: 3.3028197 | AD39: 4.2411214 | AE39: 3.5845773 | AF39: 0.9196499 | AG39: 2.7747777 | AH39: 0.9867971 | AI39: 0.0245114 | AJ39: -0.2426992 | AK39: 1.1009261 | AL39: 1.5970224 | AM39: 1.2581504 | AN39: 2.4922413 | AO39: 1.6154511 | AP39: 1.9913647 | AQ39: 0.6455441 | AR39: 2.1271528 | AS39: 1.6723037 | AT39: 0.9414406 | AU39: 2.3510192 | AV39: 3.1909751 | AW39: 2.4569328 | AX39: 3.3292114 | AY39: 4.0458813 | AZ39: 3.0414368 | BA39: 4.6251113 | BB39: 5.6428215 | BC39: 5.492216 | BD39: 3.6440804 | BE39: 3.1005953 | BF39: 4.9178223 | BG39: 2.3391623 | BH39: 4.5270165 | BI39: 5.1916657 | BJ39: 4.9856825 | BK39: 4.4831449 | BL39: 3.7605641 | BM39: 5.9846683 | BN39: 3.928638 | BO39: 6.8561225 | BP39: 3.6245572 | BQ39: 3.2570213 | BR39: 4.5629996 | BS39: 4.8735964 | BT39: 3.7274134 | BU39: 5.5262515 | BV39: 4.9840482 | BW39: 2.5665915 | BX39: 1.8250422 | BY39: 2.7806111 | BZ39: 3.3557831 | CA39: 3.0095407 | CB39: 4.8881032 | CC39: 5.0065312 | CD39: 3.7257399 | CE39: 5.834128 | CF39: 3.6378088 | CG39: 3.8092832 | CH39: 5.3748261 | CI39: 7.6780267 | CJ39: 6.8267122 | CK39: 8.2262048 | CL39: 7.2415355 | CM39: 10.56253 | CN39: 12.0940337 | CO39: 13.5026063 | CP39: 11.9227557 | CQ39: 10.5559114 | CR39: 11.2991429 | CS39: 12.7554751 | CT39: 11.6279107 | CU39: 10.8447882 | CV39: 8.8833949 | CW39: 7.1538422 | CX39: 5.7622098 | CY39: 6.5696414 | CZ39: 6.1926402 | DA39: 5.5381476 | DB39: 3.2235793 | DC39: 4.96954 | DD39: 3.0548597 | DE39: 2.5437147 | DF39: 1.6192504 | DG39: 2.9119146 | DH39: 3.7231611 | DI39: 5.0006176 | DJ39: 3.4281116 | DK39: 4.351725 | DL39: 5.4699042 | DM39: 7.0775683 | DN39: 8.2354353 | DO39: 7.7046629 | DP39: 8.458383 | DQ39: 8.7477828 | DR39: 9.3596835 | DS39: 8.4630518 | DT39: 5.7433428 | DU39: 6.1113692 | DV39: 5.5742648 | DW39: 3.4333627 | DX39: 2.4199473 | DY39: 1.2428534 | DZ39: 0.2039281 | EA39: 1.0383055 | EB39: 1.1074555 | EC39: 0.7422092 | ED39: -0.4196235 | EE39: 0.7254871 | EF39: -1.0421197 | EG39: -0.8573368 | EH39: -1.0851882 | EI39: -1.0978935 | EJ39: -0.5597275 | EK39: -1.1683629 | EL39: -1.3923364 | EM39: -0.624218 | EN39: -0.5429424 | EO39: -1.3686876 | EP39: -1.0118497 | EQ39: -1.8072606 | ER39: -2.0016656 | ES39: -2.6721784 | ET39: -1.9238931 | EU39: -1.6652496 | EV39: -1.3833582 | EW39: -1.5774819 | EX39: -1.1398978 | EY39: -1.7759806 | EZ39: -2.5965605 | FA39: -2.9191031 | FB39: -3.7723605 | FC39: -3.8543108 | FD39: -3.7360289 | FE39: -3.7632868 | FF39: -3.2992057 | FG39: -3.1997834 | FH39: -3.5821439 | FI39: -3.4073936 | FJ39: -3.2692418 | FK39: -3.3310827 | FL39: -3.3667272 | FM39: -3.5808154 | FN39: -3.5525869 | FO39: -3.5330808 | FP39: -3.584384 | FQ39: -3.6022678 | FR39: -3.7556309 | FS39: -3.6865021 | FT39: -3.5049933 | FU39: -3.5919943 | FV39: -3.7480825 | FW39: -3.4975213 | FX39: -2.881802 | FY39: -2.8650343 | FZ39: -2.815294 | GA39: -2.8010587 | GB39: -2.821696 | GC39: -2.880784 | GD39: -2.9213099 | GE39: -2.8873092 | GF39: -2.8601413 | GG39: -2.7690009 | GH39: -2.7376743 | GI39: -2.8175192 | GJ39: -2.7439268 | GK39: -2.7324049 | GL39: -2.6757149 | GM39: -2.6730407 | GN39: -2.6853774 | GO39: -2.6800733
A40: 19 | B40: 0.4945054945 | C40: 1.18879909 | D40: -2.838399562 | E40: 7.1918238 | F40: 0.5275433846 | G40: -0.7473494503 | H40: 2.5916834 | I40: 7.6804907 | J40: 3.4850815 | K40: 4.1954092 | M40: Simulation 31 | N40: 0 | O40: -0.0631441 | P40: 0.6611588 | Q40: -0.232355 | R40: 1.2081959 | S40: -1.208863 | T40: -2.1422168 | U40: -2.3414973 | V40: -4.6741335 | W40: -5.1928703 | X40: -5.8576633 | Y40: -6.4869056 | Z40: -6.2614337 | AA40: -6.1603019 | AB40: -5.2877506 | AC40: -3.7750147 | AD40: -3.8372629 | AE40: -4.4546267 | AF40: -5.4142772 | AG40: -4.6116753 | AH40: -2.6489017 | AI40: -2.9551956 | AJ40: -2.2634966 | AK40: -1.3678245 | AL40: -2.6582879 | AM40: -3.7532657 | AN40: -4.5517665 | AO40: -5.3816644 | AP40: -3.9137777 | AQ40: -3.8066913 | AR40: -4.8745305 | AS40: -5.8525595 | AT40: -6.0021234 | AU40: -6.087808 | AV40: -6.3546389 | AW40: -6.3812376 | AX40: -7.2662649 | AY40: -8.4974783 | AZ40: -7.5753682 | BA40: -6.9325869 | BB40: -7.5792322 | BC40: -8.1799354 | BD40: -7.8579959 | BE40: -7.6700418 | BF40: -7.6676613 | BG40: -7.6793766 | BH40: -8.6301846 | BI40: -8.6819199 | BJ40: -8.7940881 | BK40: -8.5185313 | BL40: -8.4380043 | BM40: -9.4319051 | BN40: -9.413018 | BO40: -9.6988617 | BP40: -9.5195952 | BQ40: -9.9378295 | BR40: -8.3450593 | BS40: -8.3090166 | BT40: -8.6407915 | BU40: -8.971349 | BV40: -9.4396324 | BW40: -9.9985058 | BX40: -10.1475388 | BY40: -10.4813543 | BZ40: -10.5245721 | CA40: -10.5538121 | CB40: -10.8961869 | CC40: -10.8814075 | CD40: -11.2334615 | CE40: -11.0872236 | CF40: -11.0451286 | CG40: -11.0035717 | CH40: -11.2304785 | CI40: -11.0722472 | CJ40: -10.7886724 | CK40: -10.1317404 | CL40: -10.1000093 | CM40: -9.8873993 | CN40: -10.0759266 | CO40: -10.2741441 | CP40: -10.5215768 | CQ40: -10.6455292 | CR40: -10.6042909 | CS40: -10.2375955 | CT40: -10.2460676 | CU40: -10.4697585 | CV40: -10.2615242 | CW40: -10.1074102 | CX40: -10.1654237 | CY40: -9.9453082 | CZ40: -9.9908858 | DA40: -10.248843 | DB40: -10.3760403 | DC40: -10.1342048 | DD40: -10.2193968 | DE40: -9.8995752 | DF40: -10.2601862 | DG40: -10.2638009 | DH40: -10.1959697 | DI40: -10.2210103 | DJ40: -10.2856275 | DK40: -10.1535352 | DL40: -10.0603624 | DM40: -10.1683666 | DN40: -10.0080516 | DO40: -9.8004403 | DP40: -9.5513294 | DQ40: -9.6166191 | DR40: -9.4838642 | DS40: -9.1467726 | DT40: -9.199887 | DU40: -8.2150042 | DV40: -8.2328159 | DW40: -8.2525926 | DX40: -8.343534 | DY40: -8.2141186 | DZ40: -7.8527786 | EA40: -7.895782 | EB40: -8.0542032 | EC40: -8.1076223 | ED40: -7.9287937 | EE40: -7.8692618 | EF40: -7.8524744 | EG40: -7.7605306 | EH40: -7.655783 | EI40: -7.6425815 | EJ40: -7.8270692 | EK40: -7.8278224 | EL40: -7.8966997 | EM40: -7.0003703 | EN40: -7.2771022 | EO40: -7.4300144 | EP40: -7.383313 | EQ40: -7.2190135 | ER40: -7.120383 | ES40: -6.9158137 | ET40: -6.5761756 | EU40: -6.3147813 | EV40: -6.0001622 | EW40: -6.0184492 | EX40: -6.0568864 | EY40: -5.886731 | EZ40: -5.7192701 | FA40: -5.6415961 | FB40: -5.6187864 | FC40: -5.6037817 | FD40: -5.576778 | FE40: -5.1404706 | FF40: -4.64361 | FG40: -4.7705478 | FH40: -4.8653517 | FI40: -4.9279522 | FJ40: -5.0468126 | FK40: -5.0274279 | FL40: -5.0708277 | FM40: -5.1245737 | FN40: -5.0858086 | FO40: -4.9473343 | FP40: -5.0637854 | FQ40: -4.9811243 | FR40: -4.8918602 | FS40: -4.8878985 | FT40: -4.834956 | FU40: -4.9544619 | FV40: -4.8681238 | FW40: -4.655861 | FX40: -4.0842419 | FY40: -4.2118519 | FZ40: -4.1801731 | GA40: -4.3293298 | GB40: -4.2977616 | GC40: -4.3263247 | GD40: -4.1971764 | GE40: -4.0748807 | GF40: -4.112581 | GG40: -3.9758094 | GH40: -3.943415 | GI40: -3.9567421 | GJ40: -4.1079968 | GK40: -4.0570593 | GL40: -4.0249104 | GM40: -3.9793184 | GN40: -4.0094293 | GO40: -4.0005664
A41: 20 | B41: 0.521978022 | C41: 1.465832598 | D41: -2.459953566 | E41: 7.7429624 | F41: 1.004715483 | G41: -0.5690420449 | H41: 3.791766 | I41: 8.0918371 | J41: 3.4850815 | K41: 4.6067556 | M41: Simulation 32 | N41: 0 | O41: 0.4272269 | P41: 0.5549445 | Q41: 0.3164483 | R41: 0.8224482 | S41: 1.113813 | T41: 0.5374587 | U41: 1.3913857 | V41: 1.3506773 | W41: 1.6285242 | X41: 1.6334918 | Y41: 0.3705127 | Z41: 0.156452 | AA41: -0.2024988 | AB41: -2.1983503 | AC41: -2.9258212 | AD41: -4.0669267 | AE41: -4.3167308 | AF41: -3.4475238 | AG41: -3.183942 | AH41: -3.8215399 | AI41: -3.7275497 | AJ41: -1.9236151 | AK41: -1.64286 | AL41: -1.2929557 | AM41: -3.3393491 | AN41: -4.951859 | AO41: -5.4395823 | AP41: -6.0281161 | AQ41: -6.4481738 | AR41: -6.8985148 | AS41: -6.6626179 | AT41: -6.3098473 | AU41: -6.7597538 | AV41: -8.4140828 | AW41: -7.843821 | AX41: -8.8858786 | AY41: -8.0100641 | AZ41: -7.263527 | BA41: -8.0822291 | BB41: -7.3367235 | BC41: -7.5595003 | BD41: -6.7231997 | BE41: -8.1397565 | BF41: -9.4802138 | BG41: -9.2012336 | BH41: -8.6218959 | BI41: -8.5563972 | BJ41: -8.8238951 | BK41: -8.706187 | BL41: -8.1920123 | BM41: -8.3699563 | BN41: -9.40918 | BO41: -9.9355692 | BP41: -9.38867 | BQ41: -8.9378335 | BR41: -8.3585417 | BS41: -8.052899 | BT41: -8.524427 | BU41: -8.2656115 | BV41: -8.6942134 | BW41: -9.2934443 | BX41: -9.6316348 | BY41: -10.3958295 | BZ41: -10.1656754 | CA41: -10.1009383 | CB41: -9.6368062 | CC41: -9.3414363 | CD41: -9.6685537 | CE41: -9.5592317 | CF41: -8.9236956 | CG41: -8.3405645 | CH41: -7.7255945 | CI41: -7.4798462 | CJ41: -7.8511655 | CK41: -6.7619216 | CL41: -6.1699939 | CM41: -6.9467593 | CN41: -6.7370716 | CO41: -6.230125 | CP41: -6.1173052 | CQ41: -6.0341571 | CR41: -5.4900111 | CS41: -5.831217 | CT41: -6.1175931 | CU41: -6.4336391 | CV41: -7.3263239 | CW41: -7.1588491 | CX41: -7.3744036 | CY41: -7.3692049 | CZ41: -7.2051471 | DA41: -7.6277928 | DB41: -7.8411985 | DC41: -7.0282011 | DD41: -7.3769433 | DE41: -6.8131831 | DF41: -6.7903985 | DG41: -6.4128396 | DH41: -6.5016981 | DI41: -6.3614729 | DJ41: -6.2323393 | DK41: -6.6573177 | DL41: -6.3740983 | DM41: -6.249899 | DN41: -6.0931432 | DO41: -6.1488406 | DP41: -6.1181067 | DQ41: -6.2679202 | DR41: -6.6049537 | DS41: -6.5039256 | DT41: -6.6853652 | DU41: -5.9114336 | DV41: -5.2587936 | DW41: -5.2737133 | DX41: -4.9078814 | DY41: -4.637746 | DZ41: -4.5263077 | EA41: -4.2580219 | EB41: -4.160563 | EC41: -4.2102646 | ED41: -4.3231038 | EE41: -4.2704962 | EF41: -4.5927466 | EG41: -4.3593764 | EH41: -4.5223855 | EI41: -4.5596342 | EJ41: -4.741967 | EK41: -4.5808261 | EL41: -4.6287622 | EM41: -4.0963977 | EN41: -3.8720294 | EO41: -3.8990687 | EP41: -3.8455621 | EQ41: -3.7613488 | ER41: -3.6594562 | ES41: -3.4557589 | ET41: -3.384904 | EU41: -3.3935551 | EV41: -3.1087968 | EW41: -3.14081 | EX41: -3.1274759 | EY41: -3.0409442 | EZ41: -3.2418936 | FA41: -3.3066761 | FB41: -3.2479994 | FC41: -3.2203308 | FD41: -3.1414982 | FE41: -2.9561597 | FF41: -2.3667496 | FG41: -2.3384311 | FH41: -2.3717133 | FI41: -2.6121512 | FJ41: -2.5757726 | FK41: -2.5608277 | FL41: -2.6134424 | FM41: -2.4145491 | FN41: -2.5106755 | FO41: -2.5885879 | FP41: -2.8036755 | FQ41: -2.872093 | FR41: -3.0122732 | FS41: -3.1013173 | FT41: -3.0254073 | FU41: -3.0771187 | FV41: -3.305602 | FW41: -3.3106909 | FX41: -2.8525735 | FY41: -2.8359305 | FZ41: -2.7931409 | GA41: -2.6827235 | GB41: -2.6914574 | GC41: -2.7235204 | GD41: -2.7005054 | GE41: -2.6882879 | GF41: -2.518825 | GG41: -2.5572297 | GH41: -2.4975738 | GI41: -2.2582624 | GJ41: -1.9060604 | GK41: -1.8225355 | GL41: -1.7780216 | GM41: -1.8455076 | GN41: -1.7382321 | GO41: -1.8434155
A42: 21 | B42: 0.5494505495 | C42: 1.497036712 | D42: -2.528082071 | E42: 7.8691324 | F42: 0.962359172 | G42: -0.3438040596 | H42: 3.2466709 | I42: 6.0158078 | J42: 7.6804907 | K42: -1.6646829 | M42: Simulation 33 | N42: 0 | O42: 0.7679902 | P42: 1.4779954 | Q42: 3.2409234 | R42: 2.5176365 | S42: 3.1892736 | T42: 1.6200453 | U42: 2.3729883 | V42: 2.323805 | W42: 1.6498487 | X42: 0.6041914 | Y42: 0.8842905 | Z42: -0.0445607 | AA42: -0.9219427 | AB42: -1.1842204 | AC42: -0.4200748 | AD42: -2.353198 | AE42: -1.6376414 | AF42: -1.7842362 | AG42: -0.1010316 | AH42: 2.5342979 | AI42: 3.9543943 | AJ42: 4.0801366 | AK42: 2.2744831 | AL42: 3.0831649 | AM42: 1.550686 | AN42: 0.5543502 | AO42: -1.6551029 | AP42: -3.5962227 | AQ42: -2.7368455 | AR42: -3.045816 | AS42: -3.5983089 | AT42: -3.9101029 | AU42: -4.2504418 | AV42: -4.6369575 | AW42: -5.4439965 | AX42: -5.7503871 | AY42: -5.579604 | AZ42: -6.3601156 | BA42: -8.3217697 | BB42: -9.0943844 | BC42: -9.7797951 | BD42: -10.5194249 | BE42: -10.0534911 | BF42: -10.1977552 | BG42: -10.7525362 | BH42: -10.4313189 | BI42: -10.718314 | BJ42: -11.3839172 | BK42: -11.3979447 | BL42: -11.7068831 | BM42: -11.557638 | BN42: -11.3980849 | BO42: -11.2876057 | BP42: -11.5855964 | BQ42: -11.1732436 | BR42: -9.9609389 | BS42: -9.7412588 | BT42: -9.5768575 | BU42: -9.9501537 | BV42: -10.0563806 | BW42: -9.89857 | BX42: -10.0347125 | BY42: -9.725574 | BZ42: -9.3121274 | CA42: -8.9063491 | CB42: -9.13365 | CC42: -8.6020564 | CD42: -9.0643383 | CE42: -9.0369771 | CF42: -8.7731112 | CG42: -9.1019475 | CH42: -9.0765497 | CI42: -9.1545166 | CJ42: -8.7503472 | CK42: -8.1737452 | CL42: -8.315317 | CM42: -8.3932421 | CN42: -8.5771186 | CO42: -8.6888378 | CP42: -8.6128463 | CQ42: -8.6133679 | CR42: -8.6563383 | CS42: -8.8272091 | CT42: -8.2518668 | CU42: -8.0771893 | CV42: -8.0246465 | CW42: -7.5661041 | CX42: -7.4184525 | CY42: -7.3066925 | CZ42: -6.7226062 | DA42: -6.4837686 | DB42: -6.1693989 | DC42: -4.9867136 | DD42: -4.9574703 | DE42: -5.0199575 | DF42: -4.0660519 | DG42: -4.3896889 | DH42: -5.0599607 | DI42: -5.4483889 | DJ42: -5.3091431 | DK42: -5.7859748 | DL42: -5.5302197 | DM42: -5.3098091 | DN42: -6.0405987 | DO42: -5.2813617 | DP42: -5.222318 | DQ42: -5.5207719 | DR42: -5.7794852 | DS42: -6.5444285 | DT42: -6.4337657 | DU42: -5.4714554 | DV42: -5.1320993 | DW42: -4.4730902 | DX42: -4.5783887 | DY42: -4.8599849 | DZ42: -5.2163054 | EA42: -5.2694286 | EB42: -5.4304131 | EC42: -5.4924885 | ED42: -5.2815852 | EE42: -5.2623462 | EF42: -5.2160401 | EG42: -5.477569 | EH42: -5.3383269 | EI42: -5.3093369 | EJ42: -4.9924832 | EK42: -5.0018501 | EL42: -4.8314515 | EM42: -3.2132082 | EN42: -3.4579307 | EO42: -3.4066438 | EP42: -3.6568691 | EQ42: -3.1306727 | ER42: -3.4037394 | ES42: -3.6283458 | ET42: -3.2137383 | EU42: -3.3130854 | EV42: -3.17908 | EW42: -3.4768236 | EX42: -3.6046584 | EY42: -3.4213921 | EZ42: -3.2805094 | FA42: -3.1222259 | FB42: -3.222887 | FC42: -3.3769997 | FD42: -3.5824823 | FE42: -3.2354202 | FF42: -2.7092686 | FG42: -2.7561588 | FH42: -2.6637354 | FI42: -2.7714324 | FJ42: -2.7924619 | FK42: -2.694042 | FL42: -2.7183952 | FM42: -2.7364699 | FN42: -2.895918 | FO42: -2.7747225 | FP42: -2.607368 | FQ42: -2.8659574 | FR42: -2.9607471 | FS42: -3.0275684 | FT42: -2.9262175 | FU42: -2.7793004 | FV42: -2.8424508 | FW42: -2.3504681 | FX42: -1.4941935 | FY42: -1.4003381 | FZ42: -1.1386605 | GA42: -0.9461787 | GB42: -0.8340319 | GC42: -0.9197654 | GD42: -0.9593987 | GE42: -0.9164928 | GF42: -0.9422149 | GG42: -0.7840232 | GH42: -0.6847155 | GI42: -0.6610777 | GJ42: -0.9120496 | GK42: -0.9151078 | GL42: -0.8495702 | GM42: -0.7290361 | GN42: -0.6209011 | GO42: -0.7128921
A43: 22 | B43: 0.5769230769 | C43: 1.501480507 | D43: -2.63129516 | E43: 7.7535494 | F43: 1.044739545 | G43: -0.5249537258 | H43: 3.9043548 | I43: 6.3198375 | J43: 7.6804907 | K43: -1.3606532 | M43: Simulation 34 | N43: 0 | O43: 0.4208253 | P43: -1.5170066 | Q43: 1.0073413 | R43: 1.6219333 | S43: 1.4748092 | T43: -0.0763053 | U43: -0.2689664 | V43: -2.5001877 | W43: -4.0051636 | X43: -4.5696024 | Y43: -4.5124754 | Z43: -4.8020123 | AA43: -5.4386325 | AB43: -5.0889757 | AC43: -5.333903 | AD43: -4.094485 | AE43: -3.3957112 | AF43: -4.4781092 | AG43: -4.9302359 | AH43: -5.1974701 | AI43: -5.8326162 | AJ43: -5.9153658 | AK43: -5.6308351 | AL43: -6.0788475 | AM43: -4.9948553 | AN43: -4.8166341 | AO43: -3.7257574 | AP43: -5.7298181 | AQ43: -6.2828728 | AR43: -4.8231772 | AS43: -4.8233595 | AT43: -3.4337831 | AU43: -5.8095665 | AV43: -6.9538775 | AW43: -7.5539702 | AX43: -8.3992846 | AY43: -10.2622028 | AZ43: -9.0204667 | BA43: -8.0336517 | BB43: -9.0035563 | BC43: -8.813662 | BD43: -8.2938825 | BE43: -8.2661249 | BF43: -8.2171363 | BG43: -7.2270365 | BH43: -6.4330471 | BI43: -7.0125213 | BJ43: -7.7798909 | BK43: -7.028953 | BL43: -6.3765384 | BM43: -5.3972874 | BN43: -5.923236 | BO43: -6.3737169 | BP43: -6.7959323 | BQ43: -7.4825544 | BR43: -6.3751789 | BS43: -6.6351658 | BT43: -6.6511079 | BU43: -6.7788961 | BV43: -6.9016174 | BW43: -5.8649012 | BX43: -4.9168958 | BY43: -5.2983155 | BZ43: -5.0247258 | CA43: -5.0797542 | CB43: -4.4782681 | CC43: -5.5849779 | CD43: -6.0528059 | CE43: -7.6567773 | CF43: -8.2789907 | CG43: -8.7197922 | CH43: -9.0956275 | CI43: -9.510021 | CJ43: -9.4378221 | CK43: -9.1286106 | CL43: -9.1452751 | CM43: -9.6430813 | CN43: -9.325228 | CO43: -9.5323414 | CP43: -9.3977914 | CQ43: -9.6507331 | CR43: -9.469631 | CS43: -9.237817 | CT43: -8.9628723 | CU43: -8.7735344 | CV43: -8.494887 | CW43: -8.7908231 | CX43: -8.8131932 | CY43: -8.7471729 | CZ43: -8.6434451 | DA43: -8.7338511 | DB43: -8.8444723 | DC43: -8.1628436 | DD43: -8.3373194 | DE43: -7.9069502 | DF43: -7.7289282 | DG43: -7.9461558 | DH43: -7.7832337 | DI43: -8.0578033 | DJ43: -8.071789 | DK43: -7.7814215 | DL43: -7.5900202 | DM43: -7.6477178 | DN43: -7.6736076 | DO43: -7.7383579 | DP43: -7.5815167 | DQ43: -7.5179243 | DR43: -7.2745104 | DS43: -7.1020808 | DT43: -7.0339662 | DU43: -6.5211044 | DV43: -6.614961 | DW43: -6.6414882 | DX43: -6.448002 | DY43: -6.4054669 | DZ43: -6.3506761 | EA43: -6.1431111 | EB43: -5.878106 | EC43: -5.8284147 | ED43: -5.5098105 | EE43: -5.6491987 | EF43: -5.4660687 | EG43: -5.2948671 | EH43: -5.2854519 | EI43: -5.1893112 | EJ43: -5.4157593 | EK43: -5.4256573 | EL43: -5.4870924 | EM43: -5.1179982 | EN43: -5.1540229 | EO43: -5.1568852 | EP43: -5.2264922 | EQ43: -5.0624571 | ER43: -4.998057 | ES43: -4.8250263 | ET43: -4.4689331 | EU43: -4.2884568 | EV43: -4.0855252 | EW43: -4.0127412 | EX43: -3.714819 | EY43: -3.5060338 | EZ43: -3.3732715 | FA43: -3.4127948 | FB43: -3.2330353 | FC43: -3.0666585 | FD43: -2.9188278 | FE43: -2.3643403 | FF43: -2.0613184 | FG43: -2.1759085 | FH43: -2.1851773 | FI43: -2.1348932 | FJ43: -1.917192 | FK43: -1.7804283 | FL43: -1.780119 | FM43: -1.6422925 | FN43: -1.5494416 | FO43: -1.5000237 | FP43: -1.7253996 | FQ43: -1.6739918 | FR43: -1.8891603 | FS43: -1.708407 | FT43: -1.7684511 | FU43: -2.0324668 | FV43: -1.9749402 | FW43: -1.6576328 | FX43: -1.0305871 | FY43: -1.1033497 | FZ43: -1.0100586 | GA43: -0.8644565 | GB43: -0.7020467 | GC43: -0.3818897 | GD43: -0.3276669 | GE43: -0.4086985 | GF43: -0.3551007 | GG43: -0.3753466 | GH43: -0.3680059 | GI43: -0.3171437 | GJ43: -0.3947831 | GK43: -0.6033703 | GL43: -0.6751111 | GM43: -0.74685 | GN43: -0.7182659 | GO43: -0.6849356
A44: 23 | B44: 0.6043956044 | C44: 1.505198682 | D44: -2.688914608 | E44: 8.05338 | F44: 0.5495938583 | G44: -0.7022644252 | H44: 2.5543909 | I44: 4.7926175 | J44: 6.0158078 | K44: -1.2231903 | M44: Simulation 35 | N44: 0 | O44: -0.7559006 | P44: -2.0607593 | Q44: -2.1336617 | R44: -2.1165452 | S44: -3.9943121 | T44: -2.7684348 | U44: -3.1454439 | V44: -3.8133068 | W44: -5.3683392 | X44: -5.3709488 | Y44: -5.1232267 | Z44: -6.3012265 | AA44: -6.6294188 | AB44: -7.2696479 | AC44: -6.6090637 | AD44: -5.5629364 | AE44: -4.9169494 | AF44: -4.5593704 | AG44: -3.6219127 | AH44: -3.4292097 | AI44: -2.3987686 | AJ44: -3.6205503 | AK44: -4.9295081 | AL44: -6.0680645 | AM44: -6.9199247 | AN44: -7.3323138 | AO44: -7.1929453 | AP44: -6.9808885 | AQ44: -7.5864972 | AR44: -8.1981968 | AS44: -8.2388853 | AT44: -8.3399093 | AU44: -7.9589725 | AV44: -7.2926591 | AW44: -6.9022306 | AX44: -7.0813387 | AY44: -5.8162874 | AZ44: -5.1098985 | BA44: -5.7504002 | BB44: -6.316829 | BC44: -7.0467403 | BD44: -7.6857232 | BE44: -7.6574413 | BF44: -8.7873473 | BG44: -9.213365 | BH44: -9.5986678 | BI44: -9.0552922 | BJ44: -9.5004114 | BK44: -9.6515372 | BL44: -8.9721521 | BM44: -9.1252306 | BN44: -9.1781857 | BO44: -9.3207759 | BP44: -9.7404461 | BQ44: -9.812331 | BR44: -9.0097988 | BS44: -8.2207401 | BT44: -8.0812415 | BU44: -7.5001063 | BV44: -6.8584338 | BW44: -7.5010489 | BX44: -7.6758099 | BY44: -7.0324744 | BZ44: -6.6767064 | CA44: -6.1799103 | CB44: -6.4302173 | CC44: -7.0942257 | CD44: -6.7080221 | CE44: -6.7289516 | CF44: -6.8891411 | CG44: -6.9365017 | CH44: -7.183825 | CI44: -6.7162845 | CJ44: -7.0576164 | CK44: -7.1382118 | CL44: -7.5428368 | CM44: -7.8408914 | CN44: -7.7268402 | CO44: -7.9273586 | CP44: -7.9954486 | CQ44: -7.4043526 | CR44: -7.4497244 | CS44: -7.7082167 | CT44: -7.7269841 | CU44: -8.05133 | CV44: -8.115435 | CW44: -7.865514 | CX44: -7.9058072 | CY44: -7.909303 | CZ44: -7.9898079 | DA44: -7.8362757 | DB44: -7.7697378 | DC44: -7.244083 | DD44: -7.4620018 | DE44: -7.5619194 | DF44: -7.5655598 | DG44: -7.7589241 | DH44: -7.6980442 | DI44: -7.5825507 | DJ44: -7.3158211 | DK44: -7.1384052 | DL44: -7.008314 | DM44: -7.1983247 | DN44: -7.24204 | DO44: -7.4568583 | DP44: -7.4264205 | DQ44: -7.3440813 | DR44: -7.2274896 | DS44: -7.0317731 | DT44: -6.8786627 | DU44: -5.9986484 | DV44: -6.0548421 | DW44: -6.2091833 | DX44: -6.035666 | DY44: -5.8805317 | DZ44: -5.3381049 | EA44: -4.9546054 | EB44: -4.5727683 | EC44: -4.458527 | ED44: -4.356122 | EE44: -4.3151779 | EF44: -4.1357353 | EG44: -4.0127799 | EH44: -4.0226049 | EI44: -3.8362555 | EJ44: -3.9100052 | EK44: -3.7619233 | EL44: -3.5551869 | EM44: -2.9101279 | EN44: -3.2983251 | EO44: -3.4000998 | EP44: -3.4145402 | EQ44: -3.5677556 | ER44: -3.0601027 | ES44: -2.7877076 | ET44: -2.6640537 | EU44: -2.6249501 | EV44: -2.5141398 | EW44: -2.6449025 | EX44: -2.5589722 | EY44: -2.5574892 | EZ44: -2.2177739 | FA44: -2.2186572 | FB44: -2.0233385 | FC44: -1.9650243 | FD44: -1.9767717 | FE44: -1.7745983 | FF44: -1.2938295 | FG44: -1.4175096 | FH44: -1.3984123 | FI44: -1.292139 | FJ44: -1.4850034 | FK44: -1.5353213 | FL44: -1.4626044 | FM44: -1.4737006 | FN44: -1.3365803 | FO44: -1.1597907 | FP44: -0.9556021 | FQ44: -1.1461225 | FR44: -1.1003116 | FS44: -0.9299078 | FT44: -1.3390664 | FU44: -1.4253563 | FV44: -1.4692527 | FW44: -1.1646888 | FX44: -0.4004576 | FY44: -0.2074527 | FZ44: -0.4314407 | GA44: -0.675947 | GB44: -0.4755084 | GC44: -0.5861288 | GD44: -0.51192 | GE44: -0.5717918 | GF44: -0.5855138 | GG44: -0.2265658 | GH44: -0.2832097 | GI44: -0.264419 | GJ44: -0.2551024 | GK44: -0.2356361 | GL44: -0.3311982 | GM44: -0.4982078 | GN44: -0.5062891 | GO44: -0.4554801
A45: 24 | B45: 0.6318681319 | C45: 1.514340969 | D45: -2.839261741 | E45: 8.0987493 | F45: 0.6256848513 | G45: -0.919560264 | H45: 2.9736176 | I45: 3.553301 | J45: 6.0158078 | K45: -2.4625068 | M45: Simulation 36 | N45: 0 | O45: 0.0160756 | P45: 2.5509344 | Q45: 1.6883474 | R45: -0.2026272 | S45: -1.3410124 | T45: 1.9841104 | U45: 2.4289786 | V45: 2.9169495 | W45: 3.2651504 | X45: 3.6651481 | Y45: 2.2389766 | Z45: 1.9989545 | AA45: 0.6191481 | AB45: 1.9120928 | AC45: 1.9287195 | AD45: 3.195364 | AE45: 3.5665266 | AF45: 4.1063079 | AG45: 4.729185 | AH45: 5.2419071 | AI45: 5.4709455 | AJ45: 4.9065598 | AK45: 3.9868252 | AL45: 0.2202626 | AM45: -0.1781584 | AN45: -0.4408381 | AO45: 0.0868833 | AP45: -1.3991355 | AQ45: -4.6534763 | AR45: -4.9476674 | AS45: -5.8320691 | AT45: -7.5841 | AU45: -6.9071125 | AV45: -5.258232 | AW45: -7.0490361 | AX45: -6.9557284 | AY45: -6.1141003 | AZ45: -6.004729 | BA45: -5.8526618 | BB45: -5.699212 | BC45: -5.4952489 | BD45: -6.1923762 | BE45: -6.0372446 | BF45: -5.6789183 | BG45: -5.5766276 | BH45: -6.104733 | BI45: -6.3436308 | BJ45: -5.7902853 | BK45: -5.4421853 | BL45: -5.9432403 | BM45: -5.6591069 | BN45: -5.707644 | BO45: -5.5347549 | BP45: -5.111618 | BQ45: -6.323908 | BR45: -5.6974794 | BS45: -5.6312479 | BT45: -6.60503 | BU45: -6.6186668 | BV45: -6.5083619 | BW45: -7.0000599 | BX45: -7.7665598 | BY45: -7.0456089 | BZ45: -8.05948 | CA45: -7.3666397 | CB45: -7.6251467 | CC45: -8.1748495 | CD45: -7.4188582 | CE45: -6.6005073 | CF45: -6.9672466 | CG45: -7.25529 | CH45: -6.4092764 | CI45: -6.3417887 | CJ45: -5.1952849 | CK45: -4.6638702 | CL45: -4.3290042 | CM45: -4.7089884 | CN45: -4.2267544 | CO45: -3.8152836 | CP45: -4.1381184 | CQ45: -4.9904727 | CR45: -5.3777429 | CS45: -4.289341 | CT45: -4.4911026 | CU45: -4.8426727 | CV45: -5.4183649 | CW45: -4.7800509 | CX45: -4.157418 | CY45: -4.7093708 | CZ45: -4.8093179 | DA45: -4.9501795 | DB45: -5.3361389 | DC45: -4.4523679 | DD45: -3.3772531 | DE45: -3.5896679 | DF45: -3.4301177 | DG45: -4.2778338 | DH45: -4.4868213 | DI45: -4.8197391 | DJ45: -5.6156432 | DK45: -5.4083718 | DL45: -4.5521822 | DM45: -4.6107376 | DN45: -5.0471806 | DO45: -4.7953434 | DP45: -4.2446505 | DQ45: -4.6741759 | DR45: -4.8834585 | DS45: -5.637364 | DT45: -5.5941037 | DU45: -4.5779056 | DV45: -4.2526508 | DW45: -3.7898425 | DX45: -4.2727878 | DY45: -4.6827111 | DZ45: -4.8129381 | EA45: -4.7970222 | EB45: -4.5874901 | EC45: -4.7094939 | ED45: -4.605647 | EE45: -5.0002783 | EF45: -5.2101827 | EG45: -5.1768986 | EH45: -5.0883832 | EI45: -4.8451888 | EJ45: -4.8439188 | EK45: -4.4400346 | EL45: -4.3806139 | EM45: -3.6671018 | EN45: -3.4996587 | EO45: -3.3057148 | EP45: -3.229292 | EQ45: -3.3625633 | ER45: -3.1693962 | ES45: -2.9131377 | ET45: -3.0027879 | EU45: -3.0910749 | EV45: -3.069097 | EW45: -3.0043318 | EX45: -2.8056584 | EY45: -2.4795652 | EZ45: -2.201747 | FA45: -2.183478 | FB45: -2.0788719 | FC45: -2.1239053 | FD45: -1.9268528 | FE45: -1.6422454 | FF45: -1.201513 | FG45: -1.2502107 | FH45: -1.2068409 | FI45: -1.1874406 | FJ45: -1.2647759 | FK45: -1.5101512 | FL45: -1.5186494 | FM45: -1.4474251 | FN45: -1.6427393 | FO45: -1.2529058 | FP45: -1.3250964 | FQ45: -1.2567136 | FR45: -1.1195418 | FS45: -1.1347163 | FT45: -1.023203 | FU45: -1.2848827 | FV45: -1.4471733 | FW45: -1.3674705 | FX45: -0.8745084 | FY45: -0.7107639 | FZ45: -0.7607989 | GA45: -0.6821502 | GB45: -0.5162074 | GC45: -0.3421186 | GD45: -0.3316449 | GE45: -0.4209329 | GF45: -0.2866624 | GG45: -0.0224854 | GH45: 0.0156277 | GI45: 0.1960093 | GJ45: 0.1089519 | GK45: 0.348488 | GL45: 0.406597 | GM45: 0.5580845 | GN45: 0.646686 | GO45: 0.6862931
A46: 25 | B46: 0.6593406593 | C46: 1.49839352 | D46: -2.913155737 | E46: 7.9228847 | F46: 0.4974808906 | G46: -0.7285271811 | H46: 2.3401447 | I46: 4.9268031 | J46: 4.7926175 | K46: 0.1341856 | M46: Simulation 37 | N46: 0 | O46: 0.2937195 | P46: -0.6688793 | Q46: 2.4563794 | R46: 2.0926591 | S46: 2.5971175 | T46: 1.4087072 | U46: 0.7179138 | V46: -0.3963088 | W46: -0.1698439 | X46: -1.4247763 | Y46: -0.6747346 | Z46: -1.6363583 | AA46: -1.0227026 | AB46: -1.1113001 | AC46: -0.6858858 | AD46: -1.1466141 | AE46: -2.3534925 | AF46: -3.3221039 | AG46: -4.2761095 | AH46: -3.8707068 | AI46: -1.8766003 | AJ46: -0.8367847 | AK46: -1.8330389 | AL46: 0.0705996 | AM46: -0.4437516 | AN46: -0.2527061 | AO46: 0.8000773 | AP46: 0.462207 | AQ46: 2.3828945 | AR46: 2.1322732 | AS46: 0.7290214 | AT46: 1.5173824 | AU46: 0.1374202 | AV46: -0.4273403 | AW46: 0.389546 | AX46: 1.086265 | AY46: 1.1197298 | AZ46: 1.4113666 | BA46: 2.7229342 | BB46: 3.2645722 | BC46: 1.6906973 | BD46: 0.9723157 | BE46: 0.375972 | BF46: -1.3801345 | BG46: -1.4774926 | BH46: -3.0570897 | BI46: -4.812723 | BJ46: -4.8871746 | BK46: -5.4494481 | BL46: -4.8956376 | BM46: -5.2616318 | BN46: -5.8269434 | BO46: -6.2100361 | BP46: -5.3829674 | BQ46: -3.9566288 | BR46: -3.36167 | BS46: -3.4892341 | BT46: -4.3332148 | BU46: -4.5595652 | BV46: -4.6138275 | BW46: -4.410737 | BX46: -4.7281264 | BY46: -4.6287493 | BZ46: -3.824194 | CA46: -4.6597274 | CB46: -4.3399095 | CC46: -3.5184498 | CD46: -3.9299589 | CE46: -3.7361556 | CF46: -4.3127761 | CG46: -4.312724 | CH46: -5.1570311 | CI46: -5.947179 | CJ46: -5.9205555 | CK46: -5.9882838 | CL46: -5.8322723 | CM46: -6.4098636 | CN46: -6.4639086 | CO46: -6.8730311 | CP46: -6.6873774 | CQ46: -6.6440787 | CR46: -6.6434545 | CS46: -6.7031041 | CT46: -6.5994228 | CU46: -6.5888371 | CV46: -6.8988719 | CW46: -6.8893513 | CX46: -6.9768374 | CY46: -6.9743561 | CZ46: -6.9139582 | DA46: -6.6506211 | DB46: -6.8692168 | DC46: -6.0600396 | DD46: -6.1852271 | DE46: -5.9915396 | DF46: -6.0434888 | DG46: -6.1206933 | DH46: -5.8684748 | DI46: -5.5841636 | DJ46: -5.8887426 | DK46: -6.2192702 | DL46: -6.2021551 | DM46: -6.327194 | DN46: -6.4536624 | DO46: -6.0560337 | DP46: -5.9123239 | DQ46: -5.7775251 | DR46: -5.3710076 | DS46: -5.4335049 | DT46: -5.257597 | DU46: -4.2444049 | DV46: -4.1748477 | DW46: -4.0311998 | DX46: -3.5186847 | DY46: -3.9719622 | DZ46: -3.6892003 | EA46: -3.1690518 | EB46: -2.0748775 | EC46: -2.6285532 | ED46: -1.8712164 | EE46: -2.1740476 | EF46: -2.6502005 | EG46: -2.5644278 | EH46: -1.8453268 | EI46: -0.9015909 | EJ46: -0.8671411 | EK46: -0.437892 | EL46: -0.4580348 | EM46: 0.4620163 | EN46: 0.2189634 | EO46: 0.0461078 | EP46: 0.6644888 | EQ46: 0.6640264 | ER46: 0.7960375 | ES46: 0.7623036 | ET46: 0.6934943 | EU46: 0.6120534 | EV46: 0.4184499 | EW46: -0.0710102 | EX46: -0.7514605 | EY46: -1.1103122 | EZ46: -0.9534864 | FA46: -0.6696441 | FB46: -0.6875907 | FC46: -0.2940151 | FD46: -0.0705227 | FE46: 0.4165129 | FF46: 0.7302836 | FG46: 0.8887963 | FH46: 1.2679965 | FI46: 0.9198248 | FJ46: 0.7362709 | FK46: 0.537669 | FL46: 0.5346002 | FM46: 0.1868085 | FN46: 0.0401025 | FO46: 0.0156279 | FP46: 0.1563407 | FQ46: 0.2637861 | FR46: 0.4170346 | FS46: 0.2687687 | FT46: 0.0864946 | FU46: -0.1196919 | FV46: -0.2245937 | FW46: 0.0613506 | FX46: 0.6697039 | FY46: 0.9102466 | FZ46: 1.0374978 | GA46: 1.3277062 | GB46: 1.6794573 | GC46: 1.9667052 | GD46: 1.7636411 | GE46: 1.6335918 | GF46: 1.6768666 | GG46: 1.6364919 | GH46: 1.468274 | GI46: 1.3046411 | GJ46: 1.1109549 | GK46: 1.1127913 | GL46: 0.8134958 | GM46: 0.6387194 | GN46: 0.7522611 | GO46: 0.7509189
A47: 26 | B47: 0.6868131868 | C47: 1.48283752 | D47: -3.016622139 | E47: 7.9420571 | F47: 0.5744707015 | G47: -0.9245393945 | H47: 2.8123411 | I47: 2.5307802 | J47: 4.7926175 | K47: -2.2618373 | M47: Simulation 38 | N47: 0 | O47: -0.6668785 | P47: -0.9102871 | Q47: -1.3128292 | R47: -0.1675565 | S47: -1.4826399 | T47: -1.8336882 | U47: -2.8092675 | V47: -2.4383158 | W47: -2.5548223 | X47: -2.3742481 | Y47: -5.4056966 | Z47: -4.519569 | AA47: -3.6458071 | AB47: -5.4676079 | AC47: -4.9183579 | AD47: -3.7451159 | AE47: -4.2603766 | AF47: -2.8619495 | AG47: -1.382719 | AH47: -0.766112 | AI47: -0.7930753 | AJ47: 0.1146419 | AK47: 1.6735617 | AL47: 1.7439026 | AM47: 3.0265219 | AN47: 1.7719236 | AO47: 3.9935275 | AP47: 4.3023418 | AQ47: 6.7227081 | AR47: 9.0584057 | AS47: 8.4365378 | AT47: 9.9332777 | AU47: 10.2388824 | AV47: 11.4386124 | AW47: 10.5900133 | AX47: 8.4941313 | AY47: 10.124928 | AZ47: 11.8103329 | BA47: 11.6979938 | BB47: 12.5475771 | BC47: 15.6611469 | BD47: 16.011964 | BE47: 13.8109008 | BF47: 15.5702153 | BG47: 14.6984921 | BH47: 12.5426911 | BI47: 13.9699816 | BJ47: 12.9860363 | BK47: 14.7287827 | BL47: 13.5832296 | BM47: 15.2304389 | BN47: 15.0953254 | BO47: 11.2101834 | BP47: 10.3410324 | BQ47: 10.6467917 | BR47: 7.9049566 | BS47: 6.0402507 | BT47: 5.6927255 | BU47: 4.9425593 | BV47: 5.2112753 | BW47: 5.4654237 | BX47: 6.4070705 | BY47: 4.7874131 | BZ47: 3.8405812 | CA47: 1.7075554 | CB47: 1.5339207 | CC47: 3.2444435 | CD47: 3.8493966 | CE47: 1.5885346 | CF47: 2.1972813 | CG47: 1.4684771 | CH47: -0.0718893 | CI47: -1.6815725 | CJ47: 0.6984911 | CK47: 1.060717 | CL47: 1.7671689 | CM47: 2.0057163 | CN47: -0.2706923 | CO47: 0.5726234 | CP47: -1.0033171 | CQ47: -0.1008489 | CR47: -0.6227502 | CS47: -0.5613422 | CT47: -0.4597235 | CU47: 0.2990499 | CV47: 0.0649466 | CW47: -0.4117178 | CX47: -0.8469391 | CY47: -0.7113727 | CZ47: -0.1408022 | DA47: 0.7306369 | DB47: -1.5406214 | DC47: 0.0324638 | DD47: 1.464552 | DE47: 2.2048652 | DF47: 2.7350127 | DG47: 3.2568223 | DH47: 2.0656199 | DI47: 2.7728288 | DJ47: 2.2036354 | DK47: 1.4333961 | DL47: 1.976901 | DM47: 3.4484381 | DN47: 3.6683776 | DO47: 5.7000587 | DP47: 5.8210448 | DQ47: 7.5313031 | DR47: 6.8635191 | DS47: 5.8192706 | DT47: 7.2466252 | DU47: 8.270981 | DV47: 9.0320625 | DW47: 8.7372139 | DX47: 9.3577929 | DY47: 9.4030882 | DZ47: 9.5580038 | EA47: 9.5758812 | EB47: 8.8002361 | EC47: 10.6886665 | ED47: 10.0055721 | EE47: 9.551017 | EF47: 9.7797786 | EG47: 8.697322 | EH47: 8.2605826 | EI47: 7.4696378 | EJ47: 6.2163511 | EK47: 5.7436874 | EL47: 5.1569754 | EM47: 5.7771572 | EN47: 5.84384 | EO47: 4.5652118 | EP47: 4.9295558 | EQ47: 4.4570596 | ER47: 3.8376824 | ES47: 3.8829398 | ET47: 4.3021147 | EU47: 4.9221013 | EV47: 5.0183763 | EW47: 4.4857461 | EX47: 3.1661177 | EY47: 2.8026567 | EZ47: 3.0291786 | FA47: 2.6199939 | FB47: 2.9772196 | FC47: 2.9855965 | FD47: 2.697391 | FE47: 1.8270228 | FF47: 2.2050625 | FG47: 1.9694194 | FH47: 1.9978678 | FI47: 1.9362449 | FJ47: 2.0164725 | FK47: 1.5703465 | FL47: 1.5314502 | FM47: 1.5990699 | FN47: 1.950981 | FO47: 1.62444 | FP47: 1.4291671 | FQ47: 1.3111446 | FR47: 0.9415789 | FS47: 0.5554293 | FT47: 0.7012886 | FU47: 0.5800717 | FV47: 0.7910099 | FW47: 0.9077834 | FX47: 1.5938479 | FY47: 1.6419171 | FZ47: 1.7998158 | GA47: 1.8360097 | GB47: 1.6073022 | GC47: 1.7151836 | GD47: 1.8610183 | GE47: 2.0163614 | GF47: 2.1515039 | GG47: 2.1694555 | GH47: 2.0381676 | GI47: 2.0553796 | GJ47: 2.0590679 | GK47: 2.1112519 | GL47: 1.8728759 | GM47: 1.8187735 | GN47: 1.627278 | GO47: 1.7536261
A48: 27 | B48: 0.7142857143 | C48: 1.469846542 | D48: -3.122406965 | E48: 8.58367 | F48: 0.4698261655 | G48: -0.7076243719 | H48: 2.4695899 | I48: 2.8713922 | J48: 4.9268031 | K48: -2.0554109 | M48: Simulation 39 | N48: 0 | O48: 0.7503069 | P48: -0.1086389 | Q48: 0.6605715 | R48: -0.54758 | S48: -0.0552205 | T48: 0.2341456 | U48: 0.402504 | V48: -0.9244736 | W48: -1.1031099 | X48: 0.2873641 | Y48: 0.7168919 | Z48: 0.7861071 | AA48: 1.2106921 | AB48: 0.812135 | AC48: -1.0858853 | AD48: -1.2737379 | AE48: -1.4860411 | AF48: -1.1640968 | AG48: -0.1978227 | AH48: -1.1086654 | AI48: -3.0428237 | AJ48: -4.0223283 | AK48: -4.9024925 | AL48: -5.3790195 | AM48: -5.8023363 | AN48: -5.9154066 | AO48: -7.0592448 | AP48: -8.3078381 | AQ48: -7.6439958 | AR48: -7.6021737 | AS48: -7.5262484 | AT48: -9.2471177 | AU48: -9.0516543 | AV48: -8.6557013 | AW48: -9.0780972 | AX48: -9.0979922 | AY48: -8.8035038 | AZ48: -7.8817964 | BA48: -7.1830035 | BB48: -6.7384404 | BC48: -7.6330626 | BD48: -8.461647 | BE48: -9.2328449 | BF48: -9.1065711 | BG48: -9.010578 | BH48: -9.2645452 | BI48: -9.5501609 | BJ48: -9.4059978 | BK48: -9.0645615 | BL48: -8.8029724 | BM48: -9.1827618 | BN48: -9.1501311 | BO48: -9.1207346 | BP48: -8.7001279 | BQ48: -8.7792318 | BR48: -7.9143291 | BS48: -7.9317189 | BT48: -7.151188 | BU48: -7.5967422 | BV48: -7.9602017 | BW48: -8.5721541 | BX48: -8.6687544 | BY48: -9.1031744 | BZ48: -9.4398708 | CA48: -9.6519061 | CB48: -9.7179781 | CC48: -9.8112164 | CD48: -9.6247751 | CE48: -9.4825891 | CF48: -9.639285 | CG48: -9.7168006 | CH48: -9.5872097 | CI48: -9.1948695 | CJ48: -8.7540873 | CK48: -7.8151963 | CL48: -8.0892952 | CM48: -8.1963074 | CN48: -7.9046747 | CO48: -7.2191981 | CP48: -7.6616503 | CQ48: -8.1252971 | CR48: -7.8882792 | CS48: -7.119519 | CT48: -8.1583645 | CU48: -7.4806031 | CV48: -7.311633 | CW48: -7.4934574 | CX48: -6.8989205 | CY48: -6.0335128 | CZ48: -6.1068123 | DA48: -7.4880061 | DB48: -7.9308165 | DC48: -7.1258732 | DD48: -7.6144247 | DE48: -7.4356857 | DF48: -7.3414019 | DG48: -7.5724347 | DH48: -7.6907164 | DI48: -7.497488 | DJ48: -7.765493 | DK48: -7.8419399 | DL48: -8.4239335 | DM48: -8.4870941 | DN48: -8.464374 | DO48: -8.4174165 | DP48: -8.5509512 | DQ48: -8.3157827 | DR48: -8.0532774 | DS48: -8.0482635 | DT48: -8.24319 | DU48: -7.4150259 | DV48: -7.5415597 | DW48: -7.4046904 | DX48: -7.2140391 | DY48: -7.2721799 | DZ48: -7.3461092 | EA48: -7.2595842 | EB48: -7.4524302 | EC48: -7.4697652 | ED48: -7.190719 | EE48: -7.0188336 | EF48: -6.8180123 | EG48: -6.551779 | EH48: -6.4797973 | EI48: -6.2948909 | EJ48: -6.3465343 | EK48: -6.2423809 | EL48: -6.1291798 | EM48: -5.1699308 | EN48: -4.790792 | EO48: -4.8644056 | EP48: -4.8460684 | EQ48: -4.5312362 | ER48: -4.2257518 | ES48: -4.1311623 | ET48: -3.9006445 | EU48: -3.6205236 | EV48: -3.8258054 | EW48: -3.5792192 | EX48: -3.4838 | EY48: -3.4910433 | EZ48: -3.3150883 | FA48: -3.4354365 | FB48: -3.2000175 | FC48: -3.2717269 | FD48: -3.3328549 | FE48: -2.9869514 | FF48: -2.2573138 | FG48: -2.1755554 | FH48: -1.8944549 | FI48: -1.9142968 | FJ48: -1.8522147 | FK48: -1.6793311 | FL48: -1.9519351 | FM48: -2.1526306 | FN48: -2.4341432 | FO48: -2.3850074 | FP48: -2.4371296 | FQ48: -2.5654255 | FR48: -2.5146684 | FS48: -2.4009495 | FT48: -2.5612338 | FU48: -2.6515369 | FV48: -2.8132934 | FW48: -2.4450827 | FX48: -2.0604459 | FY48: -2.0623755 | FZ48: -2.2084649 | GA48: -2.34147 | GB48: -2.3809401 | GC48: -2.3044755 | GD48: -2.3459392 | GE48: -2.3656722 | GF48: -2.1637617 | GG48: -1.9558902 | GH48: -1.8790127 | GI48: -1.713624 | GJ48: -1.675255 | GK48: -1.6796148 | GL48: -1.487018 | GM48: -1.4922341 | GN48: -1.3952587 | GO48: -1.2770766
A49: 28 | B49: 0.7417582418 | C49: 1.435685562 | D49: -3.224009347 | E49: 7.8106485 | F49: 0.5360617751 | G49: -0.9096233441 | H49: 2.7190938 | I49: 3.4681246 | J49: 4.9268031 | K49: -1.4586785 | M49: Simulation 40 | N49: 0 | O49: 0.1774625 | P49: -0.5858957 | Q49: -1.8149487 | R49: -3.3123184 | S49: -2.3584596 | T49: -0.6991479 | U49: -2.3005427 | V49: -0.8286311 | W49: -0.8419391 | X49: 0.2700829 | Y49: 0.4857973 | Z49: 1.7938601 | AA49: 2.567844 | AB49: 2.170296 | AC49: 0.989928 | AD49: 0.8434455 | AE49: 2.1129037 | AF49: 4.6312539 | AG49: 5.3294027 | AH49: 5.0500114 | AI49: 6.2740048 | AJ49: 5.2766482 | AK49: 5.695741 | AL49: 4.576652 | AM49: 6.6696295 | AN49: 7.4987344 | AO49: 8.696499 | AP49: 6.6079382 | AQ49: 8.8770861 | AR49: 7.8876158 | AS49: 8.937357 | AT49: 9.4407334 | AU49: 10.4788147 | AV49: 11.1203758 | AW49: 11.0952496 | AX49: 11.0563955 | AY49: 11.398903 | AZ49: 14.9020597 | BA49: 14.4668311 | BB49: 14.5536519 | BC49: 14.0034253 | BD49: 13.7852519 | BE49: 10.8360113 | BF49: 11.8370241 | BG49: 12.6080282 | BH49: 12.3963497 | BI49: 11.181561 | BJ49: 11.6232631 | BK49: 11.7888906 | BL49: 11.3673069 | BM49: 9.3499011 | BN49: 10.8820345 | BO49: 11.6859627 | BP49: 11.3305371 | BQ49: 10.5292885 | BR49: 10.3322527 | BS49: 11.7757038 | BT49: 11.19175 | BU49: 12.1937267 | BV49: 12.1821358 | BW49: 12.887918 | BX49: 14.054578 | BY49: 15.2281026 | BZ49: 15.6383868 | CA49: 17.0879526 | CB49: 19.1742464 | CC49: 16.6004155 | CD49: 17.809751 | CE49: 18.1612872 | CF49: 20.7037227 | CG49: 20.1386049 | CH49: 18.9914691 | CI49: 17.9626262 | CJ49: 19.9967774 | CK49: 19.2600555 | CL49: 19.754437 | CM49: 19.7601791 | CN49: 17.3236325 | CO49: 18.495173 | CP49: 15.4570365 | CQ49: 16.0691 | CR49: 18.922058 | CS49: 18.2283108 | CT49: 15.315312 | CU49: 12.8092513 | CV49: 13.4339242 | CW49: 12.4825868 | CX49: 13.3378188 | CY49: 15.8407372 | CZ49: 16.6250994 | DA49: 17.4117123 | DB49: 13.6830196 | DC49: 13.3982573 | DD49: 12.1739357 | DE49: 11.9598892 | DF49: 10.5800236 | DG49: 10.637682 | DH49: 9.8023441 | DI49: 11.2486946 | DJ49: 10.7576828 | DK49: 9.8824992 | DL49: 10.9103292 | DM49: 11.2112628 | DN49: 10.7670287 | DO49: 9.9017492 | DP49: 10.1720306 | DQ49: 9.6773538 | DR49: 10.0276782 | DS49: 7.3189264 | DT49: 7.8911663 | DU49: 8.1214609 | DV49: 7.8492597 | DW49: 7.9214039 | DX49: 8.1057876 | DY49: 7.3734378 | DZ49: 7.1318991 | EA49: 7.3971753 | EB49: 6.6708536 | EC49: 7.3736812 | ED49: 6.914431 | EE49: 6.1963364 | EF49: 6.3283271 | EG49: 5.108298 | EH49: 5.9134721 | EI49: 5.2539961 | EJ49: 6.1354145 | EK49: 6.8614125 | EL49: 6.5422895 | EM49: 7.6134366 | EN49: 6.4568091 | EO49: 5.8982248 | EP49: 5.8980027 | EQ49: 5.5458083 | ER49: 5.1300363 | ES49: 5.3501945 | ET49: 4.607017 | EU49: 5.0964704 | EV49: 5.3861072 | EW49: 5.2696183 | EX49: 4.5716029 | EY49: 4.9224742 | EZ49: 5.2589299 | FA49: 5.5757673 | FB49: 5.690333 | FC49: 5.7755782 | FD49: 6.3763765 | FE49: 6.235447 | FF49: 6.3493747 | FG49: 6.4276369 | FH49: 5.659379 | FI49: 5.4026772 | FJ49: 5.2172694 | FK49: 4.7584806 | FL49: 4.4064267 | FM49: 4.1657579 | FN49: 3.905702 | FO49: 4.1697316 | FP49: 4.3142258 | FQ49: 4.7498793 | FR49: 3.9991737 | FS49: 3.4411305 | FT49: 3.4858321 | FU49: 3.6347116 | FV49: 3.4920092 | FW49: 4.0388604 | FX49: 4.3227375 | FY49: 4.5698969 | FZ49: 4.4687356 | GA49: 3.8599302 | GB49: 3.8188778 | GC49: 3.7095159 | GD49: 3.6279322 | GE49: 3.7062842 | GF49: 3.7721059 | GG49: 3.9158177 | GH49: 3.8044766 | GI49: 3.7420586 | GJ49: 3.5129516 | GK49: 3.5840679 | GL49: 3.8257661 | GM49: 3.8334676 | GN49: 3.8742019 | GO49: 3.6433513
A50: 29 | B50: 0.7692307692 | C50: 1.522788043 | D50: -3.242004736 | E50: 8.6633791 | F50: 0.5550325501 | G50: -0.6216888202 | H50: 2.6201461 | I50: 2.7091088 | J50: 2.8713922 | K50: -0.1622834 | M50: Simulation 41 | N50: 0 | O50: 0.0214373 | P50: -1.0067228 | Q50: -0.1302437 | R50: -1.7950118 | S50: -0.8224645 | T50: -2.6892876 | U50: -1.0129665 | V50: -2.2252326 | W50: -1.6735324 | X50: -1.1767516 | Y50: -0.8070992 | Z50: -1.089081 | AA50: -1.8757296 | AB50: -2.0062276 | AC50: -1.4902662 | AD50: -0.4316406 | AE50: 1.0072102 | AF50: 2.0348941 | AG50: 1.779528 | AH50: 1.5186581 | AI50: 1.5963217 | AJ50: 0.2867347 | AK50: -0.0761595 | AL50: -1.247663 | AM50: 0.1221764 | AN50: 1.7444895 | AO50: 0.841668 | AP50: 0.0623117 | AQ50: -0.8633698 | AR50: -1.5641573 | AS50: -1.7386595 | AT50: -1.2542425 | AU50: -2.1879667 | AV50: -3.7097538 | AW50: -4.8802781 | AX50: -5.1831329 | AY50: -6.0871806 | AZ50: -4.8156908 | BA50: -3.6767145 | BB50: -2.1650491 | BC50: -2.7369525 | BD50: -2.1326788 | BE50: -1.3158454 | BF50: -1.0821042 | BG50: -1.4716999 | BH50: -1.5769694 | BI50: -2.6409117 | BJ50: -3.8133192 | BK50: -2.5432731 | BL50: -3.9175456 | BM50: -4.8551262 | BN50: -4.6829082 | BO50: -5.6228973 | BP50: -6.5191316 | BQ50: -7.0879388 | BR50: -6.2529064 | BS50: -5.3816016 | BT50: -6.7131546 | BU50: -5.9827792 | BV50: -6.4862934 | BW50: -7.1758419 | BX50: -6.7405861 | BY50: -8.3719945 | BZ50: -8.7778347 | CA50: -9.1718896 | CB50: -9.3031964 | CC50: -9.1895188 | CD50: -9.126328 | CE50: -8.6386665 | CF50: -8.7616848 | CG50: -8.6298757 | CH50: -8.7349662 | CI50: -8.6127242 | CJ50: -8.479863 | CK50: -8.1189086 | CL50: -8.4394128 | CM50: -8.6131175 | CN50: -8.5398628 | CO50: -7.6864178 | CP50: -6.7561959 | CQ50: -6.8571874 | CR50: -6.9650936 | CS50: -7.2208404 | CT50: -6.6966934 | CU50: -6.2746527 | CV50: -6.1056557 | CW50: -5.4068861 | CX50: -5.6342441 | CY50: -5.5770028 | CZ50: -5.7138079 | DA50: -5.3355602 | DB50: -5.7704225 | DC50: -5.7860781 | DD50: -4.833559 | DE50: -5.3428631 | DF50: -4.8389739 | DG50: -4.2656531 | DH50: -3.7970927 | DI50: -4.1986955 | DJ50: -3.5209758 | DK50: -2.8912986 | DL50: -2.2429562 | DM50: -3.0156265 | DN50: -3.2025146 | DO50: -2.8482602 | DP50: -3.2870543 | DQ50: -3.0280865 | DR50: -3.7335131 | DS50: -2.9561014 | DT50: -3.588335 | DU50: -2.8877674 | DV50: -3.1033202 | DW50: -2.607457 | DX50: -2.6753219 | DY50: -1.7779698 | DZ50: -2.066734 | EA50: -1.5215284 | EB50: -1.8242735 | EC50: -0.6262383 | ED50: -0.9547761 | EE50: -0.4842533 | EF50: -0.6208472 | EG50: -1.0043447 | EH50: 0.0882012 | EI50: -0.6451626 | EJ50: -0.9262402 | EK50: -0.9975817 | EL50: -0.6566528 | EM50: -0.3025046 | EN50: -0.7794438 | EO50: -0.7476662 | EP50: -0.5715418 | EQ50: -0.2426488 | ER50: -0.0226586 | ES50: 0.0805633 | ET50: -0.0803968 | EU50: -0.2331323 | EV50: -0.3718475 | EW50: -0.6115932 | EX50: -0.7711053 | EY50: -0.9222846 | EZ50: -0.9333355 | FA50: -0.8107876 | FB50: -0.5309922 | FC50: -0.90335 | FD50: -0.860438 | FE50: -0.702505 | FF50: -0.440077 | FG50: -0.3391585 | FH50: -0.3187598 | FI50: -0.5415619 | FJ50: -0.7804768 | FK50: -0.7117424 | FL50: -0.7994198 | FM50: -0.6930451 | FN50: -0.9699386 | FO50: -0.9939665 | FP50: -1.1464511 | FQ50: -1.3448287 | FR50: -1.2533117 | FS50: -1.2739752 | FT50: -1.4162268 | FU50: -1.0381713 | FV50: -1.037608 | FW50: -1.0799512 | FX50: -0.4130051 | FY50: 0.0093006 | FZ50: 0.2490811 | GA50: 0.3808945 | GB50: 0.4283023 | GC50: 0.291739 | GD50: 0.1982692 | GE50: 0.1641305 | GF50: 0.1096564 | GG50: 0.1565152 | GH50: 0.1437414 | GI50: 0.1793957 | GJ50: 0.0435155 | GK50: -0.0203555 | GL50: -0.1012719 | GM50: -0.235066 | GN50: 0.2190195 | GO50: 0.0307252
A51: 30 | B51: 0.7967032967 | C51: 1.520594316 | D51: -3.318829832 | E51: 8.7950542 | F51: 0.6370027537 | G51: -0.7826778466 | H51: 3.0938136 | I51: 2.5067016 | J51: 2.8713922 | K51: -0.3646906 | M51: Simulation 42 | N51: 0 | O51: 0.2233106 | P51: -1.3212074 | Q51: -2.4685627 | R51: -2.7645629 | S51: -2.8801269 | T51: -1.8082867 | U51: -2.0946404 | V51: -2.3312778 | W51: -1.9509393 | X51: -0.3605624 | Y51: -0.619203 | Z51: 1.5475248 | AA51: 1.3638317 | AB51: -1.3899214 | AC51: -2.4217312 | AD51: -3.4300183 | AE51: -2.4639632 | AF51: -3.023275 | AG51: -2.0595291 | AH51: 0.707008 | AI51: 0.8209432 | AJ51: 1.3926496 | AK51: 2.0797166 | AL51: 1.6128594 | AM51: 0.5368359 | AN51: 0.7070475 | AO51: 1.0346587 | AP51: 1.8870399 | AQ51: 0.3113675 | AR51: 0.5882323 | AS51: -1.1028716 | AT51: 0.7090615 | AU51: 0.8364407 | AV51: 0.1151894 | AW51: -1.7751101 | AX51: -2.8414334 | AY51: -4.455289 | AZ51: -3.5382068 | BA51: -4.1953342 | BB51: -3.842448 | BC51: -4.6907453 | BD51: -5.2943124 | BE51: -5.1394081 | BF51: -5.5662145 | BG51: -4.8415914 | BH51: -5.6095229 | BI51: -6.1507587 | BJ51: -6.2494809 | BK51: -7.3390055 | BL51: -6.7917561 | BM51: -6.949252 | BN51: -7.5637088 | BO51: -7.3854264 | BP51: -6.9146146 | BQ51: -6.1912505 | BR51: -6.3242077 | BS51: -6.4754763 | BT51: -6.1942878 | BU51: -6.2953833 | BV51: -6.7404043 | BW51: -7.1273379 | BX51: -7.7993137 | BY51: -8.0698937 | BZ51: -7.9417738 | CA51: -7.9275444 | CB51: -8.0094812 | CC51: -8.1729682 | CD51: -8.3757391 | CE51: -8.4066518 | CF51: -7.9991448 | CG51: -7.9806817 | CH51: -7.4319315 | CI51: -7.2337725 | CJ51: -6.6892655 | CK51: -6.5220389 | CL51: -6.92611 | CM51: -7.1891835 | CN51: -7.639215 | CO51: -7.5425727 | CP51: -7.4403672 | CQ51: -7.2378857 | CR51: -6.8272375 | CS51: -6.4202877 | CT51: -6.3004329 | CU51: -6.4650933 | CV51: -6.7776002 | CW51: -6.3594615 | CX51: -6.6573987 | CY51: -6.7501053 | CZ51: -6.695563 | DA51: -6.787103 | DB51: -6.74322 | DC51: -6.1868433 | DD51: -6.7580605 | DE51: -6.889358 | DF51: -6.5939368 | DG51: -6.8000315 | DH51: -6.8900548 | DI51: -6.5171589 | DJ51: -6.351556 | DK51: -6.2693535 | DL51: -6.257475 | DM51: -6.2905291 | DN51: -6.080514 | DO51: -6.1122026 | DP51: -6.2889825 | DQ51: -6.2212282 | DR51: -5.9523589 | DS51: -6.1268112 | DT51: -6.0635097 | DU51: -5.5146439 | DV51: -5.5943613 | DW51: -5.5673699 | DX51: -5.6131628 | DY51: -5.4071815 | DZ51: -5.2532213 | EA51: -5.3919204 | EB51: -5.2378987 | EC51: -4.9904677 | ED51: -4.882806 | EE51: -4.7923411 | EF51: -4.5926565 | EG51: -4.5195795 | EH51: -4.3108217 | EI51: -4.3371113 | EJ51: -4.0681416 | EK51: -3.8173159 | EL51: -3.9303796 | EM51: -3.1287905 | EN51: -3.2735662 | EO51: -3.3075499 | EP51: -3.318166 | EQ51: -3.2318829 | ER51: -3.1665406 | ES51: -2.8881673 | ET51: -2.6405909 | EU51: -2.642299 | EV51: -2.4762282 | EW51: -2.5188772 | EX51: -2.3545346 | EY51: -2.2268467 | EZ51: -2.1096417 | FA51: -2.0363152 | FB51: -1.878567 | FC51: -1.7202503 | FD51: -1.7409827 | FE51: -1.4324011 | FF51: -1.014241 | FG51: -1.0887276 | FH51: -1.3374121 | FI51: -1.1098697 | FJ51: -1.3247336 | FK51: -1.3050966 | FL51: -1.3642572 | FM51: -1.3345006 | FN51: -1.139625 | FO51: -1.0775291 | FP51: -1.1447458 | FQ51: -1.3310664 | FR51: -1.4365334 | FS51: -1.4719891 | FT51: -1.4861333 | FU51: -1.5449567 | FV51: -1.7798949 | FW51: -1.3706711 | FX51: -1.0514065 | FY51: -0.925988 | FZ51: -1.0039232 | GA51: -1.0135085 | GB51: -1.0430354 | GC51: -0.9905671 | GD51: -1.1163529 | GE51: -1.0386679 | GF51: -1.1653427 | GG51: -0.9939878 | GH51: -0.738492 | GI51: -0.67851 | GJ51: -0.5100575 | GK51: -0.5105537 | GL51: -0.4310905 | GM51: -0.4765844 | GN51: -0.5268908 | GO51: -0.774003
A52: 31 | B52: 0.8241758242 | C52: 1.516901767 | D52: -3.451656249 | E52: 8.937357 | F52: 0.4679923313 | G52: -0.68353012 | H52: 2.2150374 | I52: 2.6393064 | J52: 2.7091088 | K52: -0.0698024 | M52: Simulation 43 | N52: 0 | O52: 0.0292795 | P52: -1.6381335 | Q52: -1.1692856 | R52: -0.9701266 | S52: -1.8779611 | T52: -1.445749 | U52: -1.5691184 | V52: 0.9775981 | W52: 0.3194112 | X52: -0.8275508 | Y52: -1.2529904 | Z52: -0.713053 | AA52: -0.6884987 | AB52: 0.4461193 | AC52: -1.6578007 | AD52: -0.2515985 | AE52: -0.1117913 | AF52: 0.6241078 | AG52: 0.1769157 | AH52: 2.949515 | AI52: 1.5278707 | AJ52: 0.1219641 | AK52: -0.1281455 | AL52: 0.2923436 | AM52: 2.8386228 | AN52: 0.3052656 | AO52: 1.0698903 | AP52: 0.3860301 | AQ52: -1.4009613 | AR52: -1.6258194 | AS52: -0.4096472 | AT52: 0.3885392 | AU52: -0.7058008 | AV52: -0.9315104 | AW52: -0.8036507 | AX52: -1.0450067 | AY52: -4.1375398 | AZ52: -5.001106 | BA52: -5.8728469 | BB52: -6.6681519 | BC52: -6.3564388 | BD52: -5.9093391 | BE52: -4.4845708 | BF52: -6.0822707 | BG52: -5.6790754 | BH52: -5.6287195 | BI52: -6.0770626 | BJ52: -5.6039424 | BK52: -6.0166706 | BL52: -6.0264303 | BM52: -6.7106301 | BN52: -6.9531706 | BO52: -7.4818541 | BP52: -6.6093933 | BQ52: -7.5088908 | BR52: -7.9423036 | BS52: -6.9254802 | BT52: -6.4437553 | BU52: -6.6582171 | BV52: -5.3333418 | BW52: -5.1259273 | BX52: -5.482784 | BY52: -5.8769868 | BZ52: -6.3513943 | CA52: -6.3811547 | CB52: -6.7698314 | CC52: -5.3296573 | CD52: -5.4105028 | CE52: -5.5854653 | CF52: -5.8912253 | CG52: -6.666848 | CH52: -6.6591887 | CI52: -6.2907773 | CJ52: -6.2876931 | CK52: -6.1061774 | CL52: -6.2370109 | CM52: -6.1597803 | CN52: -5.8494984 | CO52: -4.9551807 | CP52: -4.3433543 | CQ52: -4.2460803 | CR52: -3.6999863 | CS52: -4.1436051 | CT52: -4.8878734 | CU52: -4.9598298 | CV52: -5.1828625 | CW52: -5.1004227 | CX52: -4.090369 | CY52: -3.5669812 | CZ52: -2.6048117 | DA52: -1.6392723 | DB52: -0.5770703 | DC52: -0.8807352 | DD52: -0.6295131 | DE52: -1.0648953 | DF52: -1.0381908 | DG52: -0.3695113 | DH52: -0.148005 | DI52: -0.7449919 | DJ52: -0.3324961 | DK52: -1.546552 | DL52: -1.8043372 | DM52: -1.6633257 | DN52: -2.6519715 | DO52: -2.2726453 | DP52: -2.7793697 | DQ52: -3.4208092 | DR52: -3.9992998 | DS52: -4.077674 | DT52: -3.4936228 | DU52: -2.7525853 | DV52: -2.8857537 | DW52: -2.7742571 | DX52: -2.6982146 | DY52: -2.7142146 | DZ52: -1.730147 | EA52: -2.2202131 | EB52: -1.8942928 | EC52: -1.5616339 | ED52: -1.2541295 | EE52: -1.6170511 | EF52: -2.0742992 | EG52: -2.3332273 | EH52: -2.2200766 | EI52: -1.8443256 | EJ52: -2.0500033 | EK52: -2.1401082 | EL52: -1.9471013 | EM52: -0.5246295 | EN52: -0.2375685 | EO52: 0.0148714 | EP52: -0.5629323 | EQ52: -0.7477906 | ER52: -0.8484724 | ES52: -0.9364933 | ET52: -1.317051 | EU52: -1.377446 | EV52: -1.2356072 | EW52: -1.4646612 | EX52: -1.484709 | EY52: -1.4988551 | EZ52: -1.5640185 | FA52: -1.3818375 | FB52: -1.2900206 | FC52: -1.2863075 | FD52: -1.1132643 | FE52: -0.3891222 | FF52: 0.6329344 | FG52: 0.7178238 | FH52: 0.7015864 | FI52: 0.6323771 | FJ52: 0.9904201 | FK52: 0.7865636 | FL52: 0.9228018 | FM52: 1.1571813 | FN52: 1.2203146 | FO52: 1.1648408 | FP52: 1.0444409 | FQ52: 0.7358668 | FR52: 0.4257658 | FS52: 0.4678516 | FT52: 0.6129633 | FU52: 0.7203471 | FV52: 0.392059 | FW52: 0.8654746 | FX52: 1.4984769 | FY52: 1.4945091 | FZ52: 1.5068444 | GA52: 1.2517736 | GB52: 1.2851548 | GC52: 1.2597385 | GD52: 1.0630674 | GE52: 1.018268 | GF52: 0.7612137 | GG52: 0.6484468 | GH52: 0.8815989 | GI52: 0.869505 | GJ52: 0.8426424 | GK52: 1.025996 | GL52: 1.2885205 | GM52: 1.0393739 | GN52: 1.0490398 | GO52: 1.1284088
A53: 32 | B53: 0.8516483516 | C53: =SUMIF(OFFSET(Exposure, 0, A53,1000,1),">0")/1000 -> 1.53247327 | D53: =SUMIF(OFFSET(Exposure, 0, A53,1000,1),"<0")/1000 -> -3.535005428 | E53: =SMALL(OFFSET(Exposure, 0, A53,1000,1),95%*1000) -> 8.9570851 | F53: =SUMIF(OFFSET(MarginedExposure,0,A53,1000,1),">0")/1000 -> 0.5522733606 | G53: =SUMIF(OFFSET(MarginedExposure,0,A53,1000,1),"<0")/1000 -> -0.8355888255 | H53: =SMALL(OFFSET(MarginedExposure, 0, A53,1000,1),95%*1000) -> 2.8384746 | I53: =OFFSET(Exposure, PathNum-1,A53,1,1) -> 3.9575492 | J53: 2.7091088 | K53: =OFFSET(MarginedExposure,PathNum-1,A53,1,1) -> 1.2484404 | M53: Simulation 44 | N53: 0 | O53: -0.3550568 | P53: 0.9236477 | Q53: 0.5016128 | R53: 0.5067126 | S53: 1.0879642 | T53: 2.0668708 | U53: 1.8661729 | V53: -1.2150572 | W53: -0.4624578 | X53: 1.9982132 | Y53: 3.2754897 | Z53: 4.1396924 | AA53: 4.5911577 | AB53: 3.9501408 | AC53: 4.2484888 | AD53: 4.6651714 | AE53: 4.2124569 | AF53: 2.8885633 | AG53: 4.5254301 | AH53: 4.4159423 | AI53: 3.2778211 | AJ53: 0.9656042 | AK53: 1.6541485 | AL53: 0.2252462 | AM53: -0.931794 | AN53: -0.6403578 | AO53: -2.1731626 | AP53: -2.1457781 | AQ53: -0.4825331 | AR53: -0.4817121 | AS53: -1.4452371 | AT53: -0.9803604 | AU53: -1.158907 | AV53: 0.4211718 | AW53: -0.1774739 | AX53: 2.3243565 | AY53: 4.4822255 | AZ53: 5.977081 | BA53: 3.5442159 | BB53: 3.7464097 | BC53: 1.9609743 | BD53: 1.8397414 | BE53: 1.2447104 | BF53: 2.9628322 | BG53: 3.8394314 | BH53: 3.2789311 | BI53: 3.0719495 | BJ53: 0.728367 | BK53: 1.3792371 | BL53: 0.9544627 | BM53: -0.2939065 | BN53: -0.1864859 | BO53: -0.9416935 | BP53: -1.4337334 | BQ53: -1.154098 | BR53: -1.3477075 | BS53: -2.0030782 | BT53: -1.7759028 | BU53: -2.4060975 | BV53: -2.8956949 | BW53: -2.1797708 | BX53: -2.2334998 | BY53: -2.6245 | BZ53: -3.4177283 | CA53: -4.3950056 | CB53: -4.4919847 | CC53: -4.5207822 | CD53: -4.5201963 | CE53: -4.8101877 | CF53: -4.7434658 | CG53: -4.3130851 | CH53: -4.8883052 | CI53: -4.131745 | CJ53: -5.0308913 | CK53: -4.7745002 | CL53: -5.1169066 | CM53: -5.3541625 | CN53: -4.9976097 | CO53: -4.1543775 | CP53: -4.2896589 | CQ53: -4.4167142 | CR53: -4.9408774 | CS53: -3.9079581 | CT53: -3.9740731 | CU53: -4.7048301 | CV53: -4.6795648 | CW53: -5.5993572 | CX53: -5.7291017 | CY53: -6.5620504 | CZ53: -6.4120857 | DA53: -5.985097 | DB53: -6.6661721 | DC53: -6.4721342 | DD53: -6.9513088 | DE53: -6.8571026 | DF53: -7.1303115 | DG53: -6.7685742 | DH53: -6.6840641 | DI53: -6.8597338 | DJ53: -6.9498935 | DK53: -6.9934235 | DL53: -7.1168038 | DM53: -6.9551866 | DN53: -6.6914776 | DO53: -6.5064606 | DP53: -6.1872933 | DQ53: -6.5997049 | DR53: -6.1061349 | DS53: -5.6390923 | DT53: -5.8756906 | DU53: -5.1848628 | DV53: -4.7388813 | DW53: -3.8277704 | DX53: -3.5718801 | DY53: -2.9295537 | DZ53: -2.3381015 | EA53: -3.3144298 | EB53: -3.3006245 | EC53: -3.1336437 | ED53: -2.6012407 | EE53: -2.7242202 | EF53: -2.5327563 | EG53: -1.9834628 | EH53: -2.2943558 | EI53: -2.6823177 | EJ53: -2.7507531 | EK53: -2.7690638 | EL53: -2.8358603 | EM53: -1.9551756 | EN53: -1.6064684 | EO53: -1.6827539 | EP53: -1.5181757 | EQ53: -0.7083435 | ER53: -1.0121624 | ES53: -1.3780511 | ET53: -1.6112401 | EU53: -2.2614335 | EV53: -2.2211512 | EW53: -2.1355649 | EX53: -1.6822095 | EY53: -1.5497005 | EZ53: -1.3976061 | FA53: -1.2918695 | FB53: -1.4019734 | FC53: -1.4711444 | FD53: -1.5542049 | FE53: -1.5638541 | FF53: -1.512737 | FG53: -1.6886487 | FH53: -1.7510251 | FI53: -1.7315364 | FJ53: -1.9738367 | FK53: -1.9436834 | FL53: -2.0717634 | FM53: -1.8002943 | FN53: -1.8492523 | FO53: -1.6996474 | FP53: -1.6981999 | FQ53: -1.4332099 | FR53: -1.4572936 | FS53: -1.5693868 | FT53: -1.7004152 | FU53: -1.6500668 | FV53: -1.6821607 | FW53: -1.6997664 | FX53: -1.0873372 | FY53: -0.8125174 | FZ53: -0.9319722 | GA53: -0.7771232 | GB53: -0.8306722 | GC53: -0.825311 | GD53: -0.7244292 | GE53: -0.755443 | GF53: -0.8021553 | GG53: -0.6238294 | GH53: -0.5308151 | GI53: -0.3782188 | GJ53: -0.4070323 | GK53: -0.258922 | GL53: -0.3541873 | GM53: -0.2192305 | GN53: -0.3875605 | GO53: -0.3849467
A54: 33 | B54: 0.8791208791 | C54: 1.520519551 | D54: -3.63219251 | E54: 8.7388233 | F54: 0.483404075 | G54: -0.6603225518 | H54: 2.2418636 | I54: 4.1641445 | J54: 2.6393064 | K54: 1.5248381 | M54: Simulation 45 | N54: 0 | O54: -0.2022358 | P54: -0.7088693 | Q54: -1.7360815 | R54: -1.5051215 | S54: -2.1995565 | T54: -1.7471092 | U54: -3.1539244 | V54: -3.7392726 | W54: -4.1293061 | X54: -4.7102952 | Y54: -4.5699122 | Z54: -4.3272844 | AA54: -4.5154162 | AB54: -3.0022344 | AC54: -1.6074454 | AD54: -0.0253066 | AE54: -0.7591656 | AF54: 0.1972155 | AG54: -0.2546078 | AH54: 1.098026 | AI54: 0.2236939 | AJ54: 0.0593776 | AK54: -0.9362553 | AL54: -1.0719341 | AM54: -0.4487168 | AN54: -1.4284316 | AO54: -3.5215155 | AP54: -3.4423099 | AQ54: -2.9785723 | AR54: -3.3914713 | AS54: -1.396528 | AT54: -2.1323843 | AU54: -2.9258608 | AV54: -0.8737196 | AW54: 0.0213388 | AX54: -0.7357071 | AY54: -1.3768445 | AZ54: -1.3241703 | BA54: -1.844972 | BB54: -2.162606 | BC54: -2.5191898 | BD54: -2.7402359 | BE54: -1.6864047 | BF54: -1.7921393 | BG54: -1.9114004 | BH54: -1.3381968 | BI54: -1.0215776 | BJ54: -0.7701514 | BK54: -0.1278783 | BL54: -0.3484816 | BM54: -0.5251494 | BN54: 0.6540776 | BO54: 2.3115656 | BP54: 3.6897268 | BQ54: 5.0739933 | BR54: 2.8433903 | BS54: -0.057039 | BT54: -0.1347404 | BU54: -0.393156 | BV54: -1.313309 | BW54: -0.5272668 | BX54: -0.2360724 | BY54: 0.0350305 | BZ54: -1.2735872 | CA54: -1.0811977 | CB54: -1.0753894 | CC54: -0.4263624 | CD54: 1.8718089 | CE54: 2.1982306 | CF54: 2.4838941 | CG54: 2.2800691 | CH54: 1.1641378 | CI54: 2.4923106 | CJ54: 4.1721242 | CK54: 4.6010981 | CL54: 4.0243577 | CM54: 4.1509924 | CN54: 5.2135947 | CO54: 5.2686829 | CP54: 2.968914 | CQ54: 3.3644329 | CR54: 3.6172748 | CS54: 2.5923912 | CT54: 3.1519302 | CU54: 2.103315 | CV54: 1.2119967 | CW54: -0.4231239 | CX54: -0.1017105 | CY54: -1.4383132 | CZ54: -1.6983195 | DA54: -1.816516 | DB54: -2.1298451 | DC54: -2.9877929 | DD54: -3.0406141 | DE54: -2.3874561 | DF54: -1.8111327 | DG54: -2.4607487 | DH54: -2.3922081 | DI54: -2.0870722 | DJ54: -1.8053001 | DK54: -1.5938316 | DL54: -1.7186549 | DM54: -1.6045963 | DN54: -1.0908635 | DO54: -1.4313829 | DP54: -0.778317 | DQ54: -1.1518735 | DR54: -0.9280035 | DS54: -1.2742936 | DT54: -2.1872454 | DU54: -1.4606291 | DV54: -2.0696768 | DW54: -1.0858101 | DX54: -1.6688823 | DY54: -2.4035017 | DZ54: -3.3526882 | EA54: -3.0373445 | EB54: -2.5926917 | EC54: -2.3400389 | ED54: -2.6078518 | EE54: -2.33895 | EF54: -2.3722792 | EG54: -2.4224314 | EH54: -2.6260871 | EI54: -2.9421541 | EJ54: -2.3429647 | EK54: -2.1589619 | EL54: -2.6884749 | EM54: -2.0681429 | EN54: -1.9632303 | EO54: -2.4460811 | EP54: -2.4709036 | EQ54: -2.3326652 | ER54: -2.3086437 | ES54: -2.463684 | ET54: -2.4193107 | EU54: -2.3201022 | EV54: -2.0831373 | EW54: -2.0950564 | EX54: -2.0572179 | EY54: -1.9560745 | EZ54: -1.8323478 | FA54: -1.7818364 | FB54: -1.9037114 | FC54: -1.8590161 | FD54: -1.7530288 | FE54: -1.4862931 | FF54: -0.9361772 | FG54: -0.7467273 | FH54: -1.0350321 | FI54: -1.1019879 | FJ54: -0.9859642 | FK54: -0.7886043 | FL54: -0.6764904 | FM54: -0.8299187 | FN54: -0.9533799 | FO54: -0.8687593 | FP54: -0.998977 | FQ54: -1.0981664 | FR54: -1.0221578 | FS54: -1.1165 | FT54: -0.9317677 | FU54: -1.2081937 | FV54: -1.145083 | FW54: -1.0202943 | FX54: -0.4252971 | FY54: -0.6188344 | FZ54: -0.3982364 | GA54: -0.6344916 | GB54: -0.5596767 | GC54: -0.3928839 | GD54: -0.2999633 | GE54: -0.2641572 | GF54: -0.4687575 | GG54: -0.3866034 | GH54: -0.4317867 | GI54: -0.5977866 | GJ54: -0.5417855 | GK54: -0.3754718 | GL54: -0.3536808 | GM54: -0.4451493 | GN54: -0.6503624 | GO54: -0.5463422
A55: 34 | B55: 0.9065934066 | C55: 1.463426214 | D55: -3.711515366 | E55: 8.7153013 | F55: 0.5279315849 | G55: -0.8412662549 | H55: 2.4750215 | I55: 5.6471692 | J55: 2.6393064 | K55: 3.0078628 | M55: Simulation 46 | N55: 0 | O55: -0.2926034 | P55: -1.8187939 | Q55: -1.5586983 | R55: -0.6227771 | S55: 2.4036755 | T55: 4.3750014 | U55: 0.8700052 | V55: 1.367779 | W55: 0.4587951 | X55: 0.3606373 | Y55: -0.4402539 | Z55: 0.1939983 | AA55: -1.0122466 | AB55: -2.0178291 | AC55: -3.171579 | AD55: -2.2539458 | AE55: -3.0839146 | AF55: -1.8946328 | AG55: -1.2060784 | AH55: -1.0191841 | AI55: 0.2297748 | AJ55: 0.0759529 | AK55: -0.4939794 | AL55: 0.7178169 | AM55: 1.0893235 | AN55: 0.9499999 | AO55: 1.4772028 | AP55: 1.5892846 | AQ55: 3.3050624 | AR55: 6.2410855 | AS55: 6.9406975 | AT55: 6.0654597 | AU55: 5.293326 | AV55: 4.8619974 | AW55: 4.0967979 | AX55: 4.3410186 | AY55: 4.7852757 | AZ55: 6.596717 | BA55: 6.762556 | BB55: 6.740135 | BC55: 5.8057404 | BD55: 5.8426012 | BE55: 5.3813978 | BF55: 6.3652455 | BG55: 6.7618267 | BH55: 6.6955289 | BI55: 7.0186699 | BJ55: 10.7039758 | BK55: 10.0444945 | BL55: 9.3004887 | BM55: 10.4591388 | BN55: 16.3390905 | BO55: 16.723703 | BP55: 19.6248447 | BQ55: 18.8222153 | BR55: 21.1098654 | BS55: 19.189133 | BT55: 20.4331133 | BU55: 22.1168375 | BV55: 20.33698 | BW55: 17.7247504 | BX55: 20.3545027 | BY55: 22.632001 | BZ55: 24.645619 | CA55: 26.8347036 | CB55: 28.4195772 | CC55: 25.3297217 | CD55: 25.224821 | CE55: 24.1849217 | CF55: 25.0340761 | CG55: 23.9737798 | CH55: 22.2950807 | CI55: 22.0945882 | CJ55: 22.2993837 | CK55: 20.4382659 | CL55: 22.3245713 | CM55: 22.3958462 | CN55: 19.9110195 | CO55: 21.9347159 | CP55: 23.4240224 | CQ55: 21.4684508 | CR55: 21.7786663 | CS55: 23.550986 | CT55: 20.4611879 | CU55: 21.429021 | CV55: 18.4124635 | CW55: 15.9952602 | CX55: 14.8001104 | CY55: 12.029557 | CZ55: 11.3660179 | DA55: 13.4870482 | DB55: 11.2584666 | DC55: 11.0755115 | DD55: 11.8798946 | DE55: 9.8485397 | DF55: 9.0577417 | DG55: 9.5874253 | DH55: 11.1689041 | DI55: 10.822697 | DJ55: 8.0111949 | DK55: 9.8441743 | DL55: 11.0630673 | DM55: 11.5088885 | DN55: 8.8939006 | DO55: 10.5567496 | DP55: 8.8212466 | DQ55: 9.239859 | DR55: 8.5394973 | DS55: 8.842093 | DT55: 11.6656287 | DU55: 11.9478542 | DV55: 11.2779355 | DW55: 12.5344217 | DX55: 13.6401767 | DY55: 14.9009527 | DZ55: 16.9068546 | EA55: 16.7767795 | EB55: 17.9494387 | EC55: 15.7196551 | ED55: 16.4557897 | EE55: 15.4352093 | EF55: 13.9898154 | EG55: 16.3469924 | EH55: 14.1382825 | EI55: 13.417697 | EJ55: 13.8938424 | EK55: 12.7442258 | EL55: 12.2600956 | EM55: 11.9605407 | EN55: 13.4285224 | EO55: 11.3756629 | EP55: 8.7809757 | EQ55: 8.7184158 | ER55: 8.1059183 | ES55: 7.7305357 | ET55: 6.9287549 | EU55: 6.2686401 | EV55: 7.2886028 | EW55: 7.0182514 | EX55: 6.2357613 | EY55: 5.7665803 | EZ55: 5.2642645 | FA55: 4.9862176 | FB55: 5.7587262 | FC55: 5.629132 | FD55: 6.3857732 | FE55: 7.7454784 | FF55: 7.2230206 | FG55: 5.5875528 | FH55: 5.0121104 | FI55: 3.0996056 | FJ55: 2.5869027 | FK55: 3.0068917 | FL55: 2.6989505 | FM55: 2.4506438 | FN55: 1.6545232 | FO55: 2.0109554 | FP55: 1.3587323 | FQ55: 0.5729072 | FR55: 0.3146941 | FS55: 0.1565575 | FT55: -0.5578086 | FU55: -0.7479813 | FV55: -0.7153856 | FW55: -1.4157946 | FX55: -1.1808601 | FY55: -1.5271003 | FZ55: -1.806588 | GA55: -1.9606136 | GB55: -1.9792082 | GC55: -2.1348734 | GD55: -2.2528238 | GE55: -2.2545894 | GF55: -2.3901687 | GG55: -2.1668941 | GH55: -2.287814 | GI55: -2.2204974 | GJ55: -2.3698733 | GK55: -2.3441911 | GL55: -2.4680446 | GM55: -2.58107 | GN55: -2.5256136 | GO55: -2.5685542
A56: 35 | B56: 0.9340659341 | C56: 1.441053892 | D56: -3.763090935 | E56: 9.1663064 | F56: 0.4486374642 | G56: -0.6590015489 | H56: 2.1543436 | I56: 1.4225464 | J56: 4.1641445 | K56: -2.7415981 | M56: Simulation 47 | N56: 0 | O56: 0.860926 | P56: 0.5085471 | Q56: -1.1400838 | R56: -0.7981383 | S56: -0.2300337 | T56: 0.3574507 | U56: -0.5185933 | V56: 0.2174112 | W56: -1.6123944 | X56: 0.2032811 | Y56: -1.5297268 | Z56: -1.1862283 | AA56: -2.8946953 | AB56: -1.8622661 | AC56: -2.3207108 | AD56: -2.1416596 | AE56: -3.5291785 | AF56: -3.5362702 | AG56: -4.2450638 | AH56: -3.763835 | AI56: -4.1024046 | AJ56: -4.2490026 | AK56: -3.4133272 | AL56: -2.7695517 | AM56: -1.141049 | AN56: -1.354777 | AO56: 0.2060184 | AP56: 0.4711439 | AQ56: 1.6243512 | AR56: 0.0500385 | AS56: -0.6240719 | AT56: -0.6324718 | AU56: -1.6123937 | AV56: -2.535284 | AW56: -4.8367354 | AX56: -5.8142106 | AY56: -5.4681414 | AZ56: -3.9627354 | BA56: -3.5514468 | BB56: -3.9206016 | BC56: -3.9283544 | BD56: -2.8195144 | BE56: -2.6758742 | BF56: -3.4233609 | BG56: -3.3580362 | BH56: -3.2751273 | BI56: -3.6116853 | BJ56: -4.4145031 | BK56: -5.3695215 | BL56: -6.6338725 | BM56: -6.7493358 | BN56: -6.2148561 | BO56: -6.588744 | BP56: -7.005489 | BQ56: -7.2941499 | BR56: -6.8230502 | BS56: -6.7380474 | BT56: -6.6153385 | BU56: -7.1155924 | BV56: -7.8494881 | BW56: -7.5592411 | BX56: -7.8684652 | BY56: -7.9675399 | BZ56: -8.5170263 | CA56: -8.7740176 | CB56: -9.0250819 | CC56: -9.7461047 | CD56: -10.0165799 | CE56: -9.7214505 | CF56: -9.7333957 | CG56: -9.7905764 | CH56: -9.7655261 | CI56: -9.7134076 | CJ56: -9.2132554 | CK56: -9.0047021 | CL56: -9.3482548 | CM56: -9.708594 | CN56: -9.8565757 | CO56: -9.7186541 | CP56: -9.8792287 | CQ56: -9.9950781 | CR56: -10.219218 | CS56: -10.4778124 | CT56: -10.25202 | CU56: -10.4014815 | CV56: -10.0948185 | CW56: -10.1107648 | CX56: -10.0637844 | CY56: -9.8640947 | CZ56: -9.9199354 | DA56: -9.915803 | DB56: -10.0221335 | DC56: -9.4127112 | DD56: -9.7998887 | DE56: -9.6358409 | DF56: -9.6375273 | DG56: -9.5460096 | DH56: -9.5075642 | DI56: -9.3221697 | DJ56: -9.2029941 | DK56: -9.091133 | DL56: -8.7976386 | DM56: -8.698941 | DN56: -8.6966638 | DO56: -8.6711972 | DP56: -8.4114527 | DQ56: -8.3742278 | DR56: -8.3048947 | DS56: -8.3981739 | DT56: -8.4550734 | DU56: -7.4482237 | DV56: -7.6197741 | DW56: -7.6664872 | DX56: -7.4377345 | DY56: -7.4864308 | DZ56: -7.4413188 | EA56: -7.5081565 | EB56: -7.2671042 | EC56: -6.9627199 | ED56: -6.6654147 | EE56: -6.5450295 | EF56: -6.1943876 | EG56: -6.2022746 | EH56: -6.3094129 | EI56: -6.1124252 | EJ56: -6.2115437 | EK56: -6.21375 | EL56: -6.4668209 | EM56: -5.7080614 | EN56: -5.4567297 | EO56: -5.5281912 | EP56: -5.4484922 | EQ56: -5.312032 | ER56: -5.2031518 | ES56: -5.1894655 | ET56: -5.0617604 | EU56: -4.8601651 | EV56: -4.5791325 | EW56: -4.370705 | EX56: -4.0496598 | EY56: -3.8451413 | EZ56: -3.5591713 | FA56: -3.3233034 | FB56: -3.1560327 | FC56: -3.023612 | FD56: -2.8629344 | FE56: -2.4660608 | FF56: -1.7204188 | FG56: -1.5416648 | FH56: -1.7449408 | FI56: -1.7316478 | FJ56: -1.645296 | FK56: -1.5021698 | FL56: -1.6660543 | FM56: -1.6255037 | FN56: -1.5659218 | FO56: -1.2041418 | FP56: -1.1473584 | FQ56: -1.3186902 | FR56: -1.3379899 | FS56: -1.3361338 | FT56: -1.5607999 | FU56: -1.4338269 | FV56: -1.1357054 | FW56: -0.6757967 | FX56: 0.0083503 | FY56: -0.0095887 | FZ56: 0.1498307 | GA56: 0.1455815 | GB56: 0.1283488 | GC56: 0.081383 | GD56: 0.3994066 | GE56: 0.5523983 | GF56: 0.5617428 | GG56: 1.0353004 | GH56: 1.1989211 | GI56: 0.9783687 | GJ56: 0.6738063 | GK56: 0.4531956 | GL56: 0.0564918 | GM56: 0.2075889 | GN56: 0.2750273 | GO56: 0.1624673
A57: 36 | B57: 0.9615384615 | C57: 1.421347305 | D57: -3.820953035 | E57: 8.8935851 | F57: 0.5251100289 | G57: -0.8130428002 | H57: 2.5205726 | I57: 3.3106916 | J57: 4.1641445 | K57: -0.8534529 | M57: Simulation 48 | N57: 0 | O57: 0.7104307 | P57: -0.308093 | Q57: 0.4516483 | R57: 1.4131593 | S57: 0.959908 | T57: 3.3848837 | U57: 2.4174195 | V57: 0.4477893 | W57: 3.04566 | X57: 2.9685843 | Y57: 2.092478 | Z57: 2.465419 | AA57: 2.9899024 | AB57: 3.1462906 | AC57: 0.0569581 | AD57: -0.3319574 | AE57: 0.3606755 | AF57: -0.0452626 | AG57: 0.3960557 | AH57: -0.4588172 | AI57: -0.0174455 | AJ57: -1.640855 | AK57: -1.7799392 | AL57: -1.6910505 | AM57: -1.0341744 | AN57: 0.7094998 | AO57: -0.0361091 | AP57: -0.6850447 | AQ57: -0.1391929 | AR57: 0.4955485 | AS57: -1.0154681 | AT57: -1.9997664 | AU57: -1.4516164 | AV57: -2.0643079 | AW57: -2.8145845 | AX57: -0.8376838 | AY57: -2.322638 | AZ57: 0.2447907 | BA57: -0.82497 | BB57: 1.0078022 | BC57: -0.259975 | BD57: 0.8369289 | BE57: 1.8405961 | BF57: 1.2138124 | BG57: 1.3670473 | BH57: 1.3252416 | BI57: 1.3088519 | BJ57: -0.0873109 | BK57: -1.5808425 | BL57: -1.1889494 | BM57: -2.7954669 | BN57: -2.7199174 | BO57: -2.1321716 | BP57: 0.1447416 | BQ57: -0.2486177 | BR57: 1.7858837 | BS57: 2.0248074 | BT57: 1.6539139 | BU57: 1.0552245 | BV57: 0.414988 | BW57: 1.151542 | BX57: 0.5914915 | BY57: 0.937177 | BZ57: 1.1195131 | CA57: 1.4800527 | CB57: 2.0755528 | CC57: 3.8141734 | CD57: 2.341079 | CE57: -0.9580429 | CF57: -1.1812789 | CG57: -0.4588878 | CH57: 0.8521954 | CI57: -0.0847029 | CJ57: -0.7700337 | CK57: 1.4317807 | CL57: 0.4334662 | CM57: 1.1756576 | CN57: 1.8002899 | CO57: 1.4996473 | CP57: 1.1725247 | CQ57: 0.1684304 | CR57: -1.2474501 | CS57: -1.1636004 | CT57: -0.9911077 | CU57: -1.7442571 | CV57: -1.690021 | CW57: -2.8925107 | CX57: -2.4499296 | CY57: -2.5752863 | CZ57: -3.3418749 | DA57: -2.2729178 | DB57: -1.773232 | DC57: -1.4703569 | DD57: -0.4506824 | DE57: -1.5983028 | DF57: -1.1362239 | DG57: -2.5745391 | DH57: -2.4781892 | DI57: -1.9542681 | DJ57: -1.6959987 | DK57: -1.1837965 | DL57: -0.3612984 | DM57: 0.6862595 | DN57: 1.6005786 | DO57: 2.8657549 | DP57: 2.124614 | DQ57: 1.9606924 | DR57: 2.9562013 | DS57: 4.8773634 | DT57: 6.0690242 | DU57: 9.3640953 | DV57: 8.5275541 | DW57: 7.2419335 | DX57: 6.6676295 | DY57: 5.0467189 | DZ57: 5.0815419 | EA57: 7.4194397 | EB57: 7.5633168 | EC57: 6.327891 | ED57: 7.0838304 | EE57: 8.4685185 | EF57: 8.1049091 | EG57: 6.6389652 | EH57: 7.6133572 | EI57: 7.5482369 | EJ57: 6.1682729 | EK57: 6.2238089 | EL57: 5.0247047 | EM57: 6.4156338 | EN57: 5.5496158 | EO57: 5.2926935 | EP57: 4.1814416 | EQ57: 4.4709096 | ER57: 5.65582 | ES57: 5.958671 | ET57: 5.3339723 | EU57: 5.5162082 | EV57: 5.9785382 | EW57: 6.0504826 | EX57: 5.3730775 | EY57: 4.5738294 | EZ57: 5.5089525 | FA57: 5.8225818 | FB57: 5.5700479 | FC57: 4.6470431 | FD57: 2.9597894 | FE57: 3.1175605 | FF57: 4.238788 | FG57: 4.5371101 | FH57: 5.0381198 | FI57: 4.9398173 | FJ57: 4.6802394 | FK57: 4.6878535 | FL57: 4.630063 | FM57: 5.4086563 | FN57: 4.0841868 | FO57: 3.9040521 | FP57: 3.5149314 | FQ57: 2.8617542 | FR57: 2.8345842 | FS57: 2.71948 | FT57: 2.8627692 | FU57: 2.8353002 | FV57: 2.059863 | FW57: 2.0365101 | FX57: 2.5184343 | FY57: 2.2061622 | FZ57: 1.4685478 | GA57: 1.5231158 | GB57: 1.0240976 | GC57: 1.0794158 | GD57: 0.7542926 | GE57: 0.3276428 | GF57: 0.0801134 | GG57: -0.0153535 | GH57: -0.1059082 | GI57: -0.3229383 | GJ57: -0.3870475 | GK57: -0.3113362 | GL57: -0.5545554 | GM57: -0.70816 | GN57: -0.9499597 | GO57: -1.1264157
A58: 37 | B58: 0.989010989 | C58: 1.397729237 | D58: -3.896882596 | E58: 8.7381887 | F58: 0.4529305729 | G58: -0.6300468889 | H58: 2.1206544 | I58: 3.9168132 | J58: 1.4225464 | K58: 2.4942668 | M58: Simulation 49 | N58: 0 | O58: 0.1887003 | P58: -0.5335039 | Q58: -0.4862763 | R58: -1.4073041 | S58: -1.401598 | T58: -1.2755732 | U58: -1.3276996 | V58: -0.6313346 | W58: -0.9943943 | X58: -1.1942713 | Y58: -0.6614768 | Z58: -1.2192698 | AA58: -0.131378 | AB58: -1.0488912 | AC58: -1.707245 | AD58: -1.513704 | AE58: -1.6866923 | AF58: -1.846863 | AG58: -3.4578966 | AH58: -0.6999867 | AI58: -0.6977987 | AJ58: 0.1016375 | AK58: -1.3190864 | AL58: -0.0009882 | AM58: 1.2040591 | AN58: 1.5205302 | AO58: 0.4856226 | AP58: -0.3026027 | AQ58: -0.1455413 | AR58: -1.5066323 | AS58: -0.1529759 | AT58: -0.9492576 | AU58: 0.1628604 | AV58: 2.2572379 | AW58: 2.9062233 | AX58: 2.3745828 | AY58: -0.7861069 | AZ58: -1.0761024 | BA58: -0.2331044 | BB58: -0.0045288 | BC58: 1.3196392 | BD58: -0.3781939 | BE58: -1.3945372 | BF58: -2.3702056 | BG58: -1.3884275 | BH58: 1.1278563 | BI58: 1.5432257 | BJ58: 0.1660731 | BK58: -0.0117659 | BL58: 0.5475718 | BM58: 2.771214 | BN58: 1.8555317 | BO58: 1.2797767 | BP58: -0.3215833 | BQ58: -0.891646 | BR58: -1.8860095 | BS58: -3.2875177 | BT58: -3.6855574 | BU58: -3.6653021 | BV58: -4.4782886 | BW58: -3.7763692 | BX58: -2.9749898 | BY58: -2.9089718 | BZ58: -3.0811394 | CA58: -2.9310633 | CB58: -2.050734 | CC58: -3.2075565 | CD58: -3.7058104 | CE58: -1.0193108 | CF58: -3.2532715 | CG58: -2.4882476 | CH58: -2.5737593 | CI58: -2.7404471 | CJ58: -1.3660294 | CK58: -0.6499959 | CL58: -0.4781222 | CM58: -1.0598862 | CN58: -0.2954082 | CO58: 0.1908911 | CP58: -0.1161979 | CQ58: -2.8772469 | CR58: -3.2913756 | CS58: -4.4607761 | CT58: -4.492801 | CU58: -5.2524158 | CV58: -5.7229099 | CW58: -4.2837271 | CX58: -4.7402294 | CY58: -5.529265 | CZ58: -5.5871394 | DA58: -5.6992726 | DB58: -7.2450123 | DC58: -5.9942163 | DD58: -4.8182293 | DE58: -3.8561465 | DF58: -4.6682925 | DG58: -3.4264525 | DH58: -3.4585382 | DI58: -2.3472004 | DJ58: -0.1872558 | DK58: 0.0562494 | DL58: -0.9114937 | DM58: -1.3444092 | DN58: -0.6701063 | DO58: -0.0428485 | DP58: -0.8751234 | DQ58: -0.7264541 | DR58: -1.2786051 | DS58: -0.9257462 | DT58: -1.618563 | DU58: -1.0877307 | DV58: -2.0909124 | DW58: -2.3829792 | DX58: -2.7792308 | DY58: -1.8364583 | DZ58: -2.057217 | EA58: -2.4278944 | EB58: -1.3795326 | EC58: -1.8431564 | ED58: -2.100199 | EE58: -2.4066528 | EF58: -3.1016124 | EG58: -2.5326418 | EH58: -2.3780348 | EI58: -2.6645946 | EJ58: -2.3062374 | EK58: -2.8463172 | EL58: -2.8135849 | EM58: -2.4012143 | EN58: -2.8254589 | EO58: -2.7912453 | EP58: -2.8320112 | EQ58: -2.7124799 | ER58: -2.6494274 | ES58: -2.8738721 | ET58: -2.6192716 | EU58: -2.6451855 | EV58: -2.468899 | EW58: -2.0756012 | EX58: -2.3020731 | EY58: -2.1437122 | EZ58: -1.8835355 | FA58: -2.0964971 | FB58: -1.3628681 | FC58: -1.394724 | FD58: -1.564573 | FE58: -1.1024434 | FF58: -0.4653702 | FG58: -0.5923906 | FH58: -0.9563827 | FI58: -0.8605759 | FJ58: -0.6114205 | FK58: -0.4032961 | FL58: -0.883757 | FM58: -1.0325187 | FN58: -0.9517506 | FO58: -0.6754363 | FP58: -0.4641176 | FQ58: -0.3490286 | FR58: -0.7790928 | FS58: -0.6927436 | FT58: -0.6182476 | FU58: -0.6279498 | FV58: -0.9737072 | FW58: -1.0825867 | FX58: -0.5907852 | FY58: -0.5407406 | FZ58: -0.6374938 | GA58: -0.7810096 | GB58: -0.8990088 | GC58: -0.947633 | GD58: -1.1588528 | GE58: -1.0077501 | GF58: -1.1504282 | GG58: -0.9123786 | GH58: -1.1458467 | GI58: -1.1632484 | GJ58: -1.1933342 | GK58: -1.3527339 | GL58: -1.2447623 | GM58: -1.253809 | GN58: -1.2263028 | GO58: -1.2991628
A59: 38 | B59: 1.016483516 | C59: 1.614308457 | D59: -3.46976735 | E59: 9.4986574 | F59: 0.9360531099 | G59: -0.46947496 | H59: 3.4608617 | I59: 4.706633 | J59: 1.4225464 | K59: 3.2840866 | M59: Simulation 50 | N59: 0 | O59: 0.1951693 | P59: -0.1586766 | Q59: 0.749353 | R59: 2.4636065 | S59: 1.8686994 | T59: 0.4709282 | U59: 1.497683 | V59: 0.726269 | W59: -0.3377494 | X59: -0.8500396 | Y59: 0.8932796 | Z59: 3.101133 | AA59: 4.5092708 | AB59: 3.6936428 | AC59: 4.4839073 | AD59: 2.1984626 | AE59: 1.8744785 | AF59: 2.4595357 | AG59: 1.1587863 | AH59: 1.7916543 | AI59: 2.3235502 | AJ59: 3.360883 | AK59: 3.5164013 | AL59: 6.7387303 | AM59: 4.9571445 | AN59: 4.9906151 | AO59: 4.0784309 | AP59: 3.7365132 | AQ59: 3.3291635 | AR59: 4.7550296 | AS59: 3.196617 | AT59: 2.0704903 | AU59: 1.1549846 | AV59: 1.6701939 | AW59: 2.874425 | AX59: 1.2318263 | AY59: 1.6570978 | AZ59: 1.1215129 | BA59: 1.4498997 | BB59: 1.9375197 | BC59: 2.3902811 | BD59: 2.756822 | BE59: 3.062119 | BF59: 4.8384714 | BG59: 1.5197446 | BH59: -1.0186339 | BI59: 0.1439282 | BJ59: 1.6771605 | BK59: 2.1648322 | BL59: 1.7904026 | BM59: 0.8791626 | BN59: 0.9326309 | BO59: 0.9323059 | BP59: -0.3216316 | BQ59: -0.2759518 | BR59: -0.169884 | BS59: 0.9382729 | BT59: 0.9888335 | BU59: 0.100076 | BV59: -0.4215576 | BW59: -0.2654427 | BX59: -0.5418233 | BY59: -1.3809254 | BZ59: -1.1487624 | CA59: -1.7347688 | CB59: -1.3166338 | CC59: -0.2790196 | CD59: -0.7172056 | CE59: -1.3894169 | CF59: -2.5337675 | CG59: -3.6826979 | CH59: -3.9823256 | CI59: -5.6287898 | CJ59: -5.0664607 | CK59: -5.0503364 | CL59: -6.4095215 | CM59: -5.6269726 | CN59: -6.4070297 | CO59: -5.5247722 | CP59: -6.0446158 | CQ59: -6.1721517 | CR59: -5.6869998 | CS59: -5.7153875 | CT59: -6.420743 | CU59: -6.6263955 | CV59: -6.8197882 | CW59: -7.8051955 | CX59: -7.9600907 | CY59: -7.7647161 | CZ59: -7.7911701 | DA59: -7.7449146 | DB59: -7.8131946 | DC59: -6.7511203 | DD59: -7.0802574 | DE59: -6.964723 | DF59: -7.2089057 | DG59: -7.0435562 | DH59: -6.6948259 | DI59: -6.9629648 | DJ59: -7.0455469 | DK59: -6.5174064 | DL59: -6.1146861 | DM59: -6.2183377 | DN59: -6.3814843 | DO59: -6.4984734 | DP59: -5.908625 | DQ59: -6.056373 | DR59: -6.4734638 | DS59: -5.9529732 | DT59: -6.7031301 | DU59: -5.9300148 | DV59: -5.7788874 | DW59: -5.5172682 | DX59: -5.6362207 | DY59: -5.8723996 | DZ59: -5.9030657 | EA59: -5.49012 | EB59: -5.6113488 | EC59: -5.5170907 | ED59: -5.2390313 | EE59: -5.2151123 | EF59: -4.9913102 | EG59: -4.9467505 | EH59: -4.8373515 | EI59: -4.7704131 | EJ59: -4.588864 | EK59: -4.4214083 | EL59: -4.4829011 | EM59: -4.0628277 | EN59: -3.9888263 | EO59: -3.6519732 | EP59: -3.975357 | EQ59: -3.521804 | ER59: -3.2599284 | ES59: -3.1500223 | ET59: -3.1735512 | EU59: -2.93331 | EV59: -2.6723424 | EW59: -2.459201 | EX59: -2.4685264 | EY59: -2.4016306 | EZ59: -2.4176911 | FA59: -2.2068608 | FB59: -2.1029435 | FC59: -1.9715813 | FD59: -1.9928507 | FE59: -1.8097494 | FF59: -1.746998 | FG59: -1.7016878 | FH59: -1.6819497 | FI59: -1.7430398 | FJ59: -1.5942246 | FK59: -1.5840871 | FL59: -1.5946501 | FM59: -1.5644924 | FN59: -1.6357902 | FO59: -1.5654077 | FP59: -1.7058164 | FQ59: -1.6277595 | FR59: -1.7718465 | FS59: -1.7142689 | FT59: -1.8582706 | FU59: -1.9797999 | FV59: -1.9734708 | FW59: -2.0121551 | FX59: -1.7684239 | FY59: -1.8161575 | FZ59: -1.9201856 | GA59: -1.8249768 | GB59: -1.7643569 | GC59: -1.8404718 | GD59: -1.7183784 | GE59: -1.6994562 | GF59: -1.8400503 | GG59: -1.7604268 | GH59: -1.8624257 | GI59: -1.8314455 | GJ59: -1.9869778 | GK59: -1.9922499 | GL59: -1.9899538 | GM59: -1.9087736 | GN59: -2.0227595 | GO59: -1.9719891
A60: 39 | B60: 1.043956044 | C60: 1.600655484 | D60: -3.500030852 | E60: 9.847959 | F60: 0.8820942127 | G60: -0.2823162217 | H60: 2.9436092 | I60: 4.2866394 | J60: 3.9168132 | K60: 0.3698262 | M60: Simulation 51 | N60: 0 | O60: 0.0070599 | P60: -1.8430408 | Q60: -1.9873083 | R60: -1.816274 | S60: -1.2886353 | T60: -2.8057437 | U60: -3.2044148 | V60: -2.6000962 | W60: -1.5656072 | X60: -2.2076342 | Y60: -1.5749601 | Z60: -1.6476219 | AA60: -2.7649328 | AB60: -3.3697303 | AC60: -2.0535023 | AD60: -1.8306055 | AE60: -2.4696563 | AF60: -2.9731482 | AG60: -1.6109696 | AH60: 1.0695164 | AI60: 2.6545432 | AJ60: 1.4687428 | AK60: 1.4149224 | AL60: 1.3548688 | AM60: 1.4094109 | AN60: 2.7436322 | AO60: 0.8012742 | AP60: -0.4728116 | AQ60: -1.0545411 | AR60: -1.8778844 | AS60: -1.8556099 | AT60: -2.449487 | AU60: -0.7886672 | AV60: -1.1201374 | AW60: -2.7119781 | AX60: -3.144193 | AY60: -4.2037377 | AZ60: -3.4793522 | BA60: -2.6788315 | BB60: -3.1111425 | BC60: -3.8140078 | BD60: -3.3805878 | BE60: -4.4403495 | BF60: -4.8747467 | BG60: -5.884644 | BH60: -6.6371798 | BI60: -6.7550599 | BJ60: -6.5107222 | BK60: -6.4465328 | BL60: -6.873207 | BM60: -6.7425661 | BN60: -6.6705434 | BO60: -7.3177171 | BP60: -7.6301117 | BQ60: -8.3057636 | BR60: -7.711427 | BS60: -7.3364508 | BT60: -7.3634846 | BU60: -7.4456579 | BV60: -7.6722184 | BW60: -7.917038 | BX60: -7.53252 | BY60: -7.3421039 | BZ60: -6.5940112 | CA60: -6.123909 | CB60: -6.3810234 | CC60: -6.6776863 | CD60: -6.0025927 | CE60: -5.6853099 | CF60: -5.5670807 | CG60: -5.3697706 | CH60: -5.8535008 | CI60: -5.3641231 | CJ60: -4.8084357 | CK60: -4.1172685 | CL60: -3.9493959 | CM60: -4.4390257 | CN60: -4.881256 | CO60: -4.7861253 | CP60: -4.1438896 | CQ60: -3.8946316 | CR60: -2.9447014 | CS60: -2.5326039 | CT60: -2.030372 | CU60: -1.9154427 | CV60: -1.0160545 | CW60: -0.7904325 | CX60: -0.7142046 | CY60: -0.8593195 | CZ60: -1.4002947 | DA60: -2.5958813 | DB60: -1.5268419 | DC60: -0.5150156 | DD60: -0.3484508 | DE60: -1.1197554 | DF60: -1.0317633 | DG60: -0.9584808 | DH60: -1.1700785 | DI60: -0.5395721 | DJ60: -0.8675686 | DK60: -0.4924704 | DL60: -0.6164953 | DM60: -0.7732003 | DN60: -0.1234851 | DO60: 0.1147238 | DP60: 0.1634723 | DQ60: -0.2003537 | DR60: 1.4472403 | DS60: 1.3833258 | DT60: 0.7864613 | DU60: 1.052936 | DV60: 0.541531 | DW60: 0.5835398 | DX60: 0.4696789 | DY60: 0.8704482 | DZ60: 1.2165465 | EA60: 1.4370638 | EB60: 1.4547728 | EC60: 1.1597881 | ED60: 0.9217505 | EE60: 0.9709313 | EF60: 1.6535591 | EG60: 1.6107921 | EH60: 2.2184264 | EI60: 2.5177502 | EJ60: 2.6598801 | EK60: 2.4065431 | EL60: 2.8784503 | EM60: 3.2578807 | EN60: 2.2568729 | EO60: 2.7933041 | EP60: 2.1869074 | EQ60: 2.1503387 | ER60: 2.2107455 | ES60: 2.1808536 | ET60: 2.3622848 | EU60: 2.004045 | EV60: 2.1061488 | EW60: 2.14639 | EX60: 2.2102768 | EY60: 2.305406 | EZ60: 2.3112728 | FA60: 2.5905102 | FB60: 2.6796648 | FC60: 2.5824416 | FD60: 2.4684251 | FE60: 2.9634168 | FF60: 3.2274241 | FG60: 3.1366336 | FH60: 2.9990436 | FI60: 2.9960484 | FJ60: 3.2017896 | FK60: 3.1625397 | FL60: 2.9311332 | FM60: 2.7230578 | FN60: 2.5868946 | FO60: 2.729729 | FP60: 2.51401 | FQ60: 2.6404697 | FR60: 2.536215 | FS60: 2.2544327 | FT60: 2.3407307 | FU60: 2.3386575 | FV60: 2.1705753 | FW60: 2.6083837 | FX60: 3.2650202 | FY60: 3.1905543 | FZ60: 3.5922147 | GA60: 3.7790334 | GB60: 3.7585815 | GC60: 3.5487005 | GD60: 3.3789686 | GE60: 3.4765753 | GF60: 3.7554434 | GG60: 3.7401934 | GH60: 3.8225833 | GI60: 4.323067 | GJ60: 4.2550261 | GK60: 4.1234352 | GL60: 3.7619408 | GM60: 4.1420286 | GN60: 4.0234539 | GO60: 4.3270115
A61: 40 | B61: 1.071428571 | C61: 1.620135661 | D61: -3.534181135 | E61: 9.9136722 | F61: 0.9895506533 | G61: -0.4044427677 | H61: 3.4223589 | I61: 6.0821948 | J61: 3.9168132 | K61: 2.1653816 | M61: Simulation 52 | N61: 0 | O61: -0.5396263 | P61: -0.4418919 | Q61: 0.3256625 | R61: 0.6070539 | S61: 1.1205171 | T61: -1.744296 | U61: 0.4427658 | V61: 2.1423535 | W61: 2.279502 | X61: 3.5749721 | Y61: 4.6999845 | Z61: 3.3564193 | AA61: 4.5005478 | AB61: 4.2859365 | AC61: 4.0314431 | AD61: 6.9567963 | AE61: 7.8937111 | AF61: 6.0014704 | AG61: 3.4968664 | AH61: 2.8651973 | AI61: 3.8383589 | AJ61: 1.3464733 | AK61: -0.4027349 | AL61: -0.001766 | AM61: 1.3955098 | AN61: 3.554614 | AO61: 4.2871738 | AP61: 3.8942729 | AQ61: 3.3123458 | AR61: 0.4464968 | AS61: 0.29532 | AT61: -0.8898568 | AU61: -0.9620888 | AV61: -1.0669993 | AW61: -1.078776 | AX61: -2.6375219 | AY61: -4.0676167 | AZ61: -5.1646265 | BA61: -4.7495012 | BB61: -5.2829461 | BC61: -5.9729302 | BD61: -5.5145618 | BE61: -6.5562354 | BF61: -6.1993688 | BG61: -7.5490564 | BH61: -8.1087467 | BI61: -8.6604634 | BJ61: -8.6557192 | BK61: -8.892379 | BL61: -8.5984004 | BM61: -9.4473086 | BN61: -9.8945129 | BO61: -9.7895356 | BP61: -8.3799748 | BQ61: -8.5813811 | BR61: -8.0814583 | BS61: -8.3321659 | BT61: -8.6972605 | BU61: -8.7506044 | BV61: -8.7019875 | BW61: -9.1203123 | BX61: -9.0819429 | BY61: -9.2780367 | BZ61: -8.4388397 | CA61: -8.5388325 | CB61: -7.7894108 | CC61: -7.250062 | CD61: -6.9428761 | CE61: -6.3627443 | CF61: -5.8425813 | CG61: -5.1431164 | CH61: -5.6890559 | CI61: -5.5583678 | CJ61: -5.530617 | CK61: -5.236167 | CL61: -4.0516649 | CM61: -3.8960244 | CN61: -3.4346752 | CO61: -2.2049038 | CP61: -1.616577 | CQ61: 0.4299991 | CR61: 1.2750782 | CS61: 2.1681609 | CT61: 2.4712495 | CU61: 0.9427994 | CV61: 0.6893 | CW61: 1.331633 | CX61: 1.713726 | CY61: 0.0459674 | CZ61: 0.6817807 | DA61: 1.3019074 | DB61: 1.952972 | DC61: 2.832157 | DD61: 2.9761503 | DE61: 1.9843266 | DF61: 2.2560288 | DG61: 4.3490496 | DH61: 4.6385697 | DI61: 4.8835472 | DJ61: 5.9265201 | DK61: 5.5621384 | DL61: 7.0470393 | DM61: 6.5893544 | DN61: 6.4871891 | DO61: 7.2052538 | DP61: 9.7367949 | DQ61: 9.0156621 | DR61: 9.4945878 | DS61: 8.8426812 | DT61: 10.5424473 | DU61: 11.5132937 | DV61: 13.3194955 | DW61: 14.1867231 | DX61: 13.5946911 | DY61: 15.6213551 | DZ61: 14.4332779 | EA61: 13.2842368 | EB61: 11.9254456 | EC61: 11.5252659 | ED61: 10.5358499 | EE61: 9.6892791 | EF61: 10.202966 | EG61: 10.6205724 | EH61: 11.4252972 | EI61: 11.2564207 | EJ61: 12.1018612 | EK61: 12.7501264 | EL61: 11.7287388 | EM61: 11.2026465 | EN61: 9.9063444 | EO61: 9.4611798 | EP61: 10.2042515 | EQ61: 10.8164582 | ER61: 11.8877382 | ES61: 12.6994863 | ET61: 13.3139791 | EU61: 13.6859717 | EV61: 13.1839482 | EW61: 12.4290693 | EX61: 13.6926869 | EY61: 13.0870658 | EZ61: 14.2371543 | FA61: 12.7248492 | FB61: 12.1495717 | FC61: 11.4208775 | FD61: 11.1459097 | FE61: 10.8994336 | FF61: 8.7391544 | FG61: 9.1405076 | FH61: 8.5100097 | FI61: 8.6372129 | FJ61: 8.014184 | FK61: 8.0783875 | FL61: 7.3154115 | FM61: 6.1576905 | FN61: 4.8322344 | FO61: 5.0540961 | FP61: 5.0724219 | FQ61: 4.9180032 | FR61: 4.5423392 | FS61: 4.1073968 | FT61: 3.3941853 | FU61: 2.742218 | FV61: 2.2232119 | FW61: 1.8754295 | FX61: 2.5996736 | FY61: 2.812405 | FZ61: 1.9915494 | GA61: 1.4944071 | GB61: 0.8452819 | GC61: 0.8222265 | GD61: 0.7168188 | GE61: 0.662386 | GF61: 0.5804135 | GG61: 0.6362411 | GH61: 0.4788493 | GI61: 0.2863928 | GJ61: 0.1195816 | GK61: -0.1622503 | GL61: -0.3390032 | GM61: -0.5963283 | GN61: -0.8126549 | GO61: -1.0039919
A62: 41 | B62: 1.098901099 | C62: 1.63880609 | D62: -3.601220446 | E62: 9.9971093 | F62: 0.5203736493 | G62: -0.5834126361 | H62: 2.4000984 | I62: 5.0508648 | J62: 4.2866394 | K62: 0.7642254 | M62: Simulation 53 | N62: 0 | O62: 0.1528295 | P62: -0.6644859 | Q62: 0.8348829 | R62: -0.1728072 | S62: -0.9647701 | T62: -0.2721064 | U62: 0.6423174 | V62: -0.4152123 | W62: 0.0729838 | X62: -0.1177835 | Y62: 1.6156319 | Z62: 3.0334019 | AA62: 3.4623035 | AB62: 2.6970904 | AC62: 3.1727862 | AD62: 4.3054774 | AE62: 3.939717 | AF62: 6.0563602 | AG62: 4.1463718 | AH62: 5.7630403 | AI62: 6.492698 | AJ62: 8.4817782 | AK62: 8.6348535 | AL62: 8.5053709 | AM62: 7.1769666 | AN62: 6.40092 | AO62: 4.8231602 | AP62: 5.1348216 | AQ62: 5.5106371 | AR62: 5.9627589 | AS62: 7.2237586 | AT62: 5.6971137 | AU62: 5.0734809 | AV62: 6.5557191 | AW62: 5.6231327 | AX62: 5.3171864 | AY62: 5.1507123 | AZ62: 3.7665819 | BA62: 1.0688034 | BB62: 0.7726988 | BC62: -0.0650645 | BD62: -0.0032569 | BE62: -0.0516971 | BF62: 1.3976073 | BG62: 0.8079425 | BH62: -0.1078922 | BI62: 0.3756956 | BJ62: -0.6976322 | BK62: -2.1554029 | BL62: -2.1273889 | BM62: -3.2846385 | BN62: -3.8960803 | BO62: -4.8836428 | BP62: -4.7589394 | BQ62: -4.9079163 | BR62: -3.7459403 | BS62: -3.8774671 | BT62: -3.0847985 | BU62: -4.1783646 | BV62: -3.1487771 | BW62: -3.916418 | BX62: -3.1051723 | BY62: -3.6279669 | BZ62: -3.4784608 | CA62: -3.5047847 | CB62: -3.3626041 | CC62: -3.0615461 | CD62: -4.0187145 | CE62: -3.983412 | CF62: -4.4930739 | CG62: -4.697187 | CH62: -4.34631 | CI62: -4.3100787 | CJ62: -3.774863 | CK62: -3.1577839 | CL62: -3.5338808 | CM62: -3.1513143 | CN62: -3.3769708 | CO62: -3.9488255 | CP62: -3.1456093 | CQ62: -3.1363751 | CR62: -3.4666373 | CS62: -2.8527011 | CT62: -2.9976384 | CU62: -2.9680008 | CV62: -2.8529999 | CW62: -3.1991667 | CX62: -3.1649801 | CY62: -3.2697946 | CZ62: -3.6600209 | DA62: -3.2598332 | DB62: -2.6882625 | DC62: -2.5195516 | DD62: -2.5915335 | DE62: -3.1688267 | DF62: -2.8124951 | DG62: -2.8773807 | DH62: -2.8325462 | DI62: -2.5338291 | DJ62: -2.7170308 | DK62: -2.3404266 | DL62: -2.0558256 | DM62: -2.6581782 | DN62: -2.7970893 | DO62: -2.8288024 | DP62: -3.2793642 | DQ62: -3.6364043 | DR62: -3.9149936 | DS62: -2.8307023 | DT62: -2.5173316 | DU62: -2.4597685 | DV62: -2.2034033 | DW62: -2.5277027 | DX62: -2.322664 | DY62: -2.7663937 | DZ62: -2.5333013 | EA62: -2.3209608 | EB62: -1.3495224 | EC62: -1.9130158 | ED62: -1.9981147 | EE62: -1.9634343 | EF62: -1.9998955 | EG62: -1.6599191 | EH62: -1.6505235 | EI62: -1.6484866 | EJ62: -2.4397746 | EK62: -2.970385 | EL62: -2.4082089 | EM62: -1.7910978 | EN62: -1.916878 | EO62: -1.8645625 | EP62: -1.9349896 | EQ62: -2.070163 | ER62: -2.0810021 | ES62: -2.2919979 | ET62: -2.3011217 | EU62: -2.1165491 | EV62: -1.797717 | EW62: -1.8567975 | EX62: -1.8251968 | EY62: -1.9992556 | EZ62: -2.0868663 | FA62: -2.2584561 | FB62: -2.1081296 | FC62: -2.0660972 | FD62: -1.9242595 | FE62: -1.6510092 | FF62: -1.3245747 | FG62: -1.2943199 | FH62: -1.1708128 | FI62: -1.3715106 | FJ62: -1.3058157 | FK62: -1.2138634 | FL62: -1.2241989 | FM62: -1.2659555 | FN62: -1.1736152 | FO62: -0.9286083 | FP62: -0.7220185 | FQ62: -0.6008697 | FR62: -0.602092 | FS62: -0.407359 | FT62: -0.3386825 | FU62: -0.3392964 | FV62: -0.7835235 | FW62: -0.63459 | FX62: -0.217629 | FY62: -0.1552321 | FZ62: -0.2533305 | GA62: -0.4207879 | GB62: -0.3641751 | GC62: -0.241479 | GD62: -0.2109911 | GE62: -0.1209516 | GF62: 0.014187 | GG62: 0.3568052 | GH62: 0.346941 | GI62: 0.20213 | GJ62: 0.0926573 | GK62: 0.3270655 | GL62: 0.3591446 | GM62: 0.065136 | GN62: 0.0817967 | GO62: 0.0553634
A63: 42 | B63: 1.126373626 | C63: 1.636987905 | D63: -3.667524242 | E63: 10.0557169 | F63: 0.6080576752 | G63: -0.739218644 | H63: 2.861051 | I63: 6.1723427 | J63: 4.2866394 | K63: 1.8857033 | M63: Simulation 54 | N63: 0 | O63: 0.485977 | P63: 0.2312711 | Q63: 0.5801829 | R63: -0.8048036 | S63: -2.6959537 | T63: -1.3842813 | U63: -1.6700997 | V63: -1.1144918 | W63: -1.5332131 | X63: -2.3353805 | Y63: -3.8051076 | Z63: -3.4383911 | AA63: -4.44728 | AB63: -3.9492718 | AC63: -2.7559505 | AD63: -3.4124448 | AE63: -0.9753779 | AF63: -1.179836 | AG63: -1.586536 | AH63: -1.4459725 | AI63: -2.0329056 | AJ63: -4.1345942 | AK63: -3.7946962 | AL63: -4.4151353 | AM63: -4.2320585 | AN63: -4.3025904 | AO63: -3.0768465 | AP63: -4.5131891 | AQ63: -3.566937 | AR63: -2.1407571 | AS63: -3.3838687 | AT63: -3.8532232 | AU63: -3.3782841 | AV63: -0.9555886 | AW63: -1.1899816 | AX63: -1.7193051 | AY63: -0.9601459 | AZ63: 0.5176904 | BA63: 2.4152089 | BB63: 1.3367991 | BC63: 1.5424374 | BD63: 0.4950274 | BE63: -0.8867448 | BF63: -0.3622437 | BG63: 0.0988333 | BH63: 0.4861177 | BI63: -0.0878646 | BJ63: -0.3222826 | BK63: -1.9858966 | BL63: -2.388806 | BM63: -0.3684322 | BN63: -0.1447776 | BO63: -0.4019665 | BP63: -0.7193183 | BQ63: 0.0470879 | BR63: 2.1456711 | BS63: 3.7120775 | BT63: 2.6057221 | BU63: 2.3102975 | BV63: 1.5430127 | BW63: 1.0223915 | BX63: -0.98046 | BY63: -2.070669 | BZ63: -3.5751835 | CA63: -3.5031769 | CB63: -3.2779354 | CC63: -2.6535618 | CD63: -1.0626072 | CE63: -0.7951458 | CF63: -0.8829913 | CG63: -0.6116412 | CH63: -0.6783273 | CI63: -0.5066233 | CJ63: -0.2512706 | CK63: 0.6054511 | CL63: 0.0715352 | CM63: 0.58864 | CN63: -1.5023203 | CO63: -2.724523 | CP63: -1.447929 | CQ63: -2.0922221 | CR63: -2.4128987 | CS63: -2.1422207 | CT63: -2.1350992 | CU63: -2.045544 | CV63: -1.5871528 | CW63: -2.4563994 | CX63: -2.4357849 | CY63: -2.9919192 | CZ63: -3.1268777 | DA63: -3.0733383 | DB63: -3.5317946 | DC63: -3.0780143 | DD63: -3.8798795 | DE63: -4.0370502 | DF63: -3.5724683 | DG63: -4.12621 | DH63: -4.3069397 | DI63: -4.0220802 | DJ63: -3.5125575 | DK63: -3.9167253 | DL63: -4.012741 | DM63: -3.2394257 | DN63: -3.5861231 | DO63: -2.8758123 | DP63: -3.0151373 | DQ63: -3.1969807 | DR63: -3.2407305 | DS63: -3.8618884 | DT63: -3.9241038 | DU63: -2.6187808 | DV63: -2.8351798 | DW63: -2.3397224 | DX63: -2.6129824 | DY63: -2.4840375 | DZ63: -2.4032631 | EA63: -2.4880529 | EB63: -2.7473779 | EC63: -2.7137527 | ED63: -2.4693127 | EE63: -2.5676471 | EF63: -2.4505274 | EG63: -2.2554741 | EH63: -2.2017463 | EI63: -2.2460356 | EJ63: -2.7539033 | EK63: -2.3583737 | EL63: -2.1832789 | EM63: -0.8246973 | EN63: -1.0237005 | EO63: -1.1166693 | EP63: -1.009972 | EQ63: -1.1809056 | ER63: -1.5912457 | ES63: -1.6417704 | ET63: -2.0385557 | EU63: -2.5698013 | EV63: -2.3018131 | EW63: -2.1185926 | EX63: -2.0898749 | EY63: -2.0673195 | EZ63: -2.0171657 | FA63: -1.9054369 | FB63: -1.8357399 | FC63: -1.758178 | FD63: -1.4818112 | FE63: -0.7480481 | FF63: -0.2314883 | FG63: -0.3737125 | FH63: -0.2626338 | FI63: -0.3085718 | FJ63: -0.204405 | FK63: -0.0024614 | FL63: 0.1628085 | FM63: 0.2652483 | FN63: 0.1485226 | FO63: 0.3307917 | FP63: 0.3150263 | FQ63: 0.4067049 | FR63: 0.2985391 | FS63: 0.16235 | FT63: 0.1966319 | FU63: 0.1709998 | FV63: -0.096979 | FW63: -0.0481683 | FX63: 0.2406197 | FY63: 0.3799518 | FZ63: 0.3879878 | GA63: 0.3807287 | GB63: 0.2089698 | GC63: 0.233558 | GD63: 0.202335 | GE63: 0.2467535 | GF63: 0.1252076 | GG63: 0.5636626 | GH63: 0.5783912 | GI63: 0.6303726 | GJ63: 0.6913883 | GK63: 0.8042254 | GL63: 1.2376589 | GM63: 1.4788701 | GN63: 1.6633621 | GO63: 1.8866186
A64: 43 | B64: 1.153846154 | C64: 1.59224397 | D64: -3.70990815 | E64: 10.1708493 | F64: 0.4599301338 | G64: -0.6151799581 | H64: 2.0766196 | I64: 3.4510872 | J64: 5.0508648 | K64: -1.5997776 | M64: Simulation 55 | N64: 0 | O64: -0.2130266 | P64: -2.4231562 | Q64: -4.8487629 | R64: -5.9140552 | S64: -4.9444414 | T64: -3.7072622 | U64: -4.0080372 | V64: -4.766363 | W64: -3.9994819 | X64: -6.0243418 | Y64: -5.8718369 | Z64: -7.257541 | AA64: -6.8254917 | AB64: -4.9730341 | AC64: -3.7341264 | AD64: -3.7127995 | AE64: -4.911594 | AF64: -3.6868171 | AG64: -4.1724952 | AH64: -4.7911868 | AI64: -6.723601 | AJ64: -7.272843 | AK64: -6.8622354 | AL64: -6.4545251 | AM64: -4.5481686 | AN64: -5.0352268 | AO64: -3.6919841 | AP64: -3.2149233 | AQ64: -3.2436619 | AR64: -3.0171267 | AS64: -1.807191 | AT64: -2.6390453 | AU64: -0.2695941 | AV64: -1.0782541 | AW64: -2.3997716 | AX64: -1.3904573 | AY64: -2.0399199 | AZ64: 1.2081578 | BA64: -0.0544148 | BB64: -0.3881431 | BC64: -0.0957142 | BD64: -0.6620616 | BE64: -0.7079195 | BF64: -2.6175843 | BG64: -2.5861826 | BH64: -2.1113048 | BI64: -1.4877087 | BJ64: -0.772156 | BK64: -0.4828479 | BL64: 2.4937039 | BM64: 1.8912985 | BN64: 1.731666 | BO64: 0.8714928 | BP64: 1.0607538 | BQ64: 1.0093751 | BR64: 0.421935 | BS64: 1.4321729 | BT64: 3.6076296 | BU64: 4.3961214 | BV64: 2.6771615 | BW64: 5.2543952 | BX64: 4.5290781 | BY64: 1.8329313 | BZ64: 1.358532 | CA64: 2.4108009 | CB64: 3.881321 | CC64: 4.0022291 | CD64: 3.0683883 | CE64: 2.5062557 | CF64: 3.5162543 | CG64: 3.0718046 | CH64: 1.9294022 | CI64: 2.5040887 | CJ64: 0.5324063 | CK64: 2.1628696 | CL64: 2.0696743 | CM64: 1.0985565 | CN64: 1.7077212 | CO64: 1.5718151 | CP64: 0.835927 | CQ64: -0.158066 | CR64: -0.8129771 | CS64: -0.6222869 | CT64: 0.7794296 | CU64: 1.0480202 | CV64: 2.2706638 | CW64: 3.5858043 | CX64: 3.4698052 | CY64: 1.9686155 | CZ64: 3.8419504 | DA64: 3.130706 | DB64: 3.844733 | DC64: 4.2944231 | DD64: 4.7421294 | DE64: 5.1877933 | DF64: 3.4801524 | DG64: 2.547367 | DH64: 3.2665824 | DI64: 2.0118138 | DJ64: 1.6785803 | DK64: 2.438076 | DL64: 2.6267692 | DM64: 3.409161 | DN64: 1.1227387 | DO64: 0.9167152 | DP64: 0.0533606 | DQ64: 0.6646844 | DR64: 2.8357259 | DS64: 2.9454465 | DT64: 4.4182679 | DU64: 3.3185257 | DV64: 3.2326402 | DW64: 3.6883004 | DX64: 3.1067319 | DY64: 2.5761812 | DZ64: 3.2467165 | EA64: 2.5918097 | EB64: 3.5438933 | EC64: 4.2333851 | ED64: 4.4514237 | EE64: 4.1229081 | EF64: 2.8825653 | EG64: 3.8351697 | EH64: 3.7056776 | EI64: 4.4555346 | EJ64: 3.7963927 | EK64: 1.5050168 | EL64: 1.4391733 | EM64: 1.7148853 | EN64: 0.4196726 | EO64: 0.6365293 | EP64: 1.2514145 | EQ64: 0.2503676 | ER64: 0.1040985 | ES64: -0.7661603 | ET64: -1.1308502 | EU64: -0.8389527 | EV64: -1.2938014 | EW64: -1.4733183 | EX64: -1.6440416 | EY64: -1.7763517 | EZ64: -1.7367541 | FA64: -1.742786 | FB64: -1.7686481 | FC64: -1.7235364 | FD64: -1.8134672 | FE64: -2.0001204 | FF64: -1.7611796 | FG64: -1.659593 | FH64: -1.6422354 | FI64: -1.5299238 | FJ64: -1.3994212 | FK64: -1.5450905 | FL64: -1.6982542 | FM64: -1.730001 | FN64: -1.7764375 | FO64: -1.8748158 | FP64: -1.8742934 | FQ64: -1.8901776 | FR64: -1.9185129 | FS64: -2.0391811 | FT64: -2.316928 | FU64: -2.2284051 | FV64: -2.3036325 | FW64: -2.4610133 | FX64: -2.3073391 | FY64: -2.3856516 | FZ64: -2.3558239 | GA64: -2.3305419 | GB64: -2.1821051 | GC64: -2.1169581 | GD64: -2.1433805 | GE64: -2.0746068 | GF64: -2.0542776 | GG64: -1.9675262 | GH64: -1.952212 | GI64: -1.8326652 | GJ64: -1.8420443 | GK64: -1.7892594 | GL64: -1.7915932 | GM64: -1.7793038 | GN64: -1.8431044 | GO64: -1.7169581
A65: 44 | B65: 1.181318681 | C65: 1.621290056 | D65: -3.753731047 | E65: 9.9279031 | F65: 0.5519648622 | G65: -0.721991498 | H65: 2.5536287 | I65: 4.7052753 | J65: 5.0508648 | K65: -0.3455895 | M65: Simulation 56 | N65: 0 | O65: -0.9018011 | P65: -0.6918729 | Q65: 0.5978691 | R65: -0.5719398 | S65: 0.3923348 | T65: 1.4312874 | U65: 0.4205033 | V65: 1.1482659 | W65: 1.0893593 | X65: 2.0187563 | Y65: 3.398428 | Z65: 5.0682274 | AA65: 2.9912922 | AB65: 3.0731419 | AC65: 2.5419454 | AD65: 1.4169638 | AE65: 2.3911484 | AF65: 4.2915877 | AG65: 1.4583686 | AH65: 1.1505887 | AI65: 2.100886 | AJ65: 2.3607483 | AK65: 1.9712429 | AL65: 3.8384926 | AM65: 2.7609922 | AN65: 3.0701373 | AO65: 3.7540571 | AP65: 4.163035 | AQ65: 2.5006941 | AR65: 0.2106829 | AS65: -0.1784184 | AT65: 0.4701149 | AU65: 0.2883537 | AV65: -1.4269862 | AW65: -0.5025733 | AX65: -0.4767354 | AY65: -1.7546598 | AZ65: 0.1126112 | BA65: -1.4718249 | BB65: -1.6896477 | BC65: -1.6771612 | BD65: -2.2833716 | BE65: -1.3931358 | BF65: -1.8454115 | BG65: -3.7490745 | BH65: -1.5969195 | BI65: -0.2314054 | BJ65: 0.4892632 | BK65: 1.6317529 | BL65: 0.9188519 | BM65: 0.1072244 | BN65: -1.0210148 | BO65: -0.9617473 | BP65: -1.4554976 | BQ65: -2.1399702 | BR65: -1.8739439 | BS65: -1.654844 | BT65: -2.2236249 | BU65: -1.3945415 | BV65: 0.141614 | BW65: 1.072436 | BX65: 0.7003308 | BY65: -1.026905 | BZ65: 0.2354764 | CA65: 0.1152879 | CB65: -1.0964689 | CC65: -1.1828794 | CD65: -0.1935736 | CE65: 0.4255416 | CF65: -0.4755545 | CG65: 0.0267753 | CH65: -0.9622148 | CI65: 0.4388431 | CJ65: 0.4318293 | CK65: 0.8983974 | CL65: 0.1117062 | CM65: -0.8495444 | CN65: -0.6014835 | CO65: -0.668565 | CP65: -1.3291346 | CQ65: -2.1737759 | CR65: -2.8670792 | CS65: -1.6930811 | CT65: -2.149368 | CU65: -2.2950263 | CV65: -1.4234819 | CW65: -1.9502978 | CX65: -2.6786506 | CY65: -3.01741 | CZ65: -2.6290253 | DA65: -2.9440392 | DB65: -3.2798311 | DC65: -2.4649682 | DD65: -2.421139 | DE65: -2.7941812 | DF65: -2.7853514 | DG65: -2.8261933 | DH65: -3.168803 | DI65: -3.1342734 | DJ65: -3.1303932 | DK65: -3.4283626 | DL65: -3.8140801 | DM65: -4.1586258 | DN65: -3.8801712 | DO65: -3.3824427 | DP65: -3.3616155 | DQ65: -3.235963 | DR65: -3.3259916 | DS65: -3.2580968 | DT65: -3.5939832 | DU65: -3.0375834 | DV65: -2.8721185 | DW65: -2.8660619 | DX65: -2.4217611 | DY65: -2.1893108 | DZ65: -2.5643947 | EA65: -2.1698435 | EB65: -2.4409651 | EC65: -2.4850348 | ED65: -2.2657091 | EE65: -2.0951973 | EF65: -1.7445663 | EG65: -1.7892637 | EH65: -1.5781777 | EI65: -1.7655816 | EJ65: -1.7991572 | EK65: -1.758458 | EL65: -1.7252718 | EM65: -1.1328002 | EN65: -1.3735743 | EO65: -1.2862002 | EP65: -0.9679332 | EQ65: -1.1355446 | ER65: -1.2018599 | ES65: -0.8075077 | ET65: -1.1838153 | EU65: -1.0049571 | EV65: -0.4905509 | EW65: -0.4458452 | EX65: -0.6223465 | EY65: -0.8484676 | EZ65: -0.7121755 | FA65: -0.6624707 | FB65: -0.8232782 | FC65: -0.9734739 | FD65: -1.0075067 | FE65: -0.8560444 | FF65: -0.5734267 | FG65: -0.4905283 | FH65: -0.4258976 | FI65: -0.6444532 | FJ65: -0.6469315 | FK65: -0.848714 | FL65: -0.7895641 | FM65: -0.6988008 | FN65: -0.5708014 | FO65: -0.0728321 | FP65: -0.0309173 | FQ65: -0.0231331 | FR65: -0.0108979 | FS65: -0.0511397 | FT65: 0.2680162 | FU65: -0.0136959 | FV65: 0.0587011 | FW65: 0.0247546 | FX65: 0.6434281 | FY65: 0.5627647 | FZ65: 0.4116135 | GA65: 0.733483 | GB65: 0.7020022 | GC65: 0.5927359 | GD65: 0.7873494 | GE65: 0.6743463 | GF65: 1.149922 | GG65: 1.4660674 | GH65: 1.5351024 | GI65: 1.7542462 | GJ65: 1.95904 | GK65: 1.7236982 | GL65: 1.8319631 | GM65: 1.6849316 | GN65: 1.731652 | GO65: 1.8500085
A66: 45 | B66: 1.208791209 | C66: 1.608031933 | D66: -3.835780048 | E66: 9.6119371 | F66: 0.484223195 | G66: -0.59430713 | H66: 2.2742265 | I66: 3.5742991 | J66: 3.4510872 | K66: 0.1232119 | M66: Simulation 57 | N66: 0 | O66: -0.1479809 | P66: -1.2049914 | Q66: -2.0751914 | R66: -2.9346317 | S66: -3.0157806 | T66: -2.4236039 | U66: -2.9198028 | V66: -3.7671659 | W66: -4.2516409 | X66: -4.4848904 | Y66: -4.5652728 | Z66: -5.3364761 | AA66: -3.0756278 | AB66: -2.8815372 | AC66: -3.233226 | AD66: -5.3523425 | AE66: -4.5147409 | AF66: -4.9534987 | AG66: -4.0854258 | AH66: -1.1468213 | AI66: -1.9304655 | AJ66: -1.2307735 | AK66: 0.9398707 | AL66: -0.3546196 | AM66: 0.6767831 | AN66: 1.9164712 | AO66: 0.2153624 | AP66: 1.4289766 | AQ66: 1.0125331 | AR66: 0.0011072 | AS66: -0.405145 | AT66: -1.0686941 | AU66: -0.8774594 | AV66: -0.7447495 | AW66: -0.6786714 | AX66: 0.835864 | AY66: 1.0310322 | AZ66: 3.8560853 | BA66: 1.4431802 | BB66: 0.6514149 | BC66: -0.2484741 | BD66: -1.2974685 | BE66: -2.4128423 | BF66: -2.784553 | BG66: -2.7469875 | BH66: -2.4275187 | BI66: -2.4430862 | BJ66: -4.7036014 | BK66: -3.9593568 | BL66: -4.5350851 | BM66: -6.1735156 | BN66: -6.3942657 | BO66: -6.4165161 | BP66: -5.8720685 | BQ66: -5.8462727 | BR66: -4.2809267 | BS66: -3.7033736 | BT66: -4.6582516 | BU66: -4.6703192 | BV66: -5.8473944 | BW66: -5.7629803 | BX66: -6.0859359 | BY66: -6.7643176 | BZ66: -6.0928606 | CA66: -5.8126767 | CB66: -5.6058452 | CC66: -5.0190245 | CD66: -4.5975948 | CE66: -5.2511743 | CF66: -5.6310722 | CG66: -5.0155152 | CH66: -5.4089706 | CI66: -5.8827425 | CJ66: -6.692723 | CK66: -6.2671014 | CL66: -6.791082 | CM66: -6.1048512 | CN66: -6.1560212 | CO66: -6.1078803 | CP66: -6.6638136 | CQ66: -6.2899618 | CR66: -6.5325228 | CS66: -5.9864536 | CT66: -6.6822478 | CU66: -6.7875498 | CV66: -6.6492877 | CW66: -6.7819888 | CX66: -6.9498072 | CY66: -6.8536298 | CZ66: -6.9073989 | DA66: -6.7435263 | DB66: -6.7255771 | DC66: -5.8122939 | DD66: -6.1048629 | DE66: -6.09167 | DF66: -5.9213292 | DG66: -5.6946576 | DH66: -5.7302865 | DI66: -5.7069558 | DJ66: -6.0464425 | DK66: -5.9585599 | DL66: -5.6728961 | DM66: -5.3835497 | DN66: -5.4597993 | DO66: -5.6614972 | DP66: -5.6462678 | DQ66: -5.6530082 | DR66: -6.0241219 | DS66: -5.7556397 | DT66: -5.6778641 | DU66: -5.1633317 | DV66: -5.2185764 | DW66: -5.2514565 | DX66: -4.9692619 | DY66: -4.7355189 | DZ66: -4.6575522 | EA66: -4.6137497 | EB66: -4.5460545 | EC66: -4.4906706 | ED66: -4.0582774 | EE66: -4.1412217 | EF66: -4.3358404 | EG66: -4.5583874 | EH66: -4.4234381 | EI66: -4.6465348 | EJ66: -4.6063062 | EK66: -4.348807 | EL66: -4.2447075 | EM66: -3.5492471 | EN66: -3.5388231 | EO66: -3.4336792 | EP66: -3.3449606 | EQ66: -3.503271 | ER66: -3.3910519 | ES66: -3.0986097 | ET66: -3.1403011 | EU66: -3.1269587 | EV66: -2.817852 | EW66: -2.959534 | EX66: -2.6469727 | EY66: -2.699807 | EZ66: -2.6683312 | FA66: -2.7272591 | FB66: -2.7171021 | FC66: -2.6896001 | FD66: -2.5298821 | FE66: -2.0976039 | FF66: -1.4519437 | FG66: -1.8121205 | FH66: -2.1100823 | FI66: -1.92028 | FJ66: -2.0353548 | FK66: -1.7849005 | FL66: -1.5859371 | FM66: -1.6303548 | FN66: -1.4432356 | FO66: -1.3928997 | FP66: -1.5443955 | FQ66: -1.8802636 | FR66: -1.9855153 | FS66: -1.8341865 | FT66: -1.8694007 | FU66: -1.9084704 | FV66: -2.1158001 | FW66: -1.7205072 | FX66: -0.9693468 | FY66: -0.9402919 | FZ66: -0.8273026 | GA66: -0.5976482 | GB66: -0.839631 | GC66: -0.8126923 | GD66: -0.9355014 | GE66: -0.8432474 | GF66: -0.9309265 | GG66: -0.782537 | GH66: -0.7002803 | GI66: -0.5424717 | GJ66: -0.5835041 | GK66: -0.4172319 | GL66: -0.359089 | GM66: -0.448694 | GN66: -0.5410508 | GO66: -0.5206466
A67: 46 | B67: 1.236263736 | C67: 1.625436073 | D67: -3.921849251 | E67: 10.1914669 | F67: 0.5696643268 | G67: -0.7484133251 | H67: 2.6654862 | I67: 4.5389104 | J67: 3.4510872 | K67: 1.0878232 | M67: Simulation 58 | N67: 0 | O67: 0.1892484 | P67: 1.4081477 | Q67: 1.6552275 | R67: -0.0921738 | S67: 0.9009286 | T67: 0.0555276 | U67: -0.3650185 | V67: -0.8647201 | W67: -2.7294269 | X67: -3.4980849 | Y67: -2.3148349 | Z67: -2.0872135 | AA67: -1.8462284 | AB67: -1.1992893 | AC67: -3.0836275 | AD67: -3.6192887 | AE67: -5.5748622 | AF67: -5.6623682 | AG67: -5.577931 | AH67: -5.0107248 | AI67: -4.6729882 | AJ67: -3.8705872 | AK67: -3.1418458 | AL67: -3.3600358 | AM67: -1.7645217 | AN67: -2.9586244 | AO67: -3.9224815 | AP67: -4.7190311 | AQ67: -3.8445223 | AR67: -5.6987793 | AS67: -6.2625686 | AT67: -5.8124971 | AU67: -6.7412867 | AV67: -6.9014992 | AW67: -7.3747273 | AX67: -7.0151541 | AY67: -8.4715127 | AZ67: -7.3583494 | BA67: -7.1862442 | BB67: -6.950165 | BC67: -6.3283321 | BD67: -7.1233313 | BE67: -7.206099 | BF67: -7.3908731 | BG67: -7.8784949 | BH67: -6.7878846 | BI67: -6.8506019 | BJ67: -5.2602188 | BK67: -4.540782 | BL67: -5.9215871 | BM67: -6.8062887 | BN67: -7.2714206 | BO67: -7.0985813 | BP67: -7.2823349 | BQ67: -8.8969441 | BR67: -7.9128023 | BS67: -8.241495 | BT67: -7.9570273 | BU67: -8.5958656 | BV67: -8.9549806 | BW67: -9.1208531 | BX67: -9.0741894 | BY67: -9.3291361 | BZ67: -9.98794 | CA67: -9.6344398 | CB67: -9.4198862 | CC67: -9.5047312 | CD67: -9.6223594 | CE67: -9.6911586 | CF67: -9.4184629 | CG67: -9.0281186 | CH67: -8.5695064 | CI67: -8.9037194 | CJ67: -8.3893148 | CK67: -7.8627158 | CL67: -8.2799865 | CM67: -8.1259933 | CN67: -8.4604973 | CO67: -8.2288246 | CP67: -7.9247531 | CQ67: -8.0026586 | CR67: -7.918624 | CS67: -8.0986247 | CT67: -8.2068869 | CU67: -8.2097024 | CV67: -7.7364237 | CW67: -7.3588219 | CX67: -7.3477253 | CY67: -7.3434054 | CZ67: -7.4974915 | DA67: -7.4989974 | DB67: -7.6427292 | DC67: -6.7328863 | DD67: -6.503486 | DE67: -6.2637164 | DF67: -6.6015712 | DG67: -6.2978683 | DH67: -6.0529001 | DI67: -5.8654551 | DJ67: -5.8730313 | DK67: -5.9930635 | DL67: -5.9331142 | DM67: -6.2092347 | DN67: -6.0458435 | DO67: -5.8945832 | DP67: -6.0438222 | DQ67: -6.0640133 | DR67: -6.0202071 | DS67: -5.8670619 | DT67: -5.7862306 | DU67: -4.5753151 | DV67: -4.7841614 | DW67: -4.6279075 | DX67: -4.3492616 | DY67: -4.2161705 | DZ67: -3.9506068 | EA67: -3.7902703 | EB67: -3.8475912 | EC67: -3.7523182 | ED67: -3.6719144 | EE67: -3.619555 | EF67: -3.5411527 | EG67: -3.5302116 | EH67: -2.9693158 | EI67: -3.0584142 | EJ67: -2.9016281 | EK67: -2.8534283 | EL67: -2.953743 | EM67: -2.0627163 | EN67: -2.3095123 | EO67: -2.1171396 | EP67: -1.9777606 | EQ67: -1.8978147 | ER67: -1.649492 | ES67: -1.2795911 | ET67: -1.265791 | EU67: -1.425011 | EV67: -1.4559011 | EW67: -1.1567091 | EX67: -1.1408064 | EY67: -0.716598 | EZ67: -0.5893055 | FA67: -0.5311177 | FB67: -0.3111112 | FC67: -0.6634625 | FD67: -0.2865097 | FE67: -0.1094864 | FF67: 0.0108913 | FG67: 0.063921 | FH67: -0.2448006 | FI67: -0.2239215 | FJ67: -0.6417403 | FK67: -0.7319031 | FL67: -0.5622782 | FM67: -0.7411962 | FN67: -0.9409452 | FO67: -0.7599028 | FP67: -0.6570937 | FQ67: -0.6953465 | FR67: -0.728186 | FS67: -0.949772 | FT67: -0.6338822 | FU67: -0.6982584 | FV67: -0.7194351 | FW67: -0.5218809 | FX67: -0.124572 | FY67: -0.2131789 | FZ67: -0.1765101 | GA67: -0.2216646 | GB67: 0.067042 | GC67: -0.1402297 | GD67: -0.0201415 | GE67: -0.0265596 | GF67: 0.0550448 | GG67: 0.2658424 | GH67: 0.4581939 | GI67: 0.5695619 | GJ67: 0.5515588 | GK67: 0.946483 | GL67: 0.7112909 | GM67: 1.0066357 | GN67: 1.2486433 | GO67: 1.4872134
A68: 47 | B68: 1.263736264 | C68: 1.671445074 | D68: -3.923199589 | E68: 10.1551722 | F68: 0.5083305329 | G68: -0.5323369327 | H68: 2.3972134 | I68: 4.0128454 | J68: 3.5742991 | K68: 0.4385463 | M68: Simulation 59 | N68: 0 | O68: -0.1446229 | P68: -0.1660914 | Q68: 0.1904444 | R68: -0.5600161 | S68: -1.5015894 | T68: -0.3322173 | U68: -0.7305434 | V68: -1.955234 | W68: -0.9163495 | X68: -1.7099739 | Y68: -1.472447 | Z68: -1.770072 | AA68: -2.7577948 | AB68: -2.8387413 | AC68: -2.0958942 | AD68: -3.1800287 | AE68: -4.8390015 | AF68: -4.246919 | AG68: -6.4961795 | AH68: -5.079605 | AI68: -4.5525745 | AJ68: -2.9176248 | AK68: -3.1657825 | AL68: -4.1231824 | AM68: -5.0879951 | AN68: -5.8201114 | AO68: -5.6131041 | AP68: -5.0050434 | AQ68: -6.3252581 | AR68: -5.6884873 | AS68: -6.2537339 | AT68: -6.7140774 | AU68: -6.2518432 | AV68: -4.5804664 | AW68: -5.260718 | AX68: -7.3444603 | AY68: -6.7840905 | AZ68: -7.1113548 | BA68: -7.590781 | BB68: -7.4031827 | BC68: -7.4768486 | BD68: -7.435543 | BE68: -6.4284895 | BF68: -6.728022 | BG68: -6.2172233 | BH68: -6.4601223 | BI68: -6.1900235 | BJ68: -7.5325382 | BK68: -6.8952406 | BL68: -6.5189641 | BM68: -6.5293591 | BN68: -7.4602599 | BO68: -7.2794949 | BP68: -8.0534248 | BQ68: -9.3939228 | BR68: -8.5926456 | BS68: -8.1649726 | BT68: -8.6003493 | BU68: -7.9555317 | BV68: -7.3959237 | BW68: -7.0152135 | BX68: -5.4939275 | BY68: -5.735395 | BZ68: -5.610305 | CA68: -6.2381056 | CB68: -5.3122638 | CC68: -5.7331717 | CD68: -6.1420527 | CE68: -5.4282818 | CF68: -5.9130157 | CG68: -6.2751939 | CH68: -5.9863884 | CI68: -5.4884805 | CJ68: -5.6571812 | CK68: -4.7391375 | CL68: -5.9610998 | CM68: -6.6765998 | CN68: -7.129279 | CO68: -6.643395 | CP68: -6.2070645 | CQ68: -6.5783011 | CR68: -6.7816685 | CS68: -7.1443065 | CT68: -7.2438804 | CU68: -7.2733665 | CV68: -6.9701969 | CW68: -5.9343204 | CX68: -5.6223992 | CY68: -6.1144891 | CZ68: -6.1832121 | DA68: -6.1847079 | DB68: -5.5423969 | DC68: -4.2147144 | DD68: -4.1896421 | DE68: -4.2034638 | DF68: -4.3382396 | DG68: -2.5818857 | DH68: -2.4687939 | DI68: -0.2130263 | DJ68: 1.1991266 | DK68: 1.6907542 | DL68: 1.9153714 | DM68: 3.0876088 | DN68: 2.6232124 | DO68: 1.7107975 | DP68: 1.1772062 | DQ68: 0.1162102 | DR68: -1.3804925 | DS68: -1.9227114 | DT68: -2.0853255 | DU68: -1.3621551 | DV68: -0.3974755 | DW68: -1.1166827 | DX68: 0.260709 | DY68: -0.6358942 | DZ68: -1.6267533 | EA68: -1.6274684 | EB68: -1.4629503 | EC68: -0.3979125 | ED68: -0.8031165 | EE68: -1.2585489 | EF68: -0.0532919 | EG68: -0.3670446 | EH68: -1.2308355 | EI68: -1.5958056 | EJ68: -1.7168475 | EK68: -1.1727301 | EL68: -1.0364928 | EM68: -0.8540424 | EN68: -1.0810843 | EO68: -1.5973131 | EP68: -2.1841286 | EQ68: -1.8498084 | ER68: -2.1158497 | ES68: -2.5208087 | ET68: -2.8738384 | EU68: -2.8378517 | EV68: -2.9906375 | EW68: -3.2700324 | EX68: -3.5936785 | EY68: -3.7172196 | EZ68: -3.8422685 | FA68: -3.6367633 | FB68: -3.6674116 | FC68: -3.8547731 | FD68: -3.7988335 | FE68: -3.5298932 | FF68: -3.1842872 | FG68: -3.0925851 | FH68: -3.2787383 | FI68: -3.1897501 | FJ68: -3.32901 | FK68: -3.4273368 | FL68: -3.3800083 | FM68: -3.4516398 | FN68: -3.5511255 | FO68: -3.4303911 | FP68: -3.5095514 | FQ68: -3.3700639 | FR68: -3.4457883 | FS68: -3.4299319 | FT68: -3.306547 | FU68: -3.2698134 | FV68: -3.1413658 | FW68: -2.9288056 | FX68: -2.3087958 | FY68: -2.2458814 | FZ68: -2.1982938 | GA68: -2.0893252 | GB68: -2.0082022 | GC68: -2.2582249 | GD68: -2.415708 | GE68: -2.6411209 | GF68: -2.6839846 | GG68: -2.6050004 | GH68: -2.6796041 | GI68: -2.6466878 | GJ68: -2.6401961 | GK68: -2.5995793 | GL68: -2.6103003 | GM68: -2.5298884 | GN68: -2.3350903 | GO68: -2.4309564
A69: 48 | B69: 1.291208791 | C69: 1.668202061 | D69: -3.990280331 | E69: 10.3273465 | F69: 0.5850553381 | G69: -0.6793854935 | H69: 2.8577055 | I69: 4.0949589 | J69: 3.5742991 | K69: 0.5206598 | M69: Simulation 60 | N69: 0 | O69: -0.1061514 | P69: 0.6496385 | Q69: 0.7707579 | R69: 0.250437 | S69: 1.2132559 | T69: 0.0863167 | U69: -0.2394549 | V69: -0.1327371 | W69: 0.2057547 | X69: 0.4835342 | Y69: -2.3594606 | Z69: -1.7972114 | AA69: -0.033018 | AB69: 1.1226288 | AC69: 1.352208 | AD69: 1.4612704 | AE69: 0.7213448 | AF69: 1.8226967 | AG69: 0.548629 | AH69: 0.4729983 | AI69: -0.1426455 | AJ69: -0.5882896 | AK69: -1.2751539 | AL69: -1.7792281 | AM69: -1.3004415 | AN69: 0.2870668 | AO69: 1.1530503 | AP69: 1.5800506 | AQ69: 1.4381383 | AR69: 1.980885 | AS69: 1.4194149 | AT69: 2.3627519 | AU69: 2.1022153 | AV69: 2.3256549 | AW69: 2.5453979 | AX69: 2.8028843 | AY69: 1.7577373 | AZ69: 2.793283 | BA69: 1.3216478 | BB69: 2.0151561 | BC69: 1.0668472 | BD69: 0.9405402 | BE69: 0.9369641 | BF69: 0.5746445 | BG69: 0.4926672 | BH69: 2.4175074 | BI69: 1.2061672 | BJ69: 1.7701497 | BK69: 2.9630335 | BL69: 3.3910928 | BM69: 5.5068052 | BN69: 6.7513512 | BO69: 4.8118838 | BP69: 4.9720483 | BQ69: 4.1707297 | BR69: 4.1686882 | BS69: 2.9427635 | BT69: 1.9116713 | BU69: 3.282458 | BV69: 1.0247756 | BW69: 1.3223635 | BX69: 1.0341515 | BY69: 1.3441945 | BZ69: 2.7116529 | CA69: 4.1778535 | CB69: 4.221317 | CC69: 2.586942 | CD69: 2.0421389 | CE69: 0.3905142 | CF69: -0.9317734 | CG69: -2.1062718 | CH69: -2.5399323 | CI69: -1.8554389 | CJ69: -0.19119 | CK69: 0.857848 | CL69: 1.5486195 | CM69: 0.6278927 | CN69: 1.7584557 | CO69: 1.3975965 | CP69: 0.4799175 | CQ69: 0.9515879 | CR69: 1.9219592 | CS69: 3.433248 | CT69: 2.3678857 | CU69: 1.0955059 | CV69: -0.3510056 | CW69: -2.0168882 | CX69: -2.8699924 | CY69: -3.6625735 | CZ69: -3.8668536 | DA69: -4.3477594 | DB69: -4.8892779 | DC69: -3.6053869 | DD69: -3.5474371 | DE69: -4.2914231 | DF69: -3.8599595 | DG69: -4.2486684 | DH69: -4.0790603 | DI69: -4.8992924 | DJ69: -4.2362923 | DK69: -5.4429376 | DL69: -5.1372945 | DM69: -5.03492 | DN69: -5.9083168 | DO69: -5.3772118 | DP69: -6.2522095 | DQ69: -6.3085092 | DR69: -6.575349 | DS69: -6.2593644 | DT69: -5.9334411 | DU69: -5.405646 | DV69: -5.4871855 | DW69: -5.0828688 | DX69: -4.8009866 | DY69: -4.8073948 | DZ69: -4.7597423 | EA69: -4.7685789 | EB69: -4.250061 | EC69: -4.4504626 | ED69: -4.661944 | EE69: -4.3671194 | EF69: -3.8657202 | EG69: -3.5605838 | EH69: -3.9371465 | EI69: -3.8450956 | EJ69: -3.3561688 | EK69: -3.2353842 | EL69: -3.2529518 | EM69: -2.6676418 | EN69: -3.0318588 | EO69: -3.0602688 | EP69: -2.8654627 | EQ69: -2.8387844 | ER69: -2.8385879 | ES69: -3.1404561 | ET69: -3.1745098 | EU69: -3.2603578 | EV69: -3.386962 | EW69: -3.4692382 | EX69: -3.2658019 | EY69: -3.2350076 | EZ69: -3.1793945 | FA69: -3.1892575 | FB69: -2.9747542 | FC69: -3.0950605 | FD69: -3.0078733 | FE69: -2.8284487 | FF69: -2.8287133 | FG69: -2.9425528 | FH69: -2.9122309 | FI69: -2.8288843 | FJ69: -2.8220213 | FK69: -2.8475825 | FL69: -2.9590081 | FM69: -3.0318394 | FN69: -2.9039181 | FO69: -2.8934256 | FP69: -2.971975 | FQ69: -2.9820201 | FR69: -3.2025725 | FS69: -3.3385154 | FT69: -3.3442535 | FU69: -3.2881428 | FV69: -3.2613838 | FW69: -3.1997598 | FX69: -2.9559428 | FY69: -2.7985202 | FZ69: -2.6839857 | GA69: -2.7161983 | GB69: -2.6647544 | GC69: -2.7982701 | GD69: -2.8784155 | GE69: -2.8384827 | GF69: -2.8569513 | GG69: -2.7300688 | GH69: -2.6893702 | GI69: -2.5666797 | GJ69: -2.4202878 | GK69: -2.3980439 | GL69: -2.2981004 | GM69: -2.3822968 | GN69: -2.5467496 | GO69: -2.4504834
A70: 49 | B70: 1.318681319 | C70: 1.620920612 | D70: -4.041096356 | E70: 9.8799721 | F70: 0.4297327858 | G70: -0.5981540156 | H70: 2.1341178 | I70: 6.8523173 | J70: 4.0128454 | K70: 2.8394719 | M70: Simulation 61 | N70: 0 | O70: 0.0958946 | P70: -1.23589 | Q70: -2.438006 | R70: -0.6598415 | S70: -0.7213878 | T70: -1.2818058 | U70: 0.400877 | V70: -0.4170523 | W70: -2.5641427 | X70: -1.8788417 | Y70: -2.3587068 | Z70: -2.1663067 | AA70: -3.0722502 | AB70: -3.5204596 | AC70: -2.1674101 | AD70: -1.3746961 | AE70: -2.135046 | AF70: -2.2662687 | AG70: -1.4522583 | AH70: -1.1444278 | AI70: -1.8688345 | AJ70: -3.7831224 | AK70: -4.2260246 | AL70: -5.2402236 | AM70: -6.2416197 | AN70: -6.8936209 | AO70: -7.1166142 | AP70: -7.2822891 | AQ70: -7.0716122 | AR70: -5.8438408 | AS70: -5.8275538 | AT70: -8.0749075 | AU70: -7.9185342 | AV70: -8.0625954 | AW70: -7.9988742 | AX70: -8.113352 | AY70: -8.0676286 | AZ70: -7.2713744 | BA70: -6.7358331 | BB70: -6.2924989 | BC70: -6.2790526 | BD70: -7.0248355 | BE70: -6.5727731 | BF70: -5.9816002 | BG70: -6.5501284 | BH70: -6.2357389 | BI70: -5.692778 | BJ70: -7.0194101 | BK70: -6.6947569 | BL70: -5.7252366 | BM70: -5.6181725 | BN70: -5.1414574 | BO70: -4.6563239 | BP70: -4.6209408 | BQ70: -4.4224815 | BR70: -2.3858424 | BS70: -2.6976129 | BT70: -2.6653392 | BU70: -2.7616981 | BV70: -3.1284198 | BW70: -2.6949477 | BX70: -2.3960894 | BY70: -2.5580863 | BZ70: -2.149846 | CA70: -2.9713634 | CB70: -2.3214709 | CC70: -2.5413155 | CD70: -3.1738615 | CE70: -3.4482453 | CF70: -2.5484887 | CG70: -1.1374337 | CH70: -0.960458 | CI70: -1.7174728 | CJ70: -3.553908 | CK70: -2.1909909 | CL70: -2.8189739 | CM70: -3.1804481 | CN70: -3.8681514 | CO70: -4.0181218 | CP70: -3.4897773 | CQ70: -3.5536529 | CR70: -3.6808095 | CS70: -3.384878 | CT70: -4.0255884 | CU70: -4.0970177 | CV70: -4.1583442 | CW70: -3.9904068 | CX70: -3.3789137 | CY70: -4.7524212 | CZ70: -3.5889521 | DA70: -3.6732129 | DB70: -3.9074393 | DC70: -3.5018755 | DD70: -3.4347633 | DE70: -2.761869 | DF70: -2.6006211 | DG70: -2.1097308 | DH70: -2.3832282 | DI70: -2.3532205 | DJ70: -1.5965483 | DK70: -1.4264231 | DL70: -1.0870402 | DM70: -2.158098 | DN70: -1.7791366 | DO70: -0.5770256 | DP70: -0.5169115 | DQ70: 0.0636811 | DR70: 0.7131978 | DS70: 1.3052803 | DT70: 0.8000936 | DU70: 1.9188439 | DV70: 2.674509 | DW70: 2.7075974 | DX70: 2.8305175 | DY70: 2.1636285 | DZ70: 1.6216167 | EA70: 1.6445922 | EB70: 1.4844542 | EC70: 1.3226647 | ED70: 0.6788963 | EE70: 1.7155599 | EF70: 2.2890469 | EG70: 2.5096903 | EH70: 2.0017729 | EI70: 2.5862283 | EJ70: 1.4479106 | EK70: 0.6460238 | EL70: 0.4724381 | EM70: 1.6454756 | EN70: 1.6360777 | EO70: 1.6813425 | EP70: 1.6022692 | EQ70: 1.7789474 | ER70: 2.3496025 | ES70: 2.2851619 | ET70: 2.1153989 | EU70: 2.3403204 | EV70: 2.0635826 | EW70: 2.1076784 | EX70: 1.9149106 | EY70: 1.8131642 | EZ70: 2.6561032 | FA70: 1.9074974 | FB70: 2.106574 | FC70: 1.632937 | FD70: 1.6260985 | FE70: 2.393265 | FF70: 2.4226469 | FG70: 2.5640864 | FH70: 3.5410187 | FI70: 3.4552549 | FJ70: 3.1428626 | FK70: 2.6235508 | FL70: 2.6574713 | FM70: 2.4391473 | FN70: 2.144631 | FO70: 2.2655229 | FP70: 2.2542544 | FQ70: 2.324479 | FR70: 2.2624414 | FS70: 1.8088129 | FT70: 1.1025427 | FU70: 0.6787764 | FV70: 0.4533106 | FW70: 0.2405554 | FX70: 0.6535169 | FY70: 0.6162632 | FZ70: 0.4789306 | GA70: 0.3934617 | GB70: 0.3432184 | GC70: 0.3412485 | GD70: 0.5320551 | GE70: 0.6953361 | GF70: 0.4059759 | GG70: 0.5802169 | GH70: 0.719329 | GI70: 0.6113236 | GJ70: 0.7131137 | GK70: 0.5500548 | GL70: 0.7055163 | GM70: 1.0744619 | GN70: 0.9976944 | GO70: 0.847055
A71: 50 | B71: 1.346153846 | C71: 1.606151317 | D71: -4.093015232 | E71: 9.3422191 | F71: 0.5266392116 | G71: -0.7617486121 | H71: 2.570578 | I71: 6.1342736 | J71: 4.0128454 | K71: 2.1214282 | M71: Simulation 62 | N71: 0 | O71: 0.3399822 | P71: -1.7788532 | Q71: -2.0206511 | R71: -3.4493324 | S71: -2.4231547 | T71: -1.3733488 | U71: -1.3846682 | V71: -1.4467313 | W71: -2.0051035 | X71: -1.7565887 | Y71: -1.7204983 | Z71: -3.6094066 | AA71: -4.4908427 | AB71: -5.823207 | AC71: -5.6684628 | AD71: -5.113507 | AE71: -5.1917069 | AF71: -5.2762857 | AG71: -7.180987 | AH71: -6.697383 | AI71: -6.2836765 | AJ71: -5.5495734 | AK71: -5.140555 | AL71: -4.8296279 | AM71: -4.3382683 | AN71: -3.9291146 | AO71: -3.1567639 | AP71: -3.0032303 | AQ71: -3.7098086 | AR71: -3.6524016 | AS71: -3.977252 | AT71: -2.1530594 | AU71: -2.40031 | AV71: -1.6769795 | AW71: -1.7109595 | AX71: -0.2343682 | AY71: -1.0403485 | AZ71: -1.5927321 | BA71: -3.1153958 | BB71: -5.1367374 | BC71: -5.1560572 | BD71: -4.1396492 | BE71: -4.3129678 | BF71: -1.9614776 | BG71: -2.7540189 | BH71: -1.7785213 | BI71: 0.6505579 | BJ71: 1.0130677 | BK71: 0.4359982 | BL71: 0.5475227 | BM71: -0.280556 | BN71: -1.347677 | BO71: -1.0625698 | BP71: -1.1657982 | BQ71: -3.477739 | BR71: -3.2884296 | BS71: -3.625994 | BT71: -3.969711 | BU71: -4.1938757 | BV71: -4.3877567 | BW71: -5.4512484 | BX71: -6.0990701 | BY71: -6.5911188 | BZ71: -7.0604214 | CA71: -6.5326944 | CB71: -7.2805134 | CC71: -7.5609047 | CD71: -5.4257968 | CE71: -4.3745667 | CF71: -4.6268483 | CG71: -4.7374416 | CH71: -4.7035413 | CI71: -3.3042724 | CJ71: -2.0202329 | CK71: -0.3724177 | CL71: -0.8172955 | CM71: -2.4460443 | CN71: -1.8969534 | CO71: -2.0048773 | CP71: -1.7104723 | CQ71: -0.9900062 | CR71: -2.276714 | CS71: -2.9669282 | CT71: -3.1063768 | CU71: -3.0354844 | CV71: -3.491664 | CW71: -2.1444207 | CX71: -2.2414647 | CY71: -1.6676323 | CZ71: -2.4172058 | DA71: -2.2525096 | DB71: -3.780418 | DC71: -3.2947257 | DD71: -3.1163551 | DE71: -3.0006912 | DF71: -1.9105431 | DG71: -1.8204502 | DH71: -1.6501997 | DI71: -1.9584461 | DJ71: -1.6149963 | DK71: -1.9345223 | DL71: -0.6432321 | DM71: -0.9780012 | DN71: -1.7004908 | DO71: -1.9237494 | DP71: -2.9330598 | DQ71: -3.5445523 | DR71: -3.5050419 | DS71: -3.2172371 | DT71: -2.7946467 | DU71: -1.6283834 | DV71: -2.0552312 | DW71: -1.8155812 | DX71: -1.2504281 | DY71: -0.7840317 | DZ71: -1.1979895 | EA71: -0.7367005 | EB71: -0.8164407 | EC71: -1.2669933 | ED71: -0.433505 | EE71: 0.3332448 | EF71: 1.302414 | EG71: 0.7241753 | EH71: 0.676439 | EI71: 0.7286802 | EJ71: -0.0637632 | EK71: -0.7803388 | EL71: -0.5828366 | EM71: -0.023961 | EN71: 0.3859983 | EO71: 0.6921117 | EP71: -0.0595886 | EQ71: -0.0472198 | ER71: 0.7915777 | ES71: 0.5326851 | ET71: 0.3063728 | EU71: -0.0486004 | EV71: 0.0427684 | EW71: -0.1149437 | EX71: 0.5372469 | EY71: 0.101186 | EZ71: 0.5975252 | FA71: 0.1423298 | FB71: -0.0607523 | FC71: -0.2771475 | FD71: -0.592955 | FE71: -0.1688975 | FF71: -0.0915363 | FG71: -0.5748744 | FH71: -0.1091321 | FI71: -0.1369946 | FJ71: -0.205415 | FK71: -0.106541 | FL71: -0.4523299 | FM71: -0.8956511 | FN71: -0.8144003 | FO71: -0.6293335 | FP71: -0.9733951 | FQ71: -0.8985055 | FR71: -0.7329807 | FS71: -0.7230621 | FT71: -0.4175563 | FU71: -0.5958299 | FV71: -0.7553896 | FW71: -0.6243562 | FX71: -0.190786 | FY71: -0.3217502 | FZ71: -0.5558757 | GA71: -0.3736814 | GB71: -0.5091048 | GC71: -0.5499055 | GD71: -0.5414803 | GE71: -0.6204877 | GF71: -0.7427534 | GG71: -0.7584734 | GH71: -0.8575779 | GI71: -0.8929322 | GJ71: -0.928059 | GK71: -0.8990415 | GL71: -0.8651482 | GM71: -1.002992 | GN71: -1.2016133 | GO71: -1.3114723
A72: 51 | B72: 1.373626374 | C72: 1.615681603 | D72: -4.153196835 | E72: 9.8059053 | F72: 0.4531863167 | G72: -0.5705258037 | H72: 2.2474117 | I72: 5.0943736 | J72: 6.8523173 | K72: -1.7579437 | M72: Simulation 63 | N72: 0 | O72: -0.3759768 | P72: 2.0704842 | Q72: 0.9873356 | R72: 0.2827085 | S72: -2.145957 | T72: -2.1486302 | U72: -1.8737938 | V72: -2.0428651 | W72: -2.4507012 | X72: -3.1183429 | Y72: -3.5050931 | Z72: -4.0544358 | AA72: -5.4296289 | AB72: -5.2297847 | AC72: -5.3118869 | AD72: -5.2109342 | AE72: -5.5996034 | AF72: -5.9263961 | AG72: -6.7214674 | AH72: -6.465447 | AI72: -5.3820303 | AJ72: -5.2696758 | AK72: -4.0585541 | AL72: -2.2769102 | AM72: -2.0374142 | AN72: -1.1457632 | AO72: 0.2010341 | AP72: -0.4362635 | AQ72: -0.5439203 | AR72: -0.4729174 | AS72: 0.2739786 | AT72: -0.1080997 | AU72: 0.0217849 | AV72: -0.5920768 | AW72: -0.9962766 | AX72: -1.4611363 | AY72: -1.6777044 | AZ72: -1.9452105 | BA72: -1.4403036 | BB72: -0.957787 | BC72: -2.8715608 | BD72: -4.1119263 | BE72: -4.5604257 | BF72: -3.9448511 | BG72: -3.7418442 | BH72: -3.3447718 | BI72: -3.9728164 | BJ72: -3.5446082 | BK72: -2.988384 | BL72: -2.8999061 | BM72: -3.3576908 | BN72: -4.813971 | BO72: -6.0458926 | BP72: -6.1361251 | BQ72: -5.7845051 | BR72: -5.0453822 | BS72: -5.0304908 | BT72: -6.782179 | BU72: -6.4928061 | BV72: -6.7930106 | BW72: -6.543354 | BX72: -5.8156123 | BY72: -5.5757539 | BZ72: -3.840755 | CA72: -5.1467442 | CB72: -5.9551631 | CC72: -5.806683 | CD72: -5.713998 | CE72: -6.0448792 | CF72: -5.5144069 | CG72: -6.3351549 | CH72: -7.1899309 | CI72: -7.0675729 | CJ72: -6.554574 | CK72: -6.070756 | CL72: -5.477518 | CM72: -5.8485287 | CN72: -6.0246496 | CO72: -5.5874119 | CP72: -5.492773 | CQ72: -5.4050646 | CR72: -6.0467359 | CS72: -7.2860014 | CT72: -7.1776586 | CU72: -7.4382812 | CV72: -7.9662057 | CW72: -7.7891029 | CX72: -7.6281346 | CY72: -7.8659519 | CZ72: -6.8691311 | DA72: -6.8033544 | DB72: -6.8877056 | DC72: -6.4475003 | DD72: -5.2680067 | DE72: -4.4409305 | DF72: -4.0953026 | DG72: -4.0829429 | DH72: -4.470274 | DI72: -4.6869032 | DJ72: -4.8468721 | DK72: -5.2191613 | DL72: -5.2865538 | DM72: -5.4253109 | DN72: -5.7080794 | DO72: -6.2055523 | DP72: -5.9664239 | DQ72: -6.9759558 | DR72: -7.801914 | DS72: -8.1492635 | DT72: -8.48578 | DU72: -7.3640826 | DV72: -7.1559635 | DW72: -7.1245629 | DX72: -6.8450639 | DY72: -6.7252891 | DZ72: -6.4864316 | EA72: -6.5072651 | EB72: -6.5558255 | EC72: -6.331198 | ED72: -6.1787412 | EE72: -6.0394187 | EF72: -5.6699971 | EG72: -5.4416141 | EH72: -5.3603329 | EI72: -5.1697762 | EJ72: -5.1100558 | EK72: -5.2424718 | EL72: -5.2350196 | EM72: -4.1374624 | EN72: -4.1935514 | EO72: -3.9998893 | EP72: -4.048888 | EQ72: -3.745327 | ER72: -3.9558065 | ES72: -3.9235204 | ET72: -3.6958833 | EU72: -3.7506035 | EV72: -3.5251393 | EW72: -3.2953761 | EX72: -3.1328328 | EY72: -3.138531 | EZ72: -3.1697156 | FA72: -3.334313 | FB72: -3.4051915 | FC72: -3.2653768 | FD72: -3.4445878 | FE72: -2.7699693 | FF72: -1.7973398 | FG72: -1.9218219 | FH72: -2.0803815 | FI72: -1.8226704 | FJ72: -1.875312 | FK72: -1.8129874 | FL72: -1.8449649 | FM72: -1.9702749 | FN72: -1.9165479 | FO72: -1.6520405 | FP72: -1.8324059 | FQ72: -2.027704 | FR72: -1.8881948 | FS72: -1.951569 | FT72: -1.916955 | FU72: -1.9202679 | FV72: -1.8392828 | FW72: -1.29452 | FX72: -0.8561892 | FY72: -0.8038636 | FZ72: -0.6589263 | GA72: -0.5071842 | GB72: -0.4484267 | GC72: -0.3884457 | GD72: -0.5278238 | GE72: -0.4194265 | GF72: -0.3580248 | GG72: 0.1201207 | GH72: 0.3658491 | GI72: 0.256223 | GJ72: 0.0559106 | GK72: 0.3013556 | GL72: 0.3448338 | GM72: 0.2211746 | GN72: 0.3894526 | GO72: 0.4220311
A73: 52 | B73: 1.401098901 | C73: 1.63002649 | D73: -4.205469909 | E73: 10.2328349 | F73: 0.5424524308 | G73: -0.6977201052 | H73: 2.7339213 | I73: 2.724684 | J73: 6.8523173 | K73: -4.1276333 | M73: Simulation 64 | N73: 0 | O73: 0.2057058 | P73: -0.7648826 | Q73: -1.6201698 | R73: -0.3110357 | S73: 2.0293533 | T73: 0.9614849 | U73: 2.432595 | V73: 3.1136244 | W73: 2.1244229 | X73: 2.2802703 | Y73: 3.4189242 | Z73: 2.252785 | AA73: 4.8975932 | AB73: 2.9182409 | AC73: 1.4801956 | AD73: 1.541105 | AE73: 3.0701289 | AF73: 4.9431359 | AG73: 5.6848879 | AH73: 5.0575066 | AI73: 3.9954664 | AJ73: 2.3142933 | AK73: 2.8762956 | AL73: 2.6522203 | AM73: 2.0461856 | AN73: 2.6045988 | AO73: 2.1656785 | AP73: 3.2285326 | AQ73: 6.4958336 | AR73: 4.9938802 | AS73: 5.847411 | AT73: 7.9138409 | AU73: 8.3429669 | AV73: 8.760425 | AW73: 9.7738277 | AX73: 8.8935851 | AY73: 7.7830038 | AZ73: 7.1002994 | BA73: 6.1702401 | BB73: 5.7910568 | BC73: 6.6789798 | BD73: 6.8372047 | BE73: 5.8304863 | BF73: 3.7166702 | BG73: 3.4103885 | BH73: 4.6684536 | BI73: 6.336664 | BJ73: 6.268094 | BK73: 6.7433093 | BL73: 4.9688129 | BM73: 5.6221417 | BN73: 5.0250284 | BO73: 6.2189779 | BP73: 8.5243238 | BQ73: 7.1000296 | BR73: 8.772672 | BS73: 9.477426 | BT73: 9.3845639 | BU73: 10.3527852 | BV73: 9.8455243 | BW73: 8.8063808 | BX73: 8.9465602 | BY73: 8.8562288 | BZ73: 9.4145742 | CA73: 10.5927754 | CB73: 9.0398673 | CC73: 7.5271178 | CD73: 7.2881325 | CE73: 8.3281532 | CF73: 8.655349 | CG73: 11.2888579 | CH73: 12.0033149 | CI73: 12.4991138 | CJ73: 14.6590485 | CK73: 13.8219222 | CL73: 11.6635476 | CM73: 11.9036044 | CN73: 10.854631 | CO73: 10.7764964 | CP73: 12.7549071 | CQ73: 12.8423723 | CR73: 13.2531301 | CS73: 8.6369387 | CT73: 7.4280751 | CU73: 8.2228921 | CV73: 6.4762595 | CW73: 5.1144116 | CX73: 4.4326291 | CY73: 4.8569385 | CZ73: 5.2213588 | DA73: 4.9051958 | DB73: 3.6452988 | DC73: 4.261626 | DD73: 2.8620121 | DE73: 1.0176333 | DF73: 1.7199672 | DG73: 0.7051772 | DH73: 0.8650964 | DI73: 0.3202766 | DJ73: -0.3597521 | DK73: -0.0647907 | DL73: -0.8166996 | DM73: -0.6568363 | DN73: 0.9914803 | DO73: 1.6324022 | DP73: 2.1985393 | DQ73: 1.6384781 | DR73: 3.243912 | DS73: 3.1095849 | DT73: 3.1138208 | DU73: 5.5137199 | DV73: 3.2953597 | DW73: 2.1823412 | DX73: 1.6984613 | DY73: 1.314586 | DZ73: 0.5336351 | EA73: 1.2975144 | EB73: 0.9226398 | EC73: 0.7799222 | ED73: 0.4792363 | EE73: 1.2428542 | EF73: 1.1808726 | EG73: 1.2807304 | EH73: 2.8313289 | EI73: 3.214 | EJ73: 3.2416194 | EK73: 2.281744 | EL73: 2.3745167 | EM73: 3.1218508 | EN73: 3.8664902 | EO73: 3.7346109 | EP73: 3.6951522 | EQ73: 3.4801216 | ER73: 3.0918862 | ES73: 4.3046313 | ET73: 4.9079899 | EU73: 5.1480987 | EV73: 5.7328616 | EW73: 6.2117962 | EX73: 4.9701159 | EY73: 5.5043794 | EZ73: 5.0886273 | FA73: 4.4120752 | FB73: 4.6407544 | FC73: 4.963931 | FD73: 4.5051 | FE73: 4.9838317 | FF73: 5.0708615 | FG73: 5.0912813 | FH73: 5.2775707 | FI73: 4.5782661 | FJ73: 4.9110635 | FK73: 3.9838458 | FL73: 3.3773622 | FM73: 3.2694807 | FN73: 2.5381679 | FO73: 1.9158924 | FP73: 1.7180499 | FQ73: 1.5740529 | FR73: 0.8447335 | FS73: 0.9946212 | FT73: 1.4119182 | FU73: 0.9154463 | FV73: 0.5934463 | FW73: 0.6609829 | FX73: 1.2214451 | FY73: 1.6241301 | FZ73: 1.489582 | GA73: 1.1878279 | GB73: 1.3274468 | GC73: 1.5653878 | GD73: 1.7149456 | GE73: 1.5576408 | GF73: 1.3286691 | GG73: 1.1496675 | GH73: 0.9865277 | GI73: 0.8002105 | GJ73: 0.8395003 | GK73: 1.001328 | GL73: 1.0208157 | GM73: 0.867761 | GN73: 0.8156907 | GO73: 0.8803989
A74: 53 | B74: 1.428571429 | C74: 1.636460688 | D74: -4.246242062 | E74: 10.6739829 | F74: 0.4521003984 | G74: -0.5243665413 | H74: 2.1590489 | I74: 3.5635344 | J74: 5.0943736 | K74: -1.5308392 | M74: Simulation 65 | N74: 0 | O74: -0.0449171 | P74: -0.6263913 | Q74: -1.1382182 | R74: -1.9055036 | S74: -3.5329688 | T74: -3.8209665 | U74: -4.9518001 | V74: -4.4663616 | W74: -6.3379 | X74: -5.4876742 | Y74: -4.556701 | Z74: -3.9366247 | AA74: -2.991838 | AB74: -3.0498477 | AC74: -3.4717514 | AD74: -3.1510683 | AE74: -2.4802111 | AF74: -1.1807216 | AG74: -1.529324 | AH74: -1.5066866 | AI74: 0.3704752 | AJ74: 1.6424884 | AK74: -0.8542819 | AL74: 0.9017258 | AM74: -0.9829569 | AN74: -2.9342237 | AO74: -2.5824055 | AP74: -1.6684228 | AQ74: -1.942322 | AR74: -1.8117883 | AS74: -2.7028125 | AT74: -3.0884364 | AU74: -3.6272165 | AV74: -2.8807713 | AW74: -3.176876 | AX74: -2.4488395 | AY74: -3.9450316 | AZ74: -1.8928968 | BA74: -1.7670397 | BB74: -3.0856953 | BC74: -2.1635604 | BD74: -3.1345704 | BE74: -3.2593311 | BF74: -3.7228448 | BG74: -5.3954986 | BH74: -5.3098002 | BI74: -5.114735 | BJ74: -5.28582 | BK74: -4.7101891 | BL74: -6.0123109 | BM74: -4.9655317 | BN74: -4.3374192 | BO74: -3.7627332 | BP74: -3.5121638 | BQ74: -4.0178579 | BR74: -3.4242963 | BS74: -4.1330719 | BT74: -5.0781025 | BU74: -4.371405 | BV74: -5.151788 | BW74: -5.9570032 | BX74: -6.0921635 | BY74: -5.4725752 | BZ74: -5.2647376 | CA74: -4.6882502 | CB74: -4.8414129 | CC74: -5.3232033 | CD74: -5.4736842 | CE74: -5.4583621 | CF74: -5.6853898 | CG74: -5.4024068 | CH74: -5.7744213 | CI74: -6.1261711 | CJ74: -6.559132 | CK74: -6.2879367 | CL74: -7.051904 | CM74: -7.1710856 | CN74: -7.0067906 | CO74: -7.0874994 | CP74: -6.9006699 | CQ74: -6.8646957 | CR74: -6.9930275 | CS74: -7.3136804 | CT74: -6.7949546 | CU74: -6.7040214 | CV74: -6.8471637 | CW74: -6.9519764 | CX74: -7.0578674 | CY74: -7.1321745 | CZ74: -7.042791 | DA74: -7.0443479 | DB74: -7.0129375 | DC74: -7.0267524 | DD74: -7.0763 | DE74: -7.1901088 | DF74: -7.1400916 | DG74: -6.9964292 | DH74: -6.5439215 | DI74: -5.8992128 | DJ74: -5.7852603 | DK74: -5.6666909 | DL74: -5.3101714 | DM74: -5.2746572 | DN74: -5.2728681 | DO74: -4.9267094 | DP74: -4.9093772 | DQ74: -4.7149926 | DR74: -4.6651224 | DS74: -4.6270979 | DT74: -4.2503452 | DU74: -3.7981161 | DV74: -3.8152629 | DW74: -3.7915396 | DX74: -3.7977839 | DY74: -3.6870982 | DZ74: -3.4191597 | EA74: -3.2090872 | EB74: -3.1023769 | EC74: -3.0999468 | ED74: -2.7145252 | EE74: -2.8256981 | EF74: -2.2588744 | EG74: -1.8525454 | EH74: -1.7029516 | EI74: -1.5093744 | EJ74: -1.2784863 | EK74: -0.803987 | EL74: -0.3886358 | EM74: 0.0652523 | EN74: 0.1412856 | EO74: 0.1903524 | EP74: 0.506444 | EQ74: 0.5188808 | ER74: 0.3555706 | ES74: 0.6678875 | ET74: 0.8422808 | EU74: 1.1939511 | EV74: 1.263333 | EW74: 1.3871304 | EX74: 1.4102115 | EY74: 1.9148866 | EZ74: 2.2361726 | FA74: 1.9490813 | FB74: 2.213861 | FC74: 2.256091 | FD74: 2.194067 | FE74: 2.1528464 | FF74: 2.26805 | FG74: 2.2596727 | FH74: 2.2281492 | FI74: 2.3526518 | FJ74: 2.5675829 | FK74: 2.6695316 | FL74: 2.9143234 | FM74: 2.9483508 | FN74: 2.7437702 | FO74: 2.881703 | FP74: 3.1753909 | FQ74: 3.3646841 | FR74: 3.4982327 | FS74: 3.8362269 | FT74: 4.0914431 | FU74: 3.89744 | FV74: 3.7927511 | FW74: 3.5824892 | FX74: 3.5794049 | FY74: 3.3805461 | FZ74: 3.122626 | GA74: 3.1663662 | GB74: 3.0892526 | GC74: 3.3711681 | GD74: 3.1620066 | GE74: 3.2632774 | GF74: 3.6634296 | GG74: 3.7245151 | GH74: 3.5512069 | GI74: 3.5852545 | GJ74: 3.7745236 | GK74: 4.0185088 | GL74: 3.8409455 | GM74: 3.9007445 | GN74: 3.7899053 | GO74: 3.7898804
A75: 54 | B75: 1.456043956 | C75: 1.649052127 | D75: -4.297466283 | E75: 10.832225 | F75: 0.552529628 | G75: -0.6634285523 | H75: 2.6006212 | I75: 5.0351032 | J75: 5.0943736 | K75: -0.0592704 | M75: Simulation 66 | N75: 0 | O75: 0.0993224 | P75: 1.21048 | Q75: 2.3730649 | R75: 1.9852713 | S75: 5.3104766 | T75: 3.6185615 | U75: 3.0129205 | V75: 2.0704882 | W75: -0.1657862 | X75: 1.1263216 | Y75: 1.3414647 | Z75: 1.2867687 | AA75: 0.2187204 | AB75: 0.0558196 | AC75: -1.0546714 | AD75: -0.1361907 | AE75: -0.3237703 | AF75: -0.4951969 | AG75: -2.1986159 | AH75: -1.9351807 | AI75: -1.6655899 | AJ75: -0.7599726 | AK75: -0.4590413 | AL75: -2.2988032 | AM75: -4.3780183 | AN75: -4.6299515 | AO75: -4.6896836 | AP75: -6.0906258 | AQ75: -7.1899278 | AR75: -7.7274002 | AS75: -7.7407014 | AT75: -8.3861587 | AU75: -8.1821029 | AV75: -8.0791138 | AW75: -5.7661479 | AX75: -6.8667304 | AY75: -7.0819342 | AZ75: -7.2215106 | BA75: -7.1648758 | BB75: -6.9279788 | BC75: -7.59609 | BD75: -5.9363175 | BE75: -5.6287963 | BF75: -5.9038912 | BG75: -6.3592527 | BH75: -6.9044005 | BI75: -6.4806458 | BJ75: -6.6133824 | BK75: -7.1837239 | BL75: -6.4013189 | BM75: -5.682061 | BN75: -5.6979562 | BO75: -5.9130109 | BP75: -6.0779447 | BQ75: -6.3591147 | BR75: -6.3741588 | BS75: -6.4276081 | BT75: -5.8389208 | BU75: -6.3505784 | BV75: -5.9546441 | BW75: -5.8516496 | BX75: -5.8963288 | BY75: -5.3037651 | BZ75: -4.6736097 | CA75: -4.5415674 | CB75: -2.7837336 | CC75: -2.2231695 | CD75: -1.4915381 | CE75: -2.916975 | CF75: -2.9323252 | CG75: -2.0002563 | CH75: -2.7816806 | CI75: -2.5788679 | CJ75: -2.7147441 | CK75: -2.537972 | CL75: -2.7133691 | CM75: -2.0968485 | CN75: -2.7455012 | CO75: -2.970358 | CP75: -3.378736 | CQ75: -4.2482832 | CR75: -4.4235557 | CS75: -3.898008 | CT75: -4.5098967 | CU75: -4.3475039 | CV75: -4.4571119 | CW75: -4.1974449 | CX75: -3.876232 | CY75: -3.613169 | CZ75: -3.125368 | DA75: -3.1958099 | DB75: -2.8772304 | DC75: -1.7392095 | DD75: -0.8563417 | DE75: -1.6367904 | DF75: -1.3983463 | DG75: -0.8321203 | DH75: -2.192067 | DI75: -2.4117557 | DJ75: -2.7320715 | DK75: -2.3743611 | DL75: -3.1411108 | DM75: -2.6060994 | DN75: -2.7936759 | DO75: -2.1568132 | DP75: -1.7479321 | DQ75: -3.0875887 | DR75: -3.4517875 | DS75: -3.5978033 | DT75: -3.6800343 | DU75: -2.8113218 | DV75: -2.6895416 | DW75: -2.3428855 | DX75: -2.1265629 | DY75: -1.2461807 | DZ75: -1.039452 | EA75: -0.588555 | EB75: -0.6261393 | EC75: -0.5882471 | ED75: -0.7500241 | EE75: -0.4945117 | EF75: -0.282962 | EG75: -0.8526839 | EH75: -0.8402102 | EI75: -0.6113907 | EJ75: -0.4861249 | EK75: -0.498803 | EL75: -0.520094 | EM75: -0.4718099 | EN75: -0.233208 | EO75: -0.0311899 | EP75: 0.1694825 | EQ75: 0.227811 | ER75: 0.1643601 | ES75: 0.0094263 | ET75: 0.1219345 | EU75: 0.0968049 | EV75: 0.335924 | EW75: 0.2924219 | EX75: 0.5885091 | EY75: 0.7429914 | EZ75: 0.4709349 | FA75: 0.2352308 | FB75: 0.3903351 | FC75: 0.5991341 | FD75: 0.5470073 | FE75: 0.5001758 | FF75: 0.7786059 | FG75: 0.6474306 | FH75: 0.8552116 | FI75: 0.9517576 | FJ75: 1.105049 | FK75: 1.099767 | FL75: 1.230332 | FM75: 1.2248483 | FN75: 1.3118213 | FO75: 1.4361873 | FP75: 1.2789634 | FQ75: 1.1414462 | FR75: 1.42522 | FS75: 1.4837458 | FT75: 1.4095161 | FU75: 1.3316512 | FV75: 1.4175398 | FW75: 1.2284459 | FX75: 1.0983376 | FY75: 1.2520704 | FZ75: 1.2557999 | GA75: 1.6861726 | GB75: 1.6833611 | GC75: 1.8301511 | GD75: 1.9113972 | GE75: 2.0148374 | GF75: 2.1707861 | GG75: 2.3334547 | GH75: 2.2794174 | GI75: 2.2247341 | GJ75: 2.3437234 | GK75: 2.3773882 | GL75: 2.5588817 | GM75: 2.3013717 | GN75: 2.3225898 | GO75: 2.5205708
A76: 55 | B76: 1.483516484 | C76: 1.661223269 | D76: -4.346033632 | E76: 10.5099714 | F76: 0.4393946836 | G76: -0.5144236732 | H76: 2.0318184 | I76: 5.2141997 | J76: 3.5635344 | K76: 1.6506653 | M76: Simulation 67 | N76: 0 | O76: -0.0216472 | P76: 1.1413742 | Q76: 0.6254665 | R76: 0.8324244 | S76: 2.2876893 | T76: 2.1359257 | U76: 3.7371338 | V76: 1.989886 | W76: 3.3617689 | X76: 1.3243802 | Y76: 1.8608443 | Z76: 1.6143999 | AA76: 0.7948635 | AB76: -0.9743632 | AC76: -0.7728985 | AD76: -1.7503347 | AE76: -2.4568784 | AF76: -3.0236269 | AG76: -1.7859739 | AH76: 0.2764938 | AI76: -1.0119261 | AJ76: -2.9711372 | AK76: -3.619901 | AL76: -3.452842 | AM76: -2.87495 | AN76: -2.0720499 | AO76: -0.7715339 | AP76: -2.1747459 | AQ76: -0.6826226 | AR76: -0.5040117 | AS76: -0.5398988 | AT76: -0.6963442 | AU76: -0.5219729 | AV76: -2.9949499 | AW76: -2.4200227 | AX76: -3.2688155 | AY76: -3.1613419 | AZ76: -2.4926906 | BA76: -3.6258115 | BB76: -2.417503 | BC76: -1.2400459 | BD76: 1.3645721 | BE76: 1.8993457 | BF76: 0.145739 | BG76: -0.1947428 | BH76: -1.6699768 | BI76: -0.3609791 | BJ76: -2.3840443 | BK76: -2.8431429 | BL76: -1.5354291 | BM76: -2.0229678 | BN76: -1.7616838 | BO76: -0.3346711 | BP76: -0.9853048 | BQ76: -2.3058249 | BR76: -0.4933103 | BS76: -0.4690098 | BT76: -0.0987427 | BU76: -0.1205247 | BV76: -0.2060071 | BW76: -0.2131254 | BX76: 0.1273778 | BY76: 0.4652157 | BZ76: -0.0192146 | CA76: 1.3477494 | CB76: 0.1939457 | CC76: -0.0661106 | CD76: -0.1697593 | CE76: 0.1211047 | CF76: -2.3286147 | CG76: -2.1075905 | CH76: -3.1293576 | CI76: -1.8350575 | CJ76: -1.0856885 | CK76: -1.9778179 | CL76: -2.0176101 | CM76: -1.8253625 | CN76: -1.3442542 | CO76: -0.5298695 | CP76: -1.4020919 | CQ76: -0.4764048 | CR76: -2.8746546 | CS76: -3.79599 | CT76: -2.5428204 | CU76: -3.7161278 | CV76: -2.524676 | CW76: -2.3791305 | CX76: -2.5473618 | CY76: -2.4854266 | CZ76: -2.8518667 | DA76: -1.7097786 | DB76: -3.5245062 | DC76: -1.1368205 | DD76: -1.1649717 | DE76: -2.9331471 | DF76: -4.3216344 | DG76: -5.7653299 | DH76: -5.0635137 | DI76: -4.9705447 | DJ76: -4.0996945 | DK76: -3.9923418 | DL76: -3.2910759 | DM76: -4.1279229 | DN76: -4.4943452 | DO76: -4.7945028 | DP76: -5.1884568 | DQ76: -5.3849594 | DR76: -5.6636184 | DS76: -6.2025232 | DT76: -6.143983 | DU76: -5.2075201 | DV76: -5.1563206 | DW76: -5.2101455 | DX76: -5.0365012 | DY76: -4.9532247 | DZ76: -4.5168971 | EA76: -4.4103422 | EB76: -4.5785558 | EC76: -4.6021655 | ED76: -4.5813187 | EE76: -4.4742835 | EF76: -4.2133967 | EG76: -4.3066996 | EH76: -3.8098412 | EI76: -3.9682002 | EJ76: -3.4059979 | EK76: -3.4884439 | EL76: -3.3045134 | EM76: -2.3006249 | EN76: -2.1730102 | EO76: -1.534813 | EP76: -1.4775112 | EQ76: -1.1615001 | ER76: -1.3798933 | ES76: -1.464806 | ET76: -1.3649633 | EU76: -1.7014554 | EV76: -1.9524458 | EW76: -1.9020131 | EX76: -1.8818457 | EY76: -1.7068271 | EZ76: -1.741331 | FA76: -1.8135192 | FB76: -1.872668 | FC76: -2.3050631 | FD76: -2.3603873 | FE76: -2.1724277 | FF76: -1.237995 | FG76: -1.0713665 | FH76: -0.8399055 | FI76: -1.1770162 | FJ76: -1.1483447 | FK76: -0.8701518 | FL76: -1.0340692 | FM76: -1.3901471 | FN76: -1.392733 | FO76: -1.3524928 | FP76: -1.1331237 | FQ76: -0.7944878 | FR76: -0.6927173 | FS76: -0.6599861 | FT76: -0.8566214 | FU76: -0.9512755 | FV76: -1.1946194 | FW76: -0.960175 | FX76: -0.359354 | FY76: -0.5837083 | FZ76: -0.397011 | GA76: -0.3358072 | GB76: -0.4100385 | GC76: -0.1335491 | GD76: -0.1625052 | GE76: -0.4182135 | GF76: -0.3967232 | GG76: -0.4137631 | GH76: -0.4291326 | GI76: -0.2594565 | GJ76: -0.3793237 | GK76: -0.3441336 | GL76: -0.2761572 | GM76: -0.4462953 | GN76: -0.419924 | GO76: -0.5136501
A77: 56 | B77: 1.510989011 | C77: 1.836032421 | D77: -3.891198573 | E77: 10.9906865 | F77: 0.9218170961 | G77: -0.3672018741 | H77: 3.2303299 | I77: 4.3923281 | J77: 3.5635344 | K77: 0.8287937 | M77: Simulation 68 | N77: 0 | O77: 0.0143269 | P77: 0.1493857 | Q77: 1.2520548 | R77: 1.0800709 | S77: 0.732821 | T77: 3.4990753 | U77: 4.0648523 | V77: 5.1217241 | W77: 4.5433486 | X77: 4.7704109 | Y77: 7.5555751 | Z77: 6.0464444 | AA77: 6.8407418 | AB77: 9.0736646 | AC77: 10.9285027 | AD77: 6.7518312 | AE77: 7.1623782 | AF77: 5.8730677 | AG77: 5.1083179 | AH77: 5.9453916 | AI77: 7.9307643 | AJ77: 7.5707818 | AK77: 9.3811326 | AL77: 8.0987493 | AM77: 5.197886 | AN77: 5.8645906 | AO77: 4.8130666 | AP77: 4.033519 | AQ77: 2.9042716 | AR77: 1.6977731 | AS77: 0.8038445 | AT77: -0.1130259 | AU77: 1.0709603 | AV77: 1.6391095 | AW77: 0.888525 | AX77: 1.2613487 | AY77: 0.7605602 | AZ77: 0.9793496 | BA77: -0.5373564 | BB77: -1.7796924 | BC77: -1.8543769 | BD77: -1.809702 | BE77: -1.8116155 | BF77: -2.7397228 | BG77: -3.6773829 | BH77: -3.6813827 | BI77: -5.1011949 | BJ77: -5.4555643 | BK77: -5.7522994 | BL77: -5.4115216 | BM77: -4.5762866 | BN77: -3.6578857 | BO77: -3.7612108 | BP77: -4.1158967 | BQ77: -3.1602101 | BR77: -2.6877709 | BS77: -2.3785913 | BT77: -2.4349358 | BU77: -2.1340255 | BV77: -2.8979221 | BW77: -3.2033351 | BX77: -3.0655498 | BY77: -2.147853 | BZ77: -2.6155697 | CA77: -0.8906532 | CB77: -1.3418481 | CC77: 0.0407547 | CD77: -0.0448778 | CE77: 2.929375 | CF77: 3.9204303 | CG77: 3.745077 | CH77: 3.4221599 | CI77: 1.0317445 | CJ77: 1.3386816 | CK77: 1.9324689 | CL77: 1.8850878 | CM77: 1.5092622 | CN77: 0.8302378 | CO77: 1.4813554 | CP77: 2.058469 | CQ77: 0.9992641 | CR77: 2.0757657 | CS77: 3.6306936 | CT77: 3.5530424 | CU77: 2.3430909 | CV77: 2.2792413 | CW77: 4.4617112 | CX77: 3.5783284 | CY77: 1.313389 | CZ77: 1.6571337 | DA77: 1.0419057 | DB77: -1.0004984 | DC77: -1.7214995 | DD77: -2.5053476 | DE77: -3.1158999 | DF77: -2.4348046 | DG77: -2.0732192 | DH77: -2.6437349 | DI77: -2.5277902 | DJ77: -2.7880724 | DK77: -2.9257956 | DL77: -3.4837032 | DM77: -3.8097851 | DN77: -3.8752613 | DO77: -3.8748515 | DP77: -4.6110216 | DQ77: -4.9782051 | DR77: -5.7624342 | DS77: -5.2448871 | DT77: -5.0490895 | DU77: -4.5194199 | DV77: -4.5153893 | DW77: -4.5717265 | DX77: -5.1948854 | DY77: -4.2772701 | DZ77: -4.0048171 | EA77: -3.5644709 | EB77: -3.609296 | EC77: -3.5130826 | ED77: -3.7327473 | EE77: -3.7921193 | EF77: -3.2886096 | EG77: -3.5952619 | EH77: -3.8996166 | EI77: -3.2626254 | EJ77: -3.4681403 | EK77: -3.12659 | EL77: -2.5732495 | EM77: -2.2658878 | EN77: -1.8918025 | EO77: -2.3218999 | EP77: -2.911875 | EQ77: -2.4094205 | ER77: -2.1083829 | ES77: -2.1288005 | ET77: -2.2770202 | EU77: -2.554821 | EV77: -2.9806706 | EW77: -3.3038266 | EX77: -3.0408302 | EY77: -3.2304192 | EZ77: -3.0096344 | FA77: -3.1020988 | FB77: -3.1354365 | FC77: -2.9952504 | FD77: -2.7836035 | FE77: -2.1258233 | FF77: -1.9101303 | FG77: -1.7089751 | FH77: -1.4518291 | FI77: -1.4269099 | FJ77: -1.3029255 | FK77: -0.8739767 | FL77: -0.8777579 | FM77: -0.8454367 | FN77: -0.8146869 | FO77: -1.1419229 | FP77: -1.3873171 | FQ77: -1.5346625 | FR77: -1.7659666 | FS77: -1.9023885 | FT77: -1.9968999 | FU77: -1.9722136 | FV77: -1.7540546 | FW77: -1.3835056 | FX77: -1.5741645 | FY77: -1.7280105 | FZ77: -1.6979319 | GA77: -1.6091012 | GB77: -1.6157095 | GC77: -1.6556437 | GD77: -1.4743627 | GE77: -1.4301101 | GF77: -1.4044961 | GG77: -1.598553 | GH77: -1.8216962 | GI77: -1.740187 | GJ77: -1.7709558 | GK77: -1.7913215 | GL77: -1.6447563 | GM77: -1.5783013 | GN77: -1.6507767 | GO77: -1.6170583
A78: 57 | B78: 1.538461538 | C78: 1.881533011 | D78: -3.963305196 | E78: 11.8387485 | F78: 0.8812854628 | G78: -0.2782472839 | H78: 2.9481485 | I78: 4.730019 | J78: 5.2141997 | K78: -0.4841807 | M78: Simulation 69 | N78: 0 | O78: -0.0623875 | P78: -1.6450149 | Q78: -0.6255253 | R78: -1.9308581 | S78: -3.133404 | T78: -3.2127943 | U78: -4.5563315 | V78: -5.6253857 | W78: -4.4972509 | X78: -3.1772001 | Y78: -4.1565531 | Z78: -4.3808551 | AA78: -3.9323937 | AB78: -4.4800606 | AC78: -4.5902536 | AD78: -5.6560651 | AE78: -6.6573037 | AF78: -7.2725689 | AG78: -8.267912 | AH78: -7.7794634 | AI78: -7.0589808 | AJ78: -7.2631456 | AK78: -7.2892094 | AL78: -7.6940814 | AM78: -7.1670999 | AN78: -7.3449637 | AO78: -7.256597 | AP78: -7.1619573 | AQ78: -7.4946872 | AR78: -8.1254601 | AS78: -8.5314536 | AT78: -7.4305269 | AU78: -6.7638379 | AV78: -6.2157015 | AW78: -5.684783 | AX78: -6.8748374 | AY78: -6.6001217 | AZ78: -5.7422513 | BA78: -6.9060866 | BB78: -6.2530574 | BC78: -7.0689386 | BD78: -5.6603792 | BE78: -6.4131909 | BF78: -7.5223732 | BG78: -7.7795839 | BH78: -7.0789737 | BI78: -6.9809261 | BJ78: -7.3656713 | BK78: -9.0257818 | BL78: -8.7514893 | BM78: -8.7500836 | BN78: -7.8598842 | BO78: -6.9822781 | BP78: -8.0739674 | BQ78: -8.606873 | BR78: -8.7735215 | BS78: -9.3977077 | BT78: -9.4126412 | BU78: -9.0707375 | BV78: -10.1523539 | BW78: -10.1988486 | BX78: -10.4249558 | BY78: -10.634439 | BZ78: -10.2891227 | CA78: -9.9608575 | CB78: -9.4529166 | CC78: -9.8505593 | CD78: -10.0746334 | CE78: -9.8221652 | CF78: -9.6660176 | CG78: -9.7617907 | CH78: -9.4881691 | CI78: -9.8477068 | CJ78: -9.4692282 | CK78: -9.0616186 | CL78: -8.7069418 | CM78: -8.892435 | CN78: -8.912794 | CO78: -8.9704313 | CP78: -8.690287 | CQ78: -8.8641162 | CR78: -8.4242251 | CS78: -8.2277213 | CT78: -7.6974694 | CU78: -7.9406881 | CV78: -7.8423573 | CW78: -8.5208183 | CX78: -8.5541603 | CY78: -8.9713129 | CZ78: -8.827524 | DA78: -8.6489251 | DB78: -8.7944683 | DC78: -8.3904542 | DD78: -8.6047208 | DE78: -8.5761175 | DF78: -8.4578436 | DG78: -8.2786758 | DH78: -8.2056391 | DI78: -8.0909635 | DJ78: -8.0322429 | DK78: -7.4095186 | DL78: -6.8777561 | DM78: -7.0666989 | DN78: -6.5563725 | DO78: -5.9866191 | DP78: -6.2856621 | DQ78: -6.6187566 | DR78: -6.9842937 | DS78: -7.5217995 | DT78: -7.7844939 | DU78: -6.6531579 | DV78: -6.388692 | DW78: -6.2904792 | DX78: -6.1820172 | DY78: -6.1311618 | DZ78: -6.1084642 | EA78: -6.083491 | EB78: -6.1701838 | EC78: -6.0562261 | ED78: -5.6114773 | EE78: -5.3789071 | EF78: -4.9762192 | EG78: -4.6583242 | EH78: -4.6184949 | EI78: -4.4132664 | EJ78: -4.6107124 | EK78: -4.6426124 | EL78: -4.8603303 | EM78: -3.5300688 | EN78: -3.2115517 | EO78: -3.2971902 | EP78: -3.5849871 | EQ78: -3.5331987 | ER78: -3.20119 | ES78: -3.1726102 | ET78: -2.6864355 | EU78: -2.5292074 | EV78: -1.9234354 | EW78: -2.2072572 | EX78: -2.7584286 | EY78: -2.9554199 | EZ78: -2.9792385 | FA78: -3.5090462 | FB78: -3.3918488 | FC78: -3.2734283 | FD78: -3.0747811 | FE78: -2.7829677 | FF78: -2.0690292 | FG78: -2.1670216 | FH78: -1.97669 | FI78: -1.6946568 | FJ78: -1.9556513 | FK78: -2.1788061 | FL78: -2.2553027 | FM78: -2.3622409 | FN78: -2.437132 | FO78: -2.4431915 | FP78: -2.4479789 | FQ78: -2.4950182 | FR78: -2.6423663 | FS78: -2.7004496 | FT78: -2.6702289 | FU78: -2.7974031 | FV78: -3.0020797 | FW78: -2.8823592 | FX78: -2.3289616 | FY78: -2.4295969 | FZ78: -2.4051227 | GA78: -2.1941886 | GB78: -2.1001084 | GC78: -2.0139706 | GD78: -2.0964495 | GE78: -1.8795916 | GF78: -1.7253403 | GG78: -1.4838896 | GH78: -1.4576922 | GI78: -1.1438589 | GJ78: -1.2323507 | GK78: -1.3781767 | GL78: -1.4744384 | GM78: -1.4345467 | GN78: -1.4398579 | GO78: -1.3611146
A79: 58 | B79: 1.565934066 | C79: 1.896267679 | D79: -4.028641375 | E79: 11.4843466 | F79: 0.9454691827 | G79: -0.3930325146 | H79: 3.2927624 | I79: 4.2420249 | J79: 5.2141997 | K79: -0.9721748 | M79: Simulation 70 | N79: 0 | O79: -0.4557748 | P79: -1.2618601 | Q79: -2.5049346 | R79: -0.5519575 | S79: 1.2736474 | T79: 1.9266118 | U79: 2.9970498 | V79: 3.1558503 | W79: 2.8185916 | X79: 3.4992816 | Y79: 3.8395463 | Z79: 4.5397639 | AA79: 5.9900691 | AB79: 4.4973264 | AC79: 4.3065278 | AD79: 5.4477817 | AE79: 3.2905862 | AF79: 3.0327834 | AG79: 2.8244318 | AH79: 2.2633573 | AI79: 1.6179554 | AJ79: 0.7549139 | AK79: 0.727109 | AL79: -0.6545778 | AM79: -0.3960935 | AN79: -0.3942599 | AO79: -1.5211875 | AP79: -2.0654956 | AQ79: -2.227799 | AR79: -2.6149285 | AS79: -2.2249118 | AT79: -2.7195724 | AU79: -3.7146278 | AV79: -3.1366503 | AW79: -3.6417822 | AX79: -3.6248283 | AY79: -3.0610491 | AZ79: -3.8592357 | BA79: -3.5094948 | BB79: -3.8676539 | BC79: -4.0486257 | BD79: -2.0558395 | BE79: -1.3673121 | BF79: -0.2320164 | BG79: -1.4966814 | BH79: -1.9759926 | BI79: -0.584193 | BJ79: -0.4121254 | BK79: 1.6249121 | BL79: 1.3221893 | BM79: 2.281632 | BN79: 1.9185486 | BO79: 3.4908347 | BP79: 5.2103606 | BQ79: 6.6526072 | BR79: 6.9502015 | BS79: 7.5334517 | BT79: 9.3001482 | BU79: 7.7067819 | BV79: 7.5867325 | BW79: 10.3892465 | BX79: 9.4938394 | BY79: 5.0083127 | BZ79: 5.5395411 | CA79: 4.9005267 | CB79: 6.658107 | CC79: 8.0252965 | CD79: 7.5704296 | CE79: 9.1636737 | CF79: 8.0164631 | CG79: 7.0378017 | CH79: 7.9004034 | CI79: 5.8355424 | CJ79: 5.482533 | CK79: 3.9344131 | CL79: 2.4780678 | CM79: 3.630991 | CN79: 3.4433004 | CO79: 3.8596235 | CP79: 4.0142058 | CQ79: 3.9268973 | CR79: 1.1266467 | CS79: 2.160132 | CT79: 3.3178652 | CU79: 3.262055 | CV79: 4.5685917 | CW79: 5.7519163 | CX79: 6.1746826 | CY79: 6.3325338 | CZ79: 5.1134313 | DA79: 6.1055721 | DB79: 5.4847484 | DC79: 6.0067764 | DD79: 4.3738875 | DE79: 3.5360785 | DF79: 1.2839815 | DG79: 1.3464497 | DH79: 0.4266637 | DI79: -0.2324255 | DJ79: -1.6364889 | DK79: -1.7336235 | DL79: -1.6908357 | DM79: -1.5894948 | DN79: -1.0434811 | DO79: -0.555811 | DP79: -0.1545171 | DQ79: 0.0189483 | DR79: -0.5274825 | DS79: -0.4283321 | DT79: 0.1165547 | DU79: -0.0937241 | DV79: 0.2206806 | DW79: 0.0793148 | DX79: 0.6932051 | DY79: 1.579959 | DZ79: 2.0559846 | EA79: 1.3767762 | EB79: 0.6852699 | EC79: 1.1462502 | ED79: 1.6886712 | EE79: 0.7560544 | EF79: 0.7648139 | EG79: 0.8305736 | EH79: 1.8378659 | EI79: 1.9060686 | EJ79: 1.8402673 | EK79: 1.0957183 | EL79: 0.9147925 | EM79: 1.4107081 | EN79: 1.6589733 | EO79: 2.2437808 | EP79: 2.5777183 | EQ79: 2.8604285 | ER79: 2.7395902 | ES79: 3.0856811 | ET79: 3.7844414 | EU79: 3.0381241 | EV79: 3.1306399 | EW79: 3.038387 | EX79: 3.9858404 | EY79: 3.0096657 | EZ79: 3.0160652 | FA79: 2.5887305 | FB79: 3.060386 | FC79: 2.6314381 | FD79: 1.9823545 | FE79: 2.2783012 | FF79: 2.9564217 | FG79: 3.0068628 | FH79: 2.8449331 | FI79: 3.0012559 | FJ79: 2.3741399 | FK79: 2.4935729 | FL79: 2.3141926 | FM79: 1.9472518 | FN79: 1.8258714 | FO79: 1.9711125 | FP79: 1.9648936 | FQ79: 1.2318528 | FR79: 0.9063019 | FS79: 1.0755135 | FT79: 1.1387179 | FU79: 0.9962745 | FV79: 0.8043357 | FW79: 0.996018 | FX79: 0.8082113 | FY79: 0.5987847 | FZ79: 0.569061 | GA79: 0.407368 | GB79: 0.2967923 | GC79: 0.2248224 | GD79: 0.1030755 | GE79: -0.0088223 | GF79: 0.0678899 | GG79: 0.1228687 | GH79: 0.0022966 | GI79: -0.2099197 | GJ79: -0.0076189 | GK79: 0.0651037 | GL79: -0.0280816 | GM79: -0.1846717 | GN79: -0.1217508 | GO79: -0.295294
A80: 59 | B80: 1.593406593 | C80: 1.89724491 | D80: -4.113126388 | E80: 12.1937267 | F80: 0.4452843728 | G80: -0.5793936657 | H80: 2.2686489 | I80: 5.1777982 | J80: 4.730019 | K80: 0.4477792 | M80: Simulation 71 | N80: 0 | O80: 0.1559887 | P80: 0.5646768 | Q80: -1.1628089 | R80: 0.4669603 | S80: 2.1252891 | T80: 2.1454102 | U80: 2.7654301 | V80: 1.8357015 | W80: 1.5848883 | X80: -0.0473857 | Y80: 1.4311089 | Z80: 1.950128 | AA80: 0.4526319 | AB80: -0.2199274 | AC80: 0.8815132 | AD80: -1.7125395 | AE80: -2.2889994 | AF80: -2.1814371 | AG80: -1.7661368 | AH80: -1.4566256 | AI80: 0.7024171 | AJ80: -0.6595781 | AK80: 0.1616894 | AL80: 0.6847197 | AM80: -0.3251558 | AN80: -0.531841 | AO80: 0.441988 | AP80: -1.0008487 | AQ80: -1.174084 | AR80: -0.1630285 | AS80: 0.3111735 | AT80: -1.1984334 | AU80: -2.6027358 | AV80: -3.0797749 | AW80: -2.8233555 | AX80: -4.1154708 | AY80: -4.4174124 | AZ80: -3.7589567 | BA80: -2.9450298 | BB80: -2.9455539 | BC80: -2.0136946 | BD80: -1.3093531 | BE80: 0.8473888 | BF80: 1.0253672 | BG80: 0.9062414 | BH80: 3.196069 | BI80: 3.1445091 | BJ80: 1.5159859 | BK80: 1.4779947 | BL80: 2.3580721 | BM80: 2.1731114 | BN80: 2.2232579 | BO80: 1.8982205 | BP80: 2.0370795 | BQ80: 1.3851033 | BR80: 1.4882056 | BS80: 2.582263 | BT80: 2.5543189 | BU80: 2.3837027 | BV80: 3.5134931 | BW80: 1.8028441 | BX80: 0.9310665 | BY80: 0.3853981 | BZ80: 0.3434546 | CA80: 0.7994848 | CB80: 0.1290978 | CC80: 1.7602812 | CD80: 3.9901097 | CE80: 5.4970676 | CF80: 4.5754446 | CG80: 3.483677 | CH80: 2.8249457 | CI80: 3.4398567 | CJ80: 2.6680304 | CK80: 2.5663609 | CL80: 1.7702027 | CM80: 2.023336 | CN80: 2.3301532 | CO80: 0.9925224 | CP80: 1.9294077 | CQ80: 1.9312225 | CR80: 0.7259163 | CS80: -1.4206837 | CT80: -1.3882426 | CU80: -2.5448016 | CV80: -3.6454534 | CW80: -4.1092228 | CX80: -4.3280684 | CY80: -4.1921385 | CZ80: -4.1514653 | DA80: -4.6589685 | DB80: -4.5473352 | DC80: -5.1514749 | DD80: -5.7157132 | DE80: -6.1277337 | DF80: -6.3745963 | DG80: -6.1821424 | DH80: -6.3695667 | DI80: -6.4737254 | DJ80: -6.1158862 | DK80: -6.070211 | DL80: -5.5052069 | DM80: -5.7707723 | DN80: -5.3878875 | DO80: -5.4913731 | DP80: -5.4676782 | DQ80: -5.5588082 | DR80: -5.7824588 | DS80: -5.8074534 | DT80: -5.849631 | DU80: -5.4130679 | DV80: -5.642306 | DW80: -5.5386104 | DX80: -5.472444 | DY80: -5.3578972 | DZ80: -5.4829677 | EA80: -5.3641559 | EB80: -4.8823602 | EC80: -4.8755988 | ED80: -4.9032554 | EE80: -5.05166 | EF80: -5.2524617 | EG80: -4.9946792 | EH80: -5.1479662 | EI80: -5.000668 | EJ80: -4.9623381 | EK80: -4.8508462 | EL80: -4.8995246 | EM80: -4.5154015 | EN80: -4.5728936 | EO80: -4.694758 | EP80: -4.5919663 | EQ80: -4.4348594 | ER80: -4.2151334 | ES80: -4.2533359 | ET80: -4.0796376 | EU80: -3.8591153 | EV80: -3.9071754 | EW80: -3.711888 | EX80: -3.6901764 | EY80: -3.6588665 | EZ80: -3.5378635 | FA80: -3.5193301 | FB80: -3.400641 | FC80: -3.3764987 | FD80: -3.48046 | FE80: -3.1435654 | FF80: -2.8923808 | FG80: -3.1618537 | FH80: -3.189461 | FI80: -3.218591 | FJ80: -3.0883933 | FK80: -3.1704399 | FL80: -3.1004321 | FM80: -3.241882 | FN80: -3.1137802 | FO80: -3.0456459 | FP80: -2.9541284 | FQ80: -2.8372323 | FR80: -2.9912452 | FS80: -2.9145711 | FT80: -2.9920328 | FU80: -2.8695639 | FV80: -2.6985717 | FW80: -2.614827 | FX80: -2.0230613 | FY80: -2.1268504 | FZ80: -2.0890717 | GA80: -2.0216044 | GB80: -1.9926561 | GC80: -1.7775311 | GD80: -1.9423268 | GE80: -1.9421395 | GF80: -1.9226463 | GG80: -1.8491199 | GH80: -1.8391969 | GI80: -1.6306655 | GJ80: -1.685324 | GK80: -1.6027572 | GL80: -1.3913209 | GM80: -1.4457736 | GN80: -1.5601823 | GO80: -1.3211923
A81: 60 | B81: 1.620879121 | C81: 1.889624817 | D81: -4.174066586 | E81: 11.5390267 | F81: 0.5055904974 | G81: -0.7082600809 | H81: 2.6800575 | I81: 6.0855247 | J81: 4.730019 | K81: 1.3555057 | M81: Simulation 72 | N81: 0 | O81: -0.0473806 | P81: -0.9795629 | Q81: -2.3631761 | R81: -3.3666477 | S81: -2.7151686 | T81: -3.381819 | U81: -3.9557742 | V81: -4.7904044 | W81: -4.2545977 | X81: -5.8482395 | Y81: -4.8743483 | Z81: -6.0442682 | AA81: -7.6192715 | AB81: -6.0612984 | AC81: -3.4753216 | AD81: -3.7381817 | AE81: -5.2035766 | AF81: -4.6361519 | AG81: -5.1340172 | AH81: -4.1764476 | AI81: -4.2141996 | AJ81: -2.8735055 | AK81: -1.9257593 | AL81: -2.9486383 | AM81: -1.7388276 | AN81: -1.0116774 | AO81: -2.5294051 | AP81: -2.1377059 | AQ81: -0.1208103 | AR81: -1.4442386 | AS81: -3.0391572 | AT81: -2.4932795 | AU81: -1.4642491 | AV81: 0.1032593 | AW81: -0.9782198 | AX81: 0.9513174 | AY81: 0.4984276 | AZ81: 2.5047664 | BA81: 1.9806592 | BB81: 2.0261436 | BC81: 1.0696291 | BD81: 0.905526 | BE81: 0.8098591 | BF81: 1.8624979 | BG81: 0.9872464 | BH81: 0.6541029 | BI81: 0.5312966 | BJ81: -1.6445987 | BK81: -1.3265386 | BL81: -1.7544591 | BM81: -1.9955782 | BN81: -2.6104635 | BO81: -1.4835354 | BP81: -1.2625498 | BQ81: -2.5695997 | BR81: -1.9122285 | BS81: -1.444111 | BT81: -1.7570157 | BU81: -0.7537005 | BV81: -0.5435916 | BW81: 1.3712808 | BX81: 1.0917603 | BY81: 0.5296649 | BZ81: -0.0202654 | CA81: 0.4799201 | CB81: -0.6578997 | CC81: -1.455448 | CD81: -1.6213593 | CE81: -1.7100129 | CF81: -1.5252299 | CG81: -1.5875726 | CH81: -2.4300882 | CI81: -2.3936363 | CJ81: -2.0664679 | CK81: -1.7436616 | CL81: -2.4473765 | CM81: -2.6027929 | CN81: -2.6352083 | CO81: -2.8851263 | CP81: -3.2074659 | CQ81: -2.6337423 | CR81: -2.155452 | CS81: -3.348996 | CT81: -2.8470634 | CU81: -3.9358233 | CV81: -3.8838747 | CW81: -5.3221412 | CX81: -5.0858809 | CY81: -4.96845 | CZ81: -4.5975009 | DA81: -4.7577861 | DB81: -4.4669076 | DC81: -3.7588586 | DD81: -4.0799349 | DE81: -3.4838343 | DF81: -4.1900588 | DG81: -3.254099 | DH81: -3.7420363 | DI81: -4.2343662 | DJ81: -4.3955331 | DK81: -3.6777201 | DL81: -3.3699911 | DM81: -3.6858875 | DN81: -2.9623477 | DO81: -2.6849844 | DP81: -2.9664366 | DQ81: -2.5780134 | DR81: -3.2412135 | DS81: -3.3199891 | DT81: -2.6543838 | DU81: -2.0187921 | DV81: -1.5486515 | DW81: -1.1986007 | DX81: -1.2223159 | DY81: -1.7612332 | DZ81: -2.3701208 | EA81: -0.9375866 | EB81: -1.8023191 | EC81: -2.147537 | ED81: -1.0262287 | EE81: -0.6500857 | EF81: -1.0830858 | EG81: -0.01574 | EH81: 0.4636399 | EI81: 0.8427582 | EJ81: 1.4224707 | EK81: 2.0291264 | EL81: 1.8488434 | EM81: 1.9158579 | EN81: 1.3378127 | EO81: 1.1132694 | EP81: 1.1711735 | EQ81: 1.2922168 | ER81: 1.2323208 | ES81: 0.7698345 | ET81: 0.8637469 | EU81: 0.7409547 | EV81: 0.9185127 | EW81: 0.9861601 | EX81: 0.9248307 | EY81: 1.1015799 | EZ81: 1.0073875 | FA81: 0.5294878 | FB81: 0.7570497 | FC81: 0.7927025 | FD81: 0.7156215 | FE81: 0.8575234 | FF81: 1.1624704 | FG81: 1.0921323 | FH81: 1.0610378 | FI81: 1.2189444 | FJ81: 1.4113514 | FK81: 1.4761652 | FL81: 1.4294366 | FM81: 1.5769561 | FN81: 1.8191885 | FO81: 1.8718331 | FP81: 1.8281652 | FQ81: 1.7154477 | FR81: 1.6900166 | FS81: 1.8380451 | FT81: 1.947103 | FU81: 1.6100775 | FV81: 2.1486972 | FW81: 2.3436771 | FX81: 2.8135217 | FY81: 2.7553907 | FZ81: 2.5019697 | GA81: 2.2438191 | GB81: 2.3308447 | GC81: 2.730852 | GD81: 2.7894229 | GE81: 2.9187491 | GF81: 2.8953916 | GG81: 2.8063845 | GH81: 2.5756345 | GI81: 2.5979086 | GJ81: 2.4557433 | GK81: 2.6711682 | GL81: 2.6600578 | GM81: 2.5951268 | GN81: 2.6665113 | GO81: 2.4735469
A82: 61 | B82: 1.648351648 | C82: 1.938649232 | D82: -4.23184683 | E82: 11.9677856 | F82: 0.4653558134 | G82: -0.5426719337 | H82: 2.2709281 | I82: 6.4216729 | J82: 5.1777982 | K82: 1.2438747 | M82: Simulation 73 | N82: 0 | O82: -0.6039127 | P82: 0.4758184 | Q82: -0.9701918 | R82: -1.6988664 | S82: -0.4547805 | T82: -1.84169 | U82: -3.2620823 | V82: -3.1848985 | W82: -3.1100169 | X82: -4.178077 | Y82: -3.6473815 | Z82: -2.0446041 | AA82: -0.9147393 | AB82: -2.0322625 | AC82: -2.8837997 | AD82: -2.9226555 | AE82: -4.6494885 | AF82: -4.9665352 | AG82: -5.7747398 | AH82: -4.7509331 | AI82: -5.3199065 | AJ82: -6.0353452 | AK82: -5.986142 | AL82: -6.3205549 | AM82: -7.2333731 | AN82: -6.7355129 | AO82: -7.4728573 | AP82: -7.3993645 | AQ82: -7.0051632 | AR82: -7.5594947 | AS82: -7.8027976 | AT82: -8.5230251 | AU82: -9.943454 | AV82: -10.8765778 | AW82: -10.5352699 | AX82: -9.5331343 | AY82: -9.2527063 | AZ82: -8.8261665 | BA82: -8.6939071 | BB82: -8.3575241 | BC82: -8.5095997 | BD82: -8.1386234 | BE82: -7.3625344 | BF82: -7.2011994 | BG82: -7.7418914 | BH82: -8.2341664 | BI82: -8.1250645 | BJ82: -8.27084 | BK82: -7.7970012 | BL82: -8.2167917 | BM82: -7.6691909 | BN82: -7.6617303 | BO82: -7.1494117 | BP82: -7.4178718 | BQ82: -7.7869556 | BR82: -7.1212701 | BS82: -7.5648593 | BT82: -7.4716949 | BU82: -7.5360686 | BV82: -7.4181773 | BW82: -7.348747 | BX82: -6.7631878 | BY82: -6.5300664 | BZ82: -6.3953816 | CA82: -6.4438128 | CB82: -6.2502781 | CC82: -5.8292693 | CD82: -6.1327588 | CE82: -5.9964216 | CF82: -5.4816722 | CG82: -6.2313835 | CH82: -6.1837331 | CI82: -6.4269924 | CJ82: -5.9850676 | CK82: -4.8458368 | CL82: -5.0456496 | CM82: -5.076584 | CN82: -4.3903835 | CO82: -5.2355154 | CP82: -5.6127568 | CQ82: -5.2328853 | CR82: -5.3677104 | CS82: -5.4285812 | CT82: -4.5412258 | CU82: -4.978333 | CV82: -4.5764997 | CW82: -4.8920423 | CX82: -4.8602418 | CY82: -4.6890974 | CZ82: -4.8425887 | DA82: -4.7549003 | DB82: -4.4321005 | DC82: -3.5188898 | DD82: -4.1268567 | DE82: -4.6980406 | DF82: -4.969999 | DG82: -4.5490359 | DH82: -4.5801615 | DI82: -5.0512718 | DJ82: -4.1861748 | DK82: -4.427031 | DL82: -3.6039671 | DM82: -3.857199 | DN82: -3.7140874 | DO82: -3.5106868 | DP82: -3.3055713 | DQ82: -2.9066467 | DR82: -3.3307574 | DS82: -3.4357805 | DT82: -3.9785942 | DU82: -2.7119401 | DV82: -2.5030206 | DW82: -2.2226775 | DX82: -1.9631674 | DY82: -1.8198359 | DZ82: -1.6457045 | EA82: -1.3770457 | EB82: -1.3204751 | EC82: -1.5410944 | ED82: -1.2796776 | EE82: -1.6954018 | EF82: -1.6467703 | EG82: -1.1312058 | EH82: -0.6883268 | EI82: -0.4668559 | EJ82: 0.1166993 | EK82: -0.0927039 | EL82: 0.3320349 | EM82: 1.5690481 | EN82: 1.5674703 | EO82: 1.1114374 | EP82: 1.3372275 | EQ82: 1.455367 | ER82: 1.2516745 | ES82: 1.0080559 | ET82: 1.0842419 | EU82: 0.8700452 | EV82: 1.0670546 | EW82: 0.8243491 | EX82: 0.8840868 | EY82: 0.8778394 | EZ82: 1.0673401 | FA82: 1.2558955 | FB82: 1.036189 | FC82: 1.2945689 | FD82: 1.6620627 | FE82: 1.8577854 | FF82: 2.2693367 | FG82: 2.0033957 | FH82: 1.8332896 | FI82: 2.415609 | FJ82: 2.6028142 | FK82: 2.5874269 | FL82: 2.859937 | FM82: 2.9088491 | FN82: 3.0552322 | FO82: 3.2319811 | FP82: 3.2542723 | FQ82: 3.4998145 | FR82: 3.4818088 | FS82: 3.8539375 | FT82: 3.5646695 | FU82: 3.7199116 | FV82: 3.8416746 | FW82: 4.2812802 | FX82: 4.533195 | FY82: 4.7380714 | FZ82: 4.919626 | GA82: 4.9476395 | GB82: 4.9122741 | GC82: 4.9656993 | GD82: 5.3499243 | GE82: 5.0550039 | GF82: 5.0451712 | GG82: 4.8849425 | GH82: 5.1709629 | GI82: 5.2720119 | GJ82: 5.0692315 | GK82: 4.6549821 | GL82: 4.006815 | GM82: 4.0040154 | GN82: 3.8759011 | GO82: 3.7757922
A83: 62 | B83: 1.675824176 | C83: 1.908190091 | D83: -4.252839993 | E83: 11.7444118 | F83: 0.5333990635 | G83: -0.6621674886 | H83: 2.5828015 | I83: 5.878343 | J83: 5.1777982 | K83: 0.7005448 | M83: Simulation 74 | N83: 0 | O83: -0.5886135 | P83: 0.0403903 | Q83: 1.1889461 | R83: 1.1944825 | S83: 3.3527229 | T83: 4.6469648 | U83: 2.0985828 | V83: 1.2203978 | W83: 2.8505102 | X83: 1.6352019 | Y83: 3.2146587 | Z83: 4.8659488 | AA83: 3.5126854 | AB83: 4.1092384 | AC83: 1.3768316 | AD83: 2.9658401 | AE83: 1.2052547 | AF83: -0.7685372 | AG83: -1.8937232 | AH83: -0.3934042 | AI83: -0.1352356 | AJ83: 0.1815826 | AK83: -0.8519467 | AL83: 0.1922851 | AM83: -0.7107221 | AN83: 0.0073487 | AO83: -0.0721877 | AP83: -0.6714144 | AQ83: -1.3577066 | AR83: -1.2083977 | AS83: -2.001581 | AT83: -1.5281781 | AU83: -0.3819433 | AV83: -0.6938653 | AW83: -1.7620631 | AX83: -1.5883665 | AY83: -2.121199 | AZ83: -2.4754159 | BA83: -3.7596991 | BB83: -3.9615812 | BC83: -3.3651397 | BD83: -3.446925 | BE83: -3.9205986 | BF83: -4.8829814 | BG83: -4.5915966 | BH83: -4.3803952 | BI83: -3.7744798 | BJ83: -4.1507755 | BK83: -4.4174813 | BL83: -5.5419658 | BM83: -4.2757692 | BN83: -4.5551538 | BO83: -4.1204892 | BP83: -4.0159323 | BQ83: -3.7466505 | BR83: -3.0109982 | BS83: -3.4458841 | BT83: -3.4962922 | BU83: -3.90302 | BV83: -3.3963333 | BW83: -2.9055266 | BX83: -2.2433804 | BY83: -2.2833253 | BZ83: -2.7190399 | CA83: -1.4483391 | CB83: -3.089645 | CC83: -2.5200784 | CD83: -4.1549069 | CE83: -4.9248713 | CF83: -4.8318114 | CG83: -5.815679 | CH83: -6.0475181 | CI83: -5.7054564 | CJ83: -5.417365 | CK83: -3.7910954 | CL83: -4.6055333 | CM83: -4.9270564 | CN83: -5.3593794 | CO83: -5.0952764 | CP83: -5.343709 | CQ83: -5.4983502 | CR83: -5.760418 | CS83: -5.8765214 | CT83: -5.243579 | CU83: -5.3127667 | CV83: -4.0272235 | CW83: -4.757882 | CX83: -5.3242275 | CY83: -5.4049057 | CZ83: -5.3869542 | DA83: -5.1983419 | DB83: -4.7551044 | DC83: -4.3079907 | DD83: -4.0529566 | DE83: -4.5850334 | DF83: -4.3750508 | DG83: -4.0680299 | DH83: -4.7224586 | DI83: -4.9325753 | DJ83: -5.2248678 | DK83: -5.4432666 | DL83: -4.9462997 | DM83: -4.7984745 | DN83: -4.7425081 | DO83: -5.0629684 | DP83: -4.8096187 | DQ83: -4.8587152 | DR83: -5.1203076 | DS83: -5.1614468 | DT83: -5.1569805 | DU83: -4.4310454 | DV83: -3.7636507 | DW83: -4.0105825 | DX83: -4.1520018 | DY83: -3.667749 | DZ83: -3.3236004 | EA83: -2.9034535 | EB83: -3.2054029 | EC83: -2.4715547 | ED83: -2.0993855 | EE83: -2.7565017 | EF83: -2.9000875 | EG83: -2.9315624 | EH83: -2.998045 | EI83: -3.2635788 | EJ83: -3.0645662 | EK83: -3.0803395 | EL83: -3.021621 | EM83: -2.6188744 | EN83: -2.6031551 | EO83: -2.6670059 | EP83: -2.6452462 | EQ83: -2.3503416 | ER83: -1.8267467 | ES83: -1.9171403 | ET83: -1.8454192 | EU83: -1.9296302 | EV83: -1.792845 | EW83: -1.5669908 | EX83: -1.6114053 | EY83: -1.692003 | EZ83: -1.5871889 | FA83: -1.2323483 | FB83: -1.3619755 | FC83: -1.4179647 | FD83: -1.2767791 | FE83: -1.0371784 | FF83: -0.7898126 | FG83: -0.6714302 | FH83: -0.8106106 | FI83: -0.6909609 | FJ83: -0.4301844 | FK83: -0.3040853 | FL83: -0.3042093 | FM83: -0.3839377 | FN83: -0.5195502 | FO83: -0.1848676 | FP83: -0.1919411 | FQ83: 0.1649635 | FR83: 0.2148226 | FS83: 0.3343918 | FT83: 0.4856421 | FU83: 0.4008807 | FV83: 0.1155508 | FW83: 0.1840089 | FX83: 0.1655268 | FY83: 0.264414 | FZ83: 0.2402525 | GA83: 0.3241238 | GB83: 0.2592239 | GC83: 0.1146672 | GD83: 0.2785429 | GE83: 0.2520534 | GF83: 0.4942871 | GG83: 0.5702611 | GH83: 0.6993074 | GI83: 0.846402 | GJ83: 0.9831103 | GK83: 1.1897049 | GL83: 1.1249343 | GM83: 1.2800982 | GN83: 1.5730935 | GO83: 1.5733354
A84: 63 | B84: 1.703296703 | C84: 1.890103032 | D84: -4.277135422 | E84: 11.4188164 | F84: 0.4232077084 | G84: -0.5170424998 | H84: 1.8659419 | I84: 5.6783658 | J84: 6.4216729 | K84: -0.7433071 | M84: Simulation 75 | N84: 0 | O84: 0.5579487 | P84: 2.1029148 | Q84: 1.5247671 | R84: 2.19878 | S84: 4.5335965 | T84: 3.1548101 | U84: 3.7896374 | V84: 6.0396625 | W84: 5.0188808 | X84: 8.0075216 | Y84: 8.6757413 | Z84: 6.6805309 | AA84: 6.4310107 | AB84: 10.0669967 | AC84: 10.33787 | AD84: 9.2588325 | AE84: 7.1363352 | AF84: 7.5563109 | AG84: 9.9312302 | AH84: 11.1088222 | AI84: 10.9419915 | AJ84: 8.3957438 | AK84: 8.3584272 | AL84: 5.9172967 | AM84: 5.2571439 | AN84: 2.1788337 | AO84: 1.0490954 | AP84: 1.4367877 | AQ84: 1.1762658 | AR84: 2.1806202 | AS84: -0.0687652 | AT84: -0.8342558 | AU84: 2.0750155 | AV84: -0.8693363 | AW84: -2.7391598 | AX84: -2.2512792 | AY84: -2.3117819 | AZ84: -1.1282548 | BA84: -2.5675776 | BB84: -2.3015552 | BC84: -2.5821542 | BD84: -4.6837783 | BE84: -5.1418977 | BF84: -3.8404884 | BG84: -3.9729922 | BH84: -3.9484979 | BI84: -4.0503232 | BJ84: -3.2820086 | BK84: -3.4450824 | BL84: -3.1966278 | BM84: -2.4501324 | BN84: -3.5411029 | BO84: -3.855913 | BP84: -3.6006196 | BQ84: -4.164424 | BR84: -2.7577236 | BS84: -2.3985945 | BT84: -3.4804073 | BU84: -3.0226965 | BV84: -3.5109325 | BW84: -3.3531066 | BX84: -2.7166983 | BY84: -2.9676109 | BZ84: -3.1075515 | CA84: -2.5773876 | CB84: -3.0915576 | CC84: -3.069707 | CD84: -3.5861766 | CE84: -3.5858149 | CF84: -4.2870005 | CG84: -4.9693366 | CH84: -3.5623437 | CI84: -2.0507207 | CJ84: -0.9446975 | CK84: -2.5829743 | CL84: -2.8135436 | CM84: -2.9511117 | CN84: -3.9696312 | CO84: -4.3103797 | CP84: -4.515146 | CQ84: -5.601097 | CR84: -5.4460165 | CS84: -6.1695699 | CT84: -5.9832193 | CU84: -6.8785828 | CV84: -6.720505 | CW84: -7.2165702 | CX84: -6.9878988 | CY84: -7.1696019 | CZ84: -7.4515185 | DA84: -7.0966551 | DB84: -6.9568522 | DC84: -6.6340884 | DD84: -6.3951939 | DE84: -6.2481834 | DF84: -6.2740957 | DG84: -5.9316858 | DH84: -5.7112894 | DI84: -6.5845906 | DJ84: -6.4717731 | DK84: -6.6298076 | DL84: -6.7352095 | DM84: -7.0679506 | DN84: -7.1008709 | DO84: -7.1821978 | DP84: -6.6735741 | DQ84: -6.769635 | DR84: -7.0333362 | DS84: -7.0019239 | DT84: -6.9528646 | DU84: -6.0419054 | DV84: -6.0773819 | DW84: -6.0874122 | DX84: -6.4564867 | DY84: -6.5599406 | DZ84: -6.5430817 | EA84: -6.4713288 | EB84: -6.5662485 | EC84: -6.3900465 | ED84: -6.2019369 | EE84: -6.1928911 | EF84: -6.0935724 | EG84: -5.9329648 | EH84: -5.860462 | EI84: -5.7587822 | EJ84: -5.7175483 | EK84: -5.7642197 | EL84: -5.8687904 | EM84: -5.3257016 | EN84: -5.1604237 | EO84: -5.197131 | EP84: -5.0904497 | EQ84: -4.927698 | ER84: -4.8977982 | ES84: -4.7736401 | ET84: -4.6347197 | EU84: -4.3894998 | EV84: -4.1273494 | EW84: -3.9862698 | EX84: -3.8578558 | EY84: -3.7931855 | EZ84: -3.4993938 | FA84: -3.4000238 | FB84: -3.376274 | FC84: -3.2914111 | FD84: -3.1115794 | FE84: -2.8873289 | FF84: -2.7608898 | FG84: -2.8519966 | FH84: -2.9818594 | FI84: -2.9121365 | FJ84: -2.7992489 | FK84: -2.929629 | FL84: -2.9480798 | FM84: -3.0098755 | FN84: -3.0571914 | FO84: -3.1384169 | FP84: -3.1255988 | FQ84: -3.2100992 | FR84: -3.1646059 | FS84: -3.0075145 | FT84: -3.0684574 | FU84: -3.1150005 | FV84: -3.1314367 | FW84: -2.9825176 | FX84: -2.7147782 | FY84: -2.8596956 | FZ84: -2.9231043 | GA84: -2.9143092 | GB84: -2.9131364 | GC84: -2.9286413 | GD84: -2.931773 | GE84: -2.9438063 | GF84: -2.8878719 | GG84: -2.9121501 | GH84: -2.9043635 | GI84: -2.8388163 | GJ84: -2.6249773 | GK84: -2.6268814 | GL84: -2.6625103 | GM84: -2.6505418 | GN84: -2.4387357 | GO84: -2.3392432
A85: 64 | B85: 1.730769231 | C85: =SUMIF(OFFSET(Exposure, 0, A85,1000,1),">0")/1000 -> 1.914384734 | D85: =SUMIF(OFFSET(Exposure, 0, A85,1000,1),"<0")/1000 -> -4.274744478 | E85: =SMALL(OFFSET(Exposure, 0, A85,1000,1),95%*1000) -> 11.8118097 | F85: =SUMIF(OFFSET(MarginedExposure,0,A85,1000,1),">0")/1000 -> 0.5634778268 | G85: =SUMIF(OFFSET(MarginedExposure,0,A85,1000,1),"<0")/1000 -> -0.6306399732 | H85: =SMALL(OFFSET(MarginedExposure, 0, A85,1000,1),95%*1000) -> 2.535018 | I85: =OFFSET(Exposure, PathNum-1,A85,1,1) -> 5.6977906 | J85: 6.4216729 | K85: =OFFSET(MarginedExposure,PathNum-1,A85,1,1) -> -0.7238823 | M85: Simulation 76 | N85: 0 | O85: -0.2716997 | P85: 2.6082252 | Q85: 2.9868505 | R85: 4.8777276 | S85: 7.0472042 | T85: 5.608288 | U85: 5.7059765 | V85: 3.7164926 | W85: 0.8529859 | X85: 1.0107615 | Y85: 0.0539709 | Z85: -2.6753203 | AA85: -3.7933605 | AB85: -3.489428 | AC85: -1.9115008 | AD85: -3.9327206 | AE85: -3.4956455 | AF85: -2.2898918 | AG85: -2.2672558 | AH85: -2.4263428 | AI85: -2.6261587 | AJ85: -2.9027845 | AK85: -3.1694275 | AL85: -3.2797605 | AM85: -3.6939712 | AN85: -4.6375106 | AO85: -5.0224638 | AP85: -6.193572 | AQ85: -4.4929395 | AR85: -3.0250931 | AS85: -3.6586098 | AT85: -4.551071 | AU85: -6.3460951 | AV85: -6.8389167 | AW85: -6.9563307 | AX85: -6.9712027 | AY85: -8.8219547 | AZ85: -9.2449506 | BA85: -9.0982476 | BB85: -8.4068374 | BC85: -9.7456905 | BD85: -10.08285 | BE85: -11.1977811 | BF85: -11.2654201 | BG85: -11.5676619 | BH85: -11.6326863 | BI85: -11.7371942 | BJ85: -11.6633693 | BK85: -11.4271998 | BL85: -11.7064052 | BM85: -12.0263939 | BN85: -11.7916595 | BO85: -11.786966 | BP85: -11.550882 | BQ85: -11.634148 | BR85: -11.3484904 | BS85: -11.018948 | BT85: -11.5147713 | BU85: -11.7553946 | BV85: -11.6896076 | BW85: -11.7402441 | BX85: -11.586293 | BY85: -11.5072003 | BZ85: -11.4447986 | CA85: -11.3113475 | CB85: -11.3784242 | CC85: -11.1295027 | CD85: -10.765183 | CE85: -10.4652325 | CF85: -10.5770494 | CG85: -10.769681 | CH85: -10.5566052 | CI85: -10.2696385 | CJ85: -9.6999357 | CK85: -8.6679826 | CL85: -8.9874743 | CM85: -8.7845177 | CN85: -8.8814112 | CO85: -8.9502559 | CP85: -8.8973103 | CQ85: -8.7794394 | CR85: -8.0573734 | CS85: -7.8467797 | CT85: -7.8945301 | CU85: -7.9911521 | CV85: -7.8521773 | CW85: -7.8472048 | CX85: -6.621145 | CY85: -5.4439407 | CZ85: -5.1749378 | DA85: -5.3138325 | DB85: -5.1023227 | DC85: -5.5538149 | DD85: -4.8914985 | DE85: -5.3883091 | DF85: -4.7561933 | DG85: -5.7073293 | DH85: -6.0033351 | DI85: -5.8581838 | DJ85: -5.6193882 | DK85: -5.4444823 | DL85: -4.1135426 | DM85: -3.8497426 | DN85: -3.3495454 | DO85: -3.7319588 | DP85: -3.0489321 | DQ85: -3.059099 | DR85: -2.793304 | DS85: -2.4868742 | DT85: -2.5405517 | DU85: -1.9083506 | DV85: -1.3490286 | DW85: -0.9760441 | DX85: -0.8060868 | DY85: -0.5453417 | DZ85: -0.7811878 | EA85: -0.0417 | EB85: 0.4735592 | EC85: 0.745164 | ED85: 1.2798538 | EE85: 1.1581729 | EF85: 1.5450617 | EG85: 1.1895558 | EH85: 1.8630211 | EI85: 1.4673532 | EJ85: 1.7801579 | EK85: 1.5093042 | EL85: 0.8788808 | EM85: 1.7445608 | EN85: 3.2058349 | EO85: 3.986465 | EP85: 4.8073106 | EQ85: 5.448258 | ER85: 5.112972 | ES85: 4.726588 | ET85: 5.8726275 | EU85: 5.7038854 | EV85: 6.5113468 | EW85: 7.3097291 | EX85: 8.3871711 | EY85: 7.5759718 | EZ85: 9.0214013 | FA85: 8.6236724 | FB85: 7.8405277 | FC85: 8.0552013 | FD85: 6.9624045 | FE85: 5.6497537 | FF85: 5.9121295 | FG85: 5.0875907 | FH85: 4.9207551 | FI85: 4.5514662 | FJ85: 4.222176 | FK85: 4.619686 | FL85: 4.2875675 | FM85: 3.0008239 | FN85: 2.2736285 | FO85: 2.1705966 | FP85: 2.2352345 | FQ85: 2.0467161 | FR85: 1.9523851 | FS85: 1.9801244 | FT85: 1.9172973 | FU85: 1.576259 | FV85: 1.0923776 | FW85: 0.5741895 | FX85: 0.951192 | FY85: 1.1052362 | FZ85: 0.7821812 | GA85: 1.08761 | GB85: 1.0048115 | GC85: 0.9320272 | GD85: 0.8424672 | GE85: 0.8665132 | GF85: 1.0714289 | GG85: 1.202932 | GH85: 0.9503268 | GI85: 0.9654908 | GJ85: 1.0467757 | GK85: 0.9610243 | GL85: 0.6538599 | GM85: 0.6743828 | GN85: 0.5874955 | GO85: 0.3962223
A86: 65 | B86: 1.758241758 | C86: 1.92566321 | D86: -4.241627082 | E86: 12.8082708 | F86: 0.5049787768 | G86: -0.4339102594 | H86: 2.3887923 | I86: 7.0713625 | J86: 5.6783658 | K86: 1.3929967 | M86: Simulation 77 | N86: 0 | O86: 0.0168652 | P86: -0.0334097 | Q86: -1.492499 | R86: -2.9679078 | S86: -3.2161359 | T86: -2.0812769 | U86: -2.5651214 | V86: -4.3542497 | W86: -3.8234991 | X86: -3.6638075 | Y86: -3.3567076 | Z86: -2.9760141 | AA86: -2.5773688 | AB86: -3.0086389 | AC86: -4.3976077 | AD86: -4.4854878 | AE86: -2.8487137 | AF86: -3.3271245 | AG86: -1.7169012 | AH86: 1.1266983 | AI86: 1.0001392 | AJ86: 0.3605349 | AK86: 0.1789656 | AL86: -0.2609252 | AM86: -1.5835848 | AN86: -2.2084424 | AO86: -0.6947541 | AP86: -0.8040438 | AQ86: -1.5607998 | AR86: -2.9120583 | AS86: -2.3576905 | AT86: -2.876086 | AU86: -1.2311967 | AV86: -0.5212218 | AW86: 0.9256927 | AX86: 1.5192986 | AY86: 3.2624533 | AZ86: 4.294879 | BA86: 3.2672272 | BB86: 5.650014 | BC86: 8.103871 | BD86: 7.150708 | BE86: 6.8122998 | BF86: 5.6386655 | BG86: 2.4886897 | BH86: 1.8798468 | BI86: 1.8261917 | BJ86: 0.0980877 | BK86: 0.0339442 | BL86: 1.1669864 | BM86: 0.85672 | BN86: 1.22112 | BO86: 0.7126622 | BP86: 0.1924746 | BQ86: -0.0643733 | BR86: 0.1351984 | BS86: -0.7855389 | BT86: -0.665444 | BU86: -0.8518749 | BV86: -3.1325909 | BW86: -4.3084603 | BX86: -3.3509388 | BY86: -2.8948014 | BZ86: -4.2772513 | CA86: -4.0374843 | CB86: -4.1576128 | CC86: -4.1817348 | CD86: -4.6197369 | CE86: -3.9396005 | CF86: -3.9408492 | CG86: -4.069245 | CH86: -4.6215493 | CI86: -4.9206893 | CJ86: -5.0987517 | CK86: -4.1096059 | CL86: -4.0395391 | CM86: -3.9612444 | CN86: -3.8471177 | CO86: -3.7925912 | CP86: -4.2024315 | CQ86: -5.4612925 | CR86: -5.3367248 | CS86: -4.9066942 | CT86: -4.6805149 | CU86: -4.5086453 | CV86: -4.0839707 | CW86: -3.8952038 | CX86: -3.8813313 | CY86: -4.2392327 | CZ86: -3.5210207 | DA86: -3.6318456 | DB86: -3.0132867 | DC86: -2.5183673 | DD86: -2.7826801 | DE86: -2.6901129 | DF86: -2.9065618 | DG86: -2.6688267 | DH86: -2.732675 | DI86: -3.1351453 | DJ86: -3.1784232 | DK86: -2.8578507 | DL86: -2.8720714 | DM86: -2.7535607 | DN86: -3.0552405 | DO86: -2.8335553 | DP86: -2.9852368 | DQ86: -2.7042456 | DR86: -2.746498 | DS86: -2.4331036 | DT86: -2.4651379 | DU86: -2.1355704 | DV86: -2.3698668 | DW86: -2.2465759 | DX86: -1.5111284 | DY86: -1.6852877 | DZ86: -1.7329751 | EA86: -1.7695277 | EB86: -1.7115095 | EC86: -1.6773913 | ED86: -1.5090075 | EE86: -1.6411784 | EF86: -1.7212996 | EG86: -1.4929031 | EH86: -1.0866172 | EI86: -1.3673718 | EJ86: -1.2487803 | EK86: -1.4722576 | EL86: -1.4895114 | EM86: -0.7648457 | EN86: -0.2962618 | EO86: -0.2527221 | EP86: -0.0575668 | EQ86: -0.0728552 | ER86: -0.230639 | ES86: 0.0735975 | ET86: 0.0907771 | EU86: 0.4978705 | EV86: 0.5444548 | EW86: 0.6730496 | EX86: 0.5208405 | EY86: 0.5712748 | EZ86: 0.3836379 | FA86: 0.7024619 | FB86: 0.9405213 | FC86: 0.8518154 | FD86: 0.4687888 | FE86: 0.6847828 | FF86: 1.1755132 | FG86: 1.102709 | FH86: 1.3229967 | FI86: 1.4758536 | FJ86: 1.6846706 | FK86: 1.5097042 | FL86: 1.8033045 | FM86: 2.1627247 | FN86: 2.171838 | FO86: 2.3255659 | FP86: 1.8550681 | FQ86: 2.0001136 | FR86: 2.0610945 | FS86: 2.0281581 | FT86: 1.8106984 | FU86: 1.7210869 | FV86: 1.5131664 | FW86: 1.6755972 | FX86: 2.0771106 | FY86: 2.0567053 | FZ86: 2.0521536 | GA86: 2.0625966 | GB86: 2.204289 | GC86: 2.2401099 | GD86: 2.4092822 | GE86: 2.3269235 | GF86: 2.4242353 | GG86: 2.5727317 | GH86: 2.4851011 | GI86: 2.484933 | GJ86: 2.1406485 | GK86: 2.2286646 | GL86: 2.4754681 | GM86: 2.4757538 | GN86: 2.5125319 | GO86: 2.4036815
A87: =A86+1 -> 66 | B87: 1.785714286 | C87: 1.909601318 | D87: -4.292571431 | E87: 12.8198849 | F87: 0.5827705604 | G87: -0.5787082841 | H87: 2.6931173 | I87: 9.4482501 | J87: 5.6783658 | K87: 3.7698843 | M87: Simulation 78 | N87: 0 | O87: -0.1888568 | P87: -1.0710503 | Q87: -1.3284759 | R87: -0.2075406 | S87: -3.7277842 | T87: -4.8431686 | U87: -5.0132566 | V87: -4.9277672 | W87: -6.7509726 | X87: -6.0649465 | Y87: -6.8205385 | Z87: -8.5203835 | AA87: -7.6504113 | AB87: -7.1652059 | AC87: -7.7274593 | AD87: -8.1205021 | AE87: -9.4259604 | AF87: -10.2079728 | AG87: -11.6174823 | AH87: -11.2039406 | AI87: -11.8637202 | AJ87: -12.7413536 | AK87: -12.5662973 | AL87: -12.7674846 | AM87: -11.5648384 | AN87: -11.1937079 | AO87: -12.0287859 | AP87: -12.5109935 | AQ87: -12.1833293 | AR87: -12.1954324 | AS87: -12.3933666 | AT87: -12.7953479 | AU87: -12.3173928 | AV87: -12.1590856 | AW87: -12.057982 | AX87: -12.2458961 | AY87: -12.6466688 | AZ87: -10.8733757 | BA87: -10.8970124 | BB87: -10.8725472 | BC87: -11.1936029 | BD87: -11.0169484 | BE87: -10.8078914 | BF87: -11.2305862 | BG87: -11.575226 | BH87: -11.8932612 | BI87: -12.3853319 | BJ87: -12.466358 | BK87: -11.6843681 | BL87: -11.9153507 | BM87: -12.6819896 | BN87: -12.9510806 | BO87: -12.8874441 | BP87: -12.4284931 | BQ87: -12.860751 | BR87: -11.9278012 | BS87: -11.4297925 | BT87: -11.4131943 | BU87: -11.4431853 | BV87: -11.9799892 | BW87: -11.6714521 | BX87: -11.450905 | BY87: -11.6069464 | BZ87: -11.3721423 | CA87: -11.1815483 | CB87: -11.1852128 | CC87: -11.1688393 | CD87: -10.4966869 | CE87: -10.6931354 | CF87: -10.0047575 | CG87: -10.5665651 | CH87: -10.3109066 | CI87: -10.4135842 | CJ87: -10.2524952 | CK87: -9.740575 | CL87: -10.0275597 | CM87: -9.7929688 | CN87: -9.2595539 | CO87: -9.4345538 | CP87: -9.1961767 | CQ87: -8.6828941 | CR87: -9.0318276 | CS87: -9.0708901 | CT87: -8.8569977 | CU87: -8.8485383 | CV87: -9.0870097 | CW87: -9.1505534 | CX87: -8.8812959 | CY87: -8.6930898 | CZ87: -8.9388239 | DA87: -9.0062587 | DB87: -8.8210424 | DC87: -7.9421604 | DD87: -7.7387911 | DE87: -7.5868054 | DF87: -7.5959043 | DG87: -7.6085247 | DH87: -7.6006246 | DI87: -7.1038159 | DJ87: -7.1916584 | DK87: -7.1504764 | DL87: -6.8367468 | DM87: -6.9400839 | DN87: -7.1680054 | DO87: -6.7651875 | DP87: -6.849419 | DQ87: -6.659082 | DR87: -6.4738961 | DS87: -6.6780651 | DT87: -6.5377117 | DU87: -5.5815031 | DV87: -5.9045318 | DW87: -5.8036076 | DX87: -5.7934598 | DY87: -5.4449934 | DZ87: -5.061116 | EA87: -4.9818638 | EB87: -4.9087842 | EC87: -4.6775145 | ED87: -4.7012163 | EE87: -4.8465146 | EF87: -5.0733445 | EG87: -4.6488005 | EH87: -4.6402949 | EI87: -4.5365015 | EJ87: -4.2014134 | EK87: -3.9433173 | EL87: -3.6861355 | EM87: -2.6724798 | EN87: -2.7094155 | EO87: -2.9793372 | EP87: -2.7568856 | EQ87: -2.6888138 | ER87: -2.7336644 | ES87: -2.4633007 | ET87: -2.276427 | EU87: -2.1468942 | EV87: -1.8632269 | EW87: -1.9890795 | EX87: -2.2175749 | EY87: -2.2050036 | EZ87: -2.0468965 | FA87: -1.7984118 | FB87: -1.8107668 | FC87: -1.681867 | FD87: -1.4002628 | FE87: -1.2142576 | FF87: -0.7118282 | FG87: -1.012637 | FH87: -0.6916708 | FI87: -0.5473625 | FJ87: -0.5529909 | FK87: -0.5991443 | FL87: -0.8399035 | FM87: -0.8483292 | FN87: -0.9596914 | FO87: -0.8127718 | FP87: -1.0451448 | FQ87: -0.9477665 | FR87: -0.5313033 | FS87: -0.6358126 | FT87: -0.3028739 | FU87: -0.4459296 | FV87: -0.4930622 | FW87: -0.3617648 | FX87: 0.0730009 | FY87: 0.1269948 | FZ87: 0.0503445 | GA87: -0.2504503 | GB87: -0.1839534 | GC87: -0.2137247 | GD87: -0.2303744 | GE87: 0.1044663 | GF87: 0.2213217 | GG87: 0.2424553 | GH87: 0.3207834 | GI87: 0.3305823 | GJ87: 0.458333 | GK87: 0.5595105 | GL87: 0.7835428 | GM87: 1.1185395 | GN87: 1.1542383 | GO87: 1.0985258
A88: 67 | B88: 1.813186813 | C88: 1.897175335 | D88: -4.323436281 | E88: 12.6179826 | F88: 0.4003469493 | G88: -0.5106440232 | H88: 1.9046372 | I88: 11.6152013 | J88: 7.0713625 | K88: 4.5438388 | M88: Simulation 79 | N88: 0 | O88: -0.3585427 | P88: 0.1747522 | Q88: -0.4240756 | R88: -0.6114921 | S88: -2.3958171 | T88: -4.0833493 | U88: -3.9887309 | V88: -2.4285756 | W88: -1.3234058 | X88: -1.0401323 | Y88: -1.4753711 | Z88: -1.4611615 | AA88: -1.3230283 | AB88: -0.4888574 | AC88: 0.9427379 | AD88: 0.294382 | AE88: -1.9023858 | AF88: -0.7836859 | AG88: -0.1049263 | AH88: 0.8517743 | AI88: 0.0082026 | AJ88: -0.923096 | AK88: -0.9410003 | AL88: -1.9385574 | AM88: -2.6129467 | AN88: -2.8814306 | AO88: -3.2799833 | AP88: -2.0946889 | AQ88: -0.5990934 | AR88: -0.6468316 | AS88: -0.5134032 | AT88: 0.5049078 | AU88: 1.4986436 | AV88: 0.8386883 | AW88: 1.6815264 | AX88: 0.9584452 | AY88: -0.9427063 | AZ88: -0.774856 | BA88: -2.4163658 | BB88: 0.6289921 | BC88: 0.0899562 | BD88: -1.4200977 | BE88: -1.194068 | BF88: -0.770668 | BG88: -0.4695968 | BH88: -0.8528061 | BI88: -1.8365381 | BJ88: -1.4842585 | BK88: -1.1634651 | BL88: -0.8968356 | BM88: -0.2445906 | BN88: -1.291385 | BO88: -1.6248403 | BP88: -2.4711228 | BQ88: -1.5449953 | BR88: 0.4432005 | BS88: -0.5076415 | BT88: 0.8205063 | BU88: 0.3089765 | BV88: 0.0295693 | BW88: 0.7501455 | BX88: -0.1483856 | BY88: -0.0775861 | BZ88: 2.497705 | CA88: 3.3945482 | CB88: 1.7372712 | CC88: 0.4076242 | CD88: -0.6612889 | CE88: -2.1074797 | CF88: -1.6628022 | CG88: -2.0069364 | CH88: -0.8107709 | CI88: -0.7360266 | CJ88: -1.4036795 | CK88: 0.1940573 | CL88: 0.6884887 | CM88: 0.1036403 | CN88: -0.1641976 | CO88: 0.7705693 | CP88: 0.8711393 | CQ88: 1.1049716 | CR88: 1.7591125 | CS88: 1.831309 | CT88: 0.7008607 | CU88: -0.1108424 | CV88: 1.0535918 | CW88: 0.683795 | CX88: 0.1750649 | CY88: -1.378792 | CZ88: -0.674164 | DA88: -0.0012438 | DB88: 0.310195 | DC88: 0.9758328 | DD88: 1.2459354 | DE88: 1.4512389 | DF88: 1.4803642 | DG88: 1.5412407 | DH88: 1.4342513 | DI88: 1.160501 | DJ88: 0.2205982 | DK88: -0.272609 | DL88: 0.1709666 | DM88: 0.0429421 | DN88: 0.0924616 | DO88: 1.3144411 | DP88: 1.3725212 | DQ88: 1.5426454 | DR88: 0.7022552 | DS88: 0.8779858 | DT88: 1.2937702 | DU88: 1.6903641 | DV88: 2.0760607 | DW88: 1.9250647 | DX88: 2.49969 | DY88: 1.2604207 | DZ88: 0.7853717 | EA88: 0.6919463 | EB88: -0.4149568 | EC88: -1.0172572 | ED88: -0.1790701 | EE88: -1.6109145 | EF88: -1.5584622 | EG88: -1.4344343 | EH88: -1.6102867 | EI88: -1.0020954 | EJ88: -0.3571476 | EK88: -1.454004 | EL88: -1.5442971 | EM88: -1.7093687 | EN88: -1.3319841 | EO88: -0.9514948 | EP88: -1.0842992 | EQ88: -0.9841874 | ER88: -0.8719282 | ES88: -1.0942276 | ET88: -1.0251191 | EU88: -0.4703 | EV88: 0.0810324 | EW88: 0.1137361 | EX88: 0.0393494 | EY88: -0.2702181 | EZ88: -0.5464082 | FA88: -0.616467 | FB88: -0.4320331 | FC88: -0.5162277 | FD88: -0.5434806 | FE88: -0.4219365 | FF88: -0.0928592 | FG88: 0.0290842 | FH88: 0.0822012 | FI88: 0.49021 | FJ88: 0.2384085 | FK88: 0.4578567 | FL88: 0.3530106 | FM88: 0.4829068 | FN88: 0.1950378 | FO88: 0.1354176 | FP88: 0.00383 | FQ88: -0.100381 | FR88: -0.0483788 | FS88: -0.0090738 | FT88: 0.0378008 | FU88: 0.0500808 | FV88: -0.0653839 | FW88: 0.0245899 | FX88: 0.1174728 | FY88: 0.3290713 | FZ88: 0.7066843 | GA88: 0.8736599 | GB88: 1.0631352 | GC88: 1.1829465 | GD88: 0.8895511 | GE88: 0.8692627 | GF88: 0.9285173 | GG88: 0.707366 | GH88: 0.7761685 | GI88: 0.8407672 | GJ88: 0.8326067 | GK88: 0.767401 | GL88: 0.655286 | GM88: 0.7672003 | GN88: 0.8545702 | GO88: 0.8929556
A89: 68 | B89: 1.840659341 | C89: 1.920830258 | D89: -4.367489354 | E89: 11.8386693 | F89: 0.4846726458 | G89: -0.61536787 | H89: 2.468234 | I89: 7.3358373 | J89: 7.0713625 | K89: 0.2644748 | M89: Simulation 80 | N89: 0 | O89: -0.0491641 | P89: 1.0053455 | Q89: 1.2760832 | R89: 1.8123579 | S89: 1.3765882 | T89: 2.2613007 | U89: 2.2175646 | V89: 4.2215308 | W89: 5.5353314 | X89: 4.2214361 | Y89: 5.7836024 | Z89: 5.7156635 | AA89: 6.5459326 | AB89: 6.5388359 | AC89: 5.7028196 | AD89: 6.6857824 | AE89: 5.7134116 | AF89: 5.9128795 | AG89: 6.8683731 | AH89: 7.9399502 | AI89: 8.0850531 | AJ89: 5.630588 | AK89: 5.1859684 | AL89: 5.8132452 | AM89: 5.1016164 | AN89: 4.7574461 | AO89: 3.5136209 | AP89: 0.7044503 | AQ89: 1.4305046 | AR89: 1.8409007 | AS89: 1.4230116 | AT89: 1.2314857 | AU89: -0.4423804 | AV89: -0.3278497 | AW89: -1.3349192 | AX89: 0.1875001 | AY89: -0.6354704 | AZ89: -0.820222 | BA89: -0.463483 | BB89: -2.6375815 | BC89: -2.25066 | BD89: -3.2899238 | BE89: -5.26212 | BF89: -5.5517967 | BG89: -6.5445438 | BH89: -7.3539188 | BI89: -7.0823293 | BJ89: -7.0223239 | BK89: -8.8959991 | BL89: -9.2024607 | BM89: -9.11757 | BN89: -9.1125598 | BO89: -9.765358 | BP89: -8.8924821 | BQ89: -8.5897664 | BR89: -7.9846187 | BS89: -8.6971624 | BT89: -8.4746865 | BU89: -8.7261399 | BV89: -8.4442129 | BW89: -8.7671684 | BX89: -8.6550098 | BY89: -8.1867389 | BZ89: -8.5193741 | CA89: -8.1846293 | CB89: -8.7292014 | CC89: -8.7950167 | CD89: -9.3826156 | CE89: -9.0489791 | CF89: -9.1322907 | CG89: -9.5491764 | CH89: -9.0410824 | CI89: -8.9414149 | CJ89: -9.2193537 | CK89: -9.1653417 | CL89: -9.8134841 | CM89: -9.2769711 | CN89: -9.7355787 | CO89: -9.169227 | CP89: -9.2784908 | CQ89: -9.3939398 | CR89: -9.0134265 | CS89: -9.1470128 | CT89: -9.3604537 | CU89: -9.1640123 | CV89: -8.8338727 | CW89: -8.404887 | CX89: -8.2855828 | CY89: -8.1878254 | CZ89: -8.6872494 | DA89: -8.706694 | DB89: -8.6330605 | DC89: -8.5422062 | DD89: -8.60573 | DE89: -8.7727715 | DF89: -8.7053591 | DG89: -8.2531756 | DH89: -8.1476138 | DI89: -7.4284339 | DJ89: -7.5000127 | DK89: -7.5821591 | DL89: -7.5681329 | DM89: -7.8792753 | DN89: -8.8977302 | DO89: -8.734509 | DP89: -8.8740588 | DQ89: -8.5253754 | DR89: -8.3824711 | DS89: -7.8993322 | DT89: -8.1711566 | DU89: -7.6292733 | DV89: -7.5722049 | DW89: -7.3005322 | DX89: -7.2554377 | DY89: -7.2615352 | DZ89: -7.0227321 | EA89: -7.1188967 | EB89: -6.3981697 | EC89: -6.2735726 | ED89: -6.2285852 | EE89: -5.7567261 | EF89: -4.9356159 | EG89: -5.3653952 | EH89: -4.7926695 | EI89: -4.3373754 | EJ89: -5.0435674 | EK89: -5.0825706 | EL89: -4.6558913 | EM89: -3.6491127 | EN89: -3.3223685 | EO89: -3.1657869 | EP89: -2.9559043 | EQ89: -1.6861632 | ER89: -1.3115696 | ES89: -1.2818288 | ET89: -0.299878 | EU89: -1.2493002 | EV89: -1.2325674 | EW89: -2.0860408 | EX89: -2.2195013 | EY89: -2.5747834 | EZ89: -2.5877569 | FA89: -2.8091056 | FB89: -2.881245 | FC89: -3.1261269 | FD89: -3.1345843 | FE89: -2.8023547 | FF89: -2.1819411 | FG89: -2.0483887 | FH89: -2.5927968 | FI89: -2.3237467 | FJ89: -2.6833706 | FK89: -2.4568209 | FL89: -2.4673058 | FM89: -2.5054222 | FN89: -2.3951527 | FO89: -2.7393335 | FP89: -2.4170888 | FQ89: -2.6617895 | FR89: -2.7847249 | FS89: -2.6517182 | FT89: -2.9707596 | FU89: -2.8510477 | FV89: -2.9130946 | FW89: -2.6690077 | FX89: -2.3761932 | FY89: -2.4162746 | FZ89: -2.4160555 | GA89: -2.3596972 | GB89: -2.4457094 | GC89: -2.5265593 | GD89: -2.4294333 | GE89: -2.3248807 | GF89: -2.3683505 | GG89: -2.4949373 | GH89: -2.3933029 | GI89: -2.3229172 | GJ89: -2.2448557 | GK89: -2.3852793 | GL89: -2.2680306 | GM89: -2.3111046 | GN89: -2.2855178 | GO89: -2.1826732
A90: 69 | B90: 1.868131868 | C90: 1.878792649 | D90: -4.41789579 | E90: 11.7324153 | F90: 0.3981540691 | G90: -0.5109962642 | H90: 1.9446263 | I90: 10.0014414 | J90: 11.6152013 | K90: -1.6137599 | M90: Simulation 81 | N90: 0 | O90: 0.5345997 | P90: 2.0350313 | Q90: 0.3043274 | R90: 0.7392913 | S90: 0.7099571 | T90: -0.5863019 | U90: -0.7498045 | V90: -2.6676264 | W90: -1.3878577 | X90: -0.7311102 | Y90: 0.4223741 | Z90: -0.4275262 | AA90: -0.8004733 | AB90: -2.5853451 | AC90: -3.2633423 | AD90: -0.7079374 | AE90: -0.5737742 | AF90: -3.3533085 | AG90: -0.840965 | AH90: -0.8241992 | AI90: 0.520473 | AJ90: 0.1285605 | AK90: 0.1292667 | AL90: -0.5797609 | AM90: -0.9201186 | AN90: 2.1982016 | AO90: 1.9745896 | AP90: 1.7989752 | AQ90: 0.4140633 | AR90: -0.8593152 | AS90: -0.8862252 | AT90: -3.0784391 | AU90: -1.8164167 | AV90: -2.0096564 | AW90: -3.1650712 | AX90: -5.5183227 | AY90: -5.662437 | AZ90: -5.6989322 | BA90: -4.4428172 | BB90: -3.5526905 | BC90: -2.1296085 | BD90: -1.8588368 | BE90: -1.7214171 | BF90: -1.0669313 | BG90: 0.047706 | BH90: 1.6005546 | BI90: 2.7691707 | BJ90: 2.8425887 | BK90: 3.0102543 | BL90: 3.7602848 | BM90: 3.4565276 | BN90: 2.7834596 | BO90: 2.9241638 | BP90: 1.0167352 | BQ90: -0.9872098 | BR90: -0.8453044 | BS90: -1.9428716 | BT90: -1.7427164 | BU90: -0.5472363 | BV90: -0.4704157 | BW90: 0.0993325 | BX90: -0.7389289 | BY90: -0.9935645 | BZ90: -2.1661575 | CA90: -1.3337127 | CB90: 0.1980502 | CC90: 1.1349942 | CD90: 2.0561871 | CE90: 0.9753918 | CF90: 0.9016756 | CG90: 0.4257819 | CH90: 1.0113914 | CI90: 0.1821058 | CJ90: -1.2818035 | CK90: -0.0344903 | CL90: -0.7430615 | CM90: -0.3694261 | CN90: -1.599765 | CO90: -0.9951153 | CP90: -1.5666916 | CQ90: -1.9546779 | CR90: -1.7713061 | CS90: -1.236555 | CT90: -0.0997305 | CU90: 0.1919045 | CV90: -0.203701 | CW90: 0.7768386 | CX90: -0.5119912 | CY90: -1.8166266 | CZ90: -2.428052 | DA90: -1.9045892 | DB90: -0.9630596 | DC90: -0.6612197 | DD90: -1.4573941 | DE90: -1.3140308 | DF90: -1.1038241 | DG90: -1.7622248 | DH90: -0.8014816 | DI90: -1.8958889 | DJ90: -1.2939832 | DK90: -2.0894169 | DL90: -2.1394999 | DM90: -1.975024 | DN90: -2.0455909 | DO90: -3.140474 | DP90: -2.5721576 | DQ90: -2.7950765 | DR90: -2.5955537 | DS90: -2.6152497 | DT90: -3.4155741 | DU90: -2.6513103 | DV90: -2.4801822 | DW90: -2.2424804 | DX90: -2.6301738 | DY90: -2.9933124 | DZ90: -2.8664652 | EA90: -2.5422371 | EB90: -2.4355831 | EC90: -2.0461167 | ED90: -2.0167994 | EE90: -2.272651 | EF90: -2.0853458 | EG90: -2.0740819 | EH90: -2.4911603 | EI90: -2.8527171 | EJ90: -2.5742536 | EK90: -2.3051014 | EL90: -2.4057059 | EM90: -2.0653113 | EN90: -1.9879971 | EO90: -2.0765411 | EP90: -2.2343838 | EQ90: -1.8994605 | ER90: -1.7198881 | ES90: -1.8433177 | ET90: -1.7949656 | EU90: -1.6234355 | EV90: -1.7404797 | EW90: -1.8491381 | EX90: -1.8175703 | EY90: -1.6041256 | EZ90: -1.3957096 | FA90: -1.2447578 | FB90: -1.1498831 | FC90: -1.0054954 | FD90: -1.1763744 | FE90: -1.0029959 | FF90: -0.6083559 | FG90: -0.635692 | FH90: -0.6660938 | FI90: -0.7223278 | FJ90: -0.7697611 | FK90: -0.7148118 | FL90: -0.9292725 | FM90: -0.9403845 | FN90: -0.7070463 | FO90: -0.8771188 | FP90: -0.7932882 | FQ90: -0.6208443 | FR90: -0.5828103 | FS90: -0.646349 | FT90: -0.5799536 | FU90: -0.4183126 | FV90: -0.4000497 | FW90: -0.2795257 | FX90: 0.4219098 | FY90: 0.5751713 | FZ90: 0.6549901 | GA90: 0.6304224 | GB90: 0.846133 | GC90: 0.6704718 | GD90: 0.7155579 | GE90: 0.7223582 | GF90: 1.0838988 | GG90: 1.0685398 | GH90: 1.28545 | GI90: 1.207636 | GJ90: 1.0633009 | GK90: 1.3756448 | GL90: 1.5851241 | GM90: 1.4382359 | GN90: 1.2486757 | GO90: 1.4175285
A91: 70 | B91: 1.895604396 | C91: 1.891604629 | D91: -4.451665128 | E91: 11.4936658 | F91: 0.4812901995 | G91: -0.6150897532 | H91: 2.2239109 | I91: 9.7069922 | J91: =I91-K91 -> 11.6152013 | K91: -1.9082091 | M91: Simulation 82 | N91: 0 | O91: -0.2203767 | P91: 0.4246255 | Q91: 1.2381896 | R91: 0.3751181 | S91: 2.8418449 | T91: 2.3218105 | U91: 0.1081716 | V91: -0.3447955 | W91: -0.7122998 | X91: -1.065654 | Y91: -2.9354412 | Z91: -3.6148335 | AA91: -3.3152011 | AB91: -2.3234248 | AC91: -3.3130381 | AD91: -2.9197407 | AE91: -1.6902711 | AF91: -1.1670312 | AG91: 0.2241775 | AH91: 0.8630483 | AI91: 0.7696506 | AJ91: 1.2477102 | AK91: 1.4158164 | AL91: 4.1175125 | AM91: 5.3450054 | AN91: 4.9560809 | AO91: 4.5171893 | AP91: 4.2380908 | AQ91: 5.224305 | AR91: 5.4420066 | AS91: 3.1798672 | AT91: 3.5972733 | AU91: 5.5902287 | AV91: 6.5698928 | AW91: 4.6155795 | AX91: 5.2223294 | AY91: 6.2352146 | AZ91: 6.5470182 | BA91: 7.4094444 | BB91: 7.2508315 | BC91: 5.8624425 | BD91: 8.1815425 | BE91: 6.2866979 | BF91: 8.1575179 | BG91: 8.1084396 | BH91: 6.7720128 | BI91: 5.958172 | BJ91: 6.2436128 | BK91: 6.1414862 | BL91: 5.973636 | BM91: 4.7300943 | BN91: 5.3053647 | BO91: 8.9101727 | BP91: 5.8977602 | BQ91: 6.0852625 | BR91: 8.460191 | BS91: 8.9908345 | BT91: 9.1105429 | BU91: 11.8152703 | BV91: 9.5040839 | BW91: 7.4330883 | BX91: 7.4935005 | BY91: 5.4522328 | BZ91: 4.0789981 | CA91: 4.2602774 | CB91: 3.5598883 | CC91: 2.7878404 | CD91: 2.8733102 | CE91: 3.361017 | CF91: 3.0859048 | CG91: 2.8052151 | CH91: 1.819879 | CI91: 0.8289986 | CJ91: -0.9305616 | CK91: -1.1124862 | CL91: -0.1686486 | CM91: -0.4308911 | CN91: -0.3807174 | CO91: 0.7923179 | CP91: 1.1117144 | CQ91: 2.5821471 | CR91: 3.5801734 | CS91: 2.5610405 | CT91: 0.3525648 | CU91: 0.2962663 | CV91: 0.6065086 | CW91: 0.08325 | CX91: -1.2696477 | CY91: -0.4234857 | CZ91: -0.9895789 | DA91: -0.2067788 | DB91: -2.246501 | DC91: -2.4713171 | DD91: -1.6040157 | DE91: -1.9689129 | DF91: -1.1999343 | DG91: -0.5360479 | DH91: 0.9259219 | DI91: 1.645818 | DJ91: 4.3625855 | DK91: 3.5520486 | DL91: 1.8967608 | DM91: 3.2645767 | DN91: 5.3623329 | DO91: 7.1424481 | DP91: 6.2950213 | DQ91: 7.3351972 | DR91: 6.3078279 | DS91: 6.0694696 | DT91: 6.5892651 | DU91: 6.2567895 | DV91: 7.6876492 | DW91: 9.6963971 | DX91: 9.9671287 | DY91: 10.7625372 | DZ91: 10.8379118 | EA91: 12.1884875 | EB91: 11.4953591 | EC91: 12.8074763 | ED91: 12.3328092 | EE91: 13.0422399 | EF91: 10.9732669 | EG91: 12.122132 | EH91: 11.132838 | EI91: 11.2074032 | EJ91: 8.3184953 | EK91: 7.552392 | EL91: 7.5848299 | EM91: 8.4889946 | EN91: 6.5981835 | EO91: 7.1328466 | EP91: 5.6157177 | EQ91: 5.2191934 | ER91: 4.0214895 | ES91: 3.7232517 | ET91: 3.6453715 | EU91: 3.9753055 | EV91: 3.6440756 | EW91: 2.8986097 | EX91: 3.0873041 | EY91: 3.7873847 | EZ91: 3.3710601 | FA91: 3.2530952 | FB91: 2.835391 | FC91: 2.3137962 | FD91: 2.7147968 | FE91: 3.3843546 | FF91: 3.4605866 | FG91: 2.7064854 | FH91: 2.988416 | FI91: 2.555703 | FJ91: 2.8460385 | FK91: 2.8205977 | FL91: 2.2446529 | FM91: 2.0099297 | FN91: 2.3376251 | FO91: 1.9739252 | FP91: 2.0723914 | FQ91: 1.8979103 | FR91: 2.0305773 | FS91: 2.1216631 | FT91: 2.0813357 | FU91: 2.8750069 | FV91: 2.3036384 | FW91: 2.67128 | FX91: 2.3807724 | FY91: 1.6722224 | FZ91: 1.4335969 | GA91: 1.3195972 | GB91: 1.0016043 | GC91: 0.9807351 | GD91: 0.9032028 | GE91: 0.8110724 | GF91: 0.5220879 | GG91: 0.3711503 | GH91: 0.1566394 | GI91: 0.0576993 | GJ91: -0.1746625 | GK91: -0.5205676 | GL91: -0.7764102 | GM91: -1.1341192 | GN91: -1.2638712 | GO91: -1.6224499
